Workbook

Sheet IRArticle23T1
A1: Reporting on GHG projections per IPCC sector and gas 1.Member States shall report the information on projections of anthropogenic greenhouse gases emissions by sources and removals by sinks referred to in Article 14 of Regulation (EU) No 525/2013 in accordance with the tabular formats set out in Annex XII to this Regulation, using the reporting template provided and the submission process introduced by the Commission.
A3: suggested for use to report section 3. (2) of Annex I Part 2 of the provisionally agreed Energy Union Governance regulation text
A5: Instructions for MMR submission
A6: Yellow fields are mandatory reporting requirements under the MMR
A7: Unfold the template by clicking the framed '+' icons.
A8: Select your country in cell B15 and the base year of your projections in cell C17, other base year cells will be filled automatically.
A9: Fill the template with your data and press the button 'Export to XML' in cell C14.
A10: The xml-transformation will not work if you add rows or columns to this template.
A11: Don't add textual information in this template. The information will not reach us. Explain your data in your report.
A12: Upload the Excel and the xml file to the EIONET CDR.
A13: Note: Total emissions witout indirect CO2 emissions
A14: Submission Year | B14: 2019
A15: MS | B15: LV
A16: Category (1,3) | B16: Scenario (WEM, WAM, WOM) | C16: CO2 (kt) | D16: CO2 (kt) | E16: CO2 (kt) | F16: CO2 (kt) | G16: CO2 (kt) | H16: CO2 (kt) | I16: CO2 (kt) | J16: CO2 (kt) | K16: CO2 (kt) | L16: CO2 (kt) | M16: CO2 (kt) | N16: CO2 (kt) | O16: CO2 (kt) | P16: CO2 (kt) | Q16: CO2 (kt) | R16: CO2 (kt) | S16: CO2 (kt) | T16: =N16 -> CO2 (kt) | U16: =O16 -> CO2 (kt) | V16: CO2 (kt) | W16: CO2 (kt) | X16: CO2 (kt) | Y16: =S16 -> CO2 (kt) | Z16: =T16 -> CO2 (kt) | AA16: =U16 -> CO2 (kt) | AB16: =V16 -> CO2 (kt) | AC16: =W16 -> CO2 (kt) | AD16: N2O (kt) | AE16: N2O (kt) | AF16: N2O (kt) | AG16: N2O (kt) | AH16: N2O (kt) | AI16: N2O (kt) | AJ16: N2O (kt) | AK16: N2O (kt) | AL16: N2O (kt) | AM16: N2O (kt) | AN16: N2O (kt) | AO16: N2O (kt) | AP16: N2O (kt) | AQ16: N2O (kt) | AR16: N2O (kt) | AS16: N2O (kt) | AT16: N2O (kt) | AU16: =AO16 -> N2O (kt) | AV16: =AP16 -> N2O (kt) | AW16: =AQ16 -> N2O (kt) | AX16: =AR16 -> N2O (kt) | AY16: =AS16 -> N2O (kt) | AZ16: =AT16 -> N2O (kt) | BA16: =AU16 -> N2O (kt) | BB16: =AV16 -> N2O (kt) | BC16: =AW16 -> N2O (kt) | BD16: =AX16 -> N2O (kt) | BE16: CH4 (kt) | BF16: CH4 (kt) | BG16: CH4 (kt) | BH16: CH4 (kt) | BI16: CH4 (kt) | BJ16: CH4 (kt) | BK16: CH4 (kt) | BL16: CH4 (kt) | BM16: CH4 (kt) | BN16: CH4 (kt) | BO16: CH4 (kt) | BP16: CH4 (kt) | BQ16: CH4 (kt) | BR16: CH4 (kt) | BS16: CH4 (kt) | BT16: CH4 (kt) | BU16: CH4 (kt) | BV16: =BP16 -> CH4 (kt) | BW16: =BQ16 -> CH4 (kt) | BX16: =BR16 -> CH4 (kt) | BY16: =BS16 -> CH4 (kt) | BZ16: =BT16 -> CH4 (kt) | CA16: =BU16 -> CH4 (kt) | CB16: =BV16 -> CH4 (kt) | CC16: =BW16 -> CH4 (kt) | CD16: =BX16 -> CH4 (kt) | CE16: =BY16 -> CH4 (kt) | CF16: HFC (kt CO2e) | CG16: HFC (kt CO2e) | CH16: HFC (kt CO2e) | CI16: HFC (kt CO2e) | CJ16: HFC (kt CO2e) | CK16: HFC (kt CO2e) | CL16: HFC (kt CO2e) | CM16: HFC (kt CO2e) | CN16: HFC (kt CO2e) | CO16: HFC (kt CO2e) | CP16: HFC (kt CO2e) | CQ16: HFC (kt CO2e) | CR16: HFC (kt CO2e) | CS16: HFC (kt CO2e) | CT16: HFC (kt CO2e) | CU16: HFC (kt CO2e) | CV16: HFC (kt CO2e) | CW16: =CQ16 -> HFC (kt CO2e) | CX16: =CR16 -> HFC (kt CO2e) | CY16: =CS16 -> HFC (kt CO2e) | CZ16: =CT16 -> HFC (kt CO2e) | DA16: =CU16 -> HFC (kt CO2e) | DB16: =CV16 -> HFC (kt CO2e) | DC16: =CW16 -> HFC (kt CO2e) | DD16: =CX16 -> HFC (kt CO2e) | DE16: =CY16 -> HFC (kt CO2e) | DF16: =CZ16 -> HFC (kt CO2e) | DG16: PFC (kt CO2e) | DH16: PFC (kt CO2e) | DI16: PFC (kt CO2e) | DJ16: PFC (kt CO2e) | DK16: PFC (kt CO2e) | DL16: PFC (kt CO2e) | DM16: PFC (kt CO2e) | DN16: PFC (kt CO2e) | DO16: PFC (kt CO2e) | DP16: PFC (kt CO2e) | DQ16: PFC (kt CO2e) | DR16: PFC (kt CO2e) | DS16: PFC (kt CO2e) | DT16: PFC (kt CO2e) | DU16: PFC (kt CO2e) | DV16: PFC (kt CO2e) | DW16: PFC (kt CO2e) | DX16: =DR16 -> PFC (kt CO2e) | DY16: =DS16 -> PFC (kt CO2e) | DZ16: =DT16 -> PFC (kt CO2e) | EA16: =DU16 -> PFC (kt CO2e) | EB16: =DV16 -> PFC (kt CO2e) | EC16: =DW16 -> PFC (kt CO2e) | ED16: =DX16 -> PFC (kt CO2e) | EE16: =DY16 -> PFC (kt CO2e) | EF16: =DZ16 -> PFC (kt CO2e) | EG16: =EA16 -> PFC (kt CO2e) | EH16: SF6 (kt CO2e) | EI16: SF6 (kt CO2e) | EJ16: SF6 (kt CO2e) | EK16: SF6 (kt CO2e) | EL16: SF6 (kt CO2e) | EM16: SF6 (kt CO2e) | EN16: SF6 (kt CO2e) | EO16: SF6 (kt CO2e) | EP16: SF6 (kt CO2e) | EQ16: SF6 (kt CO2e) | ER16: SF6 (kt CO2e) | ES16: SF6 (kt CO2e) | ET16: SF6 (kt CO2e) | EU16: SF6 (kt CO2e) | EV16: SF6 (kt CO2e) | EW16: SF6 (kt CO2e) | EX16: SF6 (kt CO2e) | EY16: =ES16 -> SF6 (kt CO2e) | EZ16: =ET16 -> SF6 (kt CO2e) | FA16: =EU16 -> SF6 (kt CO2e) | FB16: =EV16 -> SF6 (kt CO2e) | FC16: =EW16 -> SF6 (kt CO2e) | FD16: =EX16 -> SF6 (kt CO2e) | FE16: =EY16 -> SF6 (kt CO2e) | FF16: =EZ16 -> SF6 (kt CO2e) | FG16: =FA16 -> SF6 (kt CO2e) | FH16: =FB16 -> SF6 (kt CO2e) | FI16: NF3 (kt CO2e) | FJ16: NF3 (kt CO2e) | FK16: NF3 (kt CO2e) | FL16: NF3 (kt CO2e) | FM16: NF3 (kt CO2e) | FN16: NF3 (kt CO2e) | FO16: NF3 (kt CO2e) | FP16: NF3 (kt CO2e) | FQ16: NF3 (kt CO2e) | FR16: NF3 (kt CO2e) | FS16: NF3 (kt CO2e) | FT16: NF3 (kt CO2e) | FU16: NF3 (kt CO2e) | FV16: NF3 (kt CO2e) | FW16: NF3 (kt CO2e) | FX16: NF3 (kt CO2e) | FY16: NF3 (kt CO2e) | FZ16: =FT16 -> NF3 (kt CO2e) | GA16: =FU16 -> NF3 (kt CO2e) | GB16: =FV16 -> NF3 (kt CO2e) | GC16: =FW16 -> NF3 (kt CO2e) | GD16: =FX16 -> NF3 (kt CO2e) | GE16: =FY16 -> NF3 (kt CO2e) | GF16: =FZ16 -> NF3 (kt CO2e) | GG16: =GA16 -> NF3 (kt CO2e) | GH16: =GB16 -> NF3 (kt CO2e) | GI16: =GC16 -> NF3 (kt CO2e) | GJ16: Total GHGs (ktCO2e) | GK16: Total GHGs (ktCO2e) | GL16: Total GHGs (ktCO2e) | GM16: Total GHGs (ktCO2e) | GN16: Total GHGs (ktCO2e) | GO16: Total GHGs (ktCO2e) | GP16: Total GHGs (ktCO2e) | GQ16: Total GHGs (ktCO2e) | GR16: Total GHGs (ktCO2e) | GS16: Total GHGs (ktCO2e) | GT16: Total GHGs (ktCO2e) | GU16: Total GHGs (ktCO2e) | GV16: Total GHGs (ktCO2e) | GW16: Total GHGs (ktCO2e) | GX16: Total GHGs (ktCO2e) | GY16: Total GHGs (ktCO2e) | GZ16: Total GHGs (ktCO2e) | HA16: =GU16 -> Total GHGs (ktCO2e) | HB16: =GV16 -> Total GHGs (ktCO2e) | HC16: =GW16 -> Total GHGs (ktCO2e) | HD16: =GX16 -> Total GHGs (ktCO2e) | HE16: =GY16 -> Total GHGs (ktCO2e) | HF16: =GZ16 -> Total GHGs (ktCO2e) | HG16: =HA16 -> Total GHGs (ktCO2e) | HH16: =HB16 -> Total GHGs (ktCO2e) | HI16: =HC16 -> Total GHGs (ktCO2e) | HJ16: =HD16 -> Total GHGs (ktCO2e) | HK16: Total ETS GHGs (ktCO2e) | HL16: Total ETS GHGs (ktCO2e) | HM16: Total ETS GHGs (ktCO2e) | HN16: Total ETS GHGs (ktCO2e) | HO16: Total ETS GHGs (ktCO2e) | HP16: Total ETS GHGs (ktCO2e) | HQ16: Total ETS GHGs (ktCO2e) | HR16: Total ETS GHGs (ktCO2e) | HS16: Total ETS GHGs (ktCO2e) | HT16: Total ETS GHGs (ktCO2e) | HU16: Total ETS GHGs (ktCO2e) | HV16: Total ETS GHGs (ktCO2e) | HW16: Total ETS GHGs (ktCO2e) | HX16: Total ETS GHGs (ktCO2e) | HY16: Total ETS GHGs (ktCO2e) | HZ16: Total ETS GHGs (ktCO2e) | IA16: Total ETS GHGs (ktCO2e) | IB16: =HV16 -> Total ETS GHGs (ktCO2e) | IC16: =HW16 -> Total ETS GHGs (ktCO2e) | ID16: =HX16 -> Total ETS GHGs (ktCO2e) | IE16: =HY16 -> Total ETS GHGs (ktCO2e) | IF16: =HZ16 -> Total ETS GHGs (ktCO2e) | IG16: =IA16 -> Total ETS GHGs (ktCO2e) | IH16: =IB16 -> Total ETS GHGs (ktCO2e) | II16: =IC16 -> Total ETS GHGs (ktCO2e) | IJ16: =ID16 -> Total ETS GHGs (ktCO2e) | IK16: =IE16 -> Total ETS GHGs (ktCO2e) | IL16: Total ESD GHGs (ktCO2e) | IM16: Total ESD GHGs (ktCO2e) | IN16: Total ESD GHGs (ktCO2e) | IO16: Total ESD GHGs (ktCO2e) | IP16: Total ESD GHGs (ktCO2e) | IQ16: Total ESD GHGs (ktCO2e) | IR16: Total ESD GHGs (ktCO2e) | IS16: Total ESD GHGs (ktCO2e) | IT16: Total ESD GHGs (ktCO2e) | IU16: Total ESD GHGs (ktCO2e) | IV16: Total ESD GHGs (ktCO2e) | IW16: Total ESD GHGs (ktCO2e) | IX16: Total ESD GHGs (ktCO2e) | IY16: Total ESD GHGs (ktCO2e) | IZ16: Total ESD GHGs (ktCO2e) | JA16: Total ESD GHGs (ktCO2e) | JB16: Total ESD GHGs (ktCO2e) | JC16: =IW16 -> Total ESD GHGs (ktCO2e) | JD16: =IX16 -> Total ESD GHGs (ktCO2e) | JE16: =IY16 -> Total ESD GHGs (ktCO2e) | JF16: =IZ16 -> Total ESD GHGs (ktCO2e) | JG16: =JA16 -> Total ESD GHGs (ktCO2e) | JH16: =JB16 -> Total ESD GHGs (ktCO2e) | JI16: =JC16 -> Total ESD GHGs (ktCO2e) | JJ16: =JD16 -> Total ESD GHGs (ktCO2e) | JK16: =JE16 -> Total ESD GHGs (ktCO2e) | JL16: =JF16 -> Total ESD GHGs (ktCO2e)
C17: 2017 | D17: 2015 | E17: 2016 | F17: 2017 | G17: 2018 | H17: 2019 | I17: 2020 | J17: 2021 | K17: 2022 | L17: 2023 | M17: 2024 | N17: 2025 | O17: 2026 | P17: 2027 | Q17: 2028 | R17: 2029 | S17: 2030 | T17: 2031 | U17: 2032 | V17: 2033 | W17: 2034 | X17: 2035 | Y17: 2036 | Z17: 2037 | AA17: 2038 | AB17: 2039 | AC17: 2040 | AD17: =$C$17 -> 2017 | AE17: 2015 | AF17: 2016 | AG17: 2017 | AH17: 2018 | AI17: 2019 | AJ17: 2020 | AK17: 2021 | AL17: 2022 | AM17: 2023 | AN17: 2024 | AO17: 2025 | AP17: 2026 | AQ17: 2027 | AR17: 2028 | AS17: 2029 | AT17: 2030 | AU17: 2031 | AV17: 2032 | AW17: 2033 | AX17: 2034 | AY17: 2035 | AZ17: 2036 | BA17: 2037 | BB17: 2038 | BC17: 2039 | BD17: 2040 | BE17: =$C$17 -> 2017 | BF17: 2015 | BG17: 2016 | BH17: 2017 | BI17: 2018 | BJ17: 2019 | BK17: 2020 | BL17: 2021 | BM17: 2022 | BN17: 2023 | BO17: 2024 | BP17: 2025 | BQ17: 2026 | BR17: 2027 | BS17: 2028 | BT17: 2029 | BU17: 2030 | BV17: 2031 | BW17: 2032 | BX17: 2033 | BY17: 2034 | BZ17: 2035 | CA17: 2036 | CB17: 2037 | CC17: 2038 | CD17: 2039 | CE17: 2040 | CF17: =$C$17 -> 2017 | CG17: 2015 | CH17: 2016 | CI17: 2017 | CJ17: 2018 | CK17: 2019 | CL17: 2020 | CM17: 2021 | CN17: 2022 | CO17: 2023 | CP17: 2024 | CQ17: 2025 | CR17: 2026 | CS17: 2027 | CT17: 2028 | CU17: 2029 | CV17: 2030 | CW17: 2031 | CX17: 2032 | CY17: 2033 | CZ17: 2034 | DA17: 2035 | DB17: 2036 | DC17: 2037 | DD17: 2038 | DE17: 2039 | DF17: 2040 | DG17: =$C$17 -> 2017 | DH17: 2015 | DI17: 2016 | DJ17: 2017 | DK17: 2018 | DL17: 2019 | DM17: 2020 | DN17: 2021 | DO17: 2022 | DP17: 2023 | DQ17: 2024 | DR17: 2025 | DS17: 2026 | DT17: 2027 | DU17: 2028 | DV17: 2029 | DW17: 2030 | DX17: 2031 | DY17: 2032 | DZ17: 2033 | EA17: 2034 | EB17: 2035 | EC17: 2036 | ED17: 2037 | EE17: 2038 | EF17: 2039 | EG17: 2040 | EH17: =$C$17 -> 2017 | EI17: 2015 | EJ17: 2016 | EK17: 2017 | EL17: 2018 | EM17: 2019 | EN17: 2020 | EO17: 2021 | EP17: 2022 | EQ17: 2023 | ER17: 2024 | ES17: 2025 | ET17: 2026 | EU17: 2027 | EV17: 2028 | EW17: 2029 | EX17: 2030 | EY17: 2031 | EZ17: 2032 | FA17: 2033 | FB17: 2034 | FC17: 2035 | FD17: 2036 | FE17: 2037 | FF17: 2038 | FG17: 2039 | FH17: 2040 | FI17: =$C$17 -> 2017 | FJ17: 2015 | FK17: 2016 | FL17: 2017 | FM17: 2018 | FN17: 2019 | FO17: 2020 | FP17: 2021 | FQ17: 2022 | FR17: 2023 | FS17: 2024 | FT17: 2025 | FU17: 2026 | FV17: 2027 | FW17: 2028 | FX17: 2029 | FY17: 2030 | FZ17: 2031 | GA17: 2032 | GB17: 2033 | GC17: 2034 | GD17: 2035 | GE17: 2036 | GF17: 2037 | GG17: 2038 | GH17: 2039 | GI17: 2040 | GJ17: =$C$17 -> 2017 | GK17: 2015 | GL17: 2016 | GM17: 2017 | GN17: 2018 | GO17: 2019 | GP17: 2020 | GQ17: 2021 | GR17: 2022 | GS17: 2023 | GT17: 2024 | GU17: 2025 | GV17: 2026 | GW17: 2027 | GX17: 2028 | GY17: 2029 | GZ17: 2030 | HA17: 2031 | HB17: 2032 | HC17: 2033 | HD17: 2034 | HE17: 2035 | HF17: 2036 | HG17: 2037 | HH17: 2038 | HI17: 2039 | HJ17: 2040 | HK17: =$C$17 -> 2017 | HL17: 2015 | HM17: 2016 | HN17: 2017 | HO17: 2018 | HP17: 2019 | HQ17: 2020 | HR17: 2021 | HS17: 2022 | HT17: 2023 | HU17: 2024 | HV17: 2025 | HW17: 2026 | HX17: 2027 | HY17: 2028 | HZ17: 2029 | IA17: 2030 | IB17: 2031 | IC17: 2032 | ID17: 2033 | IE17: 2034 | IF17: 2035 | IG17: 2036 | IH17: 2037 | II17: 2038 | IJ17: 2039 | IK17: 2040 | IL17: =$C$17 -> 2017 | IM17: 2015 | IN17: 2016 | IO17: 2017 | IP17: 2018 | IQ17: 2019 | IR17: 2020 | IS17: 2021 | IT17: 2022 | IU17: 2023 | IV17: 2024 | IW17: 2025 | IX17: 2026 | IY17: 2027 | IZ17: 2028 | JA17: 2029 | JB17: 2030 | JC17: 2031 | JD17: 2032 | JE17: 2033 | JF17: 2034 | JG17: 2035 | JH17: 2036 | JI17: 2037 | JJ17: 2038 | JK17: 2039 | JL17: 2040
A18: Total excluding LULUCF | B18: WEM | C18: =C20+C42+C55+C75 -> 7235.23722 | D18: =D20+D42+D55+D75 -> 7278.848487 | E18: 7232.325694 | F18: 7235.23722 | G18: 7376.088748 | H18: 7570.662145 | I18: 7764.776853 | J18: 7566.344296 | K18: 7368.256414 | L18: 7169.395895 | M18: 6970.600996 | N18: 6771.789466 | O18: 6718.45503 | P18: 6664.758784 | Q18: 6611.070761 | R18: 6557.394733 | S18: 6503.761948 | T18: 6292.879155 | U18: 6081.896615 | V18: 5870.810988 | W18: 5659.619366 | X18: 5448.319215 | Y18: 5257.877698 | Z18: 5067.324993 | AA18: 4876.659492 | AB18: 4685.879825 | AC18: 4494.984842 | AD18: =AD20+AD42+AD55+AD75 -> 6.782175854 | AE18: =AE20+AE42+AE55+AE75 -> 6.776150816 | AF18: 6.734599349 | AG18: 6.782175854 | AH18: 6.660378507 | AI18: 6.718578838 | AJ18: 6.72843658 | AK18: 6.757662125 | AL18: 6.786803696 | AM18: 6.815903076 | AN18: 6.845003144 | AO18: 6.874097058 | AP18: 6.88911645 | AQ18: 6.904196876 | AR18: 6.919317411 | AS18: 6.934505377 | AT18: 6.949806608 | AU18: 6.951056295 | AV18: 6.952744263 | AW18: 6.954552143 | AX18: 6.956469608 | AY18: 6.958487974 | AZ18: 6.965957963 | BA18: 6.973515164 | BB18: 6.98115413 | BC18: 6.988870136 | BD18: 6.996659059 | BE18: =BE75+BE55+BE20 -> 72.18515248 | BF18: =BF75+BF55+BF20+BF42 -> 69.12435311 | BG18: =BG75+BG55+BG20 -> 71.15042191 | BH18: 72.18515248 | BI18: 72.72703649 | BJ18: 71.19621528 | BK18: 71.45431152 | BL18: 70.90253348 | BM18: 70.42101954 | BN18: 70.00032139 | BO18: 69.63155937 | BP18: 69.31145093 | BQ18: 68.51709203 | BR18: 67.80499888 | BS18: 67.16663313 | BT18: 66.59375844 | BU18: 66.07945883 | BV18: 65.20695172 | BW18: 64.38778785 | BX18: 63.60943969 | BY18: 62.86727934 | BZ18: 62.15726712 | CA18: 61.77748203 | CB18: 61.4232083 | CC18: 61.09171872 | CD18: 60.78060999 | CE18: 60.48775977 | CF18: =CF19 -> 234.9201389 | CG18: =CG19 -> 219.556085 | CH18: 240.8351965 | CI18: 234.9201389 | CJ18: 230.4072099 | CK18: 248.96919 | CL18: 231.212744 | CM18: 236.9925353 | CN18: 222.8335396 | CO18: 229.180632 | CP18: 222.064305 | CQ18: 207.1276542 | CR18: 193.9543691 | CS18: 195.6249699 | CT18: 194.9255062 | CU18: 193.1543399 | CV18: 190.4165489 | CW18: 204.7552757 | CX18: 195.1097339 | CY18: 195.8297922 | CZ18: 196.9641962 | DA18: 173.0301636 | DB18: 173.7680529 | DC18: 174.3250165 | DD18: 174.5776938 | DE18: 175.1240143 | DF18: 175.587154 | DG18: NA,NO | DH18: NA,NO | DI18: NA,NO | DJ18: NA,NO | DK18: NA,NO | DL18: NA,NO | DM18: NA,NO | DN18: NA,NO | DO18: NA,NO | DP18: NA,NO | DQ18: NA,NO | DR18: NA,NO | DS18: NA,NO | DT18: NA,NO | DU18: NA,NO | DV18: NA,NO | DW18: NA,NO | DX18: NA,NO | DY18: NA,NO | DZ18: NA,NO | EA18: NA,NO | EB18: NA,NO | EC18: NA,NO | ED18: NA,NO | EE18: NA,NO | EF18: NA,NO | EG18: NA,NO | EH18: =EH42 -> 10.32146661 | EI18: =EI42 -> 10.11807005 | EJ18: 9.891090619 | EK18: 10.32146661 | EL18: 10.35354021 | EM18: 10.21305387 | EN18: 10.19340045 | EO18: 10.17231 | EP18: 10.17164764 | EQ18: 10.14282011 | ER18: 10.12528921 | ES18: 10.12654869 | ET18: 10.11687906 | EU18: 10.0975218 | EV18: 10.09752088 | EW18: 10.09751995 | EX18: 10.09751902 | EY18: 10.09871725 | EZ18: 10.09267206 | FA18: 10.08661819 | FB18: 10.08055595 | FC18: 10.07448564 | FD18: 10.06840755 | FE18: 10.06232195 | FF18: 10.05622913 | FG18: 10.05012936 | FH18: 10.0440229 | FI18: =FI19 -> NA,NO | FJ18: =FJ19 -> NA,NO | FK18: =FK19 -> NA,NO | FL18: =FL19 -> NA,NO | FM18: =FM19 -> NA,NO | FN18: =FN19 -> NA,NO | FO18: =FO19 -> NA,NO | FP18: =FP19 -> NA,NO | FQ18: =FQ19 -> NA,NO | FR18: =FR19 -> NA,NO | FS18: =FS19 -> NA,NO | FT18: =FT19 -> NA,NO | FU18: =FU19 -> NA,NO | FV18: =FV19 -> NA,NO | FW18: =FW19 -> NA,NO | FX18: =FX19 -> NA,NO | FY18: =FY19 -> NA,NO | FZ18: =FZ19 -> NA,NO | GA18: =GA19 -> NA,NO | GB18: =GB19 -> NA,NO | GC18: =GC19 -> NA,NO | GD18: =GD19 -> NA,NO | GE18: =GE19 -> NA,NO | GF18: =GF19 -> NA,NO | GG18: =GG19 -> NA,NO | GH18: =GH19 -> NA,NO | GI18: =GI19 -> NA,NO | GJ18: =GJ20+GJ42+GJ55+GJ75 -> 11306.19604 | GK18: =GK20+GK42+GK55+GK75 -> 11255.92441 | GL18: 11268.72314 | GM18: 11306.19604 | GN18: 11419.81821 | GO18: 11611.88626 | GP18: 11797.61489 | GQ18: 11599.85579 | GR18: 11384.25459 | GS18: 11189.8665 | GT18: 10983.39051 | GU18: 10770.31087 | GV18: 10688.41028 | GW18: 10623.05692 | GX18: 10557.21621 | GY18: 10491.97316 | GZ18: 10427.30486 | HA18: 10209.32172 | HB18: 9968.711508 | HC18: 9739.419929 | HD18: 9511.374045 | HE18: 9258.984958 | HF18: 9062.006682 | HG18: 8865.400057 | HH18: 8668.970314 | HI18: 8473.252519 | HJ18: 8277.814413 | HK18: =HK19 -> 2049.818227 | HL18: =HL19 -> 2312.391624 | HM18: 2197.022186 | HN18: 2049.818227 | HO18: 2287.114246 | HP18: 2541.584839 | HQ18: 2796.091038 | HR18: 2736.112279 | HS18: 2676.487683 | HT18: 2616.096426 | HU18: 2555.772636 | HV18: 2495.429214 | HW18: 2496.446314 | HX18: 2497.09385 | HY18: 2497.739535 | HZ18: 2498.382899 | IA18: 2499.023474 | IB18: 2431.485028 | IC18: 2363.825231 | ID18: 2296.042611 | IE18: 2228.135831 | IF18: 2160.103687 | IG18: 2092.533989 | IH18: 2024.836926 | II18: 1957.0117 | IJ18: 1889.057643 | IK18: 1820.97422 | IL18: 9251.878556 | IM18: 8941.801957 | IN18: 9069.754786 | IO18: 9251.878556 | IP18: 9128.666888 | IQ18: 9066.726539 | IR18: 8998.411149 | IS18: 8860.600042 | IT18: 8704.592664 | IU18: 8570.565057 | IV18: 8424.382088 | IW18: 8271.615093 | IX18: 8188.672329 | IY18: 8122.646348 | IZ18: 8056.134871 | JA18: 7990.223378 | JB18: 7924.889423 | JC18: 7774.421621 | JD18: 7601.4481 | JE18: 7439.916033 | JF18: 7279.753821 | JG18: 7095.373769 | JH18: 6965.946059 | JI18: 6837.017366 | JJ18: 6708.393717 | JK18: 6580.610848 | JL18: 6453.237033
A19: Total including LULUCF | B19: WEM | C19: =C20+C42+C55+C66+C75 -> 4377.561657 | D19: =D20+D42+D55+D66+D75 -> 7853.565595 | E19: =E20+E42+E55+E66+E75 -> 5790.116472 | F19: =F20+F42+F55+F66+F75 -> 4377.561657 | G19: 8170.897927 | H19: 8422.979119 | I19: 8784.811653 | J19: =J20+J42+J55+J66+J75 -> 9202.816339 | K19: =K20+K42+K55+K66+K75 -> 9264.316097 | L19: =L20+L42+L55+L66+L75 -> 9269.748728 | M19: 9295.861809 | N19: 9296.65821 | O19: =O20+O42+O55+O66+O75 -> 9502.823452 | P19: =P20+P42+P55+P66+P75 -> 9737.620014 | Q19: =Q20+Q42+Q55+Q66+Q75 -> 10003.07051 | R19: =R20+R42+R55+R66+R75 -> 10065.28037 | S19: =S20+S42+S55+S66+S75 -> 10047.71078 | T19: =T20+T42+T55+T66+T75 -> 9476.811221 | U19: =U20+U42+U55+U66+U75 -> 9306.691268 | V19: =V20+V42+V55+V66+V75 -> 9135.302828 | W19: 8923.692015 | X19: =X20+X42+X55+X66+X75 -> 8777.509247 | Y19: =Y20+Y42+Y55+Y66+Y75 -> 8220.177202 | Z19: =Z20+Z42+Z55+Z66+Z75 -> 8046.765586 | AA19: =AA20+AA42+AA55+AA66+AA75 -> 7881.07956 | AB19: =AB20+AB42+AB55+AB66+AB75 -> 7714.716731 | AC19: =AC20+AC42+AC55+AC66+AC75 -> 7548.013998 | AD19: =AD20+AD42+AD55+AD66+AD75 -> 8.852430854 | AE19: =AE20+AE42+AE55+AE66+AE75 -> 8.837386816 | AF19: 8.800203349 | AG19: 8.852430854 | AH19: 8.716264504 | AI19: 8.77893055 | AJ19: 8.789854157 | AK19: 8.819504999 | AL19: 8.849117795 | AM19: 8.878691609 | AN19: 8.908267994 | AO19: 8.937844233 | AP19: 8.953348526 | AQ19: 8.97024616 | AR19: 8.9870448 | AS19: 9.003909824 | AT19: 9.020887185 | AU19: 9.019735988 | AV19: 9.019095618 | AW19: 9.018567996 | AX19: 9.018142786 | AY19: 9.017807859 | AZ19: 9.022870649 | BA19: 9.028084339 | BB19: 9.033378429 | BC19: 9.038749643 | BD19: =BD20+BD42+BD55+BD66+BD75 -> 9.044194757 | BE19: =BE66+BE75+BE55+BE20 -> 93.51493993 | BF19: =BF66+BF75+BF55+BF20+BF42 -> 89.41565307 | BG19: =BG66+BG75+BG55+BG20 -> 91.93337861 | BH19: =BH66+BH75+BH55+BH20 -> 93.51493993 | BI19: 91.20263485 | BJ19: 89.60517446 | BK19: 89.83740179 | BL19: 89.34412053 | BM19: 88.92468751 | BN19: 88.56603983 | BO19: 88.25936336 | BP19: 88.00136462 | BQ19: 87.26913021 | BR19: 86.620918 | BS19: 86.04561904 | BT19: 85.53502358 | BU19: 85.08222718 | BV19: 84.27024699 | BW19: 83.51155384 | BX19: 82.79282654 | BY19: 82.10943005 | BZ19: 81.45729664 | CA19: 81.1280735 | CB19: 80.83080001 | CC19: 80.5562919 | CD19: 80.30214971 | CE19: 80.06625793 | CF19: =CF42 -> 234.9201389 | CG19: =CG42 -> 219.556085 | CH19: 240.8351965 | CI19: 234.9201389 | CJ19: 230.4072099 | CK19: 248.96919 | CL19: 231.212744 | CM19: 236.9925353 | CN19: 222.8335396 | CO19: 229.180632 | CP19: 222.064305 | CQ19: 207.1276542 | CR19: 193.9543691 | CS19: 195.6249699 | CT19: 194.9255062 | CU19: 193.1543399 | CV19: 190.4165489 | CW19: 204.7552757 | CX19: 195.1097339 | CY19: 195.8297922 | CZ19: 196.9641962 | DA19: 173.0301636 | DB19: 173.7680529 | DC19: 174.3250165 | DD19: 174.5776938 | DE19: 175.1240143 | DF19: 175.587154 | DG19: NA,NO | DH19: NA,NO | DI19: NA,NO | DJ19: NA,NO | DK19: NA,NO | DL19: NA,NO | DM19: NA,NO | DN19: NA,NO | DO19: NA,NO | DP19: NA,NO | DQ19: NA,NO | DR19: NA,NO | DS19: NA,NO | DT19: NA,NO | DU19: NA,NO | DV19: NA,NO | DW19: NA,NO | DX19: NA,NO | DY19: NA,NO | DZ19: NA,NO | EA19: NA,NO | EB19: NA,NO | EC19: NA,NO | ED19: NA,NO | EE19: NA,NO | EF19: NA,NO | EG19: NA,NO | EH19: =EH42 -> 10.32146661 | EI19: =EI42 -> 10.11807005 | EJ19: 9.891090619 | EK19: 10.32146661 | EL19: 10.35354021 | EM19: 10.21305387 | EN19: 10.19340045 | EO19: 10.17231 | EP19: 10.17164764 | EQ19: 10.14282011 | ER19: 10.12528921 | ES19: 10.12654869 | ET19: 10.11687906 | EU19: 10.0975218 | EV19: 10.09752088 | EW19: 10.09751995 | EX19: 10.09751902 | EY19: 10.09871725 | EZ19: 10.09267206 | FA19: 10.08661819 | FB19: 10.08055595 | FC19: 10.07448564 | FD19: 10.06840755 | FE19: 10.06232195 | FF19: 10.05622913 | FG19: 10.05012936 | FH19: 10.0440229 | FI19: NA,NO | FJ19: NA,NO | FK19: NA,NO | FL19: NA,NO | FM19: NA,NO | FN19: NA,NO | FO19: NA,NO | FP19: NA,NO | FQ19: NA,NO | FR19: NA,NO | FS19: NA,NO | FT19: NA,NO | FU19: NA,NO | FV19: NA,NO | FW19: NA,NO | FX19: NA,NO | FY19: NA,NO | FZ19: NA,NO | GA19: NA,NO | GB19: NA,NO | GC19: NA,NO | GD19: NA,NO | GE19: NA,NO | GF19: NA,NO | GG19: NA,NO | GH19: NA,NO | GI19: NA,NO | GJ19: =GJ20+GJ42+GJ55+GJ66+GJ75 -> 9598.701156 | GK19: =GK20+GK42+GK55+GK66+GK75 -> 12952.17235 | GL19: 10961.63782 | GM19: 9598.701156 | GN19: 13289.17137 | GO19: 13538.41203 | GP19: 13891.52938 | GQ19: 14311.79669 | GR19: 14357.47557 | GS19: 14369.07328 | GT19: 14389.19935 | GU19: 14377.42411 | GV19: 14556.72082 | GW19: 14781.99881 | GX19: 15037.37336 | GY19: 15090.07294 | GZ19: 15063.50491 | HA19: 14486.30271 | HB19: 14287.37301 | HC19: 14098.57317 | HD19: 13870.87907 | HE19: 13684.35305 | HF19: 13121.03095 | HG19: 12942.29206 | HH19: 12771.56755 | HI19: 12600.99201 | HJ19: 12430.47166 | HK19: =HK20+HK42 -> 2049.818227 | HL19: =HL20+HL42 -> 2312.391624 | HM19: 2197.022186 | HN19: =HN20+HN42 -> 2049.818227 | HO19: 2287.114246 | HP19: 2541.584839 | HQ19: 2796.091038 | HR19: 2736.112279 | HS19: 2676.487683 | HT19: 2616.096426 | HU19: 2555.772636 | HV19: 2495.429214 | HW19: 2496.446314 | HX19: 2497.09385 | HY19: 2497.739535 | HZ19: 2498.382899 | IA19: 2499.023474 | IB19: 2431.485028 | IC19: 2363.825231 | ID19: 2296.042611 | IE19: 2228.135831 | IF19: 2160.103687 | IG19: 2092.533989 | IH19: 2024.836926 | II19: 1957.0117 | IJ19: 1889.057643 | IK19: 1820.97422 | IL19: =IL20+IL42+IL55+IL75 -> 9251.878556 | IM19: =IM20+IM42+IM55+IM75 -> 8941.801957 | IN19: =IN20+IN42+IN55+IN75 -> 9069.754786 | IO19: 9251.878556 | IP19: =IP20+IP42+IP55+IP75 -> 9128.666888 | IQ19: =IQ20+IQ42+IQ55+IQ75 -> 9066.726539 | IR19: 8998.411149 | IS19: =IS20+IS42+IS55+IS75 -> 8860.600042 | IT19: =IT20+IT42+IT55+IT75 -> 8704.592664 | IU19: 8570.565057 | IV19: =IV20+IV42+IV55+IV75 -> 8424.382088 | IW19: =IW20+IW42+IW55+IW75 -> 8271.615093 | IX19: 8188.672329 | IY19: =IY20+IY42+IY55+IY75 -> 8122.646348 | IZ19: =IZ20+IZ42+IZ55+IZ75 -> 8056.134871 | JA19: 7990.223378 | JB19: =JB20+JB42+JB55+JB75 -> 7924.889423 | JC19: =JC20+JC42+JC55+JC75 -> 7774.421621 | JD19: 7601.4481 | JE19: =JE20+JE42+JE55+JE75 -> 7439.916033 | JF19: =JF20+JF42+JF55+JF75 -> 7279.753821 | JG19: 7095.373769 | JH19: =JH20+JH42+JH55+JH75 -> 6965.946059 | JI19: =JI20+JI42+JI55+JI75 -> 6837.017366 | JJ19: 6708.393717 | JK19: =JK20+JK42+JK55+JK75 -> 6580.610848 | JL19: =JL20+JL42+JL55+JL75 -> 6453.237033
A20: 1. Energy | B20: WEM | C20: 6716.505957 | D20: 6730.613498 | E20: 6799.931427 | F20: 6716.505957 | G20: 6846.511709 | H20: 7035.458811 | I20: 7224.405913 | J20: 7020.829826 | K20: 6817.253739 | L20: 6613.677652 | M20: 6410.101566 | N20: 6206.525479 | O20: 6148.621321 | P20: 6090.717164 | Q20: 6032.813006 | R20: 5974.908849 | S20: 5917.004692 | T20: 5701.934101 | U20: 5486.863511 | V20: 5271.792921 | W20: 5056.722331 | X20: 4841.65174 | Y20: 4647.523742 | Z20: 4453.395743 | AA20: 4259.267744 | AB20: 4065.139745 | AC20: 3871.011746 | AD20: 0.6228847608 | AE20: 0.6037528976 | AF20: 0.5832548985 | AG20: 0.6228847608 | AH20: 0.5408826648 | AI20: 0.4616946324 | AJ20: 0.3825066 | AK20: 0.3707484 | AL20: 0.3589902 | AM20: 0.347232 | AN20: 0.3354738 | AO20: 0.3237156 | AP20: 0.3234291 | AQ20: 0.3231426 | AR20: 0.3228561 | AS20: 0.3225696 | AT20: 0.3222831 | AU20: 0.31486606 | AV20: 0.30744902 | AW20: 0.30003198 | AX20: 0.29261494 | AY20: 0.2851979 | AZ20: 0.28461566 | BA20: 0.28403342 | BB20: 0.28345118 | BC20: 0.28286894 | BD20: 0.2822867 | BE20: 12.92248886 | BF20: 10.34130804 | BG20: 10.87971926 | BH20: 12.92248886 | BI20: 12.43557824 | BJ20: 11.96773012 | BK20: 11.499882 | BL20: 11.0616668 | BM20: 10.6234516 | BN20: 10.1852364 | BO20: 9.7470212 | BP20: 9.308806 | BQ20: 9.28459656 | BR20: 9.26038712 | BS20: 9.23617768 | BT20: 9.21196824 | BU20: 9.1877588 | BV20: 8.8214683 | BW20: 8.4551778 | BX20: 8.0888873 | BY20: 7.7225968 | BZ20: 7.3563063 | CA20: 7.27772302 | CB20: 7.19913974 | CC20: 7.12055646 | CD20: 7.04197318 | CE20: 6.9633899 | CF20: NA | CG20: NA | CH20: NA | CI20: NA | CJ20: NA | CK20: NA | CL20: NA | CM20: NA | CN20: NA | CO20: NA | CP20: NA | CQ20: NA | CR20: NA | CS20: NA | CT20: NA | CU20: NA | CV20: NA | CW20: NA | CX20: NA | CY20: NA | CZ20: NA | DA20: NA | DB20: NA | DC20: NA | DD20: NA | DE20: NA | DF20: NA | DG20: NA | DH20: NA | DI20: NA | DJ20: NA | DK20: NA | DL20: NA | DM20: NA | DN20: NA | DO20: NA | DP20: NA | DQ20: NA | DR20: NA | DS20: NA | DT20: NA | DU20: NA | DV20: NA | DW20: NA | DX20: NA | DY20: NA | DZ20: NA | EA20: NA | EB20: NA | EC20: NA | ED20: NA | EE20: NA | EF20: NA | EG20: NA | EH20: NA | EI20: NA | EJ20: NA | EK20: NA | EL20: NA | EM20: NA | EN20: NA | EO20: NA | EP20: NA | EQ20: NA | ER20: NA | ES20: NA | ET20: NA | EU20: NA | EV20: NA | EW20: NA | EX20: NA | EY20: NA | EZ20: NA | FA20: NA | FB20: NA | FC20: NA | FD20: NA | FE20: NA | FF20: NA | FG20: NA | FH20: NA | FI20: NA | FJ20: NA | FK20: NA | FL20: NA | FM20: NA | FN20: NA | FO20: NA | FP20: NA | FQ20: NA | FR20: NA | FS20: NA | FT20: NA | FU20: NA | FV20: NA | FW20: NA | FX20: NA | FY20: NA | FZ20: NA | GA20: NA | GB20: NA | GC20: NA | GD20: NA | GE20: NA | GF20: NA | GG20: NA | GH20: NA | GI20: NA | GJ20: 7225.187838 | GK20: 7169.064563 | GL20: 7245.734368 | GM20: 7225.187838 | GN20: 7318.584199 | GO20: 7472.237065 | GP20: 7625.88993 | GQ20: 7407.854519 | GR20: 7189.819109 | GS20: 6971.783698 | GT20: 6753.748288 | GU20: 6535.712877 | GV20: 6477.118107 | GW20: 6418.523337 | GX20: 6359.928566 | GY20: 6301.333796 | GZ20: 6242.739025 | HA20: 6016.300895 | HB20: 5789.862764 | HC20: 5563.424633 | HD20: 5336.986503 | HE20: 5110.548372 | HF20: 4914.282284 | HG20: 4718.016195 | HH20: 4521.750107 | HI20: 4325.484019 | HJ20: 4129.21793 | HK20: 1602.563476 | HL20: 1832.012143 | HM20: 1840.908222 | HN20: 1602.563476 | HO20: 1828.747672 | HP20: 2078.185911 | HQ20: 2327.624151 | HR20: 2262.676519 | HS20: 2197.728888 | HT20: 2132.781256 | HU20: 2067.833624 | HV20: 2002.885992 | HW20: 1999.479194 | HX20: 1996.072395 | HY20: 1992.665596 | HZ20: 1989.258797 | IA20: 1985.851998 | IB20: 1914.385924 | IC20: 1842.91985 | ID20: 1771.453776 | IE20: 1699.987702 | IF20: 1628.521628 | IG20: 1557.64443 | IH20: 1486.767232 | II20: 1415.890034 | IJ20: 1345.012836 | IK20: 1274.135638 | IL20: 5618.125103 | IM20: 5335.321588 | IN20: 5402.879984 | IO20: 5618.125103 | IP20: 5485.799456 | IQ20: 5390.476267 | IR20: 5295.153079 | IS20: 5142.034529 | IT20: 4988.915978 | IU20: 4835.797428 | IV20: 4682.678877 | IW20: 4529.560327 | IX20: 4474.347275 | IY20: 4419.134223 | IZ20: 4363.921171 | JA20: 4308.70812 | JB20: 4253.495068 | JC20: 4098.499903 | JD20: 3943.504738 | JE20: 3788.509573 | JF20: 3633.514408 | JG20: 3478.519243 | JH20: 3353.111221 | JI20: 3227.703199 | JJ20: 3102.295176 | JK20: 2976.887154 | JL20: 2851.479132
A21: 1.A. Fuel combustion | B21: WEM | C21: 6716.490276 | D21: 6730.600557 | E21: 6799.919571 | F21: 6716.490276 | G21: 6846.499899 | H21: 7035.450872 | I21: 7224.401845 | J21: 7020.825896 | K21: 6817.249948 | L21: 6613.673999 | M21: 6410.098051 | N21: 6206.522102 | O21: 6148.617977 | P21: 6090.713852 | Q21: 6032.809727 | R21: 5974.905602 | S21: 5917.001477 | T21: 5701.93097 | U21: 5486.860464 | V21: 5271.789957 | W21: 5056.719451 | X21: 4841.648944 | Y21: 4647.521012 | Z21: 4453.39308 | AA21: 4259.265147 | AB21: 4065.137215 | AC21: 3871.009283 | AD21: 0.6228847608 | AE21: 0.6037528976 | AF21: 0.5832548985 | AG21: 0.6228847608 | AH21: 0.5408826648 | AI21: 0.4616946324 | AJ21: 0.3825066 | AK21: 0.3707484 | AL21: 0.3589902 | AM21: 0.347232 | AN21: 0.3354738 | AO21: 0.3237156 | AP21: 0.3234291 | AQ21: 0.3231426 | AR21: 0.3228561 | AS21: 0.3225696 | AT21: 0.3222831 | AU21: 0.31486606 | AV21: 0.30744902 | AW21: 0.30003198 | AX21: 0.29261494 | AY21: 0.2851979 | AZ21: 0.28461566 | BA21: 0.28403342 | BB21: 0.28345118 | BC21: 0.28286894 | BD21: 0.2822867 | BE21: 6.815090859 | BF21: 6.229321042 | BG21: 6.216568264 | BH21: 6.815090859 | BI21: 7.195352575 | BJ21: 7.594676788 | BK21: 7.994001 | BL21: 7.6750707 | BM21: 7.3561404 | BN21: 7.0372101 | BO21: 6.7182798 | BP21: 6.3993495 | BQ21: 6.40302846 | BR21: 6.40670742 | BS21: 6.41038638 | BT21: 6.41406534 | BU21: 6.4177443 | BV21: 6.12347358 | BW21: 5.82920286 | BX21: 5.53493214 | BY21: 5.24066142 | BZ21: 4.9463907 | CA21: 4.92522864 | CB21: 4.90406658 | CC21: 4.88290452 | CD21: 4.86174246 | CE21: 4.8405804 | CF21: NA | CG21: NA | CH21: NA | CI21: NA | CJ21: NA | CK21: NA | CL21: NA | CM21: NA | CN21: NA | CO21: NA | CP21: NA | CQ21: NA | CR21: NA | CS21: NA | CT21: NA | CU21: NA | CV21: NA | CW21: NA | CX21: NA | CY21: NA | CZ21: NA | DA21: NA | DB21: NA | DC21: NA | DD21: NA | DE21: NA | DF21: NA | DG21: NA | DH21: NA | DI21: NA | DJ21: NA | DK21: NA | DL21: NA | DM21: NA | DN21: NA | DO21: NA | DP21: NA | DQ21: NA | DR21: NA | DS21: NA | DT21: NA | DU21: NA | DV21: NA | DW21: NA | DX21: NA | DY21: NA | DZ21: NA | EA21: NA | EB21: NA | EC21: NA | ED21: NA | EE21: NA | EF21: NA | EG21: NA | EH21: NA | EI21: NA | EJ21: NA | EK21: NA | EL21: NA | EM21: NA | EN21: NA | EO21: NA | EP21: NA | EQ21: NA | ER21: NA | ES21: NA | ET21: NA | EU21: NA | EV21: NA | EW21: NA | EX21: NA | EY21: NA | EZ21: NA | FA21: NA | FB21: NA | FC21: NA | FD21: NA | FE21: NA | FF21: NA | FG21: NA | FH21: NA | FI21: NA | FJ21: NA | FK21: NA | FL21: NA | FM21: NA | FN21: NA | FO21: NA | FP21: NA | FQ21: NA | FR21: NA | FS21: NA | FT21: NA | FU21: NA | FV21: NA | FW21: NA | FX21: NA | FY21: NA | FZ21: NA | GA21: NA | GB21: NA | GC21: NA | GD21: NA | GE21: NA | GF21: NA | GG21: NA | GH21: NA | GI21: NA | GJ21: 7072.487207 | GK21: 7066.251946 | GL21: 7129.143737 | GM21: 7072.487207 | GN21: 7187.566748 | GO21: 7362.902792 | GP21: 7538.238837 | GQ21: 7323.185687 | GR21: 7108.132537 | GS21: 6893.079388 | GT21: 6678.026238 | GU21: 6462.973089 | GV21: 6405.075561 | GW21: 6347.178033 | GX21: 6289.280505 | GY21: 6231.382976 | GZ21: 6173.485448 | HA21: 5948.847896 | HB21: 5724.210343 | HC21: 5499.572791 | HD21: 5274.935238 | HE21: 5050.297686 | HF21: 4855.467194 | HG21: 4660.636703 | HH21: 4465.806212 | HI21: 4270.975721 | HJ21: 4076.14523 | HK21: 1602.563476 | HL21: 1832.012143 | HM21: 1840.908222 | HN21: 1602.563476 | HO21: 1828.747672 | HP21: 2078.185911 | HQ21: 2327.624151 | HR21: 2262.676519 | HS21: 2197.728888 | HT21: 2132.781256 | HU21: 2067.833624 | HV21: 2002.885992 | HW21: 1999.479194 | HX21: 1996.072395 | HY21: 1992.665596 | HZ21: 1989.258797 | IA21: 1985.851998 | IB21: 1914.385924 | IC21: 1842.91985 | ID21: 1771.453776 | IE21: 1699.987702 | IF21: 1628.521628 | IG21: 1557.64443 | IH21: 1486.767232 | II21: 1415.890034 | IJ21: 1345.012836 | IK21: 1274.135638 | IL21: 5465.424472 | IM21: 5232.508972 | IN21: 5286.289353 | IO21: 5465.424472 | IP21: 5354.782004 | IQ21: 5281.141995 | IR21: 5207.501986 | IS21: 5057.365696 | IT21: 4907.229407 | IU21: 4757.093117 | IV21: 4606.956828 | IW21: 4456.820538 | IX21: 4402.304729 | IY21: 4347.788919 | IZ21: 4293.27311 | JA21: 4238.7573 | JB21: 4184.241491 | JC21: 4031.046904 | JD21: 3877.852317 | JE21: 3724.65773 | JF21: 3571.463143 | JG21: 3418.268556 | JH21: 3294.296131 | JI21: 3170.323706 | JJ21: 3046.351281 | JK21: 2922.378856 | JL21: 2798.406432
A22: 1.A.1. Energy industries | B22: WEM | C22: 1511.158407 | D22: 1746.970674 | E22: 1822.827459 | F22: 1511.158407 | G22: 1690.854223 | H22: 1916.321559 | I22: 2141.788894 | J22: 1998.356132 | K22: 1854.92337 | L22: 1711.490608 | M22: 1568.057846 | N22: 1424.625084 | O22: 1399.401721 | P22: 1374.178357 | Q22: 1348.954993 | R22: 1323.73163 | S22: 1298.508266 | T22: 1236.4028 | U22: 1174.297333 | V22: 1112.191866 | W22: 1050.0864 | X22: 987.9809332 | Y22: 988.0538451 | Z22: 988.126757 | AA22: 988.1996689 | AB22: 988.2725808 | AC22: 988.3454927 | AD22: 0.07758139885 | AE22: 0.05432616894 | AF22: 0.06797075637 | AG22: 0.07758139885 | AH22: 0.07056929923 | AI22: 0.06601509962 | AJ22: 0.0614609 | AK22: 0.0660357 | AL22: 0.0706105 | AM22: 0.0751853 | AN22: 0.0797601 | AO22: 0.0843349 | AP22: 0.0838272 | AQ22: 0.0833195 | AR22: 0.0828118 | AS22: 0.0823041 | AT22: 0.0817964 | AU22: 0.0831002 | AV22: 0.084404 | AW22: 0.0857078 | AX22: 0.0870116 | AY22: 0.0883154 | AZ22: 0.08924318 | BA22: 0.09017096 | BB22: 0.09109874 | BC22: 0.09202652 | BD22: 0.0929543 | BE22: 0.5872999885 | BF22: 0.4143456894 | BG22: 0.5163975637 | BH22: 0.5872999885 | BI22: 0.5356990923 | BJ22: 0.5019791962 | BK22: 0.4682593 | BL22: 0.50192318 | BM22: 0.53558706 | BN22: 0.56925094 | BO22: 0.60291482 | BP22: 0.6365787 | BQ22: 0.63282194 | BR22: 0.62906518 | BS22: 0.62530842 | BT22: 0.62155166 | BU22: 0.6177949 | BV22: 0.62677662 | BW22: 0.63575834 | BX22: 0.64474006 | BY22: 0.65372178 | BZ22: 0.6627035 | CA22: 0.66945138 | CB22: 0.67619926 | CC22: 0.68294714 | CD22: 0.68969502 | CE22: 0.6964429 | CF22: NA | CG22: NA | CH22: NA | CI22: NA | CJ22: NA | CK22: NA | CL22: NA | CM22: NA | CN22: NA | CO22: NA | CP22: NA | CQ22: NA | CR22: NA | CS22: NA | CT22: NA | CU22: NA | CV22: NA | CW22: NA | CX22: NA | CY22: NA | CZ22: NA | DA22: NA | DB22: NA | DC22: NA | DD22: NA | DE22: NA | DF22: NA | DG22: NA | DH22: NA | DI22: NA | DJ22: NA | DK22: NA | DL22: NA | DM22: NA | DN22: NA | DO22: NA | DP22: NA | DQ22: NA | DR22: NA | DS22: NA | DT22: NA | DU22: NA | DV22: NA | DW22: NA | DX22: NA | DY22: NA | DZ22: NA | EA22: NA | EB22: NA | EC22: NA | ED22: NA | EE22: NA | EF22: NA | EG22: NA | EH22: NA | EI22: NA | EJ22: NA | EK22: NA | EL22: NA | EM22: NA | EN22: NA | EO22: NA | EP22: NA | EQ22: NA | ER22: NA | ES22: NA | ET22: NA | EU22: NA | EV22: NA | EW22: NA | EX22: NA | EY22: NA | EZ22: NA | FA22: NA | FB22: NA | FC22: NA | FD22: NA | FE22: NA | FF22: NA | FG22: NA | FH22: NA | FI22: NA | FJ22: NA | FK22: NA | FL22: NA | FM22: NA | FN22: NA | FO22: NA | FP22: NA | FQ22: NA | FR22: NA | FS22: NA | FT22: NA | FU22: NA | FV22: NA | FW22: NA | FX22: NA | FY22: NA | FZ22: NA | GA22: NA | GB22: NA | GC22: NA | GD22: NA | GE22: NA | GF22: NA | GG22: NA | GH22: NA | GI22: NA | GJ22: 1548.960163 | GK22: 1773.518515 | GL22: 1855.992683 | GM22: 1548.960163 | GN22: 1725.276352 | GO22: 1948.543538 | GP22: 2171.810725 | GQ22: 2030.58285 | GR22: 1889.354976 | GS22: 1748.127101 | GT22: 1606.899226 | GU22: 1465.671352 | GV22: 1440.202775 | GW22: 1414.734197 | GX22: 1389.26562 | GY22: 1363.797043 | GZ22: 1338.328466 | HA22: 1276.836075 | HB22: 1215.343683 | HC22: 1153.851292 | HD22: 1092.358901 | HE22: 1030.86651 | HF22: 1031.384597 | HG22: 1031.902685 | HH22: 1032.420772 | HI22: 1032.938859 | HJ22: 1033.456947 | HK22: 1187.42919 | HL22: 1395.967201 | HM22: 1477.554999 | HN22: 1187.42919 | HO22: 1367.616451 | HP22: 1571.057757 | HQ22: 1774.499062 | HR22: 1674.207079 | HS22: 1573.915097 | HT22: 1473.623114 | HU22: 1373.331131 | HV22: 1273.039149 | HW22: 1248.583451 | HX22: 1224.127752 | HY22: 1199.672054 | HZ22: 1175.216356 | IA22: 1150.760658 | IB22: 1067.16697 | IC22: 983.5732821 | ID22: 899.979594 | IE22: 816.385906 | IF22: 732.792218 | IG22: 727.8911161 | IH22: 722.9900143 | II22: 718.0889124 | IJ22: 713.1878106 | IK22: 708.2867087 | IL22: 361.5309734 | IM22: 377.5513141 | IN22: 378.437684 | IO22: 361.5309734 | IP22: 357.6599003 | IQ22: 377.4857815 | IR22: 397.3116627 | IS22: 356.3757708 | IT22: 315.4398789 | IU22: 274.5039869 | IV22: 233.568095 | IW22: 192.6322031 | IX22: 191.619324 | IY22: 190.606445 | IZ22: 189.5935659 | JA22: 188.5806869 | JB22: 187.5678078 | JC22: 209.6691046 | JD22: 231.7704014 | JE22: 253.8716983 | JF22: 275.9729951 | JG22: 298.0742919 | JH22: 303.4934811 | JI22: 308.9126703 | JJ22: 314.3318595 | JK22: 319.7510487 | JL22: 325.1702379
A23: 1.A.1.a. Public electricity and heat production | B23: WEM | C23: 1465.386888 | D23: 1690.597659 | E23: 1774.497359 | F23: 1465.386888 | G23: 1690.854223 | H23: 1916.321559 | I23: 2141.788894 | J23: 1998.356132 | K23: 1854.92337 | L23: 1711.490608 | M23: 1568.057846 | N23: 1424.625084 | O23: 1399.401721 | P23: 1374.178357 | Q23: 1348.954993 | R23: 1323.73163 | S23: 1298.508266 | T23: 1236.4028 | U23: 1174.297333 | V23: 1112.191866 | W23: 1050.0864 | X23: 987.9809332 | Y23: 988.0538451 | Z23: 988.126757 | AA23: 988.1996689 | AB23: 988.2725808 | AC23: 988.3454927 | AD23: 0.07512349885 | AE23: 0.05260886894 | AF23: 0.06628845637 | AG23: 0.07512349885 | AH23: 0.07056929923 | AI23: 0.06601509962 | AJ23: 0.0614609 | AK23: 0.0660357 | AL23: 0.0706105 | AM23: 0.0751853 | AN23: 0.0797601 | AO23: 0.0843349 | AP23: 0.0838272 | AQ23: 0.0833195 | AR23: 0.0828118 | AS23: 0.0823041 | AT23: 0.0817964 | AU23: 0.0831002 | AV23: 0.084404 | AW23: 0.0857078 | AX23: 0.0870116 | AY23: 0.0883154 | AZ23: 0.08924318 | BA23: 0.09017096 | BB23: 0.09109874 | BC23: 0.09202652 | BD23: 0.0929543 | BE23: 0.5694189885 | BF23: 0.4016776894 | BG23: 0.5040495637 | BH23: 0.5694189885 | BI23: 0.5356990923 | BJ23: 0.5019791962 | BK23: 0.4682593 | BL23: 0.50192318 | BM23: 0.53558706 | BN23: 0.56925094 | BO23: 0.60291482 | BP23: 0.6365787 | BQ23: 0.63282194 | BR23: 0.62906518 | BS23: 0.62530842 | BT23: 0.62155166 | BU23: 0.6177949 | BV23: 0.62677662 | BW23: 0.63575834 | BX23: 0.64474006 | BY23: 0.65372178 | BZ23: 0.6627035 | CA23: 0.66945138 | CB23: 0.67619926 | CC23: 0.68294714 | CD23: 0.68969502 | CE23: 0.6964429 | CF23: NA | CG23: NA | CH23: NA | CI23: NA | CJ23: NA | CK23: NA | CL23: NA | CM23: NA | CN23: NA | CO23: NA | CP23: NA | CQ23: NA | CR23: NA | CS23: NA | CT23: NA | CU23: NA | CV23: NA | CW23: NA | CX23: NA | CY23: NA | CZ23: NA | DA23: NA | DB23: NA | DC23: NA | DD23: NA | DE23: NA | DF23: NA | DG23: NA | DH23: NA | DI23: NA | DJ23: NA | DK23: NA | DL23: NA | DM23: NA | DN23: NA | DO23: NA | DP23: NA | DQ23: NA | DR23: NA | DS23: NA | DT23: NA | DU23: NA | DV23: NA | DW23: NA | DX23: NA | DY23: NA | DZ23: NA | EA23: NA | EB23: NA | EC23: NA | ED23: NA | EE23: NA | EF23: NA | EG23: NA | EH23: NA | EI23: NA | EJ23: NA | EK23: NA | EL23: NA | EM23: NA | EN23: NA | EO23: NA | EP23: NA | EQ23: NA | ER23: NA | ES23: NA | ET23: NA | EU23: NA | EV23: NA | EW23: NA | EX23: NA | EY23: NA | EZ23: NA | FA23: NA | FB23: NA | FC23: NA | FD23: NA | FE23: NA | FF23: NA | FG23: NA | FH23: NA | FI23: NA | FJ23: NA | FK23: NA | FL23: NA | FM23: NA | FN23: NA | FO23: NA | FP23: NA | FQ23: NA | FR23: NA | FS23: NA | FT23: NA | FU23: NA | FV23: NA | FW23: NA | FX23: NA | FY23: NA | FZ23: NA | GA23: NA | GB23: NA | GC23: NA | GD23: NA | GE23: NA | GF23: NA | GG23: NA | GH23: NA | GI23: NA | GJ23: 1502.009165 | GK23: 1716.317044 | GL23: 1806.852558 | GM23: 1502.009165 | GN23: 1725.276352 | GO23: 1948.543538 | GP23: 2171.810725 | GQ23: 2030.58285 | GR23: 1889.354976 | GS23: 1748.127101 | GT23: 1606.899226 | GU23: 1465.671352 | GV23: 1440.202775 | GW23: 1414.734197 | GX23: 1389.26562 | GY23: 1363.797043 | GZ23: 1338.328466 | HA23: 1276.836075 | HB23: 1215.343683 | HC23: 1153.851292 | HD23: 1092.358901 | HE23: 1030.86651 | HF23: 1031.384597 | HG23: 1031.902685 | HH23: 1032.420772 | HI23: 1032.938859 | HJ23: 1033.456947 | HK23: 1164.175146 | HL23: 1362.484553 | HM23: 1452.339065 | HN23: 1164.175146 | HO23: 1367.616451 | HP23: 1571.057757 | HQ23: 1774.499062 | HR23: 1674.207079 | HS23: 1573.915097 | HT23: 1473.623114 | HU23: 1373.331131 | HV23: 1273.039149 | HW23: 1248.583451 | HX23: 1224.127752 | HY23: 1199.672054 | HZ23: 1175.216356 | IA23: 1150.760658 | IB23: 1067.16697 | IC23: 983.5732821 | ID23: 899.979594 | IE23: 816.385906 | IF23: 732.792218 | IG23: 727.8911161 | IH23: 722.9900143 | II23: 718.0889124 | IJ23: 713.1878106 | IK23: 708.2867087 | IL23: 337.8340191 | IM23: 353.8324909 | IN23: 354.5134932 | IO23: 337.8340191 | IP23: 357.6599003 | IQ23: 377.4857815 | IR23: 397.3116627 | IS23: 356.3757708 | IT23: 315.4398789 | IU23: 274.5039869 | IV23: 233.568095 | IW23: 192.6322031 | IX23: 191.619324 | IY23: 190.606445 | IZ23: 189.5935659 | JA23: 188.5806869 | JB23: 187.5678078 | JC23: 209.6691046 | JD23: 231.7704014 | JE23: 253.8716983 | JF23: 275.9729951 | JG23: 298.0742919 | JH23: 303.4934811 | JI23: 308.9126703 | JJ23: 314.3318595 | JK23: 319.7510487 | JL23: 325.1702379
A24: 1.A.1.b. Petroleum refining | B24: WEM | C24: NO | D24: NO | E24: NO | F24: NO | G24: NO | H24: NO | I24: NO | J24: NO | K24: NO | L24: NO | M24: NO | N24: NO | O24: NO | P24: NO | Q24: NO | R24: NO | S24: NO | T24: NO | U24: NO | V24: NO | W24: NO | X24: NO | Y24: NO | Z24: NO | AA24: NO | AB24: NO | AC24: NO | AD24: NO | AE24: NO | AF24: NO | AG24: NO | AH24: NO | AI24: NO | AJ24: NO | AK24: NO | AL24: NO | AM24: NO | AN24: NO | AO24: NO | AP24: NO | AQ24: NO | AR24: NO | AS24: NO | AT24: NO | AU24: NO | AV24: NO | AW24: NO | AX24: NO | AY24: NO | AZ24: NO | BA24: NO | BB24: NO | BC24: NO | BD24: NO | BE24: NO | BF24: NO | BG24: NO | BH24: NO | BI24: NO | BJ24: NO | BK24: NO | BL24: NO | BM24: NO | BN24: NO | BO24: NO | BP24: NO | BQ24: NO | BR24: NO | BS24: NO | BT24: NO | BU24: NO | BV24: NO | BW24: NO | BX24: NO | BY24: NO | BZ24: NO | CA24: NO | CB24: NO | CC24: NO | CD24: NO | CE24: NO | CF24: NO | CG24: NO | CH24: NO | CI24: NO | CJ24: NO | CK24: NO | CL24: NO | CM24: NO | CN24: NO | CO24: NO | CP24: NO | CQ24: NO | CR24: NO | CS24: NO | CT24: NO | CU24: NO | CV24: NO | CW24: NO | CX24: NO | CY24: NO | CZ24: NO | DA24: NO | DB24: NO | DC24: NO | DD24: NO | DE24: NO | DF24: NO | DG24: NO | DH24: NO | DI24: NO | DJ24: NO | DK24: NO | DL24: NO | DM24: NO | DN24: NO | DO24: NO | DP24: NO | DQ24: NO | DR24: NO | DS24: NO | DT24: NO | DU24: NO | DV24: NO | DW24: NO | DX24: NO | DY24: NO | DZ24: NO | EA24: NO | EB24: NO | EC24: NO | ED24: NO | EE24: NO | EF24: NO | EG24: NO | EH24: NO | EI24: NO | EJ24: NO | EK24: NO | EL24: NO | EM24: NO | EN24: NO | EO24: NO | EP24: NO | EQ24: NO | ER24: NO | ES24: NO | ET24: NO | EU24: NO | EV24: NO | EW24: NO | EX24: NO | EY24: NO | EZ24: NO | FA24: NO | FB24: NO | FC24: NO | FD24: NO | FE24: NO | FF24: NO | FG24: NO | FH24: NO | FI24: NO | FJ24: NO | FK24: NO | FL24: NO | FM24: NO | FN24: NO | FO24: NO | FP24: NO | FQ24: NO | FR24: NO | FS24: NO | FT24: NO | FU24: NO | FV24: NO | FW24: NO | FX24: NO | FY24: NO | FZ24: NO | GA24: NO | GB24: NO | GC24: NO | GD24: NO | GE24: NO | GF24: NO | GG24: NO | GH24: NO | GI24: NO | GJ24: NO | GK24: NO | GL24: NO | GM24: NO | GN24: NO | GO24: NO | GP24: NO | GQ24: NO | GR24: NO | GS24: NO | GT24: NO | GU24: NO | GV24: NO | GW24: NO | GX24: NO | GY24: NO | GZ24: NO | HA24: NO | HB24: NO | HC24: NO | HD24: NO | HE24: NO | HF24: NO | HG24: NO | HH24: NO | HI24: NO | HJ24: NO | HK24: NO | HL24: NO | HM24: NO | HN24: NO | HO24: NO | HP24: NO | HQ24: NO | HR24: NO | HS24: NO | HT24: NO | HU24: NO | HV24: NO | HW24: NO | HX24: NO | HY24: NO | HZ24: NO | IA24: NO | IB24: NO | IC24: NO | ID24: NO | IE24: NO | IF24: NO | IG24: NO | IH24: NO | II24: NO | IJ24: NO | IK24: NO | IL24: NO | IM24: NO | IN24: NO | IO24: NO | IP24: NO | IQ24: NO | IR24: NO | IS24: NO | IT24: NO | IU24: NO | IV24: NO | IW24: NO | IX24: NO | IY24: NO | IZ24: NO | JA24: NO | JB24: NO | JC24: NO | JD24: NO | JE24: NO | JF24: NO | JG24: NO | JH24: NO | JI24: NO | JJ24: NO | JK24: NO | JL24: NO
A25: 1.A.1.c. Manufacture of solid fuels and other energy industries | B25: WEM | C25: 45.77151925 | D25: 56.37301541 | E25: 48.3300993 | F25: 45.77151925 | G25: IE | H25: IE | I25: IE | J25: IE | K25: IE | L25: IE | M25: IE | N25: IE | O25: IE | P25: IE | Q25: IE | R25: IE | S25: IE | T25: IE | U25: IE | V25: IE | W25: IE | X25: IE | Y25: IE | Z25: IE | AA25: IE | AB25: IE | AC25: IE | AD25: 0.0024579 | AE25: 0.0017173 | AF25: 0.0016823 | AG25: 0.0024579 | AH25: IE | AI25: IE | AJ25: IE | AK25: IE | AL25: IE | AM25: IE | AN25: IE | AO25: IE | AP25: IE | AQ25: IE | AR25: IE | AS25: IE | AT25: IE | AU25: IE | AV25: IE | AW25: IE | AX25: IE | AY25: IE | AZ25: IE | BA25: IE | BB25: IE | BC25: IE | BD25: IE | BE25: 0.017881 | BF25: 0.012668 | BG25: 0.012348 | BH25: 0.017881 | BI25: IE | BJ25: IE | BK25: IE | BL25: IE | BM25: IE | BN25: IE | BO25: IE | BP25: IE | BQ25: IE | BR25: IE | BS25: IE | BT25: IE | BU25: IE | BV25: IE | BW25: IE | BX25: IE | BY25: IE | BZ25: IE | CA25: IE | CB25: IE | CC25: IE | CD25: IE | CE25: IE | CF25: NA | CG25: NA | CH25: NA | CI25: NA | CJ25: NA | CK25: NA | CL25: NA | CM25: NA | CN25: NA | CO25: NA | CP25: NA | CQ25: NA | CR25: NA | CS25: NA | CT25: NA | CU25: NA | CV25: NA | CW25: NA | CX25: NA | CY25: NA | CZ25: NA | DA25: NA | DB25: NA | DC25: NA | DD25: NA | DE25: NA | DF25: NA | DG25: NA | DH25: NA | DI25: NA | DJ25: NA | DK25: NA | DL25: NA | DM25: NA | DN25: NA | DO25: NA | DP25: NA | DQ25: NA | DR25: NA | DS25: NA | DT25: NA | DU25: NA | DV25: NA | DW25: NA | DX25: NA | DY25: NA | DZ25: NA | EA25: NA | EB25: NA | EC25: NA | ED25: NA | EE25: NA | EF25: NA | EG25: NA | EH25: NA | EI25: NA | EJ25: NA | EK25: NA | EL25: NA | EM25: NA | EN25: NA | EO25: NA | EP25: NA | EQ25: NA | ER25: NA | ES25: NA | ET25: NA | EU25: NA | EV25: NA | EW25: NA | EX25: NA | EY25: NA | EZ25: NA | FA25: NA | FB25: NA | FC25: NA | FD25: NA | FE25: NA | FF25: NA | FG25: NA | FH25: NA | FI25: NA | FJ25: NA | FK25: NA | FL25: NA | FM25: NA | FN25: NA | FO25: NA | FP25: NA | FQ25: NA | FR25: NA | FS25: NA | FT25: NA | FU25: NA | FV25: NA | FW25: NA | FX25: NA | FY25: NA | FZ25: NA | GA25: NA | GB25: NA | GC25: NA | GD25: NA | GE25: NA | GF25: NA | GG25: NA | GH25: NA | GI25: NA | GJ25: 46.95099845 | GK25: 57.20147081 | GL25: 49.1401247 | GM25: 46.95099845 | GN25: IE | GO25: IE | GP25: IE | GQ25: IE | GR25: IE | GS25: IE | GT25: IE | GU25: IE | GV25: IE | GW25: IE | GX25: IE | GY25: IE | GZ25: IE | HA25: IE | HB25: IE | HC25: IE | HD25: IE | HE25: IE | HF25: IE | HG25: IE | HH25: IE | HI25: IE | HJ25: IE | HK25: 23.25404411 | HL25: 33.48264768 | HM25: 25.21593382 | HN25: 23.25404411 | HO25: IE | HP25: IE | HQ25: IE | HR25: IE | HS25: IE | HT25: IE | HU25: IE | HV25: IE | HW25: IE | HX25: IE | HY25: IE | HZ25: IE | IA25: IE | IB25: IE | IC25: IE | ID25: IE | IE25: IE | IF25: IE | IG25: IE | IH25: IE | II25: IE | IJ25: IE | IK25: IE | IL25: 23.69695435 | IM25: 23.71882313 | IN25: 23.92419088 | IO25: 23.69695435 | IP25: IE | IQ25: IE | IR25: IE | IS25: IE | IT25: IE | IU25: IE | IV25: IE | IW25: IE | IX25: IE | IY25: IE | IZ25: IE | JA25: IE | JB25: IE | JC25: IE | JD25: IE | JE25: IE | JF25: IE | JG25: IE | JH25: IE | JI25: IE | JJ25: IE | JK25: IE | JL25: IE
A26: 1.A.2. Manufacturing industries and construction | B26: WEM | C26: 623.5626177 | D26: 645.6970179 | E26: 581.3110986 | F26: 623.5626177 | G26: 670.449972 | H26: 717.3373263 | I26: 764.2246806 | J26: 777.5610937 | K26: 790.8975068 | L26: 804.2339199 | M26: 817.570333 | N26: 830.9067461 | O26: 843.1037536 | P26: 855.3007612 | Q26: 867.4977687 | R26: 879.6947763 | S26: 891.8917838 | T26: 901.1168024 | U26: 910.341821 | V26: 919.5668397 | W26: 928.7918583 | X26: 938.0168769 | Y26: 863.0948997 | Z26: 788.1729225 | AA26: 713.2509452 | AB26: 638.328968 | AC26: 563.4069908 | AD26: 0.1143333172 | AE26: 0.1180022905 | AF26: 0.1099274879 | AG26: 0.1143333172 | AH26: 0.1009173115 | AI26: 0.08750130575 | AJ26: 0.0740853 | AK26: 0.07055602 | AL26: 0.06702674 | AM26: 0.06349746 | AN26: 0.05996818 | AO26: 0.0564389 | AP26: 0.05773986 | AQ26: 0.05904082 | AR26: 0.06034178 | AS26: 0.06164274 | AT26: 0.0629437 | AU26: 0.06452256 | AV26: 0.06610142 | AW26: 0.06768028 | AX26: 0.06925914 | AY26: 0.070838 | AZ26: 0.07346542 | BA26: 0.07609284 | BB26: 0.07872026 | BC26: 0.08134768 | BD26: 0.0839751 | BE26: 0.5123676448 | BF26: 0.5638053024 | BG26: 0.4999739221 | BH26: 0.5123676448 | BI26: 0.5269967965 | BJ26: 0.5416259483 | BK26: 0.5562551 | BL26: 0.5301396 | BM26: 0.5040241 | BN26: 0.4779086 | BO26: 0.4517931 | BP26: 0.4256776 | BQ26: 0.43545578 | BR26: 0.44523396 | BS26: 0.45501214 | BT26: 0.46479032 | BU26: 0.4745685 | BV26: 0.48633836 | BW26: 0.49810822 | BX26: 0.50987808 | BY26: 0.52164794 | BZ26: 0.5334178 | CA26: 0.55276144 | CB26: 0.57210508 | CC26: 0.59144872 | CD26: 0.61079236 | CE26: 0.630136 | CF26: NA | CG26: NA | CH26: NA | CI26: NA | CJ26: NA | CK26: NA | CL26: NA | CM26: NA | CN26: NA | CO26: NA | CP26: NA | CQ26: NA | CR26: NA | CS26: NA | CT26: NA | CU26: NA | CV26: NA | CW26: NA | CX26: NA | CY26: NA | CZ26: NA | DA26: NA | DB26: NA | DC26: NA | DD26: NA | DE26: NA | DF26: NA | DG26: NA | DH26: NA | DI26: NA | DJ26: NA | DK26: NA | DL26: NA | DM26: NA | DN26: NA | DO26: NA | DP26: NA | DQ26: NA | DR26: NA | DS26: NA | DT26: NA | DU26: NA | DV26: NA | DW26: NA | DX26: NA | DY26: NA | DZ26: NA | EA26: NA | EB26: NA | EC26: NA | ED26: NA | EE26: NA | EF26: NA | EG26: NA | EH26: NA | EI26: NA | EJ26: NA | EK26: NA | EL26: NA | EM26: NA | EN26: NA | EO26: NA | EP26: NA | EQ26: NA | ER26: NA | ES26: NA | ET26: NA | EU26: NA | EV26: NA | EW26: NA | EX26: NA | EY26: NA | EZ26: NA | FA26: NA | FB26: NA | FC26: NA | FD26: NA | FE26: NA | FF26: NA | FG26: NA | FH26: NA | FI26: NA | FJ26: NA | FK26: NA | FL26: NA | FM26: NA | FN26: NA | FO26: NA | FP26: NA | FQ26: NA | FR26: NA | FS26: NA | FT26: NA | FU26: NA | FV26: NA | FW26: NA | FX26: NA | FY26: NA | FZ26: NA | GA26: NA | GB26: NA | GC26: NA | GD26: NA | GE26: NA | GF26: NA | GG26: NA | GH26: NA | GI26: NA | GJ26: 670.4431374 | GK26: 694.956833 | GL26: 626.568838 | GM26: 670.4431374 | GN26: 713.6982507 | GO26: 756.9533641 | GP26: 800.2084775 | GQ26: 811.8402777 | GR26: 823.4720778 | GS26: 835.103878 | GT26: 846.7356781 | GU26: 858.3674783 | GV26: 871.1966264 | GW26: 884.0257745 | GX26: 896.8549227 | GY26: 909.6840708 | GZ26: 922.5132189 | HA26: 932.5029843 | HB26: 942.4927497 | HC26: 952.4825151 | HD26: 962.4722805 | HE26: 972.4620459 | HF26: 898.8066308 | HG26: 825.1512158 | HH26: 751.4958007 | HI26: 677.8403857 | HJ26: 604.1849706 | HK26: 353.855055 | HL26: 364.0832366 | HM26: 302.5475618 | HN26: 353.855055 | HO26: 373.4434881 | HP26: 393.0319213 | HQ26: 412.6203545 | HR26: 430.6553715 | HS26: 448.6903885 | HT26: 466.7254055 | HU26: 484.7604225 | HV26: 502.7954395 | HW26: 519.2033931 | HX26: 535.6113467 | HY26: 552.0193004 | HZ26: 568.427254 | IA26: 584.8352076 | IB26: 592.5945119 | IC26: 600.3538162 | ID26: 608.1131206 | IE26: 615.8724249 | IF26: 623.6317292 | IG26: 555.1947338 | IH26: 486.7577384 | II26: 418.320743 | IJ26: 349.8837476 | IK26: 281.4467522 | IL26: 316.5880824 | IM26: 330.8735964 | IN26: 324.0212763 | IO26: 316.5880824 | IP26: 340.2547626 | IQ26: 363.9214428 | IR26: 387.588123 | IS26: 381.1849062 | IT26: 374.7816893 | IU26: 368.3784725 | IV26: 361.9752556 | IW26: 355.5720388 | IX26: 351.9932333 | IY26: 348.4144278 | IZ26: 344.8356223 | JA26: 341.2568168 | JB26: 337.6780113 | JC26: 339.9084724 | JD26: 342.1389335 | JE26: 344.3693945 | JF26: 346.5998556 | JG26: 348.8303167 | JH26: 343.611897 | JI26: 338.3934774 | JJ26: 333.1750577 | JK26: 327.9566381 | JL26: 322.7382184
A27: 1.A.3. Transport | B27: WEM | C27: 3272.69617 | D27: 3095.540107 | E27: 3120.158295 | F27: 3272.69617 | G27: 3130.1639 | H27: 2987.63163 | I27: 2845.099359 | J27: 2795.4732 | K27: 2745.84704 | L27: 2696.220881 | M27: 2646.594721 | N27: 2596.968562 | O27: 2576.548818 | P27: 2556.129075 | Q27: 2535.709332 | R27: 2515.289588 | S27: 2494.869845 | T27: 2370.275436 | U27: 2245.681026 | V27: 2121.086616 | W27: 1996.492207 | X27: 1871.897797 | Y27: 1771.888378 | Z27: 1671.878959 | AA27: 1571.86954 | AB27: 1471.860121 | AC27: 1371.850702 | AD27: 0.162189285 | AE27: 0.1699149432 | AF27: 0.1592225861 | AG27: 0.162189285 | AH27: 0.1588030567 | AI27: 0.1554168283 | AJ27: 0.1520306 | AK27: 0.14372158 | AL27: 0.13541256 | AM27: 0.12710354 | AN27: 0.11879452 | AO27: 0.1104855 | AP27: 0.10969896 | AQ27: 0.10891242 | AR27: 0.10812588 | AS27: 0.10733934 | AT27: 0.1065528 | AU27: 0.10075656 | AV27: 0.09496032 | AW27: 0.08916408 | AX27: 0.08336784 | AY27: 0.0775716 | AZ27: 0.0743415 | BA27: 0.0711114 | BB27: 0.0678813 | BC27: 0.0646512 | BD27: 0.0614211 | BE27: 0.163817608 | BF27: 0.1742058811 | BG27: 0.1645877296 | BH27: 0.163817608 | BI27: 0.1627122387 | BJ27: 0.1616068693 | BK27: 0.1605015 | BL27: 0.16553806 | BM27: 0.17057462 | BN27: 0.17561118 | BO27: 0.18064774 | BP27: 0.1856843 | BQ27: 0.19199946 | BR27: 0.19831462 | BS27: 0.20462978 | BT27: 0.21094494 | BU27: 0.2172601 | BV27: 0.24605872 | BW27: 0.27485734 | BX27: 0.30365596 | BY27: 0.33245458 | BZ27: 0.3612532 | CA27: 0.37449864 | CB27: 0.38774408 | CC27: 0.40098952 | CD27: 0.41423496 | CE27: 0.4274804 | CF27: NA | CG27: NA | CH27: NA | CI27: NA | CJ27: NA | CK27: NA | CL27: NA | CM27: NA | CN27: NA | CO27: NA | CP27: NA | CQ27: NA | CR27: NA | CS27: NA | CT27: NA | CU27: NA | CV27: NA | CW27: NA | CX27: NA | CY27: NA | CZ27: NA | DA27: NA | DB27: NA | DC27: NA | DD27: NA | DE27: NA | DF27: NA | DG27: NA | DH27: NA | DI27: NA | DJ27: NA | DK27: NA | DL27: NA | DM27: NA | DN27: NA | DO27: NA | DP27: NA | DQ27: NA | DR27: NA | DS27: NA | DT27: NA | DU27: NA | DV27: NA | DW27: NA | DX27: NA | DY27: NA | DZ27: NA | EA27: NA | EB27: NA | EC27: NA | ED27: NA | EE27: NA | EF27: NA | EG27: NA | EH27: NA | EI27: NA | EJ27: NA | EK27: NA | EL27: NA | EM27: NA | EN27: NA | EO27: NA | EP27: NA | EQ27: NA | ER27: NA | ES27: NA | ET27: NA | EU27: NA | EV27: NA | EW27: NA | EX27: NA | EY27: NA | EZ27: NA | FA27: NA | FB27: NA | FC27: NA | FD27: NA | FE27: NA | FF27: NA | FG27: NA | FH27: NA | FI27: NA | FJ27: NA | FK27: NA | FL27: NA | FM27: NA | FN27: NA | FO27: NA | FP27: NA | FQ27: NA | FR27: NA | FS27: NA | FT27: NA | FU27: NA | FV27: NA | FW27: NA | FX27: NA | FY27: NA | FZ27: NA | GA27: NA | GB27: NA | GC27: NA | GD27: NA | GE27: NA | GF27: NA | GG27: NA | GH27: NA | GI27: NA | GJ27: 3325.124017 | GK27: 3150.529907 | GL27: 3171.721319 | GM27: 3325.124017 | GN27: 3181.555016 | GO27: 3037.986016 | GP27: 2894.417016 | GQ27: 2842.440682 | GR27: 2790.464349 | GS27: 2738.488015 | GT27: 2686.511682 | GU27: 2634.535348 | GV27: 2614.039095 | GW27: 2593.542842 | GX27: 2573.046588 | GY27: 2552.550335 | GZ27: 2532.054082 | HA27: 2406.452358 | HB27: 2280.850635 | HC27: 2155.248911 | HD27: 2029.647188 | HE27: 1904.045464 | HF27: 1803.404611 | HG27: 1702.763758 | HH27: 1602.122905 | HI27: 1501.482053 | HJ27: 1400.8412 | HK27: NO | HL27: NO | HM27: NO | HN27: NO | HO27: NO | HP27: NO | HQ27: NO | HR27: NO | HS27: NO | HT27: NO | HU27: NO | HV27: NO | HW27: NO | HX27: NO | HY27: NO | HZ27: NO | IA27: NO | IB27: NO | IC27: NO | ID27: NO | IE27: NO | IF27: NO | IG27: NO | IH27: NO | II27: NO | IJ27: NO | IK27: NO | IL27: 3320.624758 | IM27: 3148.799076 | IN27: 3169.775156 | IO27: 3320.624758 | IP27: 3177.517944 | IQ27: 3034.41113 | IR27: 2891.304316 | IS27: 2839.297211 | IT27: 2787.290106 | IU27: 2735.283 | IV27: 2683.275895 | IW27: 2631.26879 | IX27: 2610.747456 | IY27: 2590.226123 | IZ27: 2569.70479 | JA27: 2549.183456 | JB27: 2528.662123 | JC27: 2403.037291 | JD27: 2277.412458 | JE27: 2151.787626 | JF27: 2026.162794 | JG27: 1900.537962 | JH27: 1799.877978 | JI27: 1699.217993 | JJ27: 1598.558009 | JK27: 1497.898025 | JL27: 1397.23804
A28: 1.A.3.a. Domestic aviation | B28: WEM | C28: 4.499258586 | D28: 1.730831251 | E28: 1.946162834 | F28: 4.499258586 | G28: 4.037072257 | H28: 3.574885929 | I28: 3.1126996 | J28: 3.14347134 | K28: 3.17424308 | L28: 3.20501482 | M28: 3.23578656 | N28: 3.2665583 | O28: 3.29163852 | P28: 3.31671874 | Q28: 3.34179896 | R28: 3.36687918 | S28: 3.3919594 | T28: 3.41506792 | U28: 3.43817644 | V28: 3.46128496 | W28: 3.48439348 | X28: 3.507502 | Y28: 3.5266335 | Z28: 3.545765 | AA28: 3.5648965 | AB28: 3.584028 | AC28: 3.6031595 | AD28: 0.0001427231297 | AE28: 5.414702384e-05 | AF28: 6.094358204e-05 | AG28: 0.0001427231297 | AH28: 0.0001333154198 | AI28: 0.0001239077099 | AJ28: 0.0001145 | AK28: 0.00011562 | AL28: 0.00011674 | AM28: 0.00011786 | AN28: 0.00011898 | AO28: 0.0001201 | AP28: 0.00012102 | AQ28: 0.00012194 | AR28: 0.00012286 | AS28: 0.00012378 | AT28: 0.0001247 | AU28: 0.00012556 | AV28: 0.00012642 | AW28: 0.00012728 | AX28: 0.00012814 | AY28: 0.000129 | AZ28: 0.0001297 | BA28: 0.0001304 | BB28: 0.0001311 | BC28: 0.0001318 | BD28: 0.0001325 | BE28: 2.226e-05 | BF28: 1.14e-05 | BG28: 1.478e-05 | BH28: 2.226e-05 | BI28: 3.627333333e-05 | BJ28: 5.028666667e-05 | BK28: 6.43e-05 | BL28: 6.494e-05 | BM28: 6.558e-05 | BN28: 6.622e-05 | BO28: 6.686e-05 | BP28: 6.75e-05 | BQ28: 6.802e-05 | BR28: 6.854e-05 | BS28: 6.906e-05 | BT28: 6.958e-05 | BU28: 7.01e-05 | BV28: 7.058e-05 | BW28: 7.106e-05 | BX28: 7.154e-05 | BY28: 7.202e-05 | BZ28: 7.25e-05 | CA28: 7.29e-05 | CB28: 7.33e-05 | CC28: 7.37e-05 | CD28: 7.41e-05 | CE28: 7.45e-05 | CF28: NA | CG28: NA | CH28: NA | CI28: NA | CJ28: NA | CK28: NA | CL28: NA | CM28: NA | CN28: NA | CO28: NA | CP28: NA | CQ28: NA | CR28: NA | CS28: NA | CT28: NA | CU28: NA | CV28: NA | CW28: NA | CX28: NA | CY28: NA | CZ28: NA | DA28: NA | DB28: NA | DC28: NA | DD28: NA | DE28: NA | DF28: NA | DG28: NA | DH28: NA | DI28: NA | DJ28: NA | DK28: NA | DL28: NA | DM28: NA | DN28: NA | DO28: NA | DP28: NA | DQ28: NA | DR28: NA | DS28: NA | DT28: NA | DU28: NA | DV28: NA | DW28: NA | DX28: NA | DY28: NA | DZ28: NA | EA28: NA | EB28: NA | EC28: NA | ED28: NA | EE28: NA | EF28: NA | EG28: NA | EH28: NA | EI28: NA | EJ28: NA | EK28: NA | EL28: NA | EM28: NA | EN28: NA | EO28: NA | EP28: NA | EQ28: NA | ER28: NA | ES28: NA | ET28: NA | EU28: NA | EV28: NA | EW28: NA | EX28: NA | EY28: NA | EZ28: NA | FA28: NA | FB28: NA | FC28: NA | FD28: NA | FE28: NA | FF28: NA | FG28: NA | FH28: NA | FI28: NA | FJ28: NA | FK28: NA | FL28: NA | FM28: NA | FN28: NA | FO28: NA | FP28: NA | FQ28: NA | FR28: NA | FS28: NA | FT28: NA | FU28: NA | FV28: NA | FW28: NA | FX28: NA | FY28: NA | FZ28: NA | GA28: NA | GB28: NA | GC28: NA | GD28: NA | GE28: NA | GF28: NA | GG28: NA | GH28: NA | GI28: NA | GJ28: 4.542346579 | GK28: 1.747252064 | GL28: 1.964693521 | GM28: 4.542346579 | GN28: 4.077707086 | GO28: 3.613067593 | GP28: 3.1484281 | GQ28: 3.1795496 | GR28: 3.2106711 | GS28: 3.2417926 | GT28: 3.2729141 | GU28: 3.3040356 | GV28: 3.32940298 | GW28: 3.35477036 | GX28: 3.38013774 | GY28: 3.40550512 | GZ28: 3.4308725 | HA28: 3.4542493 | HB28: 3.4776261 | HC28: 3.5010029 | HD28: 3.5243797 | HE28: 3.5477565 | HF28: 3.5671066 | HG28: 3.5864567 | HH28: 3.6058068 | HI28: 3.6251569 | HJ28: 3.644507 | HK28: NO | HL28: NO | HM28: NO | HN28: NO | HO28: NO | HP28: NO | HQ28: NO | HR28: NO | HS28: NO | HT28: NO | HU28: NO | HV28: NO | HW28: NO | HX28: NO | HY28: NO | HZ28: NO | IA28: NO | IB28: NO | IC28: NO | ID28: NO | IE28: NO | IF28: NO | IG28: NO | IH28: NO | II28: NO | IJ28: NO | IK28: NO | IL28: 0.04308799266 | IM28: 0.0164208131 | IN28: 0.01853068745 | IO28: 0.04308799266 | IP28: 0.04063482844 | IQ28: 0.03818166422 | IR28: 0.0357285 | IS28: 0.03607826 | IT28: 0.03642802 | IU28: 0.03677778 | IV28: 0.03712754 | IW28: 0.0374773 | IX28: 0.03776446 | IY28: 0.03805162 | IZ28: 0.03833878 | JA28: 0.03862594 | JB28: 0.0389131 | JC28: 0.03918138 | JD28: 0.03944966 | JE28: 0.03971794 | JF28: 0.03998622 | JG28: 0.0402545 | JH28: 0.0404731 | JI28: 0.0406917 | JJ28: 0.0409103 | JK28: 0.0411289 | JL28: 0.0413475
A29: 1.A.3.b. Road transportation | B29: WEM | C29: 3089.945411 | D29: 2877.274876 | E29: 2930.168382 | F29: 3089.945411 | G29: 2975.92835 | H29: 2861.911289 | I29: 2747.894229 | J29: 2713.942346 | K29: 2679.990464 | L29: 2646.038581 | M29: 2612.086699 | N29: 2578.134817 | O29: 2557.57047 | P29: 2537.006124 | Q29: 2516.441777 | R29: 2495.877431 | S29: 2475.313084 | T29: 2346.114358 | U29: 2216.915632 | V29: 2087.716906 | W29: 1958.518179 | X29: 1829.319453 | Y29: 1726.117549 | Z29: 1622.915644 | AA29: 1519.71374 | AB29: 1416.511836 | AC29: 1313.309932 | AD29: 0.09367466188 | AE29: 0.08680730985 | AF29: 0.0870053425 | AG29: 0.09367466188 | AH29: 0.09056190792 | AI29: 0.08744915396 | AJ29: 0.0843364 | AK29: 0.08356638 | AL29: 0.08279636 | AM29: 0.08202634 | AN29: 0.08125632 | AO29: 0.0804863 | AP29: 0.07954352 | AQ29: 0.07860074 | AR29: 0.07765796 | AS29: 0.07671518 | AT29: 0.0757724 | AU29: 0.06984192 | AV29: 0.06391144 | AW29: 0.05798096 | AX29: 0.05205048 | AY29: 0.04612 | AZ29: 0.0427947 | BA29: 0.0394694 | BB29: 0.0361441 | BC29: 0.0328188 | BD29: 0.0294935 | BE29: 0.153677698 | BF29: 0.1619802402 | BG29: 0.1538681996 | BH29: 0.153677698 | BI29: 0.152602632 | BJ29: 0.151527566 | BK29: 0.1504525 | BL29: 0.15658076 | BM29: 0.16270902 | BN29: 0.16883728 | BO29: 0.17496554 | BP29: 0.1810938 | BQ29: 0.18738446 | BR29: 0.19367512 | BS29: 0.19996578 | BT29: 0.20625644 | BU29: 0.2125471 | BV29: 0.24132458 | BW29: 0.27010206 | BX29: 0.29887954 | BY29: 0.32765702 | BZ29: 0.3564345 | CA29: 0.36966472 | CB29: 0.38289494 | CC29: 0.39612516 | CD29: 0.40935538 | CE29: 0.4225856 | CF29: NA | CG29: NA | CH29: NA | CI29: NA | CJ29: NA | CK29: NA | CL29: NA | CM29: NA | CN29: NA | CO29: NA | CP29: NA | CQ29: NA | CR29: NA | CS29: NA | CT29: NA | CU29: NA | CV29: NA | CW29: NA | CX29: NA | CY29: NA | CZ29: NA | DA29: NA | DB29: NA | DC29: NA | DD29: NA | DE29: NA | DF29: NA | DG29: NA | DH29: NA | DI29: NA | DJ29: NA | DK29: NA | DL29: NA | DM29: NA | DN29: NA | DO29: NA | DP29: NA | DQ29: NA | DR29: NA | DS29: NA | DT29: NA | DU29: NA | DV29: NA | DW29: NA | DX29: NA | DY29: NA | DZ29: NA | EA29: NA | EB29: NA | EC29: NA | ED29: NA | EE29: NA | EF29: NA | EG29: NA | EH29: NA | EI29: NA | EJ29: NA | EK29: NA | EL29: NA | EM29: NA | EN29: NA | EO29: NA | EP29: NA | EQ29: NA | ER29: NA | ES29: NA | ET29: NA | EU29: NA | EV29: NA | EW29: NA | EX29: NA | EY29: NA | EZ29: NA | FA29: NA | FB29: NA | FC29: NA | FD29: NA | FE29: NA | FF29: NA | FG29: NA | FH29: NA | FI29: NA | FJ29: NA | FK29: NA | FL29: NA | FM29: NA | FN29: NA | FO29: NA | FP29: NA | FQ29: NA | FR29: NA | FS29: NA | FT29: NA | FU29: NA | FV29: NA | FW29: NA | FX29: NA | FY29: NA | FZ29: NA | GA29: NA | GB29: NA | GC29: NA | GD29: NA | GE29: NA | GF29: NA | GG29: NA | GH29: NA | GI29: NA | GJ29: 3121.702403 | GK29: 2907.19296 | GL29: 2959.942679 | GM29: 3121.702403 | GN29: 3006.730865 | GO29: 2891.759327 | GP29: 2776.787788 | GQ29: 2742.759647 | GR29: 2708.731505 | GS29: 2674.703363 | GT29: 2640.675221 | GU29: 2606.647079 | GV29: 2585.959051 | GW29: 2565.271022 | GX29: 2544.582994 | GY29: 2523.894965 | GZ29: 2503.206937 | HA29: 2372.960365 | HB29: 2242.713792 | HC29: 2112.46722 | HD29: 1982.220648 | HE29: 1851.974076 | HF29: 1748.111987 | HG29: 1644.249899 | HH29: 1540.387811 | HI29: 1436.525723 | HJ29: 1332.663635 | HK29: NO | HL29: NO | HM29: NO | HN29: NO | HO29: NO | HP29: NO | HQ29: NO | HR29: NO | HS29: NO | HT29: NO | HU29: NO | HV29: NO | HW29: NO | HX29: NO | HY29: NO | HZ29: NO | IA29: NO | IB29: NO | IC29: NO | ID29: NO | IE29: NO | IF29: NO | IG29: NO | IH29: NO | II29: NO | IJ29: NO | IK29: NO | IL29: 3121.702403 | IM29: 2907.19296 | IN29: 2959.942679 | IO29: 3121.702403 | IP29: 3006.730865 | IQ29: 2891.759327 | IR29: 2776.787788 | IS29: 2742.759647 | IT29: 2708.731505 | IU29: 2674.703363 | IV29: 2640.675221 | IW29: 2606.647079 | IX29: 2585.959051 | IY29: 2565.271022 | IZ29: 2544.582994 | JA29: 2523.894965 | JB29: 2503.206937 | JC29: 2372.960365 | JD29: 2242.713792 | JE29: 2112.46722 | JF29: 1982.220648 | JG29: 1851.974076 | JH29: 1748.111987 | JI29: 1644.249899 | JJ29: 1540.387811 | JK29: 1436.525723 | JL29: 1332.663635
A30: 1.A.3.c. Railways | B30: WEM | C30: 163.92675 | D30: 206.68375 | E30: 174.54125 | F30: 163.92675 | G30: 135.7039924 | H30: 107.4812348 | I30: 79.2584772 | J30: 63.40678176 | K30: 47.55508632 | L30: 31.70339088 | M30: 15.85169544 | N30: 0 | O30: 0 | P30: 0 | Q30: 0 | R30: 0 | S30: 0 | T30: 4.47108166 | U30: 8.94216332 | V30: 13.41324498 | W30: 17.88432664 | X30: 22.3554083 | Y30: 25.43758856 | Z30: 28.51976882 | AA30: 31.60194908 | AB30: 34.68412934 | AC30: 37.7663096 | AD30: 0.0627604 | AE30: 0.0791826 | AF30: 0.0668748 | AG30: 0.0627604 | AH30: 0.0624107 | AI30: 0.062061 | AJ30: 0.0617113 | AK30: 0.05411316 | AL30: 0.04651502 | AM30: 0.03891688 | AN30: 0.03131874 | AO30: 0.0237206 | AP30: 0.02382864 | AQ30: 0.02393668 | AR30: 0.02404472 | AS30: 0.02415276 | AT30: 0.0242608 | AU30: 0.02435062 | AV30: 0.02444044 | AW30: 0.02453026 | AX30: 0.02462008 | AY30: 0.0247099 | AZ30: 0.02476832 | BA30: 0.02482674 | BB30: 0.02488516 | BC30: 0.02494358 | BD30: 0.025002 | BE30: 0.00913285 | BF30: 0.01155615 | BG30: 0.00976395 | BH30: 0.00913285 | BI30: 0.009073433333 | BJ30: 0.009014016667 | BK30: 0.0089546 | BL30: 0.00785208 | BM30: 0.00674956 | BN30: 0.00564704 | BO30: 0.00454452 | BP30: 0.003442 | BQ30: 0.00345768 | BR30: 0.00347336 | BS30: 0.00348904 | BT30: 0.00350472 | BU30: 0.0035204 | BV30: 0.00353342 | BW30: 0.00354644 | BX30: 0.00355946 | BY30: 0.00357248 | BZ30: 0.0035855 | CA30: 0.00359398 | CB30: 0.00360246 | CC30: 0.00361094 | CD30: 0.00361942 | CE30: 0.0036279 | CF30: NA | CG30: NA | CH30: NA | CI30: NA | CJ30: NA | CK30: NA | CL30: NA | CM30: NA | CN30: NA | CO30: NA | CP30: NA | CQ30: NA | CR30: NA | CS30: NA | CT30: NA | CU30: NA | CV30: NA | CW30: NA | CX30: NA | CY30: NA | CZ30: NA | DA30: NA | DB30: NA | DC30: NA | DD30: NA | DE30: NA | DF30: NA | DG30: NA | DH30: NA | DI30: NA | DJ30: NA | DK30: NA | DL30: NA | DM30: NA | DN30: NA | DO30: NA | DP30: NA | DQ30: NA | DR30: NA | DS30: NA | DT30: NA | DU30: NA | DV30: NA | DW30: NA | DX30: NA | DY30: NA | DZ30: NA | EA30: NA | EB30: NA | EC30: NA | ED30: NA | EE30: NA | EF30: NA | EG30: NA | EH30: NA | EI30: NA | EJ30: NA | EK30: NA | EL30: NA | EM30: NA | EN30: NA | EO30: NA | EP30: NA | EQ30: NA | ER30: NA | ES30: NA | ET30: NA | EU30: NA | EV30: NA | EW30: NA | EX30: NA | EY30: NA | EZ30: NA | FA30: NA | FB30: NA | FC30: NA | FD30: NA | FE30: NA | FF30: NA | FG30: NA | FH30: NA | FI30: NA | FJ30: NA | FK30: NA | FL30: NA | FM30: NA | FN30: NA | FO30: NA | FP30: NA | FQ30: NA | FR30: NA | FS30: NA | FT30: NA | FU30: NA | FV30: NA | FW30: NA | FX30: NA | FY30: NA | FZ30: NA | GA30: NA | GB30: NA | GC30: NA | GD30: NA | GE30: NA | GF30: NA | GG30: NA | GH30: NA | GI30: NA | GJ30: 182.8576705 | GK30: 230.5690685 | GL30: 194.7140391 | GM30: 182.8576705 | GN30: 154.5292168 | GO30: 126.2007632 | GP30: 97.8723096 | GQ30: 79.72880544 | GR30: 61.58530128 | GS30: 43.44179712 | GT30: 25.29829296 | GU30: 7.1547888 | GV30: 7.18737672 | GW30: 7.21996464 | GX30: 7.25255256 | GY30: 7.28514048 | GZ30: 7.3177284 | HA30: 11.81590192 | HB30: 16.31407544 | HC30: 20.81224896 | HD30: 25.31042248 | HE30: 29.808596 | HF30: 32.90839742 | HG30: 36.00819884 | HH30: 39.10800026 | HI30: 42.20780168 | HJ30: 45.3076031 | HK30: NO | HL30: NO | HM30: NO | HN30: NO | HO30: NO | HP30: NO | HQ30: NO | HR30: NO | HS30: NO | HT30: NO | HU30: NO | HV30: NO | HW30: NO | HX30: NO | HY30: NO | HZ30: NO | IA30: NO | IB30: NO | IC30: NO | ID30: NO | IE30: NO | IF30: NO | IG30: NO | IH30: NO | II30: NO | IJ30: NO | IK30: NO | IL30: 182.8576705 | IM30: 230.5690685 | IN30: 194.7140391 | IO30: 182.8576705 | IP30: 154.5292168 | IQ30: 126.2007632 | IR30: 97.8723096 | IS30: 79.72880544 | IT30: 61.58530128 | IU30: 43.44179712 | IV30: 25.29829296 | IW30: 7.1547888 | IX30: 7.18737672 | IY30: 7.21996464 | IZ30: 7.25255256 | JA30: 7.28514048 | JB30: 7.3177284 | JC30: 11.81590192 | JD30: 16.31407544 | JE30: 20.81224896 | JF30: 25.31042248 | JG30: 29.808596 | JH30: 32.90839742 | JI30: 36.00819884 | JJ30: 39.10800026 | JK30: 42.20780168 | JL30: 45.3076031
A31: 1.A.3.d. Domestic navigation | B31: WEM | C31: 14.32475 | D31: 9.85065 | E31: 13.5025 | F31: 14.32475 | G31: 14.49448467 | H31: 14.66421933 | I31: 14.833954 | J31: 14.98060056 | K31: 15.12724712 | L31: 15.27389368 | M31: 15.42054024 | N31: 15.5671868 | O31: 15.68670974 | P31: 15.80623268 | Q31: 15.92575562 | R31: 16.04527856 | S31: 16.1648015 | T31: 16.27492798 | U31: 16.38505446 | V31: 16.49518094 | W31: 16.60530742 | X31: 16.7154339 | Y31: 16.80660736 | Z31: 16.89778082 | AA31: 16.98895428 | AB31: 17.08012774 | AC31: 17.1713012 | AD31: 0.0056115 | AE31: 0.003870886364 | AF31: 0.0052815 | AG31: 0.0056115 | AH31: 0.005697133333 | AI31: 0.005782766667 | AJ31: 0.0058684 | AK31: 0.00592642 | AL31: 0.00598444 | AM31: 0.00604246 | AN31: 0.00610048 | AO31: 0.0061585 | AP31: 0.00620578 | AQ31: 0.00625306 | AR31: 0.00630034 | AS31: 0.00634762 | AT31: 0.0063949 | AU31: 0.00643846 | AV31: 0.00648202 | AW31: 0.00652558 | AX31: 0.00656914 | AY31: 0.0066127 | AZ31: 0.00664878 | BA31: 0.00668486 | BB31: 0.00672094 | BC31: 0.00675702 | BD31: 0.0067931 | BE31: 0.0009848 | BF31: 0.0006580909091 | BG31: 0.0009408 | BH31: 0.0009848 | BI31: 0.0009999 | BJ31: 0.001015 | BK31: 0.0010301 | BL31: 0.00104028 | BM31: 0.00105046 | BN31: 0.00106064 | BO31: 0.00107082 | BP31: 0.001081 | BQ31: 0.0010893 | BR31: 0.0010976 | BS31: 0.0011059 | BT31: 0.0011142 | BU31: 0.0011225 | BV31: 0.00113014 | BW31: 0.00113778 | BX31: 0.00114542 | BY31: 0.00115306 | BZ31: 0.0011607 | CA31: 0.00116704 | CB31: 0.00117338 | CC31: 0.00117972 | CD31: 0.00118606 | CE31: 0.0011924 | CF31: NA | CG31: NA | CH31: NA | CI31: NA | CJ31: NA | CK31: NA | CL31: NA | CM31: NA | CN31: NA | CO31: NA | CP31: NA | CQ31: NA | CR31: NA | CS31: NA | CT31: NA | CU31: NA | CV31: NA | CW31: NA | CX31: NA | CY31: NA | CZ31: NA | DA31: NA | DB31: NA | DC31: NA | DD31: NA | DE31: NA | DF31: NA | DG31: NA | DH31: NA | DI31: NA | DJ31: NA | DK31: NA | DL31: NA | DM31: NA | DN31: NA | DO31: NA | DP31: NA | DQ31: NA | DR31: NA | DS31: NA | DT31: NA | DU31: NA | DV31: NA | DW31: NA | DX31: NA | DY31: NA | DZ31: NA | EA31: NA | EB31: NA | EC31: NA | ED31: NA | EE31: NA | EF31: NA | EG31: NA | EH31: NA | EI31: NA | EJ31: NA | EK31: NA | EL31: NA | EM31: NA | EN31: NA | EO31: NA | EP31: NA | EQ31: NA | ER31: NA | ES31: NA | ET31: NA | EU31: NA | EV31: NA | EW31: NA | EX31: NA | EY31: NA | EZ31: NA | FA31: NA | FB31: NA | FC31: NA | FD31: NA | FE31: NA | FF31: NA | FG31: NA | FH31: NA | FI31: NA | FJ31: NA | FK31: NA | FL31: NA | FM31: NA | FN31: NA | FO31: NA | FP31: NA | FQ31: NA | FR31: NA | FS31: NA | FT31: NA | FU31: NA | FV31: NA | FW31: NA | FX31: NA | FY31: NA | FZ31: NA | GA31: NA | GB31: NA | GC31: NA | GD31: NA | GE31: NA | GF31: NA | GG31: NA | GH31: NA | GI31: NA | GJ31: 16.021597 | GK31: 11.02062641 | GL31: 15.099907 | GM31: 16.021597 | GN31: 16.2172279 | GO31: 16.4128588 | GP31: 16.6084897 | GQ31: 16.77268072 | GR31: 16.93687174 | GS31: 17.10106276 | GT31: 17.26525378 | GU31: 17.4294448 | GV31: 17.56326468 | GW31: 17.69708456 | GX31: 17.83090444 | GY31: 17.96472432 | GZ31: 18.0985442 | HA31: 18.22184256 | HB31: 18.34514092 | HC31: 18.46843928 | HD31: 18.59173764 | HE31: 18.715036 | HF31: 18.8171198 | HG31: 18.9192036 | HH31: 19.0212874 | HI31: 19.1233712 | HJ31: 19.225455 | HK31: NO | HL31: NO | HM31: NO | HN31: NO | HO31: NO | HP31: NO | HQ31: NO | HR31: NO | HS31: NO | HT31: NO | HU31: NO | HV31: NO | HW31: NO | HX31: NO | HY31: NO | HZ31: NO | IA31: NO | IB31: NO | IC31: NO | ID31: NO | IE31: NO | IF31: NO | IG31: NO | IH31: NO | II31: NO | IJ31: NO | IK31: NO | IL31: 16.021597 | IM31: 11.02062641 | IN31: 15.099907 | IO31: 16.021597 | IP31: 16.2172279 | IQ31: 16.4128588 | IR31: 16.6084897 | IS31: 16.77268072 | IT31: 16.93687174 | IU31: 17.10106276 | IV31: 17.26525378 | IW31: 17.4294448 | IX31: 17.56326468 | IY31: 17.69708456 | IZ31: 17.83090444 | JA31: 17.96472432 | JB31: 18.0985442 | JC31: 18.22184256 | JD31: 18.34514092 | JE31: 18.46843928 | JF31: 18.59173764 | JG31: 18.715036 | JH31: 18.8171198 | JI31: 18.9192036 | JJ31: 19.0212874 | JK31: 19.1233712 | JL31: 19.225455
A32: 1.A.3.e. Other transportation | B32: WEM | C32: NO,IE | D32: NO,IE | E32: NO,IE | F32: NO,IE | G32: NO,IE | H32: NO,IE | I32: NO,IE | J32: NO,IE | K32: NO,IE | L32: NO,IE | M32: NO,IE | N32: NO,IE | O32: NO,IE | P32: NO,IE | Q32: NO,IE | R32: NO,IE | S32: NO,IE | T32: NO,IE | U32: NO,IE | V32: NO,IE | W32: NO,IE | X32: NO,IE | Y32: NO,IE | Z32: NO,IE | AA32: NO,IE | AB32: NO,IE | AC32: NO,IE | AD32: NO,IE | AE32: NO,IE | AF32: NO,IE | AG32: NO,IE | AH32: NO,IE | AI32: NO,IE | AJ32: NO,IE | AK32: NO,IE | AL32: NO,IE | AM32: NO,IE | AN32: NO,IE | AO32: NO,IE | AP32: NO,IE | AQ32: NO,IE | AR32: NO,IE | AS32: NO,IE | AT32: NO,IE | AU32: NO,IE | AV32: NO,IE | AW32: NO,IE | AX32: NO,IE | AY32: NO,IE | AZ32: NO,IE | BA32: NO,IE | BB32: NO,IE | BC32: NO,IE | BD32: NO,IE | BE32: NO,IE | BF32: NO,IE | BG32: NO,IE | BH32: NO,IE | BI32: NO,IE | BJ32: NO,IE | BK32: NO,IE | BL32: NO,IE | BM32: NO,IE | BN32: NO,IE | BO32: NO,IE | BP32: NO,IE | BQ32: NO,IE | BR32: NO,IE | BS32: NO,IE | BT32: NO,IE | BU32: NO,IE | BV32: NO,IE | BW32: NO,IE | BX32: NO,IE | BY32: NO,IE | BZ32: NO,IE | CA32: NO,IE | CB32: NO,IE | CC32: NO,IE | CD32: NO,IE | CE32: NO,IE | CF32: NA | CG32: NA | CH32: NA | CI32: NA | CJ32: NA | CK32: NA | CL32: NA | CM32: NA | CN32: NA | CO32: NA | CP32: NA | CQ32: NA | CR32: NA | CS32: NA | CT32: NA | CU32: NA | CV32: NA | CW32: NA | CX32: NA | CY32: NA | CZ32: NA | DA32: NA | DB32: NA | DC32: NA | DD32: NA | DE32: NA | DF32: NA | DG32: NA | DH32: NA | DI32: NA | DJ32: NA | DK32: NA | DL32: NA | DM32: NA | DN32: NA | DO32: NA | DP32: NA | DQ32: NA | DR32: NA | DS32: NA | DT32: NA | DU32: NA | DV32: NA | DW32: NA | DX32: NA | DY32: NA | DZ32: NA | EA32: NA | EB32: NA | EC32: NA | ED32: NA | EE32: NA | EF32: NA | EG32: NA | EH32: NA | EI32: NA | EJ32: NA | EK32: NA | EL32: NA | EM32: NA | EN32: NA | EO32: NA | EP32: NA | EQ32: NA | ER32: NA | ES32: NA | ET32: NA | EU32: NA | EV32: NA | EW32: NA | EX32: NA | EY32: NA | EZ32: NA | FA32: NA | FB32: NA | FC32: NA | FD32: NA | FE32: NA | FF32: NA | FG32: NA | FH32: NA | FI32: NA | FJ32: NA | FK32: NA | FL32: NA | FM32: NA | FN32: NA | FO32: NA | FP32: NA | FQ32: NA | FR32: NA | FS32: NA | FT32: NA | FU32: NA | FV32: NA | FW32: NA | FX32: NA | FY32: NA | FZ32: NA | GA32: NA | GB32: NA | GC32: NA | GD32: NA | GE32: NA | GF32: NA | GG32: NA | GH32: NA | GI32: NA | GJ32: NO,IE | GK32: NO,IE | GL32: NO,IE | GM32: NO,IE | GN32: NO,IE | GO32: NO,IE | GP32: NO,IE | GQ32: NO,IE | GR32: NO,IE | GS32: NO,IE | GT32: NO,IE | GU32: NO,IE | GV32: NO,IE | GW32: NO,IE | GX32: NO,IE | GY32: NO,IE | GZ32: NO,IE | HA32: NO,IE | HB32: NO,IE | HC32: NO,IE | HD32: NO,IE | HE32: NO,IE | HF32: NO,IE | HG32: NO,IE | HH32: NO,IE | HI32: NO,IE | HJ32: NO,IE | HK32: NO | HL32: NO | HM32: NO | HN32: NO | HO32: NO | HP32: NO | HQ32: NO | HR32: NO | HS32: NO | HT32: NO | HU32: NO | HV32: NO | HW32: NO | HX32: NO | HY32: NO | HZ32: NO | IA32: NO | IB32: NO | IC32: NO | ID32: NO | IE32: NO | IF32: NO | IG32: NO | IH32: NO | II32: NO | IJ32: NO | IK32: NO | IL32: NO IE | IM32: NO IE | IN32: NO IE | IO32: NO IE | IP32: NO IE | IQ32: NO IE | IR32: NO IE | IS32: NO IE | IT32: NO IE | IU32: NO IE | IV32: NO IE | IW32: NO IE | IX32: NO IE | IY32: NO IE | IZ32: NO IE | JA32: NO IE | JB32: NO IE | JC32: NO IE | JD32: NO IE | JE32: NO IE | JF32: NO IE | JG32: NO IE | JH32: NO IE | JI32: NO IE | JJ32: NO IE | JK32: NO IE | JL32: NO IE
A33: 1.A.4. Other sectors | B33: WEM | C33: 1295.903252 | D33: 1232.824657 | E33: 1264.228216 | F33: 1295.903252 | G33: 1355.031805 | H33: 1414.160358 | I33: 1473.28891 | J33: 1449.435471 | K33: 1425.582031 | L33: 1401.728591 | M33: 1377.875151 | N33: 1354.021711 | O33: 1329.563685 | P33: 1305.105659 | Q33: 1280.647633 | R33: 1256.189608 | S33: 1231.731582 | T33: 1194.135933 | U33: 1156.540284 | V33: 1118.944635 | W33: 1081.348986 | X33: 1043.753337 | Y33: 1024.483889 | Z33: 1005.214441 | AA33: 985.9449932 | AB33: 966.6755454 | AC33: 947.4060976 | AD33: 0.2684245961 | AE33: 0.261249973 | AF33: 0.2458241711 | AG33: 0.2684245961 | AH33: 0.2105929974 | AI33: 0.1527613987 | AJ33: 0.0949298 | AK33: 0.0904351 | AL33: 0.0859404 | AM33: 0.0814457 | AN33: 0.076951 | AO33: 0.0724563 | AP33: 0.07216308 | AQ33: 0.07186986 | AR33: 0.07157664 | AS33: 0.07128342 | AT33: 0.0709902 | AU33: 0.06648674 | AV33: 0.06198328 | AW33: 0.05747982 | AX33: 0.05297636 | AY33: 0.0484729 | AZ33: 0.04756556 | BA33: 0.04665822 | BB33: 0.04575088 | BC33: 0.04484354 | BD33: 0.0439362 | BE33: 5.550424122 | BF33: 5.076173806 | BG33: 5.03474236 | BH33: 5.550424122 | BI33: 5.969944448 | BJ33: 6.389464774 | BK33: 6.8089851 | BL33: 6.47746986 | BM33: 6.14595462 | BN33: 5.81443938 | BO33: 5.48292414 | BP33: 5.1514089 | BQ33: 5.14275128 | BR33: 5.13409366 | BS33: 5.12543604 | BT33: 5.11677842 | BU33: 5.1081208 | BV33: 4.76429988 | BW33: 4.42047896 | BX33: 4.07665804 | BY33: 3.73283712 | BZ33: 3.3890162 | CA33: 3.32851718 | CB33: 3.26801816 | CC33: 3.20751914 | CD33: 3.14702012 | CE33: 3.0865211 | CF33: NA | CG33: NA | CH33: NA | CI33: NA | CJ33: NA | CK33: NA | CL33: NA | CM33: NA | CN33: NA | CO33: NA | CP33: NA | CQ33: NA | CR33: NA | CS33: NA | CT33: NA | CU33: NA | CV33: NA | CW33: NA | CX33: NA | CY33: NA | CZ33: NA | DA33: NA | DB33: NA | DC33: NA | DD33: NA | DE33: NA | DF33: NA | DG33: NA | DH33: NA | DI33: NA | DJ33: NA | DK33: NA | DL33: NA | DM33: NA | DN33: NA | DO33: NA | DP33: NA | DQ33: NA | DR33: NA | DS33: NA | DT33: NA | DU33: NA | DV33: NA | DW33: NA | DX33: NA | DY33: NA | DZ33: NA | EA33: NA | EB33: NA | EC33: NA | ED33: NA | EE33: NA | EF33: NA | EG33: NA | EH33: NA | EI33: NA | EJ33: NA | EK33: NA | EL33: NA | EM33: NA | EN33: NA | EO33: NA | EP33: NA | EQ33: NA | ER33: NA | ES33: NA | ET33: NA | EU33: NA | EV33: NA | EW33: NA | EX33: NA | EY33: NA | EZ33: NA | FA33: NA | FB33: NA | FC33: NA | FD33: NA | FE33: NA | FF33: NA | FG33: NA | FH33: NA | FI33: NA | FJ33: NA | FK33: NA | FL33: NA | FM33: NA | FN33: NA | FO33: NA | FP33: NA | FQ33: NA | FR33: NA | FS33: NA | FT33: NA | FU33: NA | FV33: NA | FW33: NA | FX33: NA | FY33: NA | FZ33: NA | GA33: NA | GB33: NA | GC33: NA | GD33: NA | GE33: NA | GF33: NA | GG33: NA | GH33: NA | GI33: NA | GJ33: 1514.654384 | GK33: 1437.581495 | GL33: 1463.352378 | GM33: 1514.654384 | GN33: 1567.037129 | GO33: 1619.419874 | GP33: 1671.802618 | GQ33: 1638.321877 | GR33: 1604.841135 | GS33: 1571.360394 | GT33: 1537.879652 | GU33: 1504.398911 | GV33: 1479.637065 | GW33: 1454.875219 | GX33: 1430.113373 | GY33: 1405.351527 | GZ33: 1380.589682 | HA33: 1333.056478 | HB33: 1285.523275 | HC33: 1237.990072 | HD33: 1190.456869 | HE33: 1142.923666 | HF33: 1121.871355 | HG33: 1100.819045 | HH33: 1079.766734 | HI33: 1058.714423 | HJ33: 1037.662113 | HK33: 61.27923121 | HL33: 71.96170578 | HM33: 60.8056608 | HN33: 61.27923121 | HO33: 87.68773227 | HP33: 114.0962333 | HQ33: 140.5047344 | HR33: 157.8140684 | HS33: 175.1234024 | HT33: 192.4327363 | HU33: 209.7420703 | HV33: 227.0514043 | HW33: 231.6923499 | HX33: 236.3332955 | HY33: 240.9742412 | HZ33: 245.6151868 | IA33: 250.2561324 | IB33: 254.624442 | IC33: 258.9927516 | ID33: 263.3610612 | IE33: 267.7293708 | IF33: 272.0976804 | IG33: 274.5585798 | IH33: 277.0194793 | II33: 279.4803787 | IJ33: 281.9412782 | IK33: 284.4021776 | IL33: 1453.375153 | IM33: 1365.619789 | IN33: 1402.546717 | IO33: 1453.375153 | IP33: 1479.349397 | IQ33: 1505.32364 | IR33: 1531.297884 | IS33: 1480.507808 | IT33: 1429.717733 | IU33: 1378.927657 | IV33: 1328.137582 | IW33: 1277.347506 | IX33: 1247.944715 | IY33: 1218.541923 | IZ33: 1189.139132 | JA33: 1159.736341 | JB33: 1130.333549 | JC33: 1078.432036 | JD33: 1026.530524 | JE33: 974.6290109 | JF33: 922.7274982 | JG33: 870.8259854 | JH33: 847.3127753 | JI33: 823.7995653 | JJ33: 800.2863552 | JK33: 776.7731452 | JL33: 753.2599351
A34: 1.A.4.a. Commercial/Institutional | B34: WEM | C34: 393.8794531 | D34: 426.258296 | E34: 397.8368723 | F34: 393.8794531 | G34: 428.6309137 | H34: 463.3823742 | I34: 498.1338348 | J34: 493.9247848 | K34: 489.7157348 | L34: 485.5066848 | M34: 481.2976348 | N34: 477.0885848 | O34: 468.000678 | P34: 458.9127712 | Q34: 449.8248645 | R34: 440.7369577 | S34: 431.6490509 | T34: 412.0908833 | U34: 392.5327156 | V34: 372.974548 | W34: 353.4163803 | X34: 333.8582127 | Y34: 325.8063938 | Z34: 317.7545748 | AA34: 309.7027559 | AB34: 301.6509369 | AC34: 293.599118 | AD34: 0.05272642951 | AE34: 0.07738085611 | AF34: 0.05498345929 | AG34: 0.05272642951 | AH34: 0.04005391967 | AI34: 0.02738140984 | AJ34: 0.0147089 | AK34: 0.01385154 | AL34: 0.01299418 | AM34: 0.01213682 | AN34: 0.01127946 | AO34: 0.0104221 | AP34: 0.0102148 | AQ34: 0.0100075 | AR34: 0.0098002 | AS34: 0.0095929 | AT34: 0.0093856 | AU34: 0.00954568 | AV34: 0.00970576 | AW34: 0.00986584 | AX34: 0.01002592 | AY34: 0.010186 | AZ34: 0.01014154 | BA34: 0.01009708 | BB34: 0.01005262 | BC34: 0.01000816 | BD34: 0.0099637 | BE34: 1.39697459 | BF34: 1.404528065 | BG34: 1.380977385 | BH34: 1.39697459 | BI34: 1.246679994 | BJ34: 1.096385397 | BK34: 0.9460908 | BL34: 0.88354294 | BM34: 0.82099508 | BN34: 0.75844722 | BO34: 0.69589936 | BP34: 0.6333515 | BQ34: 0.62390716 | BR34: 0.61446282 | BS34: 0.60501848 | BT34: 0.59557414 | BU34: 0.5861298 | BV34: 0.60523522 | BW34: 0.62434064 | BX34: 0.64344606 | BY34: 0.66255148 | BZ34: 0.6816569 | CA34: 0.68242512 | CB34: 0.68319334 | CC34: 0.68396156 | CD34: 0.68472978 | CE34: 0.685498 | CF34: NA | CG34: NA | CH34: NA | CI34: NA | CJ34: NA | CK34: NA | CL34: NA | CM34: NA | CN34: NA | CO34: NA | CP34: NA | CQ34: NA | CR34: NA | CS34: NA | CT34: NA | CU34: NA | CV34: NA | CW34: NA | CX34: NA | CY34: NA | CZ34: NA | DA34: NA | DB34: NA | DC34: NA | DD34: NA | DE34: NA | DF34: NA | DG34: NA | DH34: NA | DI34: NA | DJ34: NA | DK34: NA | DL34: NA | DM34: NA | DN34: NA | DO34: NA | DP34: NA | DQ34: NA | DR34: NA | DS34: NA | DT34: NA | DU34: NA | DV34: NA | DW34: NA | DX34: NA | DY34: NA | DZ34: NA | EA34: NA | EB34: NA | EC34: NA | ED34: NA | EE34: NA | EF34: NA | EG34: NA | EH34: NA | EI34: NA | EJ34: NA | EK34: NA | EL34: NA | EM34: NA | EN34: NA | EO34: NA | EP34: NA | EQ34: NA | ER34: NA | ES34: NA | ET34: NA | EU34: NA | EV34: NA | EW34: NA | EX34: NA | EY34: NA | EZ34: NA | FA34: NA | FB34: NA | FC34: NA | FD34: NA | FE34: NA | FF34: NA | FG34: NA | FH34: NA | FI34: NA | FJ34: NA | FK34: NA | FL34: NA | FM34: NA | FN34: NA | FO34: NA | FP34: NA | FQ34: NA | FR34: NA | FS34: NA | FT34: NA | FU34: NA | FV34: NA | FW34: NA | FX34: NA | FY34: NA | FZ34: NA | GA34: NA | GB34: NA | GC34: NA | GD34: NA | GE34: NA | GF34: NA | GG34: NA | GH34: NA | GI34: NA | GJ34: 444.5162939 | GK34: 484.4309928 | GL34: 448.7463778 | GM34: 444.5162939 | GN34: 471.7339816 | GO34: 498.9516693 | GP34: 526.169357 | GQ34: 520.1411172 | GR34: 514.1128774 | GS34: 508.0846377 | GT34: 502.0563979 | GU34: 496.0281581 | GV34: 486.6423674 | GW34: 477.2565767 | GX34: 467.8707861 | GY34: 458.4849954 | GZ34: 449.0992047 | HA34: 430.0663764 | HB34: 411.0335481 | HC34: 392.0007198 | HD34: 372.9678915 | HE34: 353.9350632 | HF34: 345.8892007 | HG34: 337.8433382 | HH34: 329.7974756 | HI34: 321.7516131 | HJ34: 313.7057506 | HK34: 43.20418263 | HL34: 52.56664429 | HM34: 41.80590873 | HN34: 43.20418263 | HO34: 50.60918742 | HP34: 58.01419221 | HQ34: 65.419197 | HR34: 65.83507598 | HS34: 66.25095496 | HT34: 66.66683394 | HU34: 67.08271292 | HV34: 67.4985919 | HW34: 64.12885692 | HX34: 60.75912194 | HY34: 57.38938696 | HZ34: 54.01965198 | IA34: 50.649917 | IB34: 48.15292302 | IC34: 45.65592904 | ID34: 43.15893506 | IE34: 40.66194108 | IF34: 38.1649471 | IG34: 34.2970494 | IH34: 30.4291517 | II34: 26.561254 | IJ34: 22.6933563 | IK34: 18.8254586 | IL34: 401.3121112 | IM34: 431.8643485 | IN34: 406.9404691 | IO34: 401.3121112 | IP34: 421.1247941 | IQ34: 440.9374771 | IR34: 460.75016 | IS34: 454.3060412 | IT34: 447.8619225 | IU34: 441.4178037 | IV34: 434.973685 | IW34: 428.5295662 | IX34: 422.5135105 | IY34: 416.4974548 | IZ34: 410.4813991 | JA34: 404.4653434 | JB34: 398.4492877 | JC34: 381.9134534 | JD34: 365.3776191 | JE34: 348.8417847 | JF34: 332.3059504 | JG34: 315.7701161 | JH34: 311.5921513 | JI34: 307.4141865 | JJ34: 303.2362216 | JK34: 299.0582568 | JL34: 294.880292
A35: 1.A.4.b. Residential | B35: WEM | C35: 463.8300928 | D35: 419.4227468 | E35: 451.8515996 | F35: 463.8300928 | G35: 480.1541241 | H35: 496.4781554 | I35: 512.8021867 | J35: 490.8366364 | K35: 468.8710861 | L35: 446.9055358 | M35: 424.9399855 | N35: 402.9744352 | O35: 382.2307659 | P35: 361.4870965 | Q35: 340.7434272 | R35: 319.9997578 | S35: 299.2560885 | T35: 280.8454565 | U35: 262.4348245 | V35: 244.0241924 | W35: 225.6135604 | X35: 207.2029284 | Y35: 194.9418235 | Z35: 182.6807186 | AA35: 170.4196136 | AB35: 158.1585087 | AC35: 145.8974038 | AD35: 0.070353 | AE35: 0.0606786 | AF35: 0.062849 | AG35: 0.070353 | AH35: 0.0720003 | AI35: 0.0736476 | AJ35: 0.0752949 | AK35: 0.07180872 | AL35: 0.06832254 | AM35: 0.06483636 | AN35: 0.06135018 | AO35: 0.057864 | AP35: 0.05780934 | AQ35: 0.05775468 | AR35: 0.05770002 | AS35: 0.05764536 | AT35: 0.0575907 | AU35: 0.05299296 | AV35: 0.04839522 | AW35: 0.04379748 | AX35: 0.03919974 | AY35: 0.034602 | AZ35: 0.03379344 | BA35: 0.03298488 | BB35: 0.03217632 | BC35: 0.03136776 | BD35: 0.0305592 | BE35: 3.811456669 | BF35: 3.495092603 | BG35: 3.441833149 | BH35: 3.811456669 | BI35: 4.437600812 | BJ35: 5.063744956 | BK35: 5.6898891 | BL35: 5.4257909 | BM35: 5.1616927 | BN35: 4.8975945 | BO35: 4.6334963 | BP35: 4.3693981 | BQ35: 4.3717283 | BR35: 4.3740585 | BS35: 4.3763887 | BT35: 4.3787189 | BU35: 4.3810491 | BV35: 4.02011566 | BW35: 3.65918222 | BX35: 3.29824878 | BY35: 2.93731534 | BZ35: 2.5763819 | CA35: 2.51685052 | CB35: 2.45731914 | CC35: 2.39778776 | CD35: 2.33825638 | CE35: 2.278725 | CF35: NA | CG35: NA | CH35: NA | CI35: NA | CJ35: NA | CK35: NA | CL35: NA | CM35: NA | CN35: NA | CO35: NA | CP35: NA | CQ35: NA | CR35: NA | CS35: NA | CT35: NA | CU35: NA | CV35: NA | CW35: NA | CX35: NA | CY35: NA | CZ35: NA | DA35: NA | DB35: NA | DC35: NA | DD35: NA | DE35: NA | DF35: NA | DG35: NA | DH35: NA | DI35: NA | DJ35: NA | DK35: NA | DL35: NA | DM35: NA | DN35: NA | DO35: NA | DP35: NA | DQ35: NA | DR35: NA | DS35: NA | DT35: NA | DU35: NA | DV35: NA | DW35: NA | DX35: NA | DY35: NA | DZ35: NA | EA35: NA | EB35: NA | EC35: NA | ED35: NA | EE35: NA | EF35: NA | EG35: NA | EH35: NA | EI35: NA | EJ35: NA | EK35: NA | EL35: NA | EM35: NA | EN35: NA | EO35: NA | EP35: NA | EQ35: NA | ER35: NA | ES35: NA | ET35: NA | EU35: NA | EV35: NA | EW35: NA | EX35: NA | EY35: NA | EZ35: NA | FA35: NA | FB35: NA | FC35: NA | FD35: NA | FE35: NA | FF35: NA | FG35: NA | FH35: NA | FI35: NA | FJ35: NA | FK35: NA | FL35: NA | FM35: NA | FN35: NA | FO35: NA | FP35: NA | FQ35: NA | FR35: NA | FS35: NA | FT35: NA | FU35: NA | FV35: NA | FW35: NA | FX35: NA | FY35: NA | FZ35: NA | GA35: NA | GB35: NA | GC35: NA | GD35: NA | GE35: NA | GF35: NA | GG35: NA | GH35: NA | GI35: NA | GJ35: 580.0817035 | GK35: 524.8822847 | GL35: 556.6264303 | GM35: 580.0817035 | GN35: 612.5502338 | GO35: 645.0187641 | GP35: 677.4872944 | GQ35: 647.8804075 | GR35: 618.2735205 | GS35: 588.6666336 | GT35: 559.0597466 | GU35: 529.4528597 | GV35: 508.7511567 | GW35: 488.0494537 | GX35: 467.3477506 | GY35: 446.6460476 | GZ35: 425.9443446 | HA35: 397.1402501 | HB35: 368.3361555 | HC35: 339.532061 | HD35: 310.7279664 | HE35: 281.9238719 | HF35: 267.9335316 | HG35: 253.9431913 | HH35: 239.952851 | HI35: 225.9625107 | HJ35: 211.9721704 | HK35: NO | HL35: NO | HM35: NO | HN35: NO | HO35: NO | HP35: NO | HQ35: NO | HR35: NO | HS35: NO | HT35: NO | HU35: NO | HV35: NO | HW35: NO | HX35: NO | HY35: NO | HZ35: NO | IA35: NO | IB35: NO | IC35: NO | ID35: NO | IE35: NO | IF35: NO | IG35: NO | IH35: NO | II35: NO | IJ35: NO | IK35: NO | IL35: 580.0817035 | IM35: 524.8822847 | IN35: 556.6264303 | IO35: 580.0817035 | IP35: 612.5502338 | IQ35: 645.0187641 | IR35: 677.4872944 | IS35: 647.8804075 | IT35: 618.2735205 | IU35: 588.6666336 | IV35: 559.0597466 | IW35: 529.4528597 | IX35: 508.7511567 | IY35: 488.0494537 | IZ35: 467.3477506 | JA35: 446.6460476 | JB35: 425.9443446 | JC35: 397.1402501 | JD35: 368.3361555 | JE35: 339.532061 | JF35: 310.7279664 | JG35: 281.9238719 | JH35: 267.9335316 | JI35: 253.9431913 | JJ35: 239.952851 | JK35: 225.9625107 | JL35: 211.9721704
A36: 1.A.4.c. Agriculture/Forestry/Fishing | B36: WEM | C36: 438.1937057 | D36: 387.1436146 | E36: 414.5397438 | F36: 438.1937057 | G36: 446.2467668 | H36: 454.2998279 | I36: 462.352889 | J36: 464.6740493 | K36: 466.9952096 | L36: 469.31637 | M36: 471.6375303 | N36: 473.9586906 | O36: 479.332241 | P36: 484.7057914 | Q36: 490.0793418 | R36: 495.4528922 | S36: 500.8264426 | T36: 501.1995932 | U36: 501.5727438 | V36: 501.9458943 | W36: 502.3190449 | X36: 502.6921955 | Y36: 503.7356716 | Z36: 504.7791476 | AA36: 505.8226237 | AB36: 506.8660997 | AC36: 507.9095758 | AD36: 0.1453451666 | AE36: 0.1231905169 | AF36: 0.1279917118 | AG36: 0.1453451666 | AH36: 0.09853877771 | AI36: 0.05173238886 | AJ36: 0.004926 | AK36: 0.00477484 | AL36: 0.00462368 | AM36: 0.00447252 | AN36: 0.00432136 | AO36: 0.0041702 | AP36: 0.00413894 | AQ36: 0.00410768 | AR36: 0.00407642 | AS36: 0.00404516 | AT36: 0.0040139 | AU36: 0.0039481 | AV36: 0.0038823 | AW36: 0.0038165 | AX36: 0.0037507 | AY36: 0.0036849 | AZ36: 0.00363058 | BA36: 0.00357626 | BB36: 0.00352194 | BC36: 0.00346762 | BD36: 0.0034133 | BE36: 0.341992863 | BF36: 0.1765531385 | BG36: 0.2119318262 | BH36: 0.341992863 | BI36: 0.285663642 | BJ36: 0.229334421 | BK36: 0.1730052 | BL36: 0.16813602 | BM36: 0.16326684 | BN36: 0.15839766 | BO36: 0.15352848 | BP36: 0.1486593 | BQ36: 0.14711582 | BR36: 0.14557234 | BS36: 0.14402886 | BT36: 0.14248538 | BU36: 0.1409419 | BV36: 0.138949 | BW36: 0.1369561 | BX36: 0.1349632 | BY36: 0.1329703 | BZ36: 0.1309774 | CA36: 0.12924154 | CB36: 0.12750568 | CC36: 0.12576982 | CD36: 0.12403396 | CE36: 0.1222981 | CF36: NA | CG36: NA | CH36: NA | CI36: NA | CJ36: NA | CK36: NA | CL36: NA | CM36: NA | CN36: NA | CO36: NA | CP36: NA | CQ36: NA | CR36: NA | CS36: NA | CT36: NA | CU36: NA | CV36: NA | CW36: NA | CX36: NA | CY36: NA | CZ36: NA | DA36: NA | DB36: NA | DC36: NA | DD36: NA | DE36: NA | DF36: NA | DG36: NA | DH36: NA | DI36: NA | DJ36: NA | DK36: NA | DL36: NA | DM36: NA | DN36: NA | DO36: NA | DP36: NA | DQ36: NA | DR36: NA | DS36: NA | DT36: NA | DU36: NA | DV36: NA | DW36: NA | DX36: NA | DY36: NA | DZ36: NA | EA36: NA | EB36: NA | EC36: NA | ED36: NA | EE36: NA | EF36: NA | EG36: NA | EH36: NA | EI36: NA | EJ36: NA | EK36: NA | EL36: NA | EM36: NA | EN36: NA | EO36: NA | EP36: NA | EQ36: NA | ER36: NA | ES36: NA | ET36: NA | EU36: NA | EV36: NA | EW36: NA | EX36: NA | EY36: NA | EZ36: NA | FA36: NA | FB36: NA | FC36: NA | FD36: NA | FE36: NA | FF36: NA | FG36: NA | FH36: NA | FI36: NA | FJ36: NA | FK36: NA | FL36: NA | FM36: NA | FN36: NA | FO36: NA | FP36: NA | FQ36: NA | FR36: NA | FS36: NA | FT36: NA | FU36: NA | FV36: NA | FW36: NA | FX36: NA | FY36: NA | FZ36: NA | GA36: NA | GB36: NA | GC36: NA | GD36: NA | GE36: NA | GF36: NA | GG36: NA | GH36: NA | GI36: NA | GJ36: 490.0563869 | GK36: 428.2682171 | GL36: 457.9795696 | GM36: 490.0563869 | GN36: 482.7529136 | GO36: 475.4494403 | GP36: 468.145967 | GQ36: 470.3003521 | GR36: 472.4547373 | GS36: 474.6091224 | GT36: 476.7635076 | GU36: 478.9178927 | GV36: 484.2435406 | GW36: 489.5691885 | GX36: 494.8948365 | GY36: 500.2204844 | GZ36: 505.5461323 | HA36: 505.849852 | HB36: 506.1535717 | HC36: 506.4572913 | HD36: 506.761011 | HE36: 507.0647307 | HF36: 508.0486229 | HG36: 509.0325151 | HH36: 510.0164073 | HI36: 511.0002995 | HJ36: 511.9841917 | HK36: 18.07504858 | HL36: 19.39506149 | HM36: 18.99975206 | HN36: 18.07504858 | HO36: 37.07854485 | HP36: 56.08204113 | HQ36: 75.0855374 | HR36: 91.9789924 | HS36: 108.8724474 | HT36: 125.7659024 | HU36: 142.6593574 | HV36: 159.5528124 | HW36: 167.563493 | HX36: 175.5741736 | HY36: 183.5848542 | HZ36: 191.5955348 | IA36: 199.6062154 | IB36: 206.471519 | IC36: 213.3368226 | ID36: 220.2021261 | IE36: 227.0674297 | IF36: 233.9327333 | IG36: 240.2615304 | IH36: 246.5903276 | II36: 252.9191247 | IJ36: 259.2479219 | IK36: 265.576719 | IL36: 471.9813383 | IM36: 408.8731556 | IN36: 438.9798175 | IO36: 471.9813383 | IP36: 445.6743688 | IQ36: 419.3673992 | IR36: 393.0604296 | IS36: 378.3213597 | IT36: 363.5822899 | IU36: 348.84322 | IV36: 334.1041502 | IW36: 319.3650803 | IX36: 316.6800476 | IY36: 313.9950149 | IZ36: 311.3099823 | JA36: 308.6249496 | JB36: 305.9399169 | JC36: 299.378333 | JD36: 292.8167491 | JE36: 286.2551652 | JF36: 279.6935813 | JG36: 273.1319974 | JH36: 267.7870925 | JI36: 262.4421875 | JJ36: 257.0972826 | JK36: 251.7523776 | JL36: 246.4074727
A37: 1.A.5. Other | B37: WEM | C37: 13.1698307 | D37: 9.568099741 | E37: 11.39450348 | F37: 13.1698307 | G37: IE | H37: IE | I37: IE | J37: IE | K37: IE | L37: IE | M37: IE | N37: IE | O37: IE | P37: IE | Q37: IE | R37: IE | S37: IE | T37: IE | U37: IE | V37: IE | W37: IE | X37: IE | Y37: IE | Z37: IE | AA37: IE | AB37: IE | AC37: IE | AD37: 0.0003561636 | AE37: 0.000259521864 | AF37: 0.0003098970034 | AG37: 0.0003561636 | AH37: IE | AI37: IE | AJ37: IE | AK37: IE | AL37: IE | AM37: IE | AN37: IE | AO37: IE | AP37: IE | AQ37: IE | AR37: IE | AS37: IE | AT37: IE | AU37: IE | AV37: IE | AW37: IE | AX37: IE | AY37: IE | AZ37: IE | BA37: IE | BB37: IE | BC37: IE | BD37: IE | BE37: 0.0011814959 | BF37: 0.000790363224 | BG37: 0.0008666882718 | BH37: 0.0011814959 | BI37: IE | BJ37: IE | BK37: IE | BL37: IE | BM37: IE | BN37: IE | BO37: IE | BP37: IE | BQ37: IE | BR37: IE | BS37: IE | BT37: IE | BU37: IE | BV37: IE | BW37: IE | BX37: IE | BY37: IE | BZ37: IE | CA37: IE | CB37: IE | CC37: IE | CD37: IE | CE37: IE | CF37: NA | CG37: NA | CH37: NA | CI37: NA | CJ37: NA | CK37: NA | CL37: NA | CM37: NA | CN37: NA | CO37: NA | CP37: NA | CQ37: NA | CR37: NA | CS37: NA | CT37: NA | CU37: NA | CV37: NA | CW37: NA | CX37: NA | CY37: NA | CZ37: NA | DA37: NA | DB37: NA | DC37: NA | DD37: NA | DE37: NA | DF37: NA | DG37: NA | DH37: NA | DI37: NA | DJ37: NA | DK37: NA | DL37: NA | DM37: NA | DN37: NA | DO37: NA | DP37: NA | DQ37: NA | DR37: NA | DS37: NA | DT37: NA | DU37: NA | DV37: NA | DW37: NA | DX37: NA | DY37: NA | DZ37: NA | EA37: NA | EB37: NA | EC37: NA | ED37: NA | EE37: NA | EF37: NA | EG37: NA | EH37: NA | EI37: NA | EJ37: NA | EK37: NA | EL37: NA | EM37: NA | EN37: NA | EO37: NA | EP37: NA | EQ37: NA | ER37: NA | ES37: NA | ET37: NA | EU37: NA | EV37: NA | EW37: NA | EX37: NA | EY37: NA | EZ37: NA | FA37: NA | FB37: NA | FC37: NA | FD37: NA | FE37: NA | FF37: NA | FG37: NA | FH37: NA | FI37: NA | FJ37: NA | FK37: NA | FL37: NA | FM37: NA | FN37: NA | FO37: NA | FP37: NA | FQ37: NA | FR37: NA | FS37: NA | FT37: NA | FU37: NA | FV37: NA | FW37: NA | FX37: NA | FY37: NA | FZ37: NA | GA37: NA | GB37: NA | GC37: NA | GD37: NA | GE37: NA | GF37: NA | GG37: NA | GH37: NA | GI37: NA | GJ37: 13.30550485 | GK37: 9.665196337 | GL37: 11.50851999 | GM37: 13.30550485 | GN37: IE | GO37: IE | GP37: IE | GQ37: IE | GR37: IE | GS37: IE | GT37: IE | GU37: IE | GV37: IE | GW37: IE | GX37: IE | GY37: IE | GZ37: IE | HA37: IE | HB37: IE | HC37: IE | HD37: IE | HE37: IE | HF37: IE | HG37: IE | HH37: IE | HI37: IE | HJ37: IE | HK37: NO | HL37: NO | HM37: NO | HN37: NO | HO37: NO | HP37: NO | HQ37: NO | HR37: NO | HS37: NO | HT37: NO | HU37: NO | HV37: NO | HW37: NO | HX37: NO | HY37: NO | HZ37: NO | IA37: NO | IB37: NO | IC37: NO | ID37: NO | IE37: NO | IF37: NO | IG37: NO | IH37: NO | II37: NO | IJ37: NO | IK37: NO | IL37: 13.30550485 | IM37: 9.665196337 | IN37: 11.50851999 | IO37: 13.30550485 | IP37: IE | IQ37: IE | IR37: IE | IS37: IE | IT37: IE | IU37: IE | IV37: IE | IW37: IE | IX37: IE | IY37: IE | IZ37: IE | JA37: IE | JB37: IE | JC37: IE | JD37: IE | JE37: IE | JF37: IE | JG37: IE | JH37: IE | JI37: IE | JJ37: IE | JK37: IE | JL37: IE
A38: 1.B. Fugitive emissions from fuels | B38: WEM | C38: 0.015681 | D38: 0.0129414 | E38: 0.011856 | F38: 0.015681 | G38: 0.0118101 | H38: 0.0079392 | I38: 0.0040683 | J38: 0.00392988 | K38: 0.00379146 | L38: 0.00365304 | M38: 0.00351462 | N38: 0.0033762 | O38: 0.00334384 | P38: 0.00331148 | Q38: 0.00327912 | R38: 0.00324676 | S38: 0.0032144 | T38: 0.00313082 | U38: 0.00304724 | V38: 0.00296366 | W38: 0.00288008 | X38: 0.0027965 | Y38: 0.00272986 | Z38: 0.00266322 | AA38: 0.00259658 | AB38: 0.00252994 | AC38: 0.0024633 | AD38: NA,NO | AE38: NA,NO | AF38: NA,NO | AG38: NA,NO | AH38: NA,NO | AI38: NA,NO | AJ38: NA,NO | AK38: NA,NO | AL38: NA,NO | AM38: NA,NO | AN38: NA,NO | AO38: NA,NO | AP38: NA,NO | AQ38: NA,NO | AR38: NA,NO | AS38: NA,NO | AT38: NA,NO | AU38: NA,NO | AV38: NA,NO | AW38: NA,NO | AX38: NA,NO | AY38: NA,NO | AZ38: NA,NO | BA38: NA,NO | BB38: NA,NO | BC38: NA,NO | BD38: NA,NO | BE38: 6.107398 | BF38: 4.111987 | BG38: 4.663151 | BH38: 6.107398 | BI38: 5.240225667 | BJ38: 4.373053333 | BK38: 3.505881 | BL38: 3.3865961 | BM38: 3.2673112 | BN38: 3.1480263 | BO38: 3.0287414 | BP38: 2.9094565 | BQ38: 2.8815681 | BR38: 2.8536797 | BS38: 2.8257913 | BT38: 2.7979029 | BU38: 2.7700145 | BV38: 2.69799472 | BW38: 2.62597494 | BX38: 2.55395516 | BY38: 2.48193538 | BZ38: 2.4099156 | CA38: 2.35249438 | CB38: 2.29507316 | CC38: 2.23765194 | CD38: 2.18023072 | CE38: 2.1228095 | CF38: NA | CG38: NA | CH38: NA | CI38: NA | CJ38: NA | CK38: NA | CL38: NA | CM38: NA | CN38: NA | CO38: NA | CP38: NA | CQ38: NA | CR38: NA | CS38: NA | CT38: NA | CU38: NA | CV38: NA | CW38: NA | CX38: NA | CY38: NA | CZ38: NA | DA38: NA | DB38: NA | DC38: NA | DD38: NA | DE38: NA | DF38: NA | DG38: NA | DH38: NA | DI38: NA | DJ38: NA | DK38: NA | DL38: NA | DM38: NA | DN38: NA | DO38: NA | DP38: NA | DQ38: NA | DR38: NA | DS38: NA | DT38: NA | DU38: NA | DV38: NA | DW38: NA | DX38: NA | DY38: NA | DZ38: NA | EA38: NA | EB38: NA | EC38: NA | ED38: NA | EE38: NA | EF38: NA | EG38: NA | EH38: NA | EI38: NA | EJ38: NA | EK38: NA | EL38: NA | EM38: NA | EN38: NA | EO38: NA | EP38: NA | EQ38: NA | ER38: NA | ES38: NA | ET38: NA | EU38: NA | EV38: NA | EW38: NA | EX38: NA | EY38: NA | EZ38: NA | FA38: NA | FB38: NA | FC38: NA | FD38: NA | FE38: NA | FF38: NA | FG38: NA | FH38: NA | FI38: NA | FJ38: NA | FK38: NA | FL38: NA | FM38: NA | FN38: NA | FO38: NA | FP38: NA | FQ38: NA | FR38: NA | FS38: NA | FT38: NA | FU38: NA | FV38: NA | FW38: NA | FX38: NA | FY38: NA | FZ38: NA | GA38: NA | GB38: NA | GC38: NA | GD38: NA | GE38: NA | GF38: NA | GG38: NA | GH38: NA | GI38: NA | GJ38: 152.700631 | GK38: 102.8126164 | GL38: 116.590631 | GM38: 152.700631 | GN38: 131.0174518 | GO38: 109.3342725 | GP38: 87.6510933 | GQ38: 84.66883238 | GR38: 81.68657146 | GS38: 78.70431054 | GT38: 75.72204962 | GU38: 72.7397887 | GV38: 72.04254634 | GW38: 71.34530398 | GX38: 70.64806162 | GY38: 69.95081926 | GZ38: 69.2535769 | HA38: 67.45299882 | HB38: 65.65242074 | HC38: 63.85184266 | HD38: 62.05126458 | HE38: 60.2506865 | HF38: 58.81508936 | HG38: 57.37949222 | HH38: 55.94389508 | HI38: 54.50829794 | HJ38: 53.0727008 | HK38: NO | HL38: NO | HM38: NO | HN38: NO | HO38: NO | HP38: NO | HQ38: NO | HR38: NO | HS38: NO | HT38: NO | HU38: NO | HV38: NO | HW38: NO | HX38: NO | HY38: NO | HZ38: NO | IA38: NO | IB38: NO | IC38: NO | ID38: NO | IE38: NO | IF38: NO | IG38: NO | IH38: NO | II38: NO | IJ38: NO | IK38: NO | IL38: 152.700631 | IM38: 102.8126164 | IN38: 116.590631 | IO38: 152.700631 | IP38: 131.0174518 | IQ38: 109.3342725 | IR38: 87.6510933 | IS38: 84.66883238 | IT38: 81.68657146 | IU38: 78.70431054 | IV38: 75.72204962 | IW38: 72.7397887 | IX38: 72.04254634 | IY38: 71.34530398 | IZ38: 70.64806162 | JA38: 69.95081926 | JB38: 69.2535769 | JC38: 67.45299882 | JD38: 65.65242074 | JE38: 63.85184266 | JF38: 62.05126458 | JG38: 60.2506865 | JH38: 58.81508936 | JI38: 57.37949222 | JJ38: 55.94389508 | JK38: 54.50829794 | JL38: 53.0727008
A39: 1.B.1. Solid fuels | B39: WEM | C39: NO | D39: NO | E39: NO | F39: NO | G39: NO | H39: NO | I39: NO | J39: NO | K39: NO | L39: NO | M39: NO | N39: NO | O39: NO | P39: NO | Q39: NO | R39: NO | S39: NO | T39: NO | U39: NO | V39: NO | W39: NO | X39: NO | Y39: NO | Z39: NO | AA39: NO | AB39: NO | AC39: NO | AD39: NA,NO | AE39: NA,NO | AF39: NA,NO | AG39: NA,NO | AH39: NA,NO | AI39: NA,NO | AJ39: NA,NO | AK39: NA,NO | AL39: NA,NO | AM39: NA,NO | AN39: NA,NO | AO39: NA,NO | AP39: NA,NO | AQ39: NA,NO | AR39: NA,NO | AS39: NA,NO | AT39: NA,NO | AU39: NA,NO | AV39: NA,NO | AW39: NA,NO | AX39: NA,NO | AY39: NA,NO | AZ39: NA,NO | BA39: NA,NO | BB39: NA,NO | BC39: NA,NO | BD39: NA,NO | BE39: NO | BF39: NO | BG39: NO | BH39: NO | BI39: NO | BJ39: NO | BK39: NO | BL39: NO | BM39: NO | BN39: NO | BO39: NO | BP39: NO | BQ39: NO | BR39: NO | BS39: NO | BT39: NO | BU39: NO | BV39: NO | BW39: NO | BX39: NO | BY39: NO | BZ39: NO | CA39: NO | CB39: NO | CC39: NO | CD39: NO | CE39: NO | CF39: NO | CG39: NO | CH39: NO | CI39: NO | CJ39: NO | CK39: NO | CL39: NO | CM39: NO | CN39: NO | CO39: NO | CP39: NO | CQ39: NO | CR39: NO | CS39: NO | CT39: NO | CU39: NO | CV39: NO | CW39: NO | CX39: NO | CY39: NO | CZ39: NO | DA39: NO | DB39: NO | DC39: NO | DD39: NO | DE39: NO | DF39: NO | DG39: NO | DH39: NO | DI39: NO | DJ39: NO | DK39: NO | DL39: NO | DM39: NO | DN39: NO | DO39: NO | DP39: NO | DQ39: NO | DR39: NO | DS39: NO | DT39: NO | DU39: NO | DV39: NO | DW39: NO | DX39: NO | DY39: NO | DZ39: NO | EA39: NO | EB39: NO | EC39: NO | ED39: NO | EE39: NO | EF39: NO | EG39: NO | EH39: NO | EI39: NO | EJ39: NO | EK39: NO | EL39: NO | EM39: NO | EN39: NO | EO39: NO | EP39: NO | EQ39: NO | ER39: NO | ES39: NO | ET39: NO | EU39: NO | EV39: NO | EW39: NO | EX39: NO | EY39: NO | EZ39: NO | FA39: NO | FB39: NO | FC39: NO | FD39: NO | FE39: NO | FF39: NO | FG39: NO | FH39: NO | FI39: NO | FJ39: NO | FK39: NO | FL39: NO | FM39: NO | FN39: NO | FO39: NO | FP39: NO | FQ39: NO | FR39: NO | FS39: NO | FT39: NO | FU39: NO | FV39: NO | FW39: NO | FX39: NO | FY39: NO | FZ39: NO | GA39: NO | GB39: NO | GC39: NO | GD39: NO | GE39: NO | GF39: NO | GG39: NO | GH39: NO | GI39: NO | GJ39: NA,NO | GK39: NA,NO | GL39: NA,NO | GM39: NA,NO | GN39: NA,NO | GO39: NA,NO | GP39: NA,NO | GQ39: NA,NO | GR39: NA,NO | GS39: NA,NO | GT39: NA,NO | GU39: NA,NO | GV39: NA,NO | GW39: NA,NO | GX39: NA,NO | GY39: NA,NO | GZ39: NA,NO | HA39: NA,NO | HB39: NA,NO | HC39: NA,NO | HD39: NA,NO | HE39: NA,NO | HF39: NA,NO | HG39: NA,NO | HH39: NA,NO | HI39: NA,NO | HJ39: NA,NO | HK39: NO | HL39: NO | HM39: NO | HN39: NO | HO39: NO | HP39: NO | HQ39: NO | HR39: NO | HS39: NO | HT39: NO | HU39: NO | HV39: NO | HW39: NO | HX39: NO | HY39: NO | HZ39: NO | IA39: NO | IB39: NO | IC39: NO | ID39: NO | IE39: NO | IF39: NO | IG39: NO | IH39: NO | II39: NO | IJ39: NO | IK39: NO | IL39: NO | IM39: NO | IN39: NO | IO39: NO | IP39: NO | IQ39: NO | IR39: NO | IS39: NO | IT39: NO | IU39: NO | IV39: NO | IW39: NO | IX39: NO | IY39: NO | IZ39: NO | JA39: NO | JB39: NO | JC39: NO | JD39: NO | JE39: NO | JF39: NO | JG39: NO | JH39: NO | JI39: NO | JJ39: NO | JK39: NO | JL39: NO
A40: 1.B.2. Oil and natural gas and other emissions from energy production | B40: WEM | C40: 0.015681 | D40: 0.0129414 | E40: 0.011856 | F40: 0.015681 | G40: 0.0118101 | H40: 0.0079392 | I40: 0.0040683 | J40: 0.00392988 | K40: 0.00379146 | L40: 0.00365304 | M40: 0.00351462 | N40: 0.0033762 | O40: 0.00334384 | P40: 0.00331148 | Q40: 0.00327912 | R40: 0.00324676 | S40: 0.0032144 | T40: 0.00313082 | U40: 0.00304724 | V40: 0.00296366 | W40: 0.00288008 | X40: 0.0027965 | Y40: 0.00272986 | Z40: 0.00266322 | AA40: 0.00259658 | AB40: 0.00252994 | AC40: 0.0024633 | AD40: NO | AE40: NO | AF40: NO | AG40: NO | AH40: NO | AI40: NO | AJ40: NO | AK40: NO | AL40: NO | AM40: NO | AN40: NO | AO40: NO | AP40: NO | AQ40: NO | AR40: NO | AS40: NO | AT40: NO | AU40: NO | AV40: NO | AW40: NO | AX40: NO | AY40: NO | AZ40: NO | BA40: NO | BB40: NO | BC40: NO | BD40: NO | BE40: 6.107398 | BF40: 4.111987 | BG40: 4.663151 | BH40: 6.107398 | BI40: 5.240225667 | BJ40: 4.373053333 | BK40: 3.505881 | BL40: 3.3865961 | BM40: 3.2673112 | BN40: 3.1480263 | BO40: 3.0287414 | BP40: 2.9094565 | BQ40: 2.8815681 | BR40: 2.8536797 | BS40: 2.8257913 | BT40: 2.7979029 | BU40: 2.7700145 | BV40: 2.69799472 | BW40: 2.62597494 | BX40: 2.55395516 | BY40: 2.48193538 | BZ40: 2.4099156 | CA40: 2.35249438 | CB40: 2.29507316 | CC40: 2.23765194 | CD40: 2.18023072 | CE40: 2.1228095 | CF40: NA | CG40: NA | CH40: NA | CI40: NA | CJ40: NA | CK40: NA | CL40: NA | CM40: NA | CN40: NA | CO40: NA | CP40: NA | CQ40: NA | CR40: NA | CS40: NA | CT40: NA | CU40: NA | CV40: NA | CW40: NA | CX40: NA | CY40: NA | CZ40: NA | DA40: NA | DB40: NA | DC40: NA | DD40: NA | DE40: NA | DF40: NA | DG40: NA | DH40: NA | DI40: NA | DJ40: NA | DK40: NA | DL40: NA | DM40: NA | DN40: NA | DO40: NA | DP40: NA | DQ40: NA | DR40: NA | DS40: NA | DT40: NA | DU40: NA | DV40: NA | DW40: NA | DX40: NA | DY40: NA | DZ40: NA | EA40: NA | EB40: NA | EC40: NA | ED40: NA | EE40: NA | EF40: NA | EG40: NA | EH40: NA | EI40: NA | EJ40: NA | EK40: NA | EL40: NA | EM40: NA | EN40: NA | EO40: NA | EP40: NA | EQ40: NA | ER40: NA | ES40: NA | ET40: NA | EU40: NA | EV40: NA | EW40: NA | EX40: NA | EY40: NA | EZ40: NA | FA40: NA | FB40: NA | FC40: NA | FD40: NA | FE40: NA | FF40: NA | FG40: NA | FH40: NA | FI40: NA | FJ40: NA | FK40: NA | FL40: NA | FM40: NA | FN40: NA | FO40: NA | FP40: NA | FQ40: NA | FR40: NA | FS40: NA | FT40: NA | FU40: NA | FV40: NA | FW40: NA | FX40: NA | FY40: NA | FZ40: NA | GA40: NA | GB40: NA | GC40: NA | GD40: NA | GE40: NA | GF40: NA | GG40: NA | GH40: NA | GI40: NA | GJ40: 152.700631 | GK40: 102.8126164 | GL40: 116.590631 | GM40: 152.700631 | GN40: 131.0174518 | GO40: 109.3342725 | GP40: 87.6510933 | GQ40: 84.66883238 | GR40: 81.68657146 | GS40: 78.70431054 | GT40: 75.72204962 | GU40: 72.7397887 | GV40: 72.04254634 | GW40: 71.34530398 | GX40: 70.64806162 | GY40: 69.95081926 | GZ40: 69.2535769 | HA40: 67.45299882 | HB40: 65.65242074 | HC40: 63.85184266 | HD40: 62.05126458 | HE40: 60.2506865 | HF40: 58.81508936 | HG40: 57.37949222 | HH40: 55.94389508 | HI40: 54.50829794 | HJ40: 53.0727008 | HK40: NO | HL40: NO | HM40: NO | HN40: NO | HO40: NO | HP40: NO | HQ40: NO | HR40: NO | HS40: NO | HT40: NO | HU40: NO | HV40: NO | HW40: NO | HX40: NO | HY40: NO | HZ40: NO | IA40: NO | IB40: NO | IC40: NO | ID40: NO | IE40: NO | IF40: NO | IG40: NO | IH40: NO | II40: NO | IJ40: NO | IK40: NO | IL40: 152.700631 | IM40: 102.8126164 | IN40: 116.590631 | IO40: 152.700631 | IP40: 131.0174518 | IQ40: 109.3342725 | IR40: 87.6510933 | IS40: 84.66883238 | IT40: 81.68657146 | IU40: 78.70431054 | IV40: 75.72204962 | IW40: 72.7397887 | IX40: 72.04254634 | IY40: 71.34530398 | IZ40: 70.64806162 | JA40: 69.95081926 | JB40: 69.2535769 | JC40: 67.45299882 | JD40: 65.65242074 | JE40: 63.85184266 | JF40: 62.05126458 | JG40: 60.2506865 | JH40: 58.81508936 | JI40: 57.37949222 | JJ40: 55.94389508 | JK40: 54.50829794 | JL40: 53.0727008
A41: 1.C. CO2 transport and storage | B41: WEM | C41: NO | D41: NO | E41: NO | F41: NO | G41: NO | H41: NO | I41: NO | J41: NO | K41: NO | L41: NO | M41: NO | N41: NO | O41: NO | P41: NO | Q41: NO | R41: NO | S41: NO | T41: NO | U41: NO | V41: NO | W41: NO | X41: NO | Y41: NO | Z41: NO | AA41: NO | AB41: NO | AC41: NO | AD41: NO | AE41: NO | AF41: NO | AG41: NO | AH41: NO | AI41: NO | AJ41: NO | AK41: NO | AL41: NO | AM41: NO | AN41: NO | AO41: NO | AP41: NO | AQ41: NO | AR41: NO | AS41: NO | AT41: NO | AU41: NO | AV41: NO | AW41: NO | AX41: NO | AY41: NO | AZ41: NO | BA41: NO | BB41: NO | BC41: NO | BD41: NO | BE41: NO | BF41: NO | BG41: NO | BH41: NO | BI41: NO | BJ41: NO | BK41: NO | BL41: NO | BM41: NO | BN41: NO | BO41: NO | BP41: NO | BQ41: NO | BR41: NO | BS41: NO | BT41: NO | BU41: NO | BV41: NO | BW41: NO | BX41: NO | BY41: NO | BZ41: NO | CA41: NO | CB41: NO | CC41: NO | CD41: NO | CE41: NO | CF41: NO | CG41: NO | CH41: NO | CI41: NO | CJ41: NO | CK41: NO | CL41: NO | CM41: NO | CN41: NO | CO41: NO | CP41: NO | CQ41: NO | CR41: NO | CS41: NO | CT41: NO | CU41: NO | CV41: NO | CW41: NO | CX41: NO | CY41: NO | CZ41: NO | DA41: NO | DB41: NO | DC41: NO | DD41: NO | DE41: NO | DF41: NO | DG41: NO | DH41: NO | DI41: NO | DJ41: NO | DK41: NO | DL41: NO | DM41: NO | DN41: NO | DO41: NO | DP41: NO | DQ41: NO | DR41: NO | DS41: NO | DT41: NO | DU41: NO | DV41: NO | DW41: NO | DX41: NO | DY41: NO | DZ41: NO | EA41: NO | EB41: NO | EC41: NO | ED41: NO | EE41: NO | EF41: NO | EG41: NO | EH41: NO | EI41: NO | EJ41: NO | EK41: NO | EL41: NO | EM41: NO | EN41: NO | EO41: NO | EP41: NO | EQ41: NO | ER41: NO | ES41: NO | ET41: NO | EU41: NO | EV41: NO | EW41: NO | EX41: NO | EY41: NO | EZ41: NO | FA41: NO | FB41: NO | FC41: NO | FD41: NO | FE41: NO | FF41: NO | FG41: NO | FH41: NO | FI41: NO | FJ41: NO | FK41: NO | FL41: NO | FM41: NO | FN41: NO | FO41: NO | FP41: NO | FQ41: NO | FR41: NO | FS41: NO | FT41: NO | FU41: NO | FV41: NO | FW41: NO | FX41: NO | FY41: NO | FZ41: NO | GA41: NO | GB41: NO | GC41: NO | GD41: NO | GE41: NO | GF41: NO | GG41: NO | GH41: NO | GI41: NO | GJ41: NO | GK41: NO | GL41: NO | GM41: NO | GN41: NO | GO41: NO | GP41: NO | GQ41: NO | GR41: NO | GS41: NO | GT41: NO | GU41: NO | GV41: NO | GW41: NO | GX41: NO | GY41: NO | GZ41: NO | HA41: NO | HB41: NO | HC41: NO | HD41: NO | HE41: NO | HF41: NO | HG41: NO | HH41: NO | HI41: NO | HJ41: NO | HK41: NO | HL41: NO | HM41: NO | HN41: NO | HO41: NO | HP41: NO | HQ41: NO | HR41: NO | HS41: NO | HT41: NO | HU41: NO | HV41: NO | HW41: NO | HX41: NO | HY41: NO | HZ41: NO | IA41: NO | IB41: NO | IC41: NO | ID41: NO | IE41: NO | IF41: NO | IG41: NO | IH41: NO | II41: NO | IJ41: NO | IK41: NO | IL41: NO | IM41: NO | IN41: NO | IO41: NO | IP41: NO | IQ41: NO | IR41: NO | IS41: NO | IT41: NO | IU41: NO | IV41: NO | IW41: NO | IX41: NO | IY41: NO | IZ41: NO | JA41: NO | JB41: NO | JC41: NO | JD41: NO | JE41: NO | JF41: NO | JG41: NO | JH41: NO | JI41: NO | JJ41: NO | JK41: NO | JL41: NO
A42: 2. Industrial processes | B42: WEM | C42: 484.5424743 | D42: 521.9078276 | E42: 401.6943088 | F42: 484.5424743 | G42: =G43+G50 -> 502.3280412 | H42: 506.8612218 | I42: 511.4229951 | J42: 516.0022914 | K42: =K43+K50 -> 520.9262613 | L42: =L43+L50 -> 525.0775953 | M42: =M43+M50 -> 529.294549 | N42: 533.494872 | O42: =O43+O50 -> 537.6514568 | P42: =P43+P50 -> 541.4462311 | Q42: =Q43+Q50 -> 545.249229 | R42: 549.0642211 | S42: =S43+S50 -> 552.9224565 | T42: =T43+T50 -> 556.7961284 | U42: =U43+U50 -> 560.5700529 | V42: 564.24089 | W42: =W43+W50 -> 567.8057331 | X42: =X43+X50 -> 571.2620457 | Y42: =Y43+Y50 -> 574.6732054 | Z42: 577.9731768 | AA42: =AA43+AA50 -> 581.1603523 | AB42: =AB43+AB50 -> 584.2333619 | AC42: =AC43+AC50 -> 587.1910558 | AD42: 0.01238992024 | AE42: 0.01198535648 | AF42: 0.01160526441 | AG42: 0.01238992024 | AH42: =AH53 -> 0.01126890514 | AI42: 0.01113729669 | AJ42: 0.01100113715 | AK42: 0.01085939232 | AL42: 0.01071286135 | AM42: 0.01056308087 | AN42: 0.01041196943 | AO42: 0.01026178642 | AP42: 0.01011379229 | AQ42: 0.009968501193 | AR42: 0.009827006098 | AS42: 0.009691284334 | AT42: 0.009576007106 | AU42: 0.009482146525 | AV42: 0.009396638704 | AW42: 0.009318650557 | AX42: 0.00924748504 | AY42: 0.009182551721 | AZ42: 0.009123345207 | BA42: 0.009069429 | BB42: 0.009020423154 | BC42: 0.008975994686 | BD42: 0.008935850023 | BE42: NA,NO | BF42: 6.237955e-05 | BG42: NA,NO | BH42: NA,NO | BI42: NA,NO | BJ42: NA,NO | BK42: NA,NO | BL42: NA,NO | BM42: NA,NO | BN42: NA,NO | BO42: NA,NO | BP42: NA,NO | BQ42: NA,NO | BR42: NA,NO | BS42: NA,NO | BT42: NA,NO | BU42: NA,NO | BV42: NA,NO | BW42: NA,NO | BX42: NA,NO | BY42: NA,NO | BZ42: NA,NO | CA42: NA,NO | CB42: NA,NO | CC42: NA,NO | CD42: NA,NO | CE42: NA,NO | CF42: 234.9201389 | CG42: 219.556085 | CH42: =CH52 -> 240.8351965 | CI42: =CI52 -> 234.9201389 | CJ42: 230.4072099 | CK42: 248.96919 | CL42: 231.212744 | CM42: 236.9925353 | CN42: 222.8335396 | CO42: 229.180632 | CP42: 222.064305 | CQ42: 207.1276542 | CR42: 193.9543691 | CS42: 195.6249699 | CT42: 194.9255062 | CU42: 193.1543399 | CV42: 190.4165489 | CW42: 204.7552757 | CX42: 195.1097339 | CY42: 195.8297922 | CZ42: 196.9641962 | DA42: 173.0301636 | DB42: 173.7680529 | DC42: 174.3250165 | DD42: 174.5776938 | DE42: 175.1240143 | DF42: 175.587154 | DG42: =$DG$46 -> NA,NO | DH42: NA,NO | DI42: NA,NO | DJ42: NA,NO | DK42: NA,NO | DL42: NA,NO | DM42: NA,NO | DN42: NA,NO | DO42: NA,NO | DP42: NA,NO | DQ42: NA,NO | DR42: NA,NO | DS42: NA,NO | DT42: NA,NO | DU42: NA,NO | DV42: NA,NO | DW42: NA,NO | DX42: NA,NO | DY42: NA,NO | DZ42: NA,NO | EA42: NA,NO | EB42: NA,NO | EC42: NA,NO | ED42: NA,NO | EE42: NA,NO | EF42: NA,NO | EG42: NA,NO | EH42: =EH53 -> 10.32146661 | EI42: =EI53 -> 10.11807005 | EJ42: 9.891090619 | EK42: 10.32146661 | EL42: 10.35354021 | EM42: 10.21305387 | EN42: 10.19340045 | EO42: 10.17231 | EP42: 10.17164764 | EQ42: 10.14282011 | ER42: 10.12528921 | ES42: 10.12654869 | ET42: 10.11687906 | EU42: 10.0975218 | EV42: 10.09752088 | EW42: 10.09751995 | EX42: 10.09751902 | EY42: 10.09871725 | EZ42: 10.09267206 | FA42: 10.08661819 | FB42: 10.08055595 | FC42: 10.07448564 | FD42: 10.06840755 | FE42: 10.06232195 | FF42: 10.05622913 | FG42: 10.05012936 | FH42: 10.0440229 | FI42: NA,NO | FJ42: NA,NO | FK42: NA,NO | FL42: NA,NO | FM42: NA,NO | FN42: NA,NO | FO42: NA,NO | FP42: NA,NO | FQ42: NA,NO | FR42: NA,NO | FS42: NA,NO | FT42: NA,NO | FU42: NA,NO | FV42: NA,NO | FW42: NA,NO | FX42: NA,NO | FY42: NA,NO | FZ42: NA,NO | GA42: NA,NO | GB42: NA,NO | GC42: NA,NO | GD42: NA,NO | GE42: NA,NO | GF42: NA,NO | GG42: NA,NO | GH42: NA,NO | GI42: NA,NO | GJ42: =GJ43+GJ50+GJ52+GJ53 -> 733.4762761 | GK42: 755.1551784 | GL42: 655.8789648 | GM42: 733.4762761 | GN42: =GN43+GN50+GN52+GN53 -> 746.4469251 | GO42: 769.36238 | GP42: 756.1074784 | GQ42: 766.4032357 | GR42: 757.1238812 | GS42: 767.5488455 | GT42: =GT43+GT50+GT52+GT53 -> 764.5869101 | GU42: 753.8070872 | GV42: 744.7366151 | GW42: 750.1393362 | GX42: 753.200704 | GY42: 755.2040837 | GZ42: 756.2901746 | HA42: 774.4758011 | HB42: 768.5726572 | HC42: 772.9342583 | HD42: 777.6062358 | HE42: 757.1030954 | HF42: 761.2284227 | HG42: 765.0632051 | HH42: 768.4823613 | HI42: 772.0823519 | HJ42: 775.485116 | HK42: =$HK$43 -> 447.2547513 | HL42: =HL43+HL47 -> 480.3794809 | HM42: =HM43 -> 356.113965 | HN42: =HN43 -> 447.2547513 | HO42: 458.3665743 | HP42: 463.3989273 | HQ42: 468.4668869 | HR42: 473.4357593 | HS42: 478.7587955 | HT42: 483.3151703 | HU42: 487.9390119 | HV42: 492.5432214 | HW42: =HW43 -> 496.9671208 | HX42: =HX43 -> 501.0214558 | HY42: =HY43 -> 505.0739391 | HZ42: =HZ43 -> 509.1241021 | IA42: =IA43 -> 513.1714755 | IB42: =IB43 -> 517.0991039 | IC42: =IC43 -> 520.9053813 | ID42: =ID43 -> 524.5888354 | IE42: 528.1481291 | IF42: =IF43 -> 531.5820596 | IG42: =IG43 -> 534.8895593 | IH42: =IH43 -> 538.0696945 | II42: =II43 -> 541.1216657 | IJ42: =IJ43 -> 544.0448062 | IK42: =IK43 -> 546.8385816 | IL42: =IL50+IL52+IL53 -> 286.2215248 | IM42: =IM50+IM52+IM53 -> 274.7756976 | IN42: =IN50+IN52+IN53 -> 299.7649998 | IO42: =IO50+IO52+IO53 -> 286.2215248 | IP42: =IP50+IP52+IP53 -> 288.0803507 | IQ42: 305.9634527 | IR42: 287.6405915 | IS42: 292.9674764 | IT42: 278.3650857 | IU42: =IU50+IU52+IU53 -> 284.2336753 | IV42: 276.6478982 | IW42: 261.2638658 | IX42: 247.7694943 | IY42: 249.1178804 | IZ42: 248.1267648 | JA42: 246.0799817 | JB42: 243.1186992 | JC42: 257.3766972 | JD42: 247.6672759 | JE42: 248.3454228 | JF42: 249.4581068 | JG42: 225.5210358 | JH42: 226.3388635 | JI42: 226.9935106 | JJ42: 227.3606956 | JK42: 228.0375457 | JL42: 228.6465344
A43: 2.A. Mineral Industry | B43: WEM | C43: 447.2547513 | D43: 479.5658347 | E43: 356.113965 | F43: 447.2547513 | G43: 458.3665743 | H43: 463.3989273 | I43: 468.4668869 | J43: 473.4357593 | K43: 478.7587955 | L43: 483.3151703 | M43: 487.9390119 | N43: 492.5432214 | O43: 496.9671208 | P43: 501.0214558 | Q43: 505.0739391 | R43: 509.1241021 | S43: 513.1714755 | T43: 517.0991039 | U43: 520.9053813 | V43: 524.5888354 | W43: 528.1481291 | X43: 531.5820596 | Y43: 534.8895593 | Z43: 538.0696945 | AA43: 541.1216657 | AB43: 544.0448062 | AC43: 546.8385816 | AD43: NA | AE43: NA | AF43: NA | AG43: NA | AH43: NA | AI43: NA | AJ43: NA | AK43: NA | AL43: NA | AM43: NA | AN43: NA | AO43: NA | AP43: NA | AQ43: NA | AR43: NA | AS43: NA | AT43: NA | AU43: NA | AV43: NA | AW43: NA | AX43: NA | AY43: NA | AZ43: NA | BA43: NA | BB43: NA | BC43: NA | BD43: NA | BE43: NA | BF43: NA | BG43: NA | BH43: NA | BI43: NA | BJ43: NA | BK43: NA | BL43: NA | BM43: NA | BN43: NA | BO43: NA | BP43: NA | BQ43: NA | BR43: NA | BS43: NA | BT43: NA | BU43: NA | BV43: NA | BW43: NA | BX43: NA | BY43: NA | BZ43: NA | CA43: NA | CB43: NA | CC43: NA | CD43: NA | CE43: NA | CF43: NA | CG43: NA | CH43: NA | CI43: NA | CJ43: NA | CK43: NA | CL43: NA | CM43: NA | CN43: NA | CO43: NA | CP43: NA | CQ43: NA | CR43: NA | CS43: NA | CT43: NA | CU43: NA | CV43: NA | CW43: NA | CX43: NA | CY43: NA | CZ43: NA | DA43: NA | DB43: NA | DC43: NA | DD43: NA | DE43: NA | DF43: NA | DG43: NA | DH43: NA | DI43: NA | DJ43: NA | DK43: NA | DL43: NA | DM43: NA | DN43: NA | DO43: NA | DP43: NA | DQ43: NA | DR43: NA | DS43: NA | DT43: NA | DU43: NA | DV43: NA | DW43: NA | DX43: NA | DY43: NA | DZ43: NA | EA43: NA | EB43: NA | EC43: NA | ED43: NA | EE43: NA | EF43: NA | EG43: NA | EH43: NA | EI43: NA | EJ43: NA | EK43: NA | EL43: NA | EM43: NA | EN43: NA | EO43: NA | EP43: NA | EQ43: NA | ER43: NA | ES43: NA | ET43: NA | EU43: NA | EV43: NA | EW43: NA | EX43: NA | EY43: NA | EZ43: NA | FA43: NA | FB43: NA | FC43: NA | FD43: NA | FE43: NA | FF43: NA | FG43: NA | FH43: NA | FI43: NA | FJ43: NA | FK43: NA | FL43: NA | FM43: NA | FN43: NA | FO43: NA | FP43: NA | FQ43: NA | FR43: NA | FS43: NA | FT43: NA | FU43: NA | FV43: NA | FW43: NA | FX43: NA | FY43: NA | FZ43: NA | GA43: NA | GB43: NA | GC43: NA | GD43: NA | GE43: NA | GF43: NA | GG43: NA | GH43: NA | GI43: NA | GJ43: 447.2547513 | GK43: 479.5658347 | GL43: 356.113965 | GM43: 447.2547513 | GN43: 458.3665743 | GO43: 463.3989273 | GP43: 468.4668869 | GQ43: 473.4357593 | GR43: 478.7587955 | GS43: 483.3151703 | GT43: 487.9390119 | GU43: 492.5432214 | GV43: 496.9671208 | GW43: 501.0214558 | GX43: 505.0739391 | GY43: 509.1241021 | GZ43: 513.1714755 | HA43: 517.0991039 | HB43: 520.9053813 | HC43: 524.5888354 | HD43: 528.1481291 | HE43: 531.5820596 | HF43: 534.8895593 | HG43: 538.0696945 | HH43: 541.1216657 | HI43: 544.0448062 | HJ43: 546.8385816 | HK43: 447.2547513 | HL43: 479.5658347 | HM43: 356.113965 | HN43: 447.2547513 | HO43: 458.3665743 | HP43: 463.3989273 | HQ43: 468.4668869 | HR43: 473.4357593 | HS43: 478.7587955 | HT43: 483.3151703 | HU43: 487.9390119 | HV43: 492.5432214 | HW43: 496.9671208 | HX43: 501.0214558 | HY43: 505.0739391 | HZ43: 509.1241021 | IA43: 513.1714755 | IB43: 517.0991039 | IC43: 520.9053813 | ID43: 524.5888354 | IE43: 528.1481291 | IF43: 531.5820596 | IG43: 534.8895593 | IH43: 538.0696945 | II43: 541.1216657 | IJ43: 544.0448062 | IK43: 546.8385816 | IL43: NO | IM43: NO | IN43: NO | IO43: NO | IP43: NO | IQ43: NO | IR43: NO | IS43: NO | IT43: NO | IU43: NO | IV43: NO | IW43: NO | IX43: NO | IY43: NO | IZ43: NO | JA43: NO | JB43: NO | JC43: NO | JD43: NO | JE43: NO | JF43: NO | JG43: NO | JH43: NO | JI43: NO | JJ43: NO | JK43: NO | JL43: NO
A44: 2.A. of which cement production | B44: WEM | C44: 437.0763154 | D44: 470.3107682 | E44: 346.3397159 | F44: 437.0763154 | G44: 448.1341939 | H44: 453.0571082 | I44: 458.0148381 | J44: 462.8756186 | K44: 468.0828395 | L44: 472.5400611 | M44: 477.0632648 | N44: 481.5672463 | O44: 485.8948255 | P44: 489.860871 | Q44: 493.8250905 | R44: 497.787025 | S44: 501.7462152 | T44: 505.5882541 | U44: 509.3115714 | V44: 512.9147285 | W44: 516.3964181 | X44: 519.7554652 | Y44: 522.9908263 | Z44: 526.1015894 | AA44: 529.0869737 | AB44: 531.9463281 | AC44: 534.6791309 | AD44: NA | AE44: NA | AF44: NA | AG44: NA | AH44: NA | AI44: NA | AJ44: NA | AK44: NA | AL44: NA | AM44: NA | AN44: NA | AO44: NA | AP44: NA | AQ44: NA | AR44: NA | AS44: NA | AT44: NA | AU44: NA | AV44: NA | AW44: NA | AX44: NA | AY44: NA | AZ44: NA | BA44: NA | BB44: NA | BC44: NA | BD44: NA | BE44: NA | BF44: NA | BG44: NA | BH44: NA | BI44: NA | BJ44: NA | BK44: NA | BL44: NA | BM44: NA | BN44: NA | BO44: NA | BP44: NA | BQ44: NA | BR44: NA | BS44: NA | BT44: NA | BU44: NA | BV44: NA | BW44: NA | BX44: NA | BY44: NA | BZ44: NA | CA44: NA | CB44: NA | CC44: NA | CD44: NA | CE44: NA | CF44: NA | CG44: NA | CH44: NA | CI44: NA | CJ44: NA | CK44: NA | CL44: NA | CM44: NA | CN44: NA | CO44: NA | CP44: NA | CQ44: NA | CR44: NA | CS44: NA | CT44: NA | CU44: NA | CV44: NA | CW44: NA | CX44: NA | CY44: NA | CZ44: NA | DA44: NA | DB44: NA | DC44: NA | DD44: NA | DE44: NA | DF44: NA | DG44: NA | DH44: NA | DI44: NA | DJ44: NA | DK44: NA | DL44: NA | DM44: NA | DN44: NA | DO44: NA | DP44: NA | DQ44: NA | DR44: NA | DS44: NA | DT44: NA | DU44: NA | DV44: NA | DW44: NA | DX44: NA | DY44: NA | DZ44: NA | EA44: NA | EB44: NA | EC44: NA | ED44: NA | EE44: NA | EF44: NA | EG44: NA | EH44: NA | EI44: NA | EJ44: NA | EK44: NA | EL44: NA | EM44: NA | EN44: NA | EO44: NA | EP44: NA | EQ44: NA | ER44: NA | ES44: NA | ET44: NA | EU44: NA | EV44: NA | EW44: NA | EX44: NA | EY44: NA | EZ44: NA | FA44: NA | FB44: NA | FC44: NA | FD44: NA | FE44: NA | FF44: NA | FG44: NA | FH44: NA | FI44: NA | FJ44: NA | FK44: NA | FL44: NA | FM44: NA | FN44: NA | FO44: NA | FP44: NA | FQ44: NA | FR44: NA | FS44: NA | FT44: NA | FU44: NA | FV44: NA | FW44: NA | FX44: NA | FY44: NA | FZ44: NA | GA44: NA | GB44: NA | GC44: NA | GD44: NA | GE44: NA | GF44: NA | GG44: NA | GH44: NA | GI44: NA | GJ44: 437.0763154 | GK44: 470.3107682 | GL44: 346.3397159 | GM44: 437.0763154 | GN44: 448.1341939 | GO44: 453.0571082 | GP44: 458.0148381 | GQ44: 462.8756186 | GR44: 468.0828395 | GS44: 472.5400611 | GT44: 477.0632648 | GU44: 481.5672463 | GV44: 485.8948255 | GW44: 489.860871 | GX44: 493.8250905 | GY44: 497.787025 | GZ44: 501.7462152 | HA44: 505.5882541 | HB44: 509.3115714 | HC44: 512.9147285 | HD44: 516.3964181 | HE44: 519.7554652 | HF44: 522.9908263 | HG44: 526.1015894 | HH44: 529.0869737 | HI44: 531.9463281 | HJ44: 534.6791309 | HK44: 437.0763154 | HL44: 470.3107682 | HM44: 346.3397159 | HN44: 437.0763154 | HO44: 448.1341939 | HP44: 453.0571082 | HQ44: 458.0148381 | HR44: 462.8756186 | HS44: 468.0828395 | HT44: 472.5400611 | HU44: 477.0632648 | HV44: 481.5672463 | HW44: 485.8948255 | HX44: 489.860871 | HY44: 493.8250905 | HZ44: 497.787025 | IA44: 501.7462152 | IB44: 505.5882541 | IC44: 509.3115714 | ID44: 512.9147285 | IE44: 516.3964181 | IF44: 519.7554652 | IG44: 522.9908263 | IH44: 526.1015894 | II44: 529.0869737 | IJ44: 531.9463281 | IK44: 534.6791309 | IL44: NO | IM44: NO | IN44: NO | IO44: NO | IP44: NO | IQ44: NO | IR44: NO | IS44: NO | IT44: NO | IU44: NO | IV44: NO | IW44: NO | IX44: NO | IY44: NO | IZ44: NO | JA44: NO | JB44: NO | JC44: NO | JD44: NO | JE44: NO | JF44: NO | JG44: NO | JH44: NO | JI44: NO | JJ44: NO | JK44: NO | JL44: NO
A45: 2.A. of which other non cement production | B45: WEM | C45: 10.1784359 | D45: 9.255066529 | E45: 9.774249069 | F45: 10.1784359 | G45: 10.23238044 | H45: 10.34181912 | I45: 10.45204882 | J45: 10.56014067 | K45: 10.67595606 | L45: 10.77510919 | M45: 10.87574712 | N45: 10.97597517 | O45: 11.07229532 | P45: 11.16058472 | Q45: 11.24884859 | R45: 11.33707706 | S45: 11.42526026 | T45: 11.51084987 | U45: 11.59380982 | V45: 11.67410694 | W45: 11.75171094 | X45: 11.82659445 | Y45: 11.89873301 | Z45: 11.96810508 | AA45: 12.03469204 | AB45: 12.09847817 | AC45: 12.15945064 | AD45: NA | AE45: NA | AF45: NA | AG45: NA | AH45: NA | AI45: NA | AJ45: NA | AK45: NA | AL45: NA | AM45: NA | AN45: NA | AO45: NA | AP45: NA | AQ45: NA | AR45: NA | AS45: NA | AT45: NA | AU45: NA | AV45: NA | AW45: NA | AX45: NA | AY45: NA | AZ45: NA | BA45: NA | BB45: NA | BC45: NA | BD45: NA | BE45: NA | BF45: NA | BG45: NA | BH45: NA | BI45: NA | BJ45: NA | BK45: NA | BL45: NA | BM45: NA | BN45: NA | BO45: NA | BP45: NA | BQ45: NA | BR45: NA | BS45: NA | BT45: NA | BU45: NA | BV45: NA | BW45: NA | BX45: NA | BY45: NA | BZ45: NA | CA45: NA | CB45: NA | CC45: NA | CD45: NA | CE45: NA | CF45: NA | CG45: NA | CH45: NA | CI45: NA | CJ45: NA | CK45: NA | CL45: NA | CM45: NA | CN45: NA | CO45: NA | CP45: NA | CQ45: NA | CR45: NA | CS45: NA | CT45: NA | CU45: NA | CV45: NA | CW45: NA | CX45: NA | CY45: NA | CZ45: NA | DA45: NA | DB45: NA | DC45: NA | DD45: NA | DE45: NA | DF45: NA | DG45: NA | DH45: NA | DI45: NA | DJ45: NA | DK45: NA | DL45: NA | DM45: NA | DN45: NA | DO45: NA | DP45: NA | DQ45: NA | DR45: NA | DS45: NA | DT45: NA | DU45: NA | DV45: NA | DW45: NA | DX45: NA | DY45: NA | DZ45: NA | EA45: NA | EB45: NA | EC45: NA | ED45: NA | EE45: NA | EF45: NA | EG45: NA | EH45: NA | EI45: NA | EJ45: NA | EK45: NA | EL45: NA | EM45: NA | EN45: NA | EO45: NA | EP45: NA | EQ45: NA | ER45: NA | ES45: NA | ET45: NA | EU45: NA | EV45: NA | EW45: NA | EX45: NA | EY45: NA | EZ45: NA | FA45: NA | FB45: NA | FC45: NA | FD45: NA | FE45: NA | FF45: NA | FG45: NA | FH45: NA | FI45: NA | FJ45: NA | FK45: NA | FL45: NA | FM45: NA | FN45: NA | FO45: NA | FP45: NA | FQ45: NA | FR45: NA | FS45: NA | FT45: NA | FU45: NA | FV45: NA | FW45: NA | FX45: NA | FY45: NA | FZ45: NA | GA45: NA | GB45: NA | GC45: NA | GD45: NA | GE45: NA | GF45: NA | GG45: NA | GH45: NA | GI45: NA | GJ45: 10.1784359 | GK45: 9.255066529 | GL45: 9.774249069 | GM45: 10.1784359 | GN45: 10.23238044 | GO45: 10.34181912 | GP45: 10.45204882 | GQ45: 10.56014067 | GR45: 10.67595606 | GS45: 10.77510919 | GT45: 10.87574712 | GU45: 10.97597517 | GV45: 11.07229532 | GW45: 11.16058472 | GX45: 11.24884859 | GY45: 11.33707706 | GZ45: 11.42526026 | HA45: 11.51084987 | HB45: 11.59380982 | HC45: 11.67410694 | HD45: 11.75171094 | HE45: 11.82659445 | HF45: 11.89873301 | HG45: 11.96810508 | HH45: 12.03469204 | HI45: 12.09847817 | HJ45: 12.15945064 | HK45: 10.1784359 | HL45: 9.255066529 | HM45: 9.774249069 | HN45: 10.1784359 | HO45: 10.23238044 | HP45: 10.34181912 | HQ45: 10.45204882 | HR45: 10.56014067 | HS45: 10.67595606 | HT45: 10.77510919 | HU45: 10.87574712 | HV45: 10.97597517 | HW45: 11.07229532 | HX45: 11.16058472 | HY45: 11.24884859 | HZ45: 11.33707706 | IA45: 11.42526026 | IB45: 11.51084987 | IC45: 11.59380982 | ID45: 11.67410694 | IE45: 11.75171094 | IF45: 11.82659445 | IG45: 11.89873301 | IH45: 11.96810508 | II45: 12.03469204 | IJ45: 12.09847817 | IK45: 12.15945064 | IL45: NO | IM45: NO | IN45: NO | IO45: NO | IP45: NO | IQ45: NO | IR45: NO | IS45: NO | IT45: NO | IU45: NO | IV45: NO | IW45: NO | IX45: NO | IY45: NO | IZ45: NO | JA45: NO | JB45: NO | JC45: NO | JD45: NO | JE45: NO | JF45: NO | JG45: NO | JH45: NO | JI45: NO | JJ45: NO | JK45: NO | JL45: NO
A46: 2.B. Chemical industry | B46: WEM | C46: NO | D46: NO | E46: NO | F46: NO | G46: NO | H46: NO | I46: NO | J46: NO | K46: NO | L46: NO | M46: NO | N46: NO | O46: NO | P46: NO | Q46: NO | R46: NO | S46: NO | T46: NO | U46: NO | V46: NO | W46: NO | X46: NO | Y46: NO | Z46: NO | AA46: NO | AB46: NO | AC46: NO | AD46: NO | AE46: NO | AF46: NO | AG46: NO | AH46: NO | AI46: NO | AJ46: NO | AK46: NO | AL46: NO | AM46: NO | AN46: NO | AO46: NO | AP46: NO | AQ46: NO | AR46: NO | AS46: NO | AT46: NO | AU46: NO | AV46: NO | AW46: NO | AX46: NO | AY46: NO | AZ46: NO | BA46: NO | BB46: NO | BC46: NO | BD46: NO | BE46: NO | BF46: NO | BG46: NO | BH46: NO | BI46: NO | BJ46: NO | BK46: NO | BL46: NO | BM46: NO | BN46: NO | BO46: NO | BP46: NO | BQ46: NO | BR46: NO | BS46: NO | BT46: NO | BU46: NO | BV46: NO | BW46: NO | BX46: NO | BY46: NO | BZ46: NO | CA46: NO | CB46: NO | CC46: NO | CD46: NO | CE46: NO | CF46: NA,NO | CG46: NA,NO | CH46: NA,NO | CI46: NA,NO | CJ46: NA,NO | CK46: NA,NO | CL46: NA,NO | CM46: NA,NO | CN46: NA,NO | CO46: NA,NO | CP46: NA,NO | CQ46: NA,NO | CR46: NA,NO | CS46: NA,NO | CT46: NA,NO | CU46: NA,NO | CV46: NA,NO | CW46: NA,NO | CX46: NA,NO | CY46: NA,NO | CZ46: NA,NO | DA46: NA,NO | DB46: NA,NO | DC46: NA,NO | DD46: NA,NO | DE46: NA,NO | DF46: NA,NO | DG46: NA,NO | DH46: NA,NO | DI46: NA,NO | DJ46: NA,NO | DK46: NA,NO | DL46: NA,NO | DM46: NA,NO | DN46: NA,NO | DO46: NA,NO | DP46: NA,NO | DQ46: NA,NO | DR46: NA,NO | DS46: NA,NO | DT46: NA,NO | DU46: NA,NO | DV46: NA,NO | DW46: NA,NO | DX46: NA,NO | DY46: NA,NO | DZ46: NA,NO | EA46: NA,NO | EB46: NA,NO | EC46: NA,NO | ED46: NA,NO | EE46: NA,NO | EF46: NA,NO | EG46: NA,NO | EH46: NA,NO | EI46: NA,NO | EJ46: NA,NO | EK46: NA,NO | EL46: NA,NO | EM46: NA,NO | EN46: NA,NO | EO46: NA,NO | EP46: NA,NO | EQ46: NA,NO | ER46: NA,NO | ES46: NA,NO | ET46: NA,NO | EU46: NA,NO | EV46: NA,NO | EW46: NA,NO | EX46: NA,NO | EY46: NA,NO | EZ46: NA,NO | FA46: NA,NO | FB46: NA,NO | FC46: NA,NO | FD46: NA,NO | FE46: NA,NO | FF46: NA,NO | FG46: NA,NO | FH46: NA,NO | FI46: NA,NO | FJ46: NA,NO | FK46: NA,NO | FL46: NA,NO | FM46: NA,NO | FN46: NA,NO | FO46: NA,NO | FP46: NA,NO | FQ46: NA,NO | FR46: NA,NO | FS46: NA,NO | FT46: NA,NO | FU46: NA,NO | FV46: NA,NO | FW46: NA,NO | FX46: NA,NO | FY46: NA,NO | FZ46: NA,NO | GA46: NA,NO | GB46: NA,NO | GC46: NA,NO | GD46: NA,NO | GE46: NA,NO | GF46: NA,NO | GG46: NA,NO | GH46: NA,NO | GI46: NA,NO | GJ46: NA,NO | GK46: NA,NO | GL46: NA,NO | GM46: NA,NO | GN46: NA,NO | GO46: NA,NO | GP46: NA,NO | GQ46: NA,NO | GR46: NA,NO | GS46: NA,NO | GT46: NA,NO | GU46: NA,NO | GV46: NA,NO | GW46: NA,NO | GX46: NA,NO | GY46: NA,NO | GZ46: NA,NO | HA46: NA,NO | HB46: NA,NO | HC46: NA,NO | HD46: NA,NO | HE46: NA,NO | HF46: NA,NO | HG46: NA,NO | HH46: NA,NO | HI46: NA,NO | HJ46: NA,NO | HK46: NA,NO | HL46: NA,NO | HM46: NA,NO | HN46: NA,NO | HO46: NA,NO | HP46: NA,NO | HQ46: NA,NO | HR46: NA,NO | HS46: NA,NO | HT46: NA,NO | HU46: NA,NO | HV46: NA,NO | HW46: NA,NO | HX46: NA,NO | HY46: NA,NO | HZ46: NA,NO | IA46: NA,NO | IB46: NA,NO | IC46: NA,NO | ID46: NA,NO | IE46: NA,NO | IF46: NA,NO | IG46: NA,NO | IH46: NA,NO | II46: NA,NO | IJ46: NA,NO | IK46: NA,NO | IL46: NA,NO | IM46: NA,NO | IN46: NA,NO | IO46: NA,NO | IP46: NA,NO | IQ46: NA,NO | IR46: NA,NO | IS46: NA,NO | IT46: NA,NO | IU46: NA,NO | IV46: NA,NO | IW46: NA,NO | IX46: NA,NO | IY46: NA,NO | IZ46: NA,NO | JA46: NA,NO | JB46: NA,NO | JC46: NA,NO | JD46: NA,NO | JE46: NA,NO | JF46: NA,NO | JG46: NA,NO | JH46: NA,NO | JI46: NA,NO | JJ46: NA,NO | JK46: NA,NO | JL46: NA,NO
A47: 2.C. Metal industry | B47: WEM | C47: NO | D47: 0.8120866185 | E47: NO | F47: NO | G47: NO | H47: NO | I47: NO | J47: NO | K47: NO | L47: NO | M47: NO | N47: NO | O47: NO | P47: NO | Q47: NO | R47: NO | S47: NO | T47: NO | U47: NO | V47: NO | W47: NO | X47: NO | Y47: NO | Z47: NO | AA47: NO | AB47: NO | AC47: NO | AD47: NA,NO | AE47: NA,NO | AF47: NA,NO | AG47: NA,NO | AH47: NA,NO | AI47: NA,NO | AJ47: NA,NO | AK47: NA,NO | AL47: NA,NO | AM47: NA,NO | AN47: NA,NO | AO47: NA,NO | AP47: NA,NO | AQ47: NA,NO | AR47: NA,NO | AS47: NA,NO | AT47: NA,NO | AU47: NA,NO | AV47: NA,NO | AW47: NA,NO | AX47: NA,NO | AY47: NA,NO | AZ47: NA,NO | BA47: NA,NO | BB47: NA,NO | BC47: NA,NO | BD47: NA,NO | BE47: =BE49 -> NA,NO | BF47: 6.237955e-05 | BG47: NA,NO | BH47: NA,NO | BI47: NA,NO | BJ47: NA,NO | BK47: NA,NO | BL47: NA,NO | BM47: NA,NO | BN47: NA,NO | BO47: NA,NO | BP47: NA,NO | BQ47: NA,NO | BR47: NA,NO | BS47: NA,NO | BT47: NA,NO | BU47: NA,NO | BV47: NA,NO | BW47: NA,NO | BX47: NA,NO | BY47: NA,NO | BZ47: NA,NO | CA47: NA,NO | CB47: NA,NO | CC47: NA,NO | CD47: NA,NO | CE47: NA,NO | CF47: =CF49 -> NA,NO | CG47: NA,NO | CH47: NA,NO | CI47: NA,NO | CJ47: NA,NO | CK47: NA,NO | CL47: NA,NO | CM47: NA,NO | CN47: NA,NO | CO47: NA,NO | CP47: NA,NO | CQ47: NA,NO | CR47: NA,NO | CS47: NA,NO | CT47: NA,NO | CU47: NA,NO | CV47: NA,NO | CW47: NA,NO | CX47: NA,NO | CY47: NA,NO | CZ47: NA,NO | DA47: NA,NO | DB47: NA,NO | DC47: NA,NO | DD47: NA,NO | DE47: NA,NO | DF47: NA,NO | DG47: NA,NO | DH47: NA,NO | DI47: NA,NO | DJ47: NA,NO | DK47: NA,NO | DL47: NA,NO | DM47: NA,NO | DN47: NA,NO | DO47: NA,NO | DP47: NA,NO | DQ47: NA,NO | DR47: NA,NO | DS47: NA,NO | DT47: NA,NO | DU47: NA,NO | DV47: NA,NO | DW47: NA,NO | DX47: NA,NO | DY47: NA,NO | DZ47: NA,NO | EA47: NA,NO | EB47: NA,NO | EC47: NA,NO | ED47: NA,NO | EE47: NA,NO | EF47: NA,NO | EG47: NA,NO | EH47: =EH49 -> NA,NO | EI47: NA,NO | EJ47: NA,NO | EK47: NA,NO | EL47: NA,NO | EM47: NA,NO | EN47: NA,NO | EO47: NA,NO | EP47: NA,NO | EQ47: NA,NO | ER47: NA,NO | ES47: NA,NO | ET47: NA,NO | EU47: NA,NO | EV47: NA,NO | EW47: NA,NO | EX47: NA,NO | EY47: NA,NO | EZ47: NA,NO | FA47: NA,NO | FB47: NA,NO | FC47: NA,NO | FD47: NA,NO | FE47: NA,NO | FF47: NA,NO | FG47: NA,NO | FH47: NA,NO | FI47: =EI49 -> NA,NO | FJ47: NA,NO | FK47: NA,NO | FL47: NA,NO | FM47: NA,NO | FN47: NA,NO | FO47: NA,NO | FP47: NA,NO | FQ47: NA,NO | FR47: NA,NO | FS47: NA,NO | FT47: NA,NO | FU47: NA,NO | FV47: NA,NO | FW47: NA,NO | FX47: NA,NO | FY47: NA,NO | FZ47: NA,NO | GA47: NA,NO | GB47: NA,NO | GC47: NA,NO | GD47: NA,NO | GE47: NA,NO | GF47: NA,NO | GG47: NA,NO | GH47: NA,NO | GI47: NA,NO | GJ47: =FJ49 -> NA,NO | GK47: 0.8136461072 | GL47: NA,NO | GM47: NA,NO | GN47: NA,NO | GO47: NA,NO | GP47: NA,NO | GQ47: NA,NO | GR47: NA,NO | GS47: NA,NO | GT47: NA,NO | GU47: NA,NO | GV47: NA,NO | GW47: NA,NO | GX47: NA,NO | GY47: NA,NO | GZ47: NA,NO | HA47: NA,NO | HB47: NA,NO | HC47: NA,NO | HD47: NA,NO | HE47: NA,NO | HF47: NA,NO | HG47: NA,NO | HH47: NA,NO | HI47: NA,NO | HJ47: NA,NO | HK47: =GK49 -> NA,NO | HL47: 0.8136461072 | HM47: NA,NO | HN47: NA,NO | HO47: NA,NO | HP47: NA,NO | HQ47: NA,NO | HR47: NA,NO | HS47: NA,NO | HT47: NA,NO | HU47: NA,NO | HV47: NA,NO | HW47: NA,NO | HX47: NA,NO | HY47: NA,NO | HZ47: NA,NO | IA47: NA,NO | IB47: NA,NO | IC47: NA,NO | ID47: NA,NO | IE47: NA,NO | IF47: NA,NO | IG47: NA,NO | IH47: NA,NO | II47: NA,NO | IJ47: NA,NO | IK47: NA,NO | IL47: =HL49 -> NA,NO | IM47: NA,NO | IN47: NA,NO | IO47: NA,NO | IP47: NA,NO | IQ47: NA,NO | IR47: NA,NO | IS47: NA,NO | IT47: NA,NO | IU47: NA,NO | IV47: NA,NO | IW47: NA,NO | IX47: NA,NO | IY47: NA,NO | IZ47: NA,NO | JA47: NA,NO | JB47: NA,NO | JC47: NA,NO | JD47: NA,NO | JE47: NA,NO | JF47: NA,NO | JG47: NA,NO | JH47: NA,NO | JI47: NA,NO | JJ47: NA,NO | JK47: NA,NO | JL47: NA,NO
A48: 2.C. of which Iron and steel production | B48: WEM | C48: NO | D48: 0.8120866185 | E48: NO | F48: NO | G48: NO | H48: NO | I48: NO | J48: NO | K48: NO | L48: NO | M48: NO | N48: NO | O48: NO | P48: NO | Q48: NO | R48: NO | S48: NO | T48: NO | U48: NO | V48: NO | W48: NO | X48: NO | Y48: NO | Z48: NO | AA48: NO | AB48: NO | AC48: NO | AD48: NA,NO | AE48: NA,NO | AF48: NA,NO | AG48: NA,NO | AH48: NA,NO | AI48: NA,NO | AJ48: NA,NO | AK48: NA,NO | AL48: NA,NO | AM48: NA,NO | AN48: NA,NO | AO48: NA,NO | AP48: NA,NO | AQ48: NA,NO | AR48: NA,NO | AS48: NA,NO | AT48: NA,NO | AU48: NA,NO | AV48: NA,NO | AW48: NA,NO | AX48: NA,NO | AY48: NA,NO | AZ48: NA,NO | BA48: NA,NO | BB48: NA,NO | BC48: NA,NO | BD48: NA,NO | BE48: =BE49 -> NA,NO | BF48: 6.237955e-05 | BG48: NA,NO | BH48: NA,NO | BI48: NA,NO | BJ48: NA,NO | BK48: NA,NO | BL48: NA,NO | BM48: NA,NO | BN48: NA,NO | BO48: NA,NO | BP48: NA,NO | BQ48: NA,NO | BR48: NA,NO | BS48: NA,NO | BT48: NA,NO | BU48: NA,NO | BV48: NA,NO | BW48: NA,NO | BX48: NA,NO | BY48: NA,NO | BZ48: NA,NO | CA48: NA,NO | CB48: NA,NO | CC48: NA,NO | CD48: NA,NO | CE48: NA,NO | CF48: =CF49 -> NA,NO | CG48: NA,NO | CH48: NA,NO | CI48: NA,NO | CJ48: NA,NO | CK48: NA,NO | CL48: NA,NO | CM48: NA,NO | CN48: NA,NO | CO48: NA,NO | CP48: NA,NO | CQ48: NA,NO | CR48: NA,NO | CS48: NA,NO | CT48: NA,NO | CU48: NA,NO | CV48: NA,NO | CW48: NA,NO | CX48: NA,NO | CY48: NA,NO | CZ48: NA,NO | DA48: NA,NO | DB48: NA,NO | DC48: NA,NO | DD48: NA,NO | DE48: NA,NO | DF48: NA,NO | DG48: =DG49 -> NA,NO | DH48: NA,NO | DI48: NA,NO | DJ48: NA,NO | DK48: NA,NO | DL48: NA,NO | DM48: NA,NO | DN48: NA,NO | DO48: NA,NO | DP48: NA,NO | DQ48: NA,NO | DR48: NA,NO | DS48: NA,NO | DT48: NA,NO | DU48: NA,NO | DV48: NA,NO | DW48: NA,NO | DX48: NA,NO | DY48: NA,NO | DZ48: NA,NO | EA48: NA,NO | EB48: NA,NO | EC48: NA,NO | ED48: NA,NO | EE48: NA,NO | EF48: NA,NO | EG48: NA,NO | EH48: =EH49 -> NA,NO | EI48: NA,NO | EJ48: NA,NO | EK48: NA,NO | EL48: NA,NO | EM48: NA,NO | EN48: NA,NO | EO48: NA,NO | EP48: NA,NO | EQ48: NA,NO | ER48: NA,NO | ES48: NA,NO | ET48: NA,NO | EU48: NA,NO | EV48: NA,NO | EW48: NA,NO | EX48: NA,NO | EY48: NA,NO | EZ48: NA,NO | FA48: NA,NO | FB48: NA,NO | FC48: NA,NO | FD48: NA,NO | FE48: NA,NO | FF48: NA,NO | FG48: NA,NO | FH48: NA,NO | FI48: =EI49 -> NA,NO | FJ48: NA,NO | FK48: NA,NO | FL48: NA,NO | FM48: NA,NO | FN48: NA,NO | FO48: NA,NO | FP48: NA,NO | FQ48: NA,NO | FR48: NA,NO | FS48: NA,NO | FT48: NA,NO | FU48: NA,NO | FV48: NA,NO | FW48: NA,NO | FX48: NA,NO | FY48: NA,NO | FZ48: NA,NO | GA48: NA,NO | GB48: NA,NO | GC48: NA,NO | GD48: NA,NO | GE48: NA,NO | GF48: NA,NO | GG48: NA,NO | GH48: NA,NO | GI48: NA,NO | GJ48: =FJ49 -> NA,NO | GK48: 0.8136461072 | GL48: NA,NO | GM48: NA,NO | GN48: NA,NO | GO48: NA,NO | GP48: NA,NO | GQ48: NA,NO | GR48: NA,NO | GS48: NA,NO | GT48: NA,NO | GU48: NA,NO | GV48: NA,NO | GW48: NA,NO | GX48: NA,NO | GY48: NA,NO | GZ48: NA,NO | HA48: NA,NO | HB48: NA,NO | HC48: NA,NO | HD48: NA,NO | HE48: NA,NO | HF48: NA,NO | HG48: NA,NO | HH48: NA,NO | HI48: NA,NO | HJ48: NA,NO | HK48: =GK49 -> NA,NO | HL48: 0.8136461072 | HM48: NA,NO | HN48: NA,NO | HO48: NA,NO | HP48: NA,NO | HQ48: NA,NO | HR48: NA,NO | HS48: NA,NO | HT48: NA,NO | HU48: NA,NO | HV48: NA,NO | HW48: NA,NO | HX48: NA,NO | HY48: NA,NO | HZ48: NA,NO | IA48: NA,NO | IB48: NA,NO | IC48: NA,NO | ID48: NA,NO | IE48: NA,NO | IF48: NA,NO | IG48: NA,NO | IH48: NA,NO | II48: NA,NO | IJ48: NA,NO | IK48: NA,NO | IL48: =IL49 -> NA,NO | IM48: NA,NO | IN48: NA,NO | IO48: NA,NO | IP48: NA,NO | IQ48: NA,NO | IR48: NA,NO | IS48: NA,NO | IT48: NA,NO | IU48: NA,NO | IV48: NA,NO | IW48: NA,NO | IX48: NA,NO | IY48: NA,NO | IZ48: NA,NO | JA48: NA,NO | JB48: NA,NO | JC48: NA,NO | JD48: NA,NO | JE48: NA,NO | JF48: NA,NO | JG48: NA,NO | JH48: NA,NO | JI48: NA,NO | JJ48: NA,NO | JK48: NA,NO | JL48: NA,NO
A49: 2.C. of which other non Iron and steel production | B49: WEM | C49: NO | D49: NO | E49: NO | F49: NO | G49: NO | H49: NO | I49: NO | J49: NO | K49: NO | L49: NO | M49: NO | N49: NO | O49: NO | P49: NO | Q49: NO | R49: NO | S49: NO | T49: NO | U49: NO | V49: NO | W49: NO | X49: NO | Y49: NO | Z49: NO | AA49: NO | AB49: NO | AC49: NO | AD49: NA,NO | AE49: NA,NO | AF49: NA,NO | AG49: NA,NO | AH49: NA,NO | AI49: NA,NO | AJ49: NA,NO | AK49: NA,NO | AL49: NA,NO | AM49: NA,NO | AN49: NA,NO | AO49: NA,NO | AP49: NA,NO | AQ49: NA,NO | AR49: NA,NO | AS49: NA,NO | AT49: NA,NO | AU49: NA,NO | AV49: NA,NO | AW49: NA,NO | AX49: NA,NO | AY49: NA,NO | AZ49: NA,NO | BA49: NA,NO | BB49: NA,NO | BC49: NA,NO | BD49: NA,NO | BE49: NA,NO | BF49: NA,NO | BG49: NA,NO | BH49: NA,NO | BI49: NA,NO | BJ49: NA,NO | BK49: NA,NO | BL49: NA,NO | BM49: NA,NO | BN49: NA,NO | BO49: NA,NO | BP49: NA,NO | BQ49: NA,NO | BR49: NA,NO | BS49: NA,NO | BT49: NA,NO | BU49: NA,NO | BV49: NA,NO | BW49: NA,NO | BX49: NA,NO | BY49: NA,NO | BZ49: NA,NO | CA49: NA,NO | CB49: NA,NO | CC49: NA,NO | CD49: NA,NO | CE49: NA,NO | CF49: NA,NO | CG49: NA,NO | CH49: NA,NO | CI49: NA,NO | CJ49: NA,NO | CK49: NA,NO | CL49: NA,NO | CM49: NA,NO | CN49: NA,NO | CO49: NA,NO | CP49: NA,NO | CQ49: NA,NO | CR49: NA,NO | CS49: NA,NO | CT49: NA,NO | CU49: NA,NO | CV49: NA,NO | CW49: NA,NO | CX49: NA,NO | CY49: NA,NO | CZ49: NA,NO | DA49: NA,NO | DB49: NA,NO | DC49: NA,NO | DD49: NA,NO | DE49: NA,NO | DF49: NA,NO | DG49: NA,NO | DH49: NA,NO | DI49: NA,NO | DJ49: NA,NO | DK49: NA,NO | DL49: NA,NO | DM49: NA,NO | DN49: NA,NO | DO49: NA,NO | DP49: NA,NO | DQ49: NA,NO | DR49: NA,NO | DS49: NA,NO | DT49: NA,NO | DU49: NA,NO | DV49: NA,NO | DW49: NA,NO | DX49: NA,NO | DY49: NA,NO | DZ49: NA,NO | EA49: NA,NO | EB49: NA,NO | EC49: NA,NO | ED49: NA,NO | EE49: NA,NO | EF49: NA,NO | EG49: NA,NO | EH49: NA,NO | EI49: NA,NO | EJ49: NA,NO | EK49: NA,NO | EL49: NA,NO | EM49: NA,NO | EN49: NA,NO | EO49: NA,NO | EP49: NA,NO | EQ49: NA,NO | ER49: NA,NO | ES49: NA,NO | ET49: NA,NO | EU49: NA,NO | EV49: NA,NO | EW49: NA,NO | EX49: NA,NO | EY49: NA,NO | EZ49: NA,NO | FA49: NA,NO | FB49: NA,NO | FC49: NA,NO | FD49: NA,NO | FE49: NA,NO | FF49: NA,NO | FG49: NA,NO | FH49: NA,NO | FI49: NA,NO | FJ49: NA,NO | FK49: NA,NO | FL49: NA,NO | FM49: NA,NO | FN49: NA,NO | FO49: NA,NO | FP49: NA,NO | FQ49: NA,NO | FR49: NA,NO | FS49: NA,NO | FT49: NA,NO | FU49: NA,NO | FV49: NA,NO | FW49: NA,NO | FX49: NA,NO | FY49: NA,NO | FZ49: NA,NO | GA49: NA,NO | GB49: NA,NO | GC49: NA,NO | GD49: NA,NO | GE49: NA,NO | GF49: NA,NO | GG49: NA,NO | GH49: NA,NO | GI49: NA,NO | GJ49: NA,NO | GK49: NA,NO | GL49: NA,NO | GM49: NA,NO | GN49: NA,NO | GO49: NA,NO | GP49: NA,NO | GQ49: NA,NO | GR49: NA,NO | GS49: NA,NO | GT49: NA,NO | GU49: NA,NO | GV49: NA,NO | GW49: NA,NO | GX49: NA,NO | GY49: NA,NO | GZ49: NA,NO | HA49: NA,NO | HB49: NA,NO | HC49: NA,NO | HD49: NA,NO | HE49: NA,NO | HF49: NA,NO | HG49: NA,NO | HH49: NA,NO | HI49: NA,NO | HJ49: NA,NO | HK49: NA,NO | HL49: NA,NO | HM49: NA,NO | HN49: NA,NO | HO49: NA,NO | HP49: NA,NO | HQ49: NA,NO | HR49: NA,NO | HS49: NA,NO | HT49: NA,NO | HU49: NA,NO | HV49: NA,NO | HW49: NA,NO | HX49: NA,NO | HY49: NA,NO | HZ49: NA,NO | IA49: NA,NO | IB49: NA,NO | IC49: NA,NO | ID49: NA,NO | IE49: NA,NO | IF49: NA,NO | IG49: NA,NO | IH49: NA,NO | II49: NA,NO | IJ49: NA,NO | IK49: NA,NO | IL49: NA,NO | IM49: NA,NO | IN49: NA,NO | IO49: NA,NO | IP49: NA,NO | IQ49: NA,NO | IR49: NA,NO | IS49: NA,NO | IT49: NA,NO | IU49: NA,NO | IV49: NA,NO | IW49: NA,NO | IX49: NA,NO | IY49: NA,NO | IZ49: NA,NO | JA49: NA,NO | JB49: NA,NO | JC49: NA,NO | JD49: NA,NO | JE49: NA,NO | JF49: NA,NO | JG49: NA,NO | JH49: NA,NO | JI49: NA,NO | JJ49: NA,NO | JK49: NA,NO | JL49: NA,NO
A50: 2.D. Non-energy products from fuels and solvent use | B50: WEM | C50: 37.28772303 | D50: 41.52990624 | E50: 45.58034385 | F50: 37.28772303 | G50: 43.96146692 | H50: 43.46229446 | I50: 42.9561082 | J50: 42.56653215 | K50: 42.1674658 | L50: 41.76242503 | M50: 41.35553709 | N50: 40.95165054 | O50: 40.684336 | P50: 40.42477538 | Q50: 40.17528991 | R50: 39.94011907 | S50: 39.75098108 | T50: 39.6970245 | U50: 39.66467167 | V50: 39.65205456 | W50: 39.65760407 | X50: 39.67998609 | Y50: 39.78364611 | Z50: 39.90348223 | AA50: 40.03868655 | AB50: 40.18855567 | AC50: 40.35247421 | AD50: NA,NO | AE50: NA,NO | AF50: NA,NO | AG50: NA,NO | AH50: NA,NO | AI50: NA,NO | AJ50: NA,NO | AK50: NA,NO | AL50: NA,NO | AM50: NA,NO | AN50: NA,NO | AO50: NA,NO | AP50: NA,NO | AQ50: NA,NO | AR50: NA,NO | AS50: NA,NO | AT50: NA,NO | AU50: NA,NO | AV50: NA,NO | AW50: NA,NO | AX50: NA,NO | AY50: NA,NO | AZ50: NA,NO | BA50: NA,NO | BB50: NA,NO | BC50: NA,NO | BD50: NA,NO | BE50: NA,NO | BF50: NA,NO | BG50: NA,NO | BH50: NA,NO | BI50: NA,NO | BJ50: NA,NO | BK50: NA,NO | BL50: NA,NO | BM50: NA,NO | BN50: NA,NO | BO50: NA,NO | BP50: NA,NO | BQ50: NA,NO | BR50: NA,NO | BS50: NA,NO | BT50: NA,NO | BU50: NA,NO | BV50: NA,NO | BW50: NA,NO | BX50: NA,NO | BY50: NA,NO | BZ50: NA,NO | CA50: NA,NO | CB50: NA,NO | CC50: NA,NO | CD50: NA,NO | CE50: NA,NO | CF50: NA | CG50: NA | CH50: NA | CI50: NA | CJ50: NA | CK50: NA | CL50: NA | CM50: NA | CN50: NA | CO50: NA | CP50: NA | CQ50: NA | CR50: NA | CS50: NA | CT50: NA | CU50: NA | CV50: NA | CW50: NA | CX50: NA | CY50: NA | CZ50: NA | DA50: NA | DB50: NA | DC50: NA | DD50: NA | DE50: NA | DF50: NA | DG50: NA | DH50: NA | DI50: NA | DJ50: NA | DK50: NA | DL50: NA | DM50: NA | DN50: NA | DO50: NA | DP50: NA | DQ50: NA | DR50: NA | DS50: NA | DT50: NA | DU50: NA | DV50: NA | DW50: NA | DX50: NA | DY50: NA | DZ50: NA | EA50: NA | EB50: NA | EC50: NA | ED50: NA | EE50: NA | EF50: NA | EG50: NA | EH50: NA | EI50: NA | EJ50: NA | EK50: NA | EL50: NA | EM50: NA | EN50: NA | EO50: NA | EP50: NA | EQ50: NA | ER50: NA | ES50: NA | ET50: NA | EU50: NA | EV50: NA | EW50: NA | EX50: NA | EY50: NA | EZ50: NA | FA50: NA | FB50: NA | FC50: NA | FD50: NA | FE50: NA | FF50: NA | FG50: NA | FH50: NA | FI50: NA | FJ50: NA | FK50: NA | FL50: NA | FM50: NA | FN50: NA | FO50: NA | FP50: NA | FQ50: NA | FR50: NA | FS50: NA | FT50: NA | FU50: NA | FV50: NA | FW50: NA | FX50: NA | FY50: NA | FZ50: NA | GA50: NA | GB50: NA | GC50: NA | GD50: NA | GE50: NA | GF50: NA | GG50: NA | GH50: NA | GI50: NA | GJ50: 37.28772303 | GK50: 41.52990624 | GL50: 45.58034385 | GM50: 37.28772303 | GN50: =G50 -> 43.96146692 | GO50: 43.46229446 | GP50: 42.9561082 | GQ50: 42.56653215 | GR50: 42.1674658 | GS50: 41.76242503 | GT50: 41.35553709 | GU50: 40.95165054 | GV50: 40.684336 | GW50: 40.42477538 | GX50: 40.17528991 | GY50: 39.94011907 | GZ50: 39.75098108 | HA50: 39.6970245 | HB50: 39.66467167 | HC50: 39.65205456 | HD50: 39.65760407 | HE50: 39.67998609 | HF50: 39.78364611 | HG50: 39.90348223 | HH50: 40.03868655 | HI50: 40.18855567 | HJ50: 40.35247421 | HK50: NO | HL50: NO | HM50: NO | HN50: NO | HO50: NO | HP50: NO | HQ50: NO | HR50: NO | HS50: NO | HT50: NO | HU50: NO | HV50: NO | HW50: NO | HX50: NO | HY50: NO | HZ50: NO | IA50: NO | IB50: NO | IC50: NO | ID50: NO | IE50: NO | IF50: NO | IG50: NO | IH50: NO | II50: NO | IJ50: NO | IK50: NO | IL50: =GJ50 -> 37.28772303 | IM50: =GK50 -> 41.52990624 | IN50: 45.58034385 | IO50: 37.28772303 | IP50: 43.96146692 | IQ50: 43.46229446 | IR50: 42.9561082 | IS50: 42.56653215 | IT50: 42.1674658 | IU50: 41.76242503 | IV50: 41.35553709 | IW50: 40.95165054 | IX50: 40.684336 | IY50: 40.42477538 | IZ50: 40.17528991 | JA50: 39.94011907 | JB50: 39.75098108 | JC50: 39.6970245 | JD50: 39.66467167 | JE50: 39.65205456 | JF50: 39.65760407 | JG50: 39.67998609 | JH50: 39.78364611 | JI50: 39.90348223 | JJ50: 40.03868655 | JK50: 40.18855567 | JL50: 40.35247421
A51: 2.E. Electronics industry | B51: WEM | C51: NO | D51: NO | E51: NO | F51: NO | G51: NO | H51: NO | I51: NO | J51: NO | K51: NO | L51: NO | M51: NO | N51: NO | O51: NO | P51: NO | Q51: NO | R51: NO | S51: NO | T51: NO | U51: NO | V51: NO | W51: NO | X51: NO | Y51: NO | Z51: NO | AA51: NO | AB51: NO | AC51: NO | AD51: NO | AE51: NO | AF51: NO | AG51: NO | AH51: NO | AI51: NO | AJ51: NO | AK51: NO | AL51: NO | AM51: NO | AN51: NO | AO51: NO | AP51: NO | AQ51: NO | AR51: NO | AS51: NO | AT51: NO | AU51: NO | AV51: NO | AW51: NO | AX51: NO | AY51: NO | AZ51: NO | BA51: NO | BB51: NO | BC51: NO | BD51: NO | BE51: NO | BF51: NO | BG51: NO | BH51: NO | BI51: NO | BJ51: NO | BK51: NO | BL51: NO | BM51: NO | BN51: NO | BO51: NO | BP51: NO | BQ51: NO | BR51: NO | BS51: NO | BT51: NO | BU51: NO | BV51: NO | BW51: NO | BX51: NO | BY51: NO | BZ51: NO | CA51: NO | CB51: NO | CC51: NO | CD51: NO | CE51: NO | CF51: NO | CG51: NO | CH51: NO | CI51: NO | CJ51: NO | CK51: NO | CL51: NO | CM51: NO | CN51: NO | CO51: NO | CP51: NO | CQ51: NO | CR51: NO | CS51: NO | CT51: NO | CU51: NO | CV51: NO | CW51: NO | CX51: NO | CY51: NO | CZ51: NO | DA51: NO | DB51: NO | DC51: NO | DD51: NO | DE51: NO | DF51: NO | DG51: NO | DH51: NO | DI51: NO | DJ51: NO | DK51: NO | DL51: NO | DM51: NO | DN51: NO | DO51: NO | DP51: NO | DQ51: NO | DR51: NO | DS51: NO | DT51: NO | DU51: NO | DV51: NO | DW51: NO | DX51: NO | DY51: NO | DZ51: NO | EA51: NO | EB51: NO | EC51: NO | ED51: NO | EE51: NO | EF51: NO | EG51: NO | EH51: NO | EI51: NO | EJ51: NO | EK51: NO | EL51: NO | EM51: NO | EN51: NO | EO51: NO | EP51: NO | EQ51: NO | ER51: NO | ES51: NO | ET51: NO | EU51: NO | EV51: NO | EW51: NO | EX51: NO | EY51: NO | EZ51: NO | FA51: NO | FB51: NO | FC51: NO | FD51: NO | FE51: NO | FF51: NO | FG51: NO | FH51: NO | FI51: NO | FJ51: NO | FK51: NO | FL51: NO | FM51: NO | FN51: NO | FO51: NO | FP51: NO | FQ51: NO | FR51: NO | FS51: NO | FT51: NO | FU51: NO | FV51: NO | FW51: NO | FX51: NO | FY51: NO | FZ51: NO | GA51: NO | GB51: NO | GC51: NO | GD51: NO | GE51: NO | GF51: NO | GG51: NO | GH51: NO | GI51: NO | GJ51: NO | GK51: NO | GL51: NO | GM51: NO | GN51: NO | GO51: NO | GP51: NO | GQ51: NO | GR51: NO | GS51: NO | GT51: NO | GU51: NO | GV51: NO | GW51: NO | GX51: NO | GY51: NO | GZ51: NO | HA51: NO | HB51: NO | HC51: NO | HD51: NO | HE51: NO | HF51: NO | HG51: NO | HH51: NO | HI51: NO | HJ51: NO | HK51: NO | HL51: NO | HM51: NO | HN51: NO | HO51: NO | HP51: NO | HQ51: NO | HR51: NO | HS51: NO | HT51: NO | HU51: NO | HV51: NO | HW51: NO | HX51: NO | HY51: NO | HZ51: NO | IA51: NO | IB51: NO | IC51: NO | ID51: NO | IE51: NO | IF51: NO | IG51: NO | IH51: NO | II51: NO | IJ51: NO | IK51: NO | IL51: NO | IM51: NO | IN51: NO | IO51: NO | IP51: NO | IQ51: NO | IR51: NO | IS51: NO | IT51: NO | IU51: NO | IV51: NO | IW51: NO | IX51: NO | IY51: NO | IZ51: NO | JA51: NO | JB51: NO | JC51: NO | JD51: NO | JE51: NO | JF51: NO | JG51: NO | JH51: NO | JI51: NO | JJ51: NO | JK51: NO | JL51: NO
A52: 2.F. Product uses as substitutes for ODS(2) | B52: WEM | C52: NA | D52: NA | E52: NA | F52: NA | G52: NA | H52: NA | I52: NA | J52: NA | K52: NA | L52: NA | M52: NA | N52: NA | O52: NA | P52: NA | Q52: NA | R52: NA | S52: NA | T52: NA | U52: NA | V52: NA | W52: NA | X52: NA | Y52: NA | Z52: NA | AA52: NA | AB52: NA | AC52: NA | AD52: NA | AE52: NA | AF52: NA | AG52: NA | AH52: NA | AI52: NA | AJ52: NA | AK52: NA | AL52: NA | AM52: NA | AN52: NA | AO52: NA | AP52: NA | AQ52: NA | AR52: NA | AS52: NA | AT52: NA | AU52: NA | AV52: NA | AW52: NA | AX52: NA | AY52: NA | AZ52: NA | BA52: NA | BB52: NA | BC52: NA | BD52: NA | BE52: NA | BF52: NA | BG52: NA | BH52: NA | BI52: NA | BJ52: NA | BK52: NA | BL52: NA | BM52: NA | BN52: NA | BO52: NA | BP52: NA | BQ52: NA | BR52: NA | BS52: NA | BT52: NA | BU52: NA | BV52: NA | BW52: NA | BX52: NA | BY52: NA | BZ52: NA | CA52: NA | CB52: NA | CC52: NA | CD52: NA | CE52: NA | CF52: 234.9201389 | CG52: 219.556085 | CH52: 240.8351965 | CI52: 234.9201389 | CJ52: 230.4072099 | CK52: 248.96919 | CL52: 231.212744 | CM52: 236.9925353 | CN52: 222.8335396 | CO52: 229.180632 | CP52: 222.064305 | CQ52: 207.1276542 | CR52: 193.9543691 | CS52: 195.6249699 | CT52: 194.9255062 | CU52: 193.1543399 | CV52: 190.4165489 | CW52: 204.7552757 | CX52: 195.1097339 | CY52: 195.8297922 | CZ52: 196.9641962 | DA52: 173.0301636 | DB52: 173.7680529 | DC52: 174.3250165 | DD52: 174.5776938 | DE52: 175.1240143 | DF52: 175.587154 | DG52: NA | DH52: NA | DI52: NA | DJ52: NA | DK52: NA | DL52: NA | DM52: NA | DN52: NA | DO52: NA | DP52: NA | DQ52: NA | DR52: NA | DS52: NA | DT52: NA | DU52: NA | DV52: NA | DW52: NA | DX52: NA | DY52: NA | DZ52: NA | EA52: NA | EB52: NA | EC52: NA | ED52: NA | EE52: NA | EF52: NA | EG52: NA | EH52: NA | EI52: NA | EJ52: NA | EK52: NA | EL52: NA | EM52: NA | EN52: NA | EO52: NA | EP52: NA | EQ52: NA | ER52: NA | ES52: NA | ET52: NA | EU52: NA | EV52: NA | EW52: NA | EX52: NA | EY52: NA | EZ52: NA | FA52: NA | FB52: NA | FC52: NA | FD52: NA | FE52: NA | FF52: NA | FG52: NA | FH52: NA | FI52: NA | FJ52: NA | FK52: NA | FL52: NA | FM52: NA | FN52: NA | FO52: NA | FP52: NA | FQ52: NA | FR52: NA | FS52: NA | FT52: NA | FU52: NA | FV52: NA | FW52: NA | FX52: NA | FY52: NA | FZ52: NA | GA52: NA | GB52: NA | GC52: NA | GD52: NA | GE52: NA | GF52: NA | GG52: NA | GH52: NA | GI52: NA | GJ52: 234.9201389 | GK52: 219.556085 | GL52: 240.8351965 | GM52: 234.9201389 | GN52: =CJ52 -> 230.4072099 | GO52: 248.96919 | GP52: 231.212744 | GQ52: 236.9925353 | GR52: 222.8335396 | GS52: 229.180632 | GT52: 222.064305 | GU52: 207.1276542 | GV52: 193.9543691 | GW52: 195.6249699 | GX52: 194.9255062 | GY52: 193.1543399 | GZ52: 190.4165489 | HA52: 204.7552757 | HB52: 195.1097339 | HC52: 195.8297922 | HD52: 196.9641962 | HE52: 173.0301636 | HF52: 173.7680529 | HG52: 174.3250165 | HH52: 174.5776938 | HI52: 175.1240143 | HJ52: 175.587154 | HK52: NO | HL52: NO | HM52: NO | HN52: NO | HO52: NO | HP52: NO | HQ52: NO | HR52: NO | HS52: NO | HT52: NO | HU52: NO | HV52: NO | HW52: NO | HX52: NO | HY52: NO | HZ52: NO | IA52: NO | IB52: NO | IC52: NO | ID52: NO | IE52: NO | IF52: NO | IG52: NO | IH52: NO | II52: NO | IJ52: NO | IK52: NO | IL52: =GJ52 -> 234.9201389 | IM52: =GK52 -> 219.556085 | IN52: 240.8351965 | IO52: 234.9201389 | IP52: 230.4072099 | IQ52: 248.96919 | IR52: 231.212744 | IS52: 236.9925353 | IT52: 222.8335396 | IU52: 229.180632 | IV52: 222.064305 | IW52: 207.1276542 | IX52: 193.9543691 | IY52: 195.6249699 | IZ52: 194.9255062 | JA52: 193.1543399 | JB52: 190.4165489 | JC52: 204.7552757 | JD52: 195.1097339 | JE52: 195.8297922 | JF52: 196.9641962 | JG52: 173.0301636 | JH52: 173.7680529 | JI52: 174.3250165 | JJ52: 174.5776938 | JK52: 175.1240143 | JL52: 175.587154
A53: 2.G. Other product manufacture and use | B53: WEM | C53: NA | D53: NA | E53: NA | F53: NA | G53: NA | H53: NA | I53: NA | J53: NA | K53: NA | L53: NA | M53: NA | N53: NA | O53: NA | P53: NA | Q53: NA | R53: NA | S53: NA | T53: NA | U53: NA | V53: NA | W53: NA | X53: NA | Y53: NA | Z53: NA | AA53: NA | AB53: NA | AC53: NA | AD53: 0.01238992024 | AE53: 0.01198535648 | AF53: 0.01160526441 | AG53: 0.01238992024 | AH53: 0.01126890514 | AI53: 0.01113729669 | AJ53: 0.01100113715 | AK53: 0.01085939232 | AL53: 0.01071286135 | AM53: 0.01056308087 | AN53: 0.01041196943 | AO53: 0.01026178642 | AP53: 0.01011379229 | AQ53: 0.009968501193 | AR53: 0.009827006098 | AS53: 0.009691284334 | AT53: 0.009576007106 | AU53: 0.009482146525 | AV53: 0.009396638704 | AW53: 0.009318650557 | AX53: 0.00924748504 | AY53: 0.009182551721 | AZ53: 0.009123345207 | BA53: 0.009069429 | BB53: 0.009020423154 | BC53: 0.008975994686 | BD53: 0.008935850023 | BE53: NA | BF53: NA | BG53: NA | BH53: NA | BI53: NA | BJ53: NA | BK53: NA | BL53: NA | BM53: NA | BN53: NA | BO53: NA | BP53: NA | BQ53: NA | BR53: NA | BS53: NA | BT53: NA | BU53: NA | BV53: NA | BW53: NA | BX53: NA | BY53: NA | BZ53: NA | CA53: NA | CB53: NA | CC53: NA | CD53: NA | CE53: NA | CF53: NA | CG53: NA | CH53: NA | CI53: NA | CJ53: NA | CK53: NA | CL53: NA | CM53: NA | CN53: NA | CO53: NA | CP53: NA | CQ53: NA | CR53: NA | CS53: NA | CT53: NA | CU53: NA | CV53: NA | CW53: NA | CX53: NA | CY53: NA | CZ53: NA | DA53: NA | DB53: NA | DC53: NA | DD53: NA | DE53: NA | DF53: NA | DG53: NA | DH53: NA | DI53: NA | DJ53: NA | DK53: NA | DL53: NA | DM53: NA | DN53: NA | DO53: NA | DP53: NA | DQ53: NA | DR53: NA | DS53: NA | DT53: NA | DU53: NA | DV53: NA | DW53: NA | DX53: NA | DY53: NA | DZ53: NA | EA53: NA | EB53: NA | EC53: NA | ED53: NA | EE53: NA | EF53: NA | EG53: NA | EH53: 10.32146661 | EI53: 10.11807005 | EJ53: 9.891090619 | EK53: 10.32146661 | EL53: 10.35354021 | EM53: 10.21305387 | EN53: 10.19340045 | EO53: 10.17231 | EP53: 10.17164764 | EQ53: 10.14282011 | ER53: 10.12528921 | ES53: 10.12654869 | ET53: 10.11687906 | EU53: 10.0975218 | EV53: 10.09752088 | EW53: 10.09751995 | EX53: 10.09751902 | EY53: 10.09871725 | EZ53: 10.09267206 | FA53: 10.08661819 | FB53: 10.08055595 | FC53: 10.07448564 | FD53: 10.06840755 | FE53: 10.06232195 | FF53: 10.05622913 | FG53: 10.05012936 | FH53: 10.0440229 | FI53: NA | FJ53: NA | FK53: NA | FL53: NA | FM53: NA | FN53: NA | FO53: NA | FP53: NA | FQ53: NA | FR53: NA | FS53: NA | FT53: NA | FU53: NA | FV53: NA | FW53: NA | FX53: NA | FY53: NA | FZ53: NA | GA53: NA | GB53: NA | GC53: NA | GD53: NA | GE53: NA | GF53: NA | GG53: NA | GH53: NA | GI53: NA | GJ53: 14.01366284 | GK53: 13.68970628 | GL53: 13.34945941 | GM53: 14.01366284 | GN53: =AH53*298+EL53 -> 13.71167394 | GO53: 13.53196829 | GP53: 13.47173932 | GQ53: 13.40840891 | GR53: 13.36408032 | GS53: 13.29061821 | GT53: 13.2280561 | GU53: 13.18456105 | GV53: 13.13078917 | GW53: 13.06813516 | GX53: 13.02596869 | GY53: 12.98552268 | GZ53: 12.95116914 | HA53: 12.92439692 | HB53: 12.89287039 | HC53: 12.86357606 | HD53: 12.8363065 | HE53: 12.81088606 | HF53: 12.78716442 | HG53: 12.7650118 | HH53: 12.74431523 | HI53: 12.72497577 | HJ53: 12.7069062 | HK53: NO | HL53: NO | HM53: NO | HN53: NO | HO53: NO | HP53: NO | HQ53: NO | HR53: NO | HS53: NO | HT53: NO | HU53: NO | HV53: NO | HW53: NO | HX53: NO | HY53: NO | HZ53: NO | IA53: NO | IB53: NO | IC53: NO | ID53: NO | IE53: NO | IF53: NO | IG53: NO | IH53: NO | II53: NO | IJ53: NO | IK53: NO | IL53: =GJ53 -> 14.01366284 | IM53: 13.68970628 | IN53: 13.34945941 | IO53: 14.01366284 | IP53: 13.71167394 | IQ53: 13.53196829 | IR53: 13.47173932 | IS53: 13.40840891 | IT53: 13.36408032 | IU53: 13.29061821 | IV53: 13.2280561 | IW53: 13.18456105 | IX53: 13.13078917 | IY53: 13.06813516 | IZ53: 13.02596869 | JA53: 12.98552268 | JB53: 12.95116914 | JC53: 12.92439692 | JD53: 12.89287039 | JE53: 12.86357606 | JF53: 12.8363065 | JG53: 12.81088606 | JH53: 12.78716442 | JI53: 12.7650118 | JJ53: 12.74431523 | JK53: 12.72497577 | JL53: 12.7069062
A54: 2.H. Other (please specify) | B54: WEM | C54: NA,NO | D54: NA,NO | E54: NA,NO | F54: NA,NO | G54: NA,NO | H54: NA,NO | I54: NA,NO | J54: NA,NO | K54: NA,NO | L54: NA,NO | M54: NA,NO | N54: NA,NO | O54: NA,NO | P54: NA,NO | Q54: NA,NO | R54: NA,NO | S54: NA,NO | T54: NA,NO | U54: NA,NO | V54: NA,NO | W54: NA,NO | X54: NA,NO | Y54: NA,NO | Z54: NA,NO | AA54: NA,NO | AB54: NA,NO | AC54: NA,NO | AD54: NA,NO | AE54: NA,NO | AF54: NA,NO | AG54: NA,NO | AH54: NA,NO | AI54: NA,NO | AJ54: NA,NO | AK54: NA,NO | AL54: NA,NO | AM54: NA,NO | AN54: NA,NO | AO54: NA,NO | AP54: NA,NO | AQ54: NA,NO | AR54: NA,NO | AS54: NA,NO | AT54: NA,NO | AU54: NA,NO | AV54: NA,NO | AW54: NA,NO | AX54: NA,NO | AY54: NA,NO | AZ54: NA,NO | BA54: NA,NO | BB54: NA,NO | BC54: NA,NO | BD54: NA,NO | BE54: NA,NO | BF54: NA,NO | BG54: NA,NO | BH54: NA,NO | BI54: NA,NO | BJ54: NA,NO | BK54: NA,NO | BL54: NA,NO | BM54: NA,NO | BN54: NA,NO | BO54: NA,NO | BP54: NA,NO | BQ54: NA,NO | BR54: NA,NO | BS54: NA,NO | BT54: NA,NO | BU54: NA,NO | BV54: NA,NO | BW54: NA,NO | BX54: NA,NO | BY54: NA,NO | BZ54: NA,NO | CA54: NA,NO | CB54: NA,NO | CC54: NA,NO | CD54: NA,NO | CE54: NA,NO | CF54: NA | CG54: NA | CH54: NA | CI54: NA | CJ54: NA | CK54: NA | CL54: NA | CM54: NA | CN54: NA | CO54: NA | CP54: NA | CQ54: NA | CR54: NA | CS54: NA | CT54: NA | CU54: NA | CV54: NA | CW54: NA | CX54: NA | CY54: NA | CZ54: NA | DA54: NA | DB54: NA | DC54: NA | DD54: NA | DE54: NA | DF54: NA | DG54: NA | DH54: NA | DI54: NA | DJ54: NA | DK54: NA | DL54: NA | DM54: NA | DN54: NA | DO54: NA | DP54: NA | DQ54: NA | DR54: NA | DS54: NA | DT54: NA | DU54: NA | DV54: NA | DW54: NA | DX54: NA | DY54: NA | DZ54: NA | EA54: NA | EB54: NA | EC54: NA | ED54: NA | EE54: NA | EF54: NA | EG54: NA | EH54: NA | EI54: NA | EJ54: NA | EK54: NA | EL54: NA | EM54: NA | EN54: NA | EO54: NA | EP54: NA | EQ54: NA | ER54: NA | ES54: NA | ET54: NA | EU54: NA | EV54: NA | EW54: NA | EX54: NA | EY54: NA | EZ54: NA | FA54: NA | FB54: NA | FC54: NA | FD54: NA | FE54: NA | FF54: NA | FG54: NA | FH54: NA | FI54: NA | FJ54: NA | FK54: NA | FL54: NA | FM54: NA | FN54: NA | FO54: NA | FP54: NA | FQ54: NA | FR54: NA | FS54: NA | FT54: NA | FU54: NA | FV54: NA | FW54: NA | FX54: NA | FY54: NA | FZ54: NA | GA54: NA | GB54: NA | GC54: NA | GD54: NA | GE54: NA | GF54: NA | GG54: NA | GH54: NA | GI54: NA | GJ54: NA,NO | GK54: NA,NO | GL54: NA,NO | GM54: NA,NO | GN54: NA,NO | GO54: NA,NO | GP54: NA,NO | GQ54: NA,NO | GR54: NA,NO | GS54: NA,NO | GT54: NA,NO | GU54: NA,NO | GV54: NA,NO | GW54: NA,NO | GX54: NA,NO | GY54: NA,NO | GZ54: NA,NO | HA54: NA,NO | HB54: NA,NO | HC54: NA,NO | HD54: NA,NO | HE54: NA,NO | HF54: NA,NO | HG54: NA,NO | HH54: NA,NO | HI54: NA,NO | HJ54: NA,NO | HK54: NA,NO | HL54: NA,NO | HM54: NA,NO | HN54: NA,NO | HO54: NA,NO | HP54: NA,NO | HQ54: NA,NO | HR54: NA,NO | HS54: NA,NO | HT54: NA,NO | HU54: NA,NO | HV54: NA,NO | HW54: NA,NO | HX54: NA,NO | HY54: NA,NO | HZ54: NA,NO | IA54: NA,NO | IB54: NA,NO | IC54: NA,NO | ID54: NA,NO | IE54: NA,NO | IF54: NA,NO | IG54: NA,NO | IH54: NA,NO | II54: NA,NO | IJ54: NA,NO | IK54: NA,NO | IL54: NA,NO | IM54: NA,NO | IN54: NA,NO | IO54: NA,NO | IP54: NA,NO | IQ54: NA,NO | IR54: NA,NO | IS54: NA,NO | IT54: NA,NO | IU54: NA,NO | IV54: NA,NO | IW54: NA,NO | IX54: NA,NO | IY54: NA,NO | IZ54: NA,NO | JA54: NA,NO | JB54: NA,NO | JC54: NA,NO | JD54: NA,NO | JE54: NA,NO | JF54: NA,NO | JG54: NA,NO | JH54: NA,NO | JI54: NA,NO | JJ54: NA,NO | JK54: NA,NO | JL54: NA,NO
A55: 3. Agriculture | B55: WEM | C55: 33.90273333 | D55: 26.14766 | E55: 30.52683333 | F55: 33.90273333 | G55: =G62+G63 -> 26.96294333 | H55: 28.05605705 | I55: 28.66189015 | J55: 29.22612429 | K55: 29.79035844 | L55: 30.35459259 | M55: 30.91882674 | N55: 31.48306089 | O55: 31.89619776 | P55: 32.30933464 | Q55: 32.72247151 | R55: 33.13560839 | S55: 33.54874526 | T55: 33.86287097 | U55: 34.17699668 | V55: 34.49112239 | W55: 34.8052481 | X55: 35.11937381 | Y55: 35.39469616 | Z55: 35.67001852 | AA55: 35.94534087 | AB55: 36.22066322 | AC55: 36.49598558 | AD55: 5.971470376 | AE55: 5.987959552 | AF55: 5.953910935 | AG55: 5.971470376 | AH55: =AH57+AH59 -> 5.932969454 | AI55: 6.072737159 | AJ55: 6.140202931 | AK55: 6.18369968 | AL55: 6.227196429 | AM55: 6.270693178 | AN55: 6.314189927 | AO55: 6.357686676 | AP55: 6.375600783 | AQ55: 6.393514889 | AR55: 6.411428996 | AS55: 6.429343102 | AT55: 6.447257209 | AU55: 6.457983722 | AV55: 6.468710235 | AW55: 6.479436748 | AX55: 6.490163262 | AY55: 6.500889775 | AZ55: 6.510139583 | BA55: 6.519389392 | BB55: 6.5286392 | BC55: 6.537889009 | BD55: 6.547138817 | BE55: 38.75689207 | BF55: 38.37483986 | BG55: 38.4606992 | BH55: 38.75689207 | BI55: =BI56+BI57 -> 39.38522251 | BJ55: 39.49534682 | BK55: 40.84075273 | BL55: 41.81154096 | BM55: 42.78232919 | BN55: 43.75311742 | BO55: 44.72390564 | BP55: 45.69469387 | BQ55: 45.73369604 | BR55: 45.77269822 | BS55: 45.81170039 | BT55: 45.85070256 | BU55: 45.88970474 | BV55: 45.85674136 | BW55: 45.82377798 | BX55: 45.79081461 | BY55: 45.75785123 | BZ55: 45.72488785 | CA55: 45.70483156 | CB55: 45.68477528 | CC55: 45.66471899 | CD55: 45.6446627 | CE55: 45.62460641 | CF55: NA,NO | CG55: NA,NO | CH55: NA,NO | CI55: NA,NO | CJ55: NA,NO | CK55: NA,NO | CL55: NA,NO | CM55: NA,NO | CN55: NA,NO | CO55: NA,NO | CP55: NA,NO | CQ55: NA,NO | CR55: NA,NO | CS55: NA,NO | CT55: NA,NO | CU55: NA,NO | CV55: NA,NO | CW55: NA,NO | CX55: NA,NO | CY55: NA,NO | CZ55: NA,NO | DA55: NA,NO | DB55: NA,NO | DC55: NA,NO | DD55: NA,NO | DE55: NA,NO | DF55: NA,NO | DG55: NA,NO | DH55: NANO | DI55: NA,NO | DJ55: NA,NO | DK55: NA,NO | DL55: NA,NO | DM55: NA,NO | DN55: NA,NO | DO55: NA,NO | DP55: NA,NO | DQ55: NA,NO | DR55: NA,NO | DS55: NA,NO | DT55: NA,NO | DU55: NA,NO | DV55: NA,NO | DW55: NA,NO | DX55: NA,NO | DY55: NA,NO | DZ55: NA,NO | EA55: NA,NO | EB55: NA,NO | EC55: NA,NO | ED55: NA,NO | EE55: NA,NO | EF55: NA,NO | EG55: NA,NO | EH55: NA,NO | EI55: NA,NO | EJ55: NA,NO | EK55: NA,NO | EL55: NA,NO | EM55: NA,NO | EN55: NA,NO | EO55: NA,NO | EP55: NA,NO | EQ55: NA,NO | ER55: NA,NO | ES55: NA,NO | ET55: NA,NO | EU55: NA,NO | EV55: NA,NO | EW55: NA,NO | EX55: NA,NO | EY55: NA,NO | EZ55: NA,NO | FA55: NA,NO | FB55: NA,NO | FC55: NA,NO | FD55: NA,NO | FE55: NA,NO | FF55: NA,NO | FG55: NA,NO | FH55: NA,NO | FI55: NA,NO | FJ55: NA,NO | FK55: NA,NO | FL55: NA,NO | FM55: NA,NO | FN55: NA,NO | FO55: NA,NO | FP55: NA,NO | FQ55: NA,NO | FR55: NA,NO | FS55: NA,NO | FT55: NA,NO | FU55: NA,NO | FV55: NA,NO | FW55: NA,NO | FX55: NA,NO | FY55: NA,NO | FZ55: NA,NO | GA55: NA,NO | GB55: NA,NO | GC55: NA,NO | GD55: NA,NO | GE55: NA,NO | GF55: NA,NO | GG55: NA,NO | GH55: NA,NO | GI55: NA,NO | GJ55: 2782.323207 | GK55: 2769.930603 | GL55: 2766.309772 | GM55: 2782.323207 | GN55: =GN56+GN57+GN59+GN62+GN63 -> 2779.618403 | GO55: 2825.115401 | GP55: 2879.461182 | GQ55: 2917.257153 | GR55: 2955.053124 | GS55: 2992.849095 | GT55: 3030.645066 | GU55: 3068.441037 | GV55: 3075.167632 | GW55: 3081.894227 | GX55: 3088.620822 | GY55: 3095.347417 | GZ55: 3102.074012 | HA55: 3104.760554 | HB55: 3107.447096 | HC55: 3110.133639 | HD55: 3112.820181 | HE55: 3115.506723 | HF55: 3118.037081 | HG55: 3120.567439 | HH55: 3123.097797 | HI55: 3125.628155 | HJ55: 3128.158513 | HK55: NO | HL55: NO | HM55: NO | HN55: NO | HO55: NO | HP55: NO | HQ55: NO | HR55: NO | HS55: NO | HT55: NO | HU55: NO | HV55: NO | HW55: NO | HX55: NO | HY55: NO | HZ55: NO | IA55: NO | IB55: NO | IC55: NO | ID55: NO | IE55: NO | IF55: NO | IG55: NO | IH55: NO | II55: NO | IJ55: NO | IK55: NO | IL55: =GJ55 -> 2782.323207 | IM55: =GK55 -> 2769.930603 | IN55: 2766.309772 | IO55: 2782.323207 | IP55: 2779.618403 | IQ55: 2825.115401 | IR55: 2879.461182 | IS55: =GQ55 -> 2917.257153 | IT55: =GR55 -> 2955.053124 | IU55: =GS55 -> 2992.849095 | IV55: =GT55 -> 3030.645066 | IW55: =GU55 -> 3068.441037 | IX55: 3075.167632 | IY55: =GW55 -> 3081.894227 | IZ55: =GX55 -> 3088.620822 | JA55: =GY55 -> 3095.347417 | JB55: 3102.074012 | JC55: 3104.760554 | JD55: 3107.447096 | JE55: 3110.133639 | JF55: 3112.820181 | JG55: 3115.506723 | JH55: 3118.037081 | JI55: 3120.567439 | JJ55: 3123.097797 | JK55: 3125.628155 | JL55: 3128.158513
A56: 3.A. Enteric fermentation | B56: WEM | C56: NA | D56: NA | E56: NA | F56: NA | G56: NA | H56: NA | I56: NA | J56: NA | K56: NA | L56: NA | M56: NA | N56: NA | O56: NA | P56: NA | Q56: NA | R56: NA | S56: NA | T56: NA | U56: NA | V56: NA | W56: NA | X56: NA | Y56: NA | Z56: NA | AA56: NA | AB56: NA | AC56: NA | AD56: NA | AE56: NA | AF56: NA | AG56: NA | AH56: NA | AI56: NA | AJ56: NA | AK56: NA | AL56: NA | AM56: NA | AN56: NA | AO56: NA | AP56: NA | AQ56: NA | AR56: NA | AS56: NA | AT56: NA | AU56: NA | AV56: NA | AW56: NA | AX56: NA | AY56: NA | AZ56: NA | BA56: NA | BB56: NA | BC56: NA | BD56: NA | BE56: 34.69395372 | BF56: 34.32921413 | BG56: 34.4129214 | BH56: 34.69395372 | BI56: 35.25318853 | BJ56: 35.34286852 | BK56: 36.29192677 | BL56: 37.09647641 | BM56: 37.90102605 | BN56: 38.70557569 | BO56: 39.51012533 | BP56: 40.31467497 | BQ56: 40.31760607 | BR56: 40.32053717 | BS56: 40.32346827 | BT56: 40.32639937 | BU56: 40.32933046 | BV56: 40.26202649 | BW56: 40.19472251 | BX56: 40.12741853 | BY56: 40.06011455 | BZ56: 39.99281058 | CA56: 39.919896 | CB56: 39.84698142 | CC56: 39.77406684 | CD56: 39.70115227 | CE56: 39.62823769 | CF56: NA | CG56: NA | CH56: NA | CI56: NA | CJ56: NA | CK56: NA | CL56: NA | CM56: NA | CN56: NA | CO56: NA | CP56: NA | CQ56: NA | CR56: NA | CS56: NA | CT56: NA | CU56: NA | CV56: NA | CW56: NA | CX56: NA | CY56: NA | CZ56: NA | DA56: NA | DB56: NA | DC56: NA | DD56: NA | DE56: NA | DF56: NA | DG56: NA | DH56: NA | DI56: NA | DJ56: NA | DK56: NA | DL56: NA | DM56: NA | DN56: NA | DO56: NA | DP56: NA | DQ56: NA | DR56: NA | DS56: NA | DT56: NA | DU56: NA | DV56: NA | DW56: NA | DX56: NA | DY56: NA | DZ56: NA | EA56: NA | EB56: NA | EC56: NA | ED56: NA | EE56: NA | EF56: NA | EG56: NA | EH56: NA | EI56: NA | EJ56: NA | EK56: NA | EL56: NA | EM56: NA | EN56: NA | EO56: NA | EP56: NA | EQ56: NA | ER56: NA | ES56: NA | ET56: NA | EU56: NA | EV56: NA | EW56: NA | EX56: NA | EY56: NA | EZ56: NA | FA56: NA | FB56: NA | FC56: NA | FD56: NA | FE56: NA | FF56: NA | FG56: NA | FH56: NA | FI56: NA | FJ56: NA | FK56: NA | FL56: NA | FM56: NA | FN56: NA | FO56: NA | FP56: NA | FQ56: NA | FR56: NA | FS56: NA | FT56: NA | FU56: NA | FV56: NA | FW56: NA | FX56: NA | FY56: NA | FZ56: NA | GA56: NA | GB56: NA | GC56: NA | GD56: NA | GE56: NA | GF56: NA | GG56: NA | GH56: NA | GI56: NA | GJ56: 867.348843 | GK56: 858.2303532 | GL56: 860.3230351 | GM56: 867.348843 | GN56: 881.3297132 | GO56: 883.5717129 | GP56: 907.2981692 | GQ56: 927.4119102 | GR56: 947.5256512 | GS56: 967.6393922 | GT56: 987.7531332 | GU56: 1007.866874 | GV56: 1007.940152 | GW56: 1008.013429 | GX56: 1008.086707 | GY56: 1008.159984 | GZ56: 1008.233262 | HA56: 1006.550662 | HB56: 1004.868063 | HC56: 1003.185463 | HD56: 1001.502864 | HE56: 999.8202644 | HF56: 997.9974 | HG56: 996.1745355 | HH56: 994.3516711 | HI56: 992.5288067 | HJ56: 990.7059422 | HK56: NO | HL56: NO | HM56: NO | HN56: NO | HO56: NO | HP56: NO | HQ56: NO | HR56: NO | HS56: NO | HT56: NO | HU56: NO | HV56: NO | HW56: NO | HX56: NO | HY56: NO | HZ56: NO | IA56: NO | IB56: NO | IC56: NO | ID56: NO | IE56: NO | IF56: NO | IG56: NO | IH56: NO | II56: NO | IJ56: NO | IK56: NO | IL56: =GJ56 -> 867.348843 | IM56: 858.2303532 | IN56: 860.3230351 | IO56: 867.348843 | IP56: 881.3297132 | IQ56: 883.5717129 | IR56: 907.2981692 | IS56: =GQ56 -> 927.4119102 | IT56: 947.5256512 | IU56: 967.6393922 | IV56: 987.7531332 | IW56: 1007.866874 | IX56: 1007.940152 | IY56: 1008.013429 | IZ56: 1008.086707 | JA56: 1008.159984 | JB56: 1008.233262 | JC56: 1006.550662 | JD56: 1004.868063 | JE56: 1003.185463 | JF56: 1001.502864 | JG56: 999.8202644 | JH56: 997.9974 | JI56: 996.1745355 | JJ56: 994.3516711 | JK56: 992.5288067 | JL56: 990.7059422
A57: 3.B. Manure management | B57: WEM | C57: NA | D57: NA | E57: NA | F57: NA | G57: NA | H57: NA | I57: NA | J57: NA | K57: NA | L57: NA | M57: NA | N57: NA | O57: NA | P57: NA | Q57: NA | R57: NA | S57: NA | T57: NA | U57: NA | V57: NA | W57: NA | X57: NA | Y57: NA | Z57: NA | AA57: NA | AB57: NA | AC57: NA | AD57: 0.2905317937 | AE57: 0.3031912378 | AF57: 0.295600686 | AG57: 0.2905317937 | AH57: 0.3086614366 | AI57: 0.3045352091 | AJ57: 0.3056822696 | AK57: 0.3084284458 | AL57: 0.3111746221 | AM57: 0.3139207983 | AN57: 0.3166669746 | AO57: 0.3194131509 | AP57: 0.3189541978 | AQ57: 0.3184952448 | AR57: 0.3180362917 | AS57: 0.3175773387 | AT57: 0.3171183856 | AU57: 0.3165499741 | AV57: 0.3159815626 | AW57: 0.3154131511 | AX57: 0.3148447396 | AY57: 0.314276328 | AZ57: 0.3137127851 | BA57: 0.3131492421 | BB57: 0.3125856992 | BC57: 0.3120221563 | BD57: 0.3114586133 | BE57: 4.06293835 | BF57: 4.045625729 | BG57: 4.047777791 | BH57: 4.06293835 | BI57: 4.132033982 | BJ57: 4.152478299 | BK57: 4.548825969 | BL57: 4.715064555 | BM57: 4.881303142 | BN57: 5.047541728 | BO57: 5.213780315 | BP57: 5.380018901 | BQ57: 5.416089976 | BR57: 5.45216105 | BS57: 5.488232125 | BT57: 5.524303199 | BU57: 5.560374273 | BV57: 5.594714874 | BW57: 5.629055475 | BX57: 5.663396075 | BY57: 5.697736676 | BZ57: 5.732077277 | CA57: 5.784935565 | CB57: 5.837793854 | CC57: 5.890652143 | CD57: 5.943510431 | CE57: 5.99636872 | CF57: NA | CG57: NA | CH57: NA | CI57: NA | CJ57: NA | CK57: NA | CL57: NA | CM57: NA | CN57: NA | CO57: NA | CP57: NA | CQ57: NA | CR57: NA | CS57: NA | CT57: NA | CU57: NA | CV57: NA | CW57: NA | CX57: NA | CY57: NA | CZ57: NA | DA57: NA | DB57: NA | DC57: NA | DD57: NA | DE57: NA | DF57: NA | DG57: NA | DH57: NA | DI57: NA | DJ57: NA | DK57: NA | DL57: NA | DM57: NA | DN57: NA | DO57: NA | DP57: NA | DQ57: NA | DR57: NA | DS57: NA | DT57: NA | DU57: NA | DV57: NA | DW57: NA | DX57: NA | DY57: NA | DZ57: NA | EA57: NA | EB57: NA | EC57: NA | ED57: NA | EE57: NA | EF57: NA | EG57: NA | EH57: NA | EI57: NA | EJ57: NA | EK57: NA | EL57: NA | EM57: NA | EN57: NA | EO57: NA | EP57: NA | EQ57: NA | ER57: NA | ES57: NA | ET57: NA | EU57: NA | EV57: NA | EW57: NA | EX57: NA | EY57: NA | EZ57: NA | FA57: NA | FB57: NA | FC57: NA | FD57: NA | FE57: NA | FF57: NA | FG57: NA | FH57: NA | FI57: NA | FJ57: NA | FK57: NA | FL57: NA | FM57: NA | FN57: NA | FO57: NA | FP57: NA | FQ57: NA | FR57: NA | FS57: NA | FT57: NA | FU57: NA | FV57: NA | FW57: NA | FX57: NA | FY57: NA | FZ57: NA | GA57: NA | GB57: NA | GC57: NA | GD57: NA | GE57: NA | GF57: NA | GG57: NA | GH57: NA | GI57: NA | GJ57: 188.1519333 | GK57: 191.4916321 | GL57: 189.2834492 | GM57: 188.1519333 | GN57: 195.2819577 | GO57: 194.5634498 | GP57: 204.8139656 | GQ57: 209.7882907 | GR57: 214.7626159 | GS57: 219.7369411 | GT57: 224.7112663 | GU57: 229.6855915 | GV57: 230.4506003 | GW57: 231.2156092 | GX57: 231.9806181 | GY57: 232.7456269 | GZ57: 233.5106358 | HA57: 234.1997641 | HB57: 234.8888925 | HC57: 235.5780209 | HD57: 236.2671493 | HE57: 236.9562777 | HF57: 238.1097991 | HG57: 239.2633205 | HH57: 240.4168419 | HI57: 241.5703634 | HJ57: 242.7238848 | HK57: NO | HL57: NO | HM57: NO | HN57: NO | HO57: NO | HP57: NO | HQ57: NO | HR57: NO | HS57: NO | HT57: NO | HU57: NO | HV57: NO | HW57: NO | HX57: NO | HY57: NO | HZ57: NO | IA57: NO | IB57: NO | IC57: NO | ID57: NO | IE57: NO | IF57: NO | IG57: NO | IH57: NO | II57: NO | IJ57: NO | IK57: NO | IL57: =GJ57 -> 188.1519333 | IM57: 191.4916321 | IN57: 189.2834492 | IO57: 188.1519333 | IP57: 195.2819577 | IQ57: 194.5634498 | IR57: 204.8139656 | IS57: 209.7882907 | IT57: 214.7626159 | IU57: 219.7369411 | IV57: 224.7112663 | IW57: 229.6855915 | IX57: 230.4506003 | IY57: 231.2156092 | IZ57: 231.9806181 | JA57: 232.7456269 | JB57: 233.5106358 | JC57: 234.1997641 | JD57: 234.8888925 | JE57: 235.5780209 | JF57: 236.2671493 | JG57: 236.9562777 | JH57: 238.1097991 | JI57: 239.2633205 | JJ57: 240.4168419 | JK57: 241.5703634 | JL57: 242.7238848
A58: 3.C. Rice cultivation | B58: WEM | C58: NO | D58: NO | E58: NO | F58: NO | G58: NO | H58: NO | I58: NO | J58: NO | K58: NO | L58: NO | M58: NO | N58: NO | O58: NO | P58: NO | Q58: NO | R58: NO | S58: NO | T58: NO | U58: NO | V58: NO | W58: NO | X58: NO | Y58: NO | Z58: NO | AA58: NO | AB58: NO | AC58: NO | AD58: NO | AE58: NO | AF58: NO | AG58: NO | AH58: NO | AI58: NO | AJ58: NO | AK58: NO | AL58: NO | AM58: NO | AN58: NO | AO58: NO | AP58: NO | AQ58: NO | AR58: NO | AS58: NO | AT58: NO | AU58: NO | AV58: NO | AW58: NO | AX58: NO | AY58: NO | AZ58: NO | BA58: NO | BB58: NO | BC58: NO | BD58: NO | BE58: NO | BF58: NO | BG58: NO | BH58: NO | BI58: NO | BJ58: NO | BK58: NO | BL58: NO | BM58: NO | BN58: NO | BO58: NO | BP58: NO | BQ58: NO | BR58: NO | BS58: NO | BT58: NO | BU58: NO | BV58: NO | BW58: NO | BX58: NO | BY58: NO | BZ58: NO | CA58: NO | CB58: NO | CC58: NO | CD58: NO | CE58: NO | CF58: NO | CG58: NO | CH58: NO | CI58: NO | CJ58: NO | CK58: NO | CL58: NO | CM58: NO | CN58: NO | CO58: NO | CP58: NO | CQ58: NO | CR58: NO | CS58: NO | CT58: NO | CU58: NO | CV58: NO | CW58: NO | CX58: NO | CY58: NO | CZ58: NO | DA58: NO | DB58: NO | DC58: NO | DD58: NO | DE58: NO | DF58: NO | DG58: NO | DH58: NO | DI58: NO | DJ58: NO | DK58: NO | DL58: NO | DM58: NO | DN58: NO | DO58: NO | DP58: NO | DQ58: NO | DR58: NO | DS58: NO | DT58: NO | DU58: NO | DV58: NO | DW58: NO | DX58: NO | DY58: NO | DZ58: NO | EA58: NO | EB58: NO | EC58: NO | ED58: NO | EE58: NO | EF58: NO | EG58: NO | EH58: NO | EI58: NO | EJ58: NO | EK58: NO | EL58: NO | EM58: NO | EN58: NO | EO58: NO | EP58: NO | EQ58: NO | ER58: NO | ES58: NO | ET58: NO | EU58: NO | EV58: NO | EW58: NO | EX58: NO | EY58: NO | EZ58: NO | FA58: NO | FB58: NO | FC58: NO | FD58: NO | FE58: NO | FF58: NO | FG58: NO | FH58: NO | FI58: NO | FJ58: NO | FK58: NO | FL58: NO | FM58: NO | FN58: NO | FO58: NO | FP58: NO | FQ58: NO | FR58: NO | FS58: NO | FT58: NO | FU58: NO | FV58: NO | FW58: NO | FX58: NO | FY58: NO | FZ58: NO | GA58: NO | GB58: NO | GC58: NO | GD58: NO | GE58: NO | GF58: NO | GG58: NO | GH58: NO | GI58: NO | GJ58: NO | GK58: NO | GL58: NO | GM58: NO | GN58: NO | GO58: NO | GP58: NO | GQ58: NO | GR58: NO | GS58: NO | GT58: NO | GU58: NO | GV58: NO | GW58: NO | GX58: NO | GY58: NO | GZ58: NO | HA58: NO | HB58: NO | HC58: NO | HD58: NO | HE58: NO | HF58: NO | HG58: NO | HH58: NO | HI58: NO | HJ58: NO | HK58: NO | HL58: NO | HM58: NO | HN58: NO | HO58: NO | HP58: NO | HQ58: NO | HR58: NO | HS58: NO | HT58: NO | HU58: NO | HV58: NO | HW58: NO | HX58: NO | HY58: NO | HZ58: NO | IA58: NO | IB58: NO | IC58: NO | ID58: NO | IE58: NO | IF58: NO | IG58: NO | IH58: NO | II58: NO | IJ58: NO | IK58: NO | IL58: =GJ58 -> NO | IM58: NO | IN58: NO | IO58: NO | IP58: NO | IQ58: NO | IR58: NO | IS58: NO | IT58: NO | IU58: NO | IV58: NO | IW58: NO | IX58: NO | IY58: NO | IZ58: NO | JA58: NO | JB58: NO | JC58: NO | JD58: NO | JE58: NO | JF58: NO | JG58: NO | JH58: NO | JI58: NO | JJ58: NO | JK58: NO | JL58: NO
A59: 3.D. Agricultural soils | B59: WEM | C59: NA | D59: NA | E59: NA | F59: NA | G59: NA | H59: NA | I59: NA | J59: NA | K59: NA | L59: NA | M59: NA | N59: NA | O59: NA | P59: NA | Q59: NA | R59: NA | S59: NA | T59: NA | U59: NA | V59: NA | W59: NA | X59: NA | Y59: NA | Z59: NA | AA59: NA | AB59: NA | AC59: NA | AD59: 5.680938583 | AE59: 5.684768314 | AF59: 5.658310249 | AG59: 5.680938583 | AH59: 5.624308017 | AI59: 5.76820195 | AJ59: 5.834520661 | AK59: 5.875271234 | AL59: 5.916021807 | AM59: 5.95677238 | AN59: 5.997522952 | AO59: 6.038273525 | AP59: 6.056646585 | AQ59: 6.075019645 | AR59: 6.093392704 | AS59: 6.111765764 | AT59: 6.130138823 | AU59: 6.141433748 | AV59: 6.152728673 | AW59: 6.164023597 | AX59: 6.175318522 | AY59: 6.186613447 | AZ59: 6.196426798 | BA59: 6.20624015 | BB59: 6.216053501 | BC59: 6.225866853 | BD59: 6.235680204 | BE59: NE | BF59: NE | BG59: NE | BH59: NE | BI59: NE | BJ59: NE | BK59: NE | BL59: NE | BM59: NE | BN59: NE | BO59: NE | BP59: NE | BQ59: NE | BR59: NE | BS59: NE | BT59: NE | BU59: NE | BV59: NE | BW59: NE | BX59: NE | BY59: NE | BZ59: NE | CA59: NE | CB59: NE | CC59: NE | CD59: NE | CE59: NE | CF59: NA | CG59: NA | CH59: NA | CI59: NA | CJ59: NA | CK59: NA | CL59: NA | CM59: NA | CN59: NA | CO59: NA | CP59: NA | CQ59: NA | CR59: NA | CS59: NA | CT59: NA | CU59: NA | CV59: NA | CW59: NA | CX59: NA | CY59: NA | CZ59: NA | DA59: NA | DB59: NA | DC59: NA | DD59: NA | DE59: NA | DF59: NA | DG59: NA | DH59: NA | DI59: NA | DJ59: NA | DK59: NA | DL59: NA | DM59: NA | DN59: NA | DO59: NA | DP59: NA | DQ59: NA | DR59: NA | DS59: NA | DT59: NA | DU59: NA | DV59: NA | DW59: NA | DX59: NA | DY59: NA | DZ59: NA | EA59: NA | EB59: NA | EC59: NA | ED59: NA | EE59: NA | EF59: NA | EG59: NA | EH59: NA | EI59: NA | EJ59: NA | EK59: NA | EL59: NA | EM59: NA | EN59: NA | EO59: NA | EP59: NA | EQ59: NA | ER59: NA | ES59: NA | ET59: NA | EU59: NA | EV59: NA | EW59: NA | EX59: NA | EY59: NA | EZ59: NA | FA59: NA | FB59: NA | FC59: NA | FD59: NA | FE59: NA | FF59: NA | FG59: NA | FH59: NA | FI59: NA | FJ59: NA | FK59: NA | FL59: NA | FM59: NA | FN59: NA | FO59: NA | FP59: NA | FQ59: NA | FR59: NA | FS59: NA | FT59: NA | FU59: NA | FV59: NA | FW59: NA | FX59: NA | FY59: NA | FZ59: NA | GA59: NA | GB59: NA | GC59: NA | GD59: NA | GE59: NA | GF59: NA | GG59: NA | GH59: NA | GI59: NA | GJ59: 1692.919698 | GK59: 1694.060958 | GL59: 1686.176454 | GM59: 1692.919698 | GN59: 1676.043789 | GO59: 1718.924181 | GP59: 1738.687157 | GQ59: 1750.830828 | GR59: 1762.974498 | GS59: 1775.118169 | GT59: 1787.26184 | GU59: 1799.405511 | GV59: 1804.880682 | GW59: 1810.355854 | GX59: 1815.831026 | GY59: 1821.306198 | GZ59: 1826.781369 | HA59: 1830.147257 | HB59: 1833.513144 | HC59: 1836.879032 | HD59: 1840.24492 | HE59: 1843.610807 | HF59: 1846.535186 | HG59: 1849.459565 | HH59: 1852.383943 | HI59: 1855.308322 | HJ59: 1858.232701 | HK59: NO | HL59: NO | HM59: NO | HN59: NO | HO59: NO | HP59: NO | HQ59: NO | HR59: NO | HS59: NO | HT59: NO | HU59: NO | HV59: NO | HW59: NO | HX59: NO | HY59: NO | HZ59: NO | IA59: NO | IB59: NO | IC59: NO | ID59: NO | IE59: NO | IF59: NO | IG59: NO | IH59: NO | II59: NO | IJ59: NO | IK59: NO | IL59: 1692.919698 | IM59: 1694.060958 | IN59: 1686.176454 | IO59: 1692.919698 | IP59: 1676.043789 | IQ59: 1718.924181 | IR59: 1738.687157 | IS59: 1750.830828 | IT59: 1762.974498 | IU59: 1775.118169 | IV59: 1787.26184 | IW59: 1799.405511 | IX59: 1804.880682 | IY59: 1810.355854 | IZ59: 1815.831026 | JA59: 1821.306198 | JB59: 1826.781369 | JC59: 1830.147257 | JD59: 1833.513144 | JE59: 1836.879032 | JF59: 1840.24492 | JG59: 1843.610807 | JH59: 1846.535186 | JI59: 1849.459565 | JJ59: 1852.383943 | JK59: 1855.308322 | JL59: 1858.232701
A60: 3.E. Prescribed burning of savannahs | B60: WEM | C60: NO | D60: NO | E60: NO | F60: NO | G60: NO | H60: NO | I60: NO | J60: NO | K60: NO | L60: NO | M60: NO | N60: NO | O60: NO | P60: NO | Q60: NO | R60: NO | S60: NO | T60: NO | U60: NO | V60: NO | W60: NO | X60: NO | Y60: NO | Z60: NO | AA60: NO | AB60: NO | AC60: NO | AD60: NO | AE60: NO | AF60: NO | AG60: NO | AH60: NO | AI60: NO | AJ60: NO | AK60: NO | AL60: NO | AM60: NO | AN60: NO | AO60: NO | AP60: NO | AQ60: NO | AR60: NO | AS60: NO | AT60: NO | AU60: NO | AV60: NO | AW60: NO | AX60: NO | AY60: NO | AZ60: NO | BA60: NO | BB60: NO | BC60: NO | BD60: NO | BE60: NO | BF60: NO | BG60: NO | BH60: NO | BI60: NO | BJ60: NO | BK60: NO | BL60: NO | BM60: NO | BN60: NO | BO60: NO | BP60: NO | BQ60: NO | BR60: NO | BS60: NO | BT60: NO | BU60: NO | BV60: NO | BW60: NO | BX60: NO | BY60: NO | BZ60: NO | CA60: NO | CB60: NO | CC60: NO | CD60: NO | CE60: NO | CF60: NO | CG60: NO | CH60: NO | CI60: NO | CJ60: NO | CK60: NO | CL60: NO | CM60: NO | CN60: NO | CO60: NO | CP60: NO | CQ60: NO | CR60: NO | CS60: NO | CT60: NO | CU60: NO | CV60: NO | CW60: NO | CX60: NO | CY60: NO | CZ60: NO | DA60: NO | DB60: NO | DC60: NO | DD60: NO | DE60: NO | DF60: NO | DG60: NO | DH60: NO | DI60: NO | DJ60: NO | DK60: NO | DL60: NO | DM60: NO | DN60: NO | DO60: NO | DP60: NO | DQ60: NO | DR60: NO | DS60: NO | DT60: NO | DU60: NO | DV60: NO | DW60: NO | DX60: NO | DY60: NO | DZ60: NO | EA60: NO | EB60: NO | EC60: NO | ED60: NO | EE60: NO | EF60: NO | EG60: NO | EH60: NO | EI60: NO | EJ60: NO | EK60: NO | EL60: NO | EM60: NO | EN60: NO | EO60: NO | EP60: NO | EQ60: NO | ER60: NO | ES60: NO | ET60: NO | EU60: NO | EV60: NO | EW60: NO | EX60: NO | EY60: NO | EZ60: NO | FA60: NO | FB60: NO | FC60: NO | FD60: NO | FE60: NO | FF60: NO | FG60: NO | FH60: NO | FI60: NO | FJ60: NO | FK60: NO | FL60: NO | FM60: NO | FN60: NO | FO60: NO | FP60: NO | FQ60: NO | FR60: NO | FS60: NO | FT60: NO | FU60: NO | FV60: NO | FW60: NO | FX60: NO | FY60: NO | FZ60: NO | GA60: NO | GB60: NO | GC60: NO | GD60: NO | GE60: NO | GF60: NO | GG60: NO | GH60: NO | GI60: NO | GJ60: NO | GK60: NO | GL60: NO | GM60: NO | GN60: NO | GO60: NO | GP60: NO | GQ60: NO | GR60: NO | GS60: NO | GT60: NO | GU60: NO | GV60: NO | GW60: NO | GX60: NO | GY60: NO | GZ60: NO | HA60: NO | HB60: NO | HC60: NO | HD60: NO | HE60: NO | HF60: NO | HG60: NO | HH60: NO | HI60: NO | HJ60: NO | HK60: NO | HL60: NO | HM60: NO | HN60: NO | HO60: NO | HP60: NO | HQ60: NO | HR60: NO | HS60: NO | HT60: NO | HU60: NO | HV60: NO | HW60: NO | HX60: NO | HY60: NO | HZ60: NO | IA60: NO | IB60: NO | IC60: NO | ID60: NO | IE60: NO | IF60: NO | IG60: NO | IH60: NO | II60: NO | IJ60: NO | IK60: NO | IL60: NO | IM60: NO | IN60: NO | IO60: NO | IP60: NO | IQ60: NO | IR60: NO | IS60: NO | IT60: NO | IU60: NO | IV60: NO | IW60: NO | IX60: NO | IY60: NO | IZ60: NO | JA60: NO | JB60: NO | JC60: NO | JD60: NO | JE60: NO | JF60: NO | JG60: NO | JH60: NO | JI60: NO | JJ60: NO | JK60: NO | JL60: NO
A61: 3.F. Field burning of agricultural residues | B61: WEM | C61: NO | D61: NO | E61: NO | F61: NO | G61: NO | H61: NO | I61: NO | J61: NO | K61: NO | L61: NO | M61: NO | N61: NO | O61: NO | P61: NO | Q61: NO | R61: NO | S61: NO | T61: NO | U61: NO | V61: NO | W61: NO | X61: NO | Y61: NO | Z61: NO | AA61: NO | AB61: NO | AC61: NO | AD61: NO | AE61: NO | AF61: NO | AG61: NO | AH61: NO | AI61: NO | AJ61: NO | AK61: NO | AL61: NO | AM61: NO | AN61: NO | AO61: NO | AP61: NO | AQ61: NO | AR61: NO | AS61: NO | AT61: NO | AU61: NO | AV61: NO | AW61: NO | AX61: NO | AY61: NO | AZ61: NO | BA61: NO | BB61: NO | BC61: NO | BD61: NO | BE61: NO | BF61: NO | BG61: NO | BH61: NO | BI61: NO | BJ61: NO | BK61: NO | BL61: NO | BM61: NO | BN61: NO | BO61: NO | BP61: NO | BQ61: NO | BR61: NO | BS61: NO | BT61: NO | BU61: NO | BV61: NO | BW61: NO | BX61: NO | BY61: NO | BZ61: NO | CA61: NO | CB61: NO | CC61: NO | CD61: NO | CE61: NO | CF61: NO | CG61: NO | CH61: NO | CI61: NO | CJ61: NO | CK61: NO | CL61: NO | CM61: NO | CN61: NO | CO61: NO | CP61: NO | CQ61: NO | CR61: NO | CS61: NO | CT61: NO | CU61: NO | CV61: NO | CW61: NO | CX61: NO | CY61: NO | CZ61: NO | DA61: NO | DB61: NO | DC61: NO | DD61: NO | DE61: NO | DF61: NO | DG61: NO | DH61: NO | DI61: NO | DJ61: NO | DK61: NO | DL61: NO | DM61: NO | DN61: NO | DO61: NO | DP61: NO | DQ61: NO | DR61: NO | DS61: NO | DT61: NO | DU61: NO | DV61: NO | DW61: NO | DX61: NO | DY61: NO | DZ61: NO | EA61: NO | EB61: NO | EC61: NO | ED61: NO | EE61: NO | EF61: NO | EG61: NO | EH61: NO | EI61: NO | EJ61: NO | EK61: NO | EL61: NO | EM61: NO | EN61: NO | EO61: NO | EP61: NO | EQ61: NO | ER61: NO | ES61: NO | ET61: NO | EU61: NO | EV61: NO | EW61: NO | EX61: NO | EY61: NO | EZ61: NO | FA61: NO | FB61: NO | FC61: NO | FD61: NO | FE61: NO | FF61: NO | FG61: NO | FH61: NO | FI61: NO | FJ61: NO | FK61: NO | FL61: NO | FM61: NO | FN61: NO | FO61: NO | FP61: NO | FQ61: NO | FR61: NO | FS61: NO | FT61: NO | FU61: NO | FV61: NO | FW61: NO | FX61: NO | FY61: NO | FZ61: NO | GA61: NO | GB61: NO | GC61: NO | GD61: NO | GE61: NO | GF61: NO | GG61: NO | GH61: NO | GI61: NO | GJ61: NO | GK61: NO | GL61: NO | GM61: NO | GN61: NO | GO61: NO | GP61: NO | GQ61: NO | GR61: NO | GS61: NO | GT61: NO | GU61: NO | GV61: NO | GW61: NO | GX61: NO | GY61: NO | GZ61: NO | HA61: NO | HB61: NO | HC61: NO | HD61: NO | HE61: NO | HF61: NO | HG61: NO | HH61: NO | HI61: NO | HJ61: NO | HK61: NO | HL61: NO | HM61: NO | HN61: NO | HO61: NO | HP61: NO | HQ61: NO | HR61: NO | HS61: NO | HT61: NO | HU61: NO | HV61: NO | HW61: NO | HX61: NO | HY61: NO | HZ61: NO | IA61: NO | IB61: NO | IC61: NO | ID61: NO | IE61: NO | IF61: NO | IG61: NO | IH61: NO | II61: NO | IJ61: NO | IK61: NO | IL61: NO | IM61: NO | IN61: NO | IO61: NO | IP61: NO | IQ61: NO | IR61: NO | IS61: NO | IT61: NO | IU61: NO | IV61: NO | IW61: NO | IX61: NO | IY61: NO | IZ61: NO | JA61: NO | JB61: NO | JC61: NO | JD61: NO | JE61: NO | JF61: NO | JG61: NO | JH61: NO | JI61: NO | JJ61: NO | JK61: NO | JL61: NO
A62: 3.G. Liming | B62: WEM | C62: 24.42733333 | D62: 19.9375 | E62: 22.59583333 | F62: 24.42733333 | G62: 19.03194333 | H62: 20.12505705 | I62: 20.73089015 | J62: 21.29512429 | K62: 21.85935844 | L62: 22.42359259 | M62: 22.98782674 | N62: 23.55206089 | O62: 23.96519776 | P62: 24.37833464 | Q62: 24.79147151 | R62: 25.20460839 | S62: 25.61774526 | T62: 25.93187097 | U62: 26.24599668 | V62: 26.56012239 | W62: 26.8742481 | X62: 27.18837381 | Y62: 27.46369616 | Z62: 27.73901852 | AA62: 28.01434087 | AB62: 28.28966322 | AC62: 28.56498558 | AD62: NA | AE62: NA | AF62: NA | AG62: NA | AH62: NA | AI62: NA | AJ62: NA | AK62: NA | AL62: NA | AM62: NA | AN62: NA | AO62: NA | AP62: NA | AQ62: NA | AR62: NA | AS62: NA | AT62: NA | AU62: NA | AV62: NA | AW62: NA | AX62: NA | AY62: NA | AZ62: NA | BA62: NA | BB62: NA | BC62: NA | BD62: NA | BE62: NA | BF62: NA | BG62: NA | BH62: NA | BI62: NA | BJ62: NA | BK62: NA | BL62: NA | BM62: NA | BN62: NA | BO62: NA | BP62: NA | BQ62: NA | BR62: NA | BS62: NA | BT62: NA | BU62: NA | BV62: NA | BW62: NA | BX62: NA | BY62: NA | BZ62: NA | CA62: NA | CB62: NA | CC62: NA | CD62: NA | CE62: NA | CF62: NA | CG62: NA | CH62: NA | CI62: NA | CJ62: NA | CK62: NA | CL62: NA | CM62: NA | CN62: NA | CO62: NA | CP62: NA | CQ62: NA | CR62: NA | CS62: NA | CT62: NA | CU62: NA | CV62: NA | CW62: NA | CX62: NA | CY62: NA | CZ62: NA | DA62: NA | DB62: NA | DC62: NA | DD62: NA | DE62: NA | DF62: NA | DG62: NA | DH62: NA | DI62: NA | DJ62: NA | DK62: NA | DL62: NA | DM62: NA | DN62: NA | DO62: NA | DP62: NA | DQ62: NA | DR62: NA | DS62: NA | DT62: NA | DU62: NA | DV62: NA | DW62: NA | DX62: NA | DY62: NA | DZ62: NA | EA62: NA | EB62: NA | EC62: NA | ED62: NA | EE62: NA | EF62: NA | EG62: NA | EH62: NA | EI62: NA | EJ62: NA | EK62: NA | EL62: NA | EM62: NA | EN62: NA | EO62: NA | EP62: NA | EQ62: NA | ER62: NA | ES62: NA | ET62: NA | EU62: NA | EV62: NA | EW62: NA | EX62: NA | EY62: NA | EZ62: NA | FA62: NA | FB62: NA | FC62: NA | FD62: NA | FE62: NA | FF62: NA | FG62: NA | FH62: NA | FI62: NA | FJ62: NA | FK62: NA | FL62: NA | FM62: NA | FN62: NA | FO62: NA | FP62: NA | FQ62: NA | FR62: NA | FS62: NA | FT62: NA | FU62: NA | FV62: NA | FW62: NA | FX62: NA | FY62: NA | FZ62: NA | GA62: NA | GB62: NA | GC62: NA | GD62: NA | GE62: NA | GF62: NA | GG62: NA | GH62: NA | GI62: NA | GJ62: 24.42733333 | GK62: 19.9375 | GL62: 22.59583333 | GM62: 24.42733333 | GN62: =G62 -> 19.03194333 | GO62: 20.12505705 | GP62: 20.73089015 | GQ62: 21.29512429 | GR62: 21.85935844 | GS62: 22.42359259 | GT62: 22.98782674 | GU62: 23.55206089 | GV62: 23.96519776 | GW62: 24.37833464 | GX62: 24.79147151 | GY62: 25.20460839 | GZ62: 25.61774526 | HA62: 25.93187097 | HB62: 26.24599668 | HC62: 26.56012239 | HD62: 26.8742481 | HE62: 27.18837381 | HF62: 27.46369616 | HG62: 27.73901852 | HH62: 28.01434087 | HI62: 28.28966322 | HJ62: 28.56498558 | HK62: NO | HL62: NO | HM62: NO | HN62: NO | HO62: NO | HP62: NO | HQ62: NO | HR62: NO | HS62: NO | HT62: NO | HU62: NO | HV62: NO | HW62: NO | HX62: NO | HY62: NO | HZ62: NO | IA62: NO | IB62: NO | IC62: NO | ID62: NO | IE62: NO | IF62: NO | IG62: NO | IH62: NO | II62: NO | IJ62: NO | IK62: NO | IL62: 24.42733333 | IM62: 19.9375 | IN62: 22.59583333 | IO62: 24.42733333 | IP62: 19.03194333 | IQ62: 20.12505705 | IR62: 20.73089015 | IS62: 21.29512429 | IT62: 21.85935844 | IU62: 22.42359259 | IV62: 22.98782674 | IW62: 23.55206089 | IX62: 23.96519776 | IY62: 24.37833464 | IZ62: 24.79147151 | JA62: =GY62 -> 25.20460839 | JB62: 25.61774526 | JC62: 25.93187097 | JD62: 26.24599668 | JE62: 26.56012239 | JF62: 26.8742481 | JG62: 27.18837381 | JH62: 27.46369616 | JI62: 27.73901852 | JJ62: 28.01434087 | JK62: 28.28966322 | JL62: 28.56498558
A63: 3.H. Urea application | B63: WEM | C63: 9.4754 | D63: 6.21016 | E63: 7.931 | F63: 9.4754 | G63: 7.931 | H63: 7.931 | I63: 7.931 | J63: 7.931 | K63: 7.931 | L63: 7.931 | M63: 7.931 | N63: 7.931 | O63: 7.931 | P63: 7.931 | Q63: 7.931 | R63: 7.931 | S63: 7.931 | T63: 7.931 | U63: 7.931 | V63: 7.931 | W63: 7.931 | X63: 7.931 | Y63: 7.931 | Z63: 7.931 | AA63: 7.931 | AB63: 7.931 | AC63: 7.931 | AD63: NA | AE63: NA | AF63: NA | AG63: NA | AH63: NA | AI63: NA | AJ63: NA | AK63: NA | AL63: NA | AM63: NA | AN63: NA | AO63: NA | AP63: NA | AQ63: NA | AR63: NA | AS63: NA | AT63: NA | AU63: NA | AV63: NA | AW63: NA | AX63: NA | AY63: NA | AZ63: NA | BA63: NA | BB63: NA | BC63: NA | BD63: NA | BE63: NA | BF63: NA | BG63: NA | BH63: NA | BI63: NA | BJ63: NA | BK63: NA | BL63: NA | BM63: NA | BN63: NA | BO63: NA | BP63: NA | BQ63: NA | BR63: NA | BS63: NA | BT63: NA | BU63: NA | BV63: NA | BW63: NA | BX63: NA | BY63: NA | BZ63: NA | CA63: NA | CB63: NA | CC63: NA | CD63: NA | CE63: NA | CF63: NA | CG63: NA | CH63: NA | CI63: NA | CJ63: NA | CK63: NA | CL63: NA | CM63: NA | CN63: NA | CO63: NA | CP63: NA | CQ63: NA | CR63: NA | CS63: NA | CT63: NA | CU63: NA | CV63: NA | CW63: NA | CX63: NA | CY63: NA | CZ63: NA | DA63: NA | DB63: NA | DC63: NA | DD63: NA | DE63: NA | DF63: NA | DG63: NA | DH63: NA | DI63: NA | DJ63: NA | DK63: NA | DL63: NA | DM63: NA | DN63: NA | DO63: NA | DP63: NA | DQ63: NA | DR63: NA | DS63: NA | DT63: NA | DU63: NA | DV63: NA | DW63: NA | DX63: NA | DY63: NA | DZ63: NA | EA63: NA | EB63: NA | EC63: NA | ED63: NA | EE63: NA | EF63: NA | EG63: NA | EH63: NA | EI63: NA | EJ63: NA | EK63: NA | EL63: NA | EM63: NA | EN63: NA | EO63: NA | EP63: NA | EQ63: NA | ER63: NA | ES63: NA | ET63: NA | EU63: NA | EV63: NA | EW63: NA | EX63: NA | EY63: NA | EZ63: NA | FA63: NA | FB63: NA | FC63: NA | FD63: NA | FE63: NA | FF63: NA | FG63: NA | FH63: NA | FI63: NA | FJ63: NA | FK63: NA | FL63: NA | FM63: NA | FN63: NA | FO63: NA | FP63: NA | FQ63: NA | FR63: NA | FS63: NA | FT63: NA | FU63: NA | FV63: NA | FW63: NA | FX63: NA | FY63: NA | FZ63: NA | GA63: NA | GB63: NA | GC63: NA | GD63: NA | GE63: NA | GF63: NA | GG63: NA | GH63: NA | GI63: NA | GJ63: 9.4754 | GK63: 6.21016 | GL63: 7.931 | GM63: 9.4754 | GN63: 7.931 | GO63: 7.931 | GP63: 7.931 | GQ63: 7.931 | GR63: 7.931 | GS63: 7.931 | GT63: 7.931 | GU63: 7.931 | GV63: 7.931 | GW63: 7.931 | GX63: 7.931 | GY63: 7.931 | GZ63: 7.931 | HA63: 7.931 | HB63: 7.931 | HC63: 7.931 | HD63: 7.931 | HE63: 7.931 | HF63: 7.931 | HG63: 7.931 | HH63: 7.931 | HI63: 7.931 | HJ63: 7.931 | HK63: NO | HL63: NO | HM63: NO | HN63: NO | HO63: NO | HP63: NO | HQ63: NO | HR63: NO | HS63: NO | HT63: NO | HU63: NO | HV63: NO | HW63: NO | HX63: NO | HY63: NO | HZ63: NO | IA63: NO | IB63: NO | IC63: NO | ID63: NO | IE63: NO | IF63: NO | IG63: NO | IH63: NO | II63: NO | IJ63: NO | IK63: NO | IL63: 9.4754 | IM63: 6.21016 | IN63: 7.931 | IO63: 9.4754 | IP63: 7.931 | IQ63: 7.931 | IR63: 7.931 | IS63: 7.931 | IT63: 7.931 | IU63: 7.931 | IV63: 7.931 | IW63: 7.931 | IX63: 7.931 | IY63: 7.931 | IZ63: 7.931 | JA63: 7.931 | JB63: 7.931 | JC63: 7.931 | JD63: 7.931 | JE63: 7.931 | JF63: 7.931 | JG63: 7.931 | JH63: 7.931 | JI63: 7.931 | JJ63: 7.931 | JK63: 7.931 | JL63: 7.931
A64: 3.I. Other carbon-containing fertilizers | B64: WEM | C64: NO | D64: NO | E64: NO | F64: NO | G64: NO | H64: NO | I64: NO | J64: NO | K64: NO | L64: NO | M64: NO | N64: NO | O64: NO | P64: NO | Q64: NO | R64: NO | S64: NO | T64: NO | U64: NO | V64: NO | W64: NO | X64: NO | Y64: NO | Z64: NO | AA64: NO | AB64: NO | AC64: NO | AD64: NO | AE64: NO | AF64: NO | AG64: NO | AH64: NO | AI64: NO | AJ64: NO | AK64: NO | AL64: NO | AM64: NO | AN64: NO | AO64: NO | AP64: NO | AQ64: NO | AR64: NO | AS64: NO | AT64: NO | AU64: NO | AV64: NO | AW64: NO | AX64: NO | AY64: NO | AZ64: NO | BA64: NO | BB64: NO | BC64: NO | BD64: NO | BE64: NO | BF64: NO | BG64: NO | BH64: NO | BI64: NO | BJ64: NO | BK64: NO | BL64: NO | BM64: NO | BN64: NO | BO64: NO | BP64: NO | BQ64: NO | BR64: NO | BS64: NO | BT64: NO | BU64: NO | BV64: NO | BW64: NO | BX64: NO | BY64: NO | BZ64: NO | CA64: NO | CB64: NO | CC64: NO | CD64: NO | CE64: NO | CF64: NO | CG64: NO | CH64: NO | CI64: NO | CJ64: NO | CK64: NO | CL64: NO | CM64: NO | CN64: NO | CO64: NO | CP64: NO | CQ64: NO | CR64: NO | CS64: NO | CT64: NO | CU64: NO | CV64: NO | CW64: NO | CX64: NO | CY64: NO | CZ64: NO | DA64: NO | DB64: NO | DC64: NO | DD64: NO | DE64: NO | DF64: NO | DG64: NO | DH64: NO | DI64: NO | DJ64: NO | DK64: NO | DL64: NO | DM64: NO | DN64: NO | DO64: NO | DP64: NO | DQ64: NO | DR64: NO | DS64: NO | DT64: NO | DU64: NO | DV64: NO | DW64: NO | DX64: NO | DY64: NO | DZ64: NO | EA64: NO | EB64: NO | EC64: NO | ED64: NO | EE64: NO | EF64: NO | EG64: NO | EH64: NO | EI64: NO | EJ64: NO | EK64: NO | EL64: NO | EM64: NO | EN64: NO | EO64: NO | EP64: NO | EQ64: NO | ER64: NO | ES64: NO | ET64: NO | EU64: NO | EV64: NO | EW64: NO | EX64: NO | EY64: NO | EZ64: NO | FA64: NO | FB64: NO | FC64: NO | FD64: NO | FE64: NO | FF64: NO | FG64: NO | FH64: NO | FI64: NO | FJ64: NO | FK64: NO | FL64: NO | FM64: NO | FN64: NO | FO64: NO | FP64: NO | FQ64: NO | FR64: NO | FS64: NO | FT64: NO | FU64: NO | FV64: NO | FW64: NO | FX64: NO | FY64: NO | FZ64: NO | GA64: NO | GB64: NO | GC64: NO | GD64: NO | GE64: NO | GF64: NO | GG64: NO | GH64: NO | GI64: NO | GJ64: NO | GK64: NO | GL64: NO | GM64: NO | GN64: NO | GO64: NO | GP64: NO | GQ64: NO | GR64: NO | GS64: NO | GT64: NO | GU64: NO | GV64: NO | GW64: NO | GX64: NO | GY64: NO | GZ64: NO | HA64: NO | HB64: NO | HC64: NO | HD64: NO | HE64: NO | HF64: NO | HG64: NO | HH64: NO | HI64: NO | HJ64: NO | HK64: NO | HL64: NO | HM64: NO | HN64: NO | HO64: NO | HP64: NO | HQ64: NO | HR64: NO | HS64: NO | HT64: NO | HU64: NO | HV64: NO | HW64: NO | HX64: NO | HY64: NO | HZ64: NO | IA64: NO | IB64: NO | IC64: NO | ID64: NO | IE64: NO | IF64: NO | IG64: NO | IH64: NO | II64: NO | IJ64: NO | IK64: NO | IL64: NO | IM64: NO | IN64: NO | IO64: NO | IP64: NO | IQ64: NO | IR64: NO | IS64: NO | IT64: NO | IU64: NO | IV64: NO | IW64: NO | IX64: NO | IY64: NO | IZ64: NO | JA64: NO | JB64: NO | JC64: NO | JD64: NO | JE64: NO | JF64: NO | JG64: NO | JH64: NO | JI64: NO | JJ64: NO | JK64: NO | JL64: NO
A65: 3.J. Other (please specify) | B65: WEM | C65: NO | D65: NO | E65: NO | F65: NO | G65: NO | H65: NO | I65: NO | J65: NO | K65: NO | L65: NO | M65: NO | N65: NO | O65: NO | P65: NO | Q65: NO | R65: NO | S65: NO | T65: NO | U65: NO | V65: NO | W65: NO | X65: NO | Y65: NO | Z65: NO | AA65: NO | AB65: NO | AC65: NO | AD65: NO | AE65: NO | AF65: NO | AG65: NO | AH65: NO | AI65: NO | AJ65: NO | AK65: NO | AL65: NO | AM65: NO | AN65: NO | AO65: NO | AP65: NO | AQ65: NO | AR65: NO | AS65: NO | AT65: NO | AU65: NO | AV65: NO | AW65: NO | AX65: NO | AY65: NO | AZ65: NO | BA65: NO | BB65: NO | BC65: NO | BD65: NO | BE65: NO | BF65: NO | BG65: NO | BH65: NO | BI65: NO | BJ65: NO | BK65: NO | BL65: NO | BM65: NO | BN65: NO | BO65: NO | BP65: NO | BQ65: NO | BR65: NO | BS65: NO | BT65: NO | BU65: NO | BV65: NO | BW65: NO | BX65: NO | BY65: NO | BZ65: NO | CA65: NO | CB65: NO | CC65: NO | CD65: NO | CE65: NO | CF65: NO | CG65: NO | CH65: NO | CI65: NO | CJ65: NO | CK65: NO | CL65: NO | CM65: NO | CN65: NO | CO65: NO | CP65: NO | CQ65: NO | CR65: NO | CS65: NO | CT65: NO | CU65: NO | CV65: NO | CW65: NO | CX65: NO | CY65: NO | CZ65: NO | DA65: NO | DB65: NO | DC65: NO | DD65: NO | DE65: NO | DF65: NO | DG65: NO | DH65: NO | DI65: NO | DJ65: NO | DK65: NO | DL65: NO | DM65: NO | DN65: NO | DO65: NO | DP65: NO | DQ65: NO | DR65: NO | DS65: NO | DT65: NO | DU65: NO | DV65: NO | DW65: NO | DX65: NO | DY65: NO | DZ65: NO | EA65: NO | EB65: NO | EC65: NO | ED65: NO | EE65: NO | EF65: NO | EG65: NO | EH65: NO | EI65: NO | EJ65: NO | EK65: NO | EL65: NO | EM65: NO | EN65: NO | EO65: NO | EP65: NO | EQ65: NO | ER65: NO | ES65: NO | ET65: NO | EU65: NO | EV65: NO | EW65: NO | EX65: NO | EY65: NO | EZ65: NO | FA65: NO | FB65: NO | FC65: NO | FD65: NO | FE65: NO | FF65: NO | FG65: NO | FH65: NO | FI65: NO | FJ65: NO | FK65: NO | FL65: NO | FM65: NO | FN65: NO | FO65: NO | FP65: NO | FQ65: NO | FR65: NO | FS65: NO | FT65: NO | FU65: NO | FV65: NO | FW65: NO | FX65: NO | FY65: NO | FZ65: NO | GA65: NO | GB65: NO | GC65: NO | GD65: NO | GE65: NO | GF65: NO | GG65: NO | GH65: NO | GI65: NO | GJ65: NO | GK65: NO | GL65: NO | GM65: NO | GN65: NO | GO65: NO | GP65: NO | GQ65: NO | GR65: NO | GS65: NO | GT65: NO | GU65: NO | GV65: NO | GW65: NO | GX65: NO | GY65: NO | GZ65: NO | HA65: NO | HB65: NO | HC65: NO | HD65: NO | HE65: NO | HF65: NO | HG65: NO | HH65: NO | HI65: NO | HJ65: NO | HK65: NO | HL65: NO | HM65: NO | HN65: NO | HO65: NO | HP65: NO | HQ65: NO | HR65: NO | HS65: NO | HT65: NO | HU65: NO | HV65: NO | HW65: NO | HX65: NO | HY65: NO | HZ65: NO | IA65: NO | IB65: NO | IC65: NO | ID65: NO | IE65: NO | IF65: NO | IG65: NO | IH65: NO | II65: NO | IJ65: NO | IK65: NO | IL65: NO | IM65: NO | IN65: NO | IO65: NO | IP65: NO | IQ65: NO | IR65: NO | IS65: NO | IT65: NO | IU65: NO | IV65: NO | IW65: NO | IX65: NO | IY65: NO | IZ65: NO | JA65: NO | JB65: NO | JC65: NO | JD65: NO | JE65: NO | JF65: NO | JG65: NO | JH65: NO | JI65: NO | JJ65: NO | JK65: NO | JL65: NO
A66: 4. Land Use, Land-Use Change and Forestry | B66: WEM | C66: -2857.675563 | D66: 574.7171085 | E66: -1442.209222 | F66: -2857.675563 | G66: 794.809179 | H66: 852.3169747 | I66: 1020.0348 | J66: 1636.472042 | K66: 1896.059683 | L66: 2100.352833 | M66: 2325.260813 | N66: 2524.868743 | O66: 2784.368422 | P66: 3072.861229 | Q66: 3391.999745 | R66: 3507.885634 | S66: 3543.948836 | T66: 3183.932066 | U66: 3224.794652 | V66: 3264.491841 | W66: 3264.072648 | X66: 3329.190032 | Y66: 2962.299504 | Z66: 2979.440593 | AA66: 3004.420068 | AB66: 3028.836906 | AC66: 3053.029156 | AD66: =AD67+AD68+AD69+AD71+AD70 -> 2.070255 | AE66: =AE67+AE68+AE69+AE71+AE70 -> 2.061236 | AF66: 2.065604 | AG66: 2.070255 | AH66: 2.055885997 | AI66: 2.060351712 | AJ66: 2.061417577 | AK66: 2.061842874 | AL66: 2.0623141 | AM66: 2.062788533 | AN66: 2.06326485 | AO66: 2.063747175 | AP66: 2.064232076 | AQ66: 2.066049284 | AR66: 2.067727388 | AS66: 2.069404447 | AT66: 2.071080577 | AU66: 2.068679693 | AV66: 2.066351355 | AW66: 2.064015853 | AX66: 2.061673179 | AY66: 2.059319885 | AZ66: 2.056912686 | BA66: 2.054569175 | BB66: 2.052224299 | BC66: 2.049879506 | BD66: 2.047535698 | BE66: 21.32978745 | BF66: 20.29129996 | BG66: 20.7829567 | BH66: 21.32978745 | BI66: 18.47559836 | BJ66: 18.40895918 | BK66: 18.38309027 | BL66: 18.44158705 | BM66: 18.50366797 | BN66: 18.56571845 | BO66: 18.62780399 | BP66: 18.68991369 | BQ66: 18.75203817 | BR66: 18.81591912 | BS66: 18.87898591 | BT66: 18.94126514 | BU66: 19.00276835 | BV66: 19.06329527 | BW66: 19.12376599 | BX66: 19.18338685 | BY66: 19.24215072 | BZ66: 19.30002952 | CA66: 19.35059146 | CB66: 19.40759172 | CC66: 19.46457318 | CD66: 19.52153972 | CE66: 19.57849816 | CF66: NA | CG66: NA | CH66: NA | CI66: NA | CJ66: NA | CK66: NA | CL66: NA | CM66: NA | CN66: NA | CO66: NA | CP66: NA | CQ66: NA | CR66: NA | CS66: NA | CT66: NA | CU66: NA | CV66: NA | CW66: NA | CX66: NA | CY66: NA | CZ66: NA | DA66: NA | DB66: NA | DC66: NA | DD66: NA | DE66: NA | DF66: NA | DG66: NA | DH66: NA | DI66: NA | DJ66: NA | DK66: NA | DL66: NA | DM66: NA | DN66: NA | DO66: NA | DP66: NA | DQ66: NA | DR66: NA | DS66: NA | DT66: NA | DU66: NA | DV66: NA | DW66: NA | DX66: NA | DY66: NA | DZ66: NA | EA66: NA | EB66: NA | EC66: NA | ED66: NA | EE66: NA | EF66: NA | EG66: NA | EH66: NA | EI66: NA | EJ66: NA | EK66: NA | EL66: NA | EM66: NA | EN66: NA | EO66: NA | EP66: NA | EQ66: NA | ER66: NA | ES66: NA | ET66: NA | EU66: NA | EV66: NA | EW66: NA | EX66: NA | EY66: NA | EZ66: NA | FA66: NA | FB66: NA | FC66: NA | FD66: NA | FE66: NA | FF66: NA | FG66: NA | FH66: NA | FI66: NA | FJ66: NA | FK66: NA | FL66: NA | FM66: NA | FN66: NA | FO66: NA | FP66: NA | FQ66: NA | FR66: NA | FS66: NA | FT66: NA | FU66: NA | FV66: NA | FW66: NA | FX66: NA | FY66: NA | FZ66: NA | GA66: NA | GB66: NA | GC66: NA | GD66: NA | GE66: NA | GF66: NA | GG66: NA | GH66: NA | GI66: NA | GJ66: =C66+AD66*298+BE66*25 -> -1707.494887 | GK66: =D66+AE66*298+BF66*25 -> 1696.247936 | GL66: -307.0853126 | GM66: -1707.494887 | GN66: 1869.353165 | GO66: 1926.525764 | GP66: 2093.914495 | GQ66: 2711.940895 | GR66: 2973.220984 | GS66: 3179.206777 | GT66: 3405.808839 | GU66: 3607.113244 | GV66: 3868.310535 | GW66: 4158.941894 | GX66: 4480.157154 | GY66: 4598.099788 | GZ66: 4636.200057 | HA66: 4276.980996 | HB66: 4318.661506 | HC66: 4359.153236 | HD66: 4359.505023 | HE66: 4425.368096 | HF66: 4059.024271 | HG66: 4076.892 | HH66: 4102.597239 | HI66: 4127.739492 | HJ66: =HJ67+HJ68+HJ69+HJ70+HJ71+HJ73 -> 4152.657248 | HK66: NO, NA | HL66: NO, NA | HM66: NO, NA | HN66: NO, NA | HO66: NO, NA | HP66: NO, NA | HQ66: NO, NA | HR66: NO, NA | HS66: NO, NA | HT66: NO, NA | HU66: NO, NA | HV66: NO, NA | HW66: NO, NA | HX66: NO, NA | HY66: NO, NA | HZ66: NO, NA | IA66: NO, NA | IB66: NO, NA | IC66: NO, NA | ID66: NO, NA | IE66: NO, NA | IF66: NO, NA | IG66: NO, NA | IH66: NO, NA | II66: NO, NA | IJ66: NO, NA | IK66: NO, NA | IL66: NO, NA | IM66: NO, NA | IN66: NO, NA | IO66: NO, NA | IP66: NO, NA | IQ66: NO, NA | IR66: NO, NA | IS66: NO, NA | IT66: NO, NA | IU66: NO, NA | IV66: NO, NA | IW66: NO, NA | IX66: NO, NA | IY66: NO, NA | IZ66: NO, NA | JA66: NO, NA | JB66: NO, NA | JC66: NO, NA | JD66: NO, NA | JE66: NO, NA | JF66: NO, NA | JG66: NO, NA | JH66: NO, NA | JI66: NO, NA | JJ66: NO, NA | JK66: NO, NA | JL66: NO, NA
A67: 4.A. Forest land | B67: WEM | C67: -5808.298167 | D67: -2555.707288 | E67: -3834.026921 | F67: -5808.298167 | G67: -1539.123926 | H67: -1490.627672 | I67: -1331.43695 | J67: -753.9438989 | K67: -595.7882938 | L67: -440.9764081 | M67: -267.3962072 | N67: -120.2993538 | O67: 84.23038905 | P67: 294.7337361 | Q67: 544.9954301 | R67: 593.6027405 | S67: 562.6539485 | T67: 232.6519112 | U67: 215.6115833 | V67: 199.4657384 | W67: 143.9068503 | X67: 154.7742646 | Y67: -264.7021637 | Z67: -300.0241482 | AA67: -326.8097888 | AB67: -353.6478514 | AC67: -380.1262358 | AD67: 1.901131 | AE67: 1.902202 | AF67: 1.902037 | AG67: 1.901131 | AH67: 1.912466174 | AI67: 1.912687709 | AJ67: 1.912910933 | AK67: 1.91249729 | AL67: 1.912118062 | AM67: 1.91173824 | AN67: 1.911357809 | AO67: 1.910976865 | AP67: 1.910595455 | AQ67: 1.910214235 | AR67: 1.90983235 | AS67: 1.909449999 | AT67: 1.909067288 | AU67: 1.908991993 | AV67: 1.908915406 | AW67: 1.908838406 | AX67: 1.908761045 | AY67: 1.908683298 | AZ67: 1.908539488 | BA67: 1.90846119 | BB67: 1.908382502 | BC67: 1.908303417 | BD67: 1.90822393 | BE67: 9.474394 | BF67: 8.408955 | BG67: 8.979259 | BH67: 9.474394 | BI67: 9.059578172 | BJ67: 9.05284244 | BK67: 9.046278555 | BL67: 9.034798146 | BM67: 9.026816563 | BN67: 9.018774671 | BO67: 9.010670814 | BP67: 9.00251473 | BQ67: 8.994311366 | BR67: 8.986127314 | BS67: 8.977875569 | BT67: 8.969576542 | BU67: 8.961240891 | BV67: 8.953585882 | BW67: 8.945799478 | BX67: 8.937971158 | BY67: 8.930106182 | BZ67: 8.922201812 | CA67: 8.907581187 | CB67: 8.899620931 | CC67: 8.891620927 | CD67: 8.883580624 | CE67: 8.875499454 | CF67: NA | CG67: NA | CH67: NA | CI67: NA | CJ67: NA | CK67: NA | CL67: NA | CM67: NA | CN67: NA | CO67: NA | CP67: NA | CQ67: NA | CR67: NA | CS67: NA | CT67: NA | CU67: NA | CV67: NA | CW67: NA | CX67: NA | CY67: NA | CZ67: NA | DA67: NA | DB67: NA | DC67: NA | DD67: NA | DE67: NA | DF67: NA | DG67: NA | DH67: NA | DI67: NA | DJ67: NA | DK67: NA | DL67: NA | DM67: NA | DN67: NA | DO67: NA | DP67: NA | DQ67: NA | DR67: NA | DS67: NA | DT67: NA | DU67: NA | DV67: NA | DW67: NA | DX67: NA | DY67: NA | DZ67: NA | EA67: NA | EB67: NA | EC67: NA | ED67: NA | EE67: NA | EF67: NA | EG67: NA | EH67: NA | EI67: NA | EJ67: NA | EK67: NA | EL67: NA | EM67: NA | EN67: NA | EO67: NA | EP67: NA | EQ67: NA | ER67: NA | ES67: NA | ET67: NA | EU67: NA | EV67: NA | EW67: NA | EX67: NA | EY67: NA | EZ67: NA | FA67: NA | FB67: NA | FC67: NA | FD67: NA | FE67: NA | FF67: NA | FG67: NA | FH67: NA | FI67: NA | FJ67: NA | FK67: NA | FL67: NA | FM67: NA | FN67: NA | FO67: NA | FP67: NA | FQ67: NA | FR67: NA | FS67: NA | FT67: NA | FU67: NA | FV67: NA | FW67: NA | FX67: NA | FY67: NA | FZ67: NA | GA67: NA | GB67: NA | GC67: NA | GD67: NA | GE67: NA | GF67: NA | GG67: NA | GH67: NA | GI67: NA | GJ67: =C67+AD67*298+BE67*25 -> -5004.901279 | GK67: -1778.627217 | GL67: -3042.73842 | GM67: -5004.901279 | GN67: -742.7195513 | GO67: -694.3256744 | GP67: -535.2325285 | GQ67: 41.85024714 | GR67: 199.6933027 | GS67: 354.1909543 | GT67: 527.4551904 | GU67: 674.2346201 | GV67: 878.4456188 | GW67: 1088.630761 | GX67: 1338.57236 | GY67: 1386.858254 | GZ67: 1355.587023 | HA67: 1025.371172 | HB67: 1008.113361 | HC67: 991.7488622 | HD67: 935.9702964 | HE67: 946.6169326 | HF67: 526.7321334 | HG67: 491.1878099 | HH67: 464.1787199 | HI67: 437.1160824 | HJ67: 410.4119817 | HK67: NA | HL67: NA | HM67: NA | HN67: NA | HO67: NA | HP67: NA | HQ67: NA | HR67: NA | HS67: NA | HT67: NA | HU67: NA | HV67: NA | HW67: NA | HX67: NA | HY67: NA | HZ67: NA | IA67: NA | IB67: NA | IC67: NA | ID67: NA | IE67: NA | IF67: NA | IG67: NA | IH67: NA | II67: NA | IJ67: NA | IK67: NA | IL67: NA | IM67: NA | IN67: NA | IO67: NA | IP67: NA | IQ67: NA | IR67: NA | IS67: NA | IT67: NA | IU67: NA | IV67: NA | IW67: NA | IX67: NA | IY67: NA | IZ67: NA | JA67: NA | JB67: NA | JC67: NA | JD67: NA | JE67: NA | JF67: NA | JG67: NA | JH67: NA | JI67: NA | JJ67: NA | JK67: NA | JL67: NA
A68: 4.B. Cropland | B68: WEM | C68: 2883.524743 | D68: 2812.051455 | E68: 2808.997836 | F68: 2883.524743 | G68: 2486.703672 | H68: 2487.913928 | I68: 2489.137772 | J68: 2489.885472 | K68: 2490.460483 | L68: 2491.030404 | M68: 2491.594551 | N68: 2492.154453 | O68: 2492.658059 | P68: 2525.576776 | Q68: 2557.6842 | R68: 2589.373763 | S68: 2620.647867 | T68: 2636.02253 | U68: 2665.951983 | V68: 2695.466394 | W68: 2724.565767 | X68: 2753.250102 | Y68: 2781.474793 | Z68: 2809.742967 | AA68: 2838.011306 | AB68: 2866.279762 | AC68: 2894.548275 | AD68: 0.001224 | AE68: 0.001001 | AF68: 0.001112 | AG68: 0.001224 | AH68: 0.001635190735 | AI68: 0.001771456629 | AJ68: 0.001907722524 | AK68: 0.002043988418 | AL68: 0.002180254313 | AM68: 0.002316520207 | AN68: 0.002452786102 | AO68: 0.002589051997 | AP68: 0.002725317891 | AQ68: 0.002861583786 | AR68: 0.002861583786 | AS68: 0.002861583786 | AT68: 0.002861583786 | AU68: 0.002725317891 | AV68: 0.002589051997 | AW68: 0.002452786102 | AX68: 0.002316520207 | AY68: 0.002180254313 | AZ68: 0.002043988418 | BA68: 0.001907722524 | BB68: 0.001771456629 | BC68: 0.001635190735 | BD68: 0.00149892484 | BE68: 5.174214 | BF68: 5.195285 | BG68: 5.149836 | BH68: 5.174214 | BI68: 5.168556069 | BJ68: 5.191265341 | BK68: 5.198160382 | BL68: 5.204910953 | BM68: 5.211685288 | BN68: 5.218449208 | BO68: 5.225208417 | BP68: 5.231967422 | BQ68: 5.23872883 | BR68: 5.305298916 | BS68: 5.37112873 | BT68: 5.436219924 | BU68: 5.50057334 | BV68: 5.564189088 | BW68: 5.627066777 | BX68: 5.689205988 | BY68: 5.750607077 | BZ68: 5.811270146 | CA68: 5.871195145 | CB68: 5.930925454 | CC68: 5.990694649 | CD68: 6.050491111 | CE68: 6.110300828 | CF68: NA | CG68: NA | CH68: NA | CI68: NA | CJ68: NA | CK68: NA | CL68: NA | CM68: NA | CN68: NA | CO68: NA | CP68: NA | CQ68: NA | CR68: NA | CS68: NA | CT68: NA | CU68: NA | CV68: NA | CW68: NA | CX68: NA | CY68: NA | CZ68: NA | DA68: NA | DB68: NA | DC68: NA | DD68: NA | DE68: NA | DF68: NA | DG68: NA | DH68: NA | DI68: NA | DJ68: NA | DK68: NA | DL68: NA | DM68: NA | DN68: NA | DO68: NA | DP68: NA | DQ68: NA | DR68: NA | DS68: NA | DT68: NA | DU68: NA | DV68: NA | DW68: NA | DX68: NA | DY68: NA | DZ68: NA | EA68: NA | EB68: NA | EC68: NA | ED68: NA | EE68: NA | EF68: NA | EG68: NA | EH68: NA | EI68: NA | EJ68: NA | EK68: NA | EL68: NA | EM68: NA | EN68: NA | EO68: NA | EP68: NA | EQ68: NA | ER68: NA | ES68: NA | ET68: NA | EU68: NA | EV68: NA | EW68: NA | EX68: NA | EY68: NA | EZ68: NA | FA68: NA | FB68: NA | FC68: NA | FD68: NA | FE68: NA | FF68: NA | FG68: NA | FH68: NA | FI68: NA | FJ68: NA | FK68: NA | FL68: NA | FM68: NA | FN68: NA | FO68: NA | FP68: NA | FQ68: NA | FR68: NA | FS68: NA | FT68: NA | FU68: NA | FV68: NA | FW68: NA | FX68: NA | FY68: NA | FZ68: NA | GA68: NA | GB68: NA | GC68: NA | GD68: NA | GE68: NA | GF68: NA | GG68: NA | GH68: NA | GI68: NA | GJ68: 3013.244845 | GK68: 2942.231878 | GL68: 2938.075112 | GM68: 3013.244845 | GN68: 2616.404861 | GO68: 2618.223456 | GP68: 2619.660283 | GQ68: 2620.617354 | GR68: 2621.402331 | GS68: 2622.181957 | GT68: 2622.955692 | GU68: 2623.725176 | GV68: 2624.438424 | GW68: 2659.062001 | GX68: 2692.81517 | GY68: 2726.132013 | GZ68: 2759.014952 | HA68: 2775.939402 | HB68: 2807.400189 | HC68: 2838.427474 | HD68: 2869.021267 | HE68: 2899.181571 | HF68: 2928.86378 | HG68: 2958.584604 | HH68: 2988.306567 | HI68: 3018.029327 | HJ68: 3047.752475 | HK68: NA | HL68: NA | HM68: NA | HN68: NA | HO68: NA | HP68: NA | HQ68: NA | HR68: NA | HS68: NA | HT68: NA | HU68: NA | HV68: NA | HW68: NA | HX68: NA | HY68: NA | HZ68: NA | IA68: NA | IB68: NA | IC68: NA | ID68: NA | IE68: NA | IF68: NA | IG68: NA | IH68: NA | II68: NA | IJ68: NA | IK68: NA | IL68: NA | IM68: NA | IN68: NA | IO68: NA | IP68: NA | IQ68: NA | IR68: NA | IS68: NA | IT68: NA | IU68: NA | IV68: NA | IW68: NA | IX68: NA | IY68: NA | IZ68: NA | JA68: NA | JB68: NA | JC68: NA | JD68: NA | JE68: NA | JF68: NA | JG68: NA | JH68: NA | JI68: NA | JJ68: NA | JK68: NA | JL68: NA
A69: 4.C. Grassland | B69: WEM | C69: 893.5213797 | D69: 1061.792497 | E69: 1025.92061 | F69: 893.5213797 | G69: 898.0937245 | H69: 874.5636614 | I69: 865.6542089 | J69: 881.7983048 | K69: 897.7639443 | L69: 913.7385391 | M69: 929.7419402 | N69: 945.7629878 | O69: 961.7397681 | P69: 961.5454683 | Q69: 961.3511686 | R69: 961.1568689 | S69: 960.9625692 | T69: 960.9488683 | U69: 960.9755371 | V69: 961.0022059 | W69: 961.0288747 | X69: 961.0555435 | Y69: 961.0336767 | Z69: 961.0603454 | AA69: 961.0870141 | AB69: 961.1136828 | AC69: 961.1403515 | AD69: 0.000404 | AE69: 0.001063 | AF69: 0.000222 | AG69: 0.000404 | AH69: 0.001959845197 | AI69: 0.00199952547 | AJ69: 0.002039205743 | AK69: 0.002078886016 | AL69: 0.002118566289 | AM69: 0.002158246562 | AN69: 0.002197926835 | AO69: 0.002237607108 | AP69: 0.002277287381 | AQ69: 0.002316967654 | AR69: 0.002356647927 | AS69: 0.0023963282 | AT69: 0.002436008473 | AU69: 0.002376488063 | AV69: 0.002391368166 | AW69: 0.002400048225 | AX69: 0.002400978232 | AY69: 0.002392220672 | AZ69: 0.002396153824 | BA69: 0.002397350238 | BB69: 0.002396675741 | BC69: 0.002395600119 | BD69: 0.00239644498 | BE69: 3.442068 | BF69: 3.650746 | BG69: 3.516149 | BH69: 3.442068 | BI69: 3.254448026 | BJ69: 3.170072355 | BK69: 3.135781083 | BL69: 3.190927004 | BM69: 3.246101612 | BN69: 3.301305629 | BO69: 3.356604242 | BP69: 3.411960806 | BQ69: 3.467368324 | BR69: 3.467096335 | BS69: 3.466824347 | BT69: 3.466552358 | BU69: 3.46628037 | BV69: 3.46571667 | BW69: 3.465967832 | BX69: 3.466151089 | BY69: 3.466249464 | BZ69: 3.466241738 | CA69: 3.466373005 | CB69: 3.466474298 | CC69: 3.4665551 | CD69: 3.466631509 | CE69: 3.466728952 | CF69: NA | CG69: NA | CH69: NA | CI69: NA | CJ69: NA | CK69: NA | CL69: NA | CM69: NA | CN69: NA | CO69: NA | CP69: NA | CQ69: NA | CR69: NA | CS69: NA | CT69: NA | CU69: NA | CV69: NA | CW69: NA | CX69: NA | CY69: NA | CZ69: NA | DA69: NA | DB69: NA | DC69: NA | DD69: NA | DE69: NA | DF69: NA | DG69: NA | DH69: NA | DI69: NA | DJ69: NA | DK69: NA | DL69: NA | DM69: NA | DN69: NA | DO69: NA | DP69: NA | DQ69: NA | DR69: NA | DS69: NA | DT69: NA | DU69: NA | DV69: NA | DW69: NA | DX69: NA | DY69: NA | DZ69: NA | EA69: NA | EB69: NA | EC69: NA | ED69: NA | EE69: NA | EF69: NA | EG69: NA | EH69: NA | EI69: NA | EJ69: NA | EK69: NA | EL69: NA | EM69: NA | EN69: NA | EO69: NA | EP69: NA | EQ69: NA | ER69: NA | ES69: NA | ET69: NA | EU69: NA | EV69: NA | EW69: NA | EX69: NA | EY69: NA | EZ69: NA | FA69: NA | FB69: NA | FC69: NA | FD69: NA | FE69: NA | FF69: NA | FG69: NA | FH69: NA | FI69: NA | FJ69: NA | FK69: NA | FL69: NA | FM69: NA | FN69: NA | FO69: NA | FP69: NA | FQ69: NA | FR69: NA | FS69: NA | FT69: NA | FU69: NA | FV69: NA | FW69: NA | FX69: NA | FY69: NA | FZ69: NA | GA69: NA | GB69: NA | GC69: NA | GD69: NA | GE69: NA | GF69: NA | GG69: NA | GH69: NA | GI69: NA | GJ69: 979.6934717 | GK69: 1153.377921 | GL69: 1113.890491 | GM69: 979.6934717 | GN69: 980.038959 | GO69: 954.4113288 | GP69: 944.6564193 | GQ69: 962.1909879 | GR69: 979.5478174 | GS69: 996.9143373 | GT69: 1014.312028 | GU69: 1031.728815 | GV69: 1049.102608 | GW69: 1048.913333 | GX69: 1048.724058 | GY69: 1048.534784 | GZ69: 1048.345509 | HA69: 1048.299978 | HB69: 1048.337361 | HC69: 1048.371197 | HD69: 1048.400603 | HE69: 1048.424469 | HF69: 1048.407056 | HG69: 1048.436613 | HH69: 1048.465101 | HI69: 1048.493359 | HJ69: 1048.522716 | HK69: NA | HL69: NA | HM69: NA | HN69: NA | HO69: NA | HP69: NA | HQ69: NA | HR69: NA | HS69: NA | HT69: NA | HU69: NA | HV69: NA | HW69: NA | HX69: NA | HY69: NA | HZ69: NA | IA69: NA | IB69: NA | IC69: NA | ID69: NA | IE69: NA | IF69: NA | IG69: NA | IH69: NA | II69: NA | IJ69: NA | IK69: NA | IL69: NA | IM69: NA | IN69: NA | IO69: NA | IP69: NA | IQ69: NA | IR69: NA | IS69: NA | IT69: NA | IU69: NA | IV69: NA | IW69: NA | IX69: NA | IY69: NA | IZ69: NA | JA69: NA | JB69: NA | JC69: NA | JD69: NA | JE69: NA | JF69: NA | JG69: NA | JH69: NA | JI69: NA | JJ69: NA | JK69: NA | JL69: NA
A70: 4.D. Wetlands | B70: WEM | C70: 1437.557767 | D70: 1683.660713 | E70: 1275.514487 | F70: 1437.557767 | G70: 1358.965254 | H70: 1359.139247 | I70: 1358.552003 | J70: 1362.506297 | K70: 1366.1257 | L70: 1369.779041 | M70: 1373.301818 | N70: 1376.858789 | O70: 1380.331681 | P70: 1383.929645 | Q70: 1387.528455 | R70: 1389.944724 | S70: 1392.361839 | T70: 1394.700441 | U70: 1394.971049 | V70: 1395.242503 | W70: 1395.537647 | X70: 1395.827144 | Y70: 1396.037038 | Z70: 1396.261914 | AA70: 1396.484284 | AB70: 1396.704149 | AC70: 1396.896738 | AD70: 0.015879 | AE70: 0.016367 | AF70: 0.016123 | AG70: 0.015879 | AH70: 0.01272857143 | AI70: 0.01272857143 | AJ70: 0.01272857143 | AK70: 0.01272857143 | AL70: 0.01272857143 | AM70: 0.01272857143 | AN70: 0.01272857143 | AO70: 0.01272857143 | AP70: 0.01272857143 | AQ70: 0.01272857143 | AR70: 0.01272857143 | AS70: 0.01272857143 | AT70: 0.01272857143 | AU70: 0.01272857143 | AV70: 0.01272857143 | AW70: 0.01272857143 | AX70: 0.01272857143 | AY70: 0.01272857143 | AZ70: 0.01272857143 | BA70: 0.01272857143 | BB70: 0.01272857143 | BC70: 0.01272857143 | BD70: 0.01272857143 | BE70: 3.23911145 | BF70: 3.03631396 | BG70: 3.1377127 | BH70: 3.23911145 | BI70: 0.888165 | BJ70: 0.888165 | BK70: 0.888165 | BL70: 0.888165 | BM70: 0.888165 | BN70: 0.888165 | BO70: 0.888165 | BP70: 0.888165 | BQ70: 0.888165 | BR70: 0.888165 | BS70: 0.888165 | BT70: 0.888165 | BU70: 0.888165 | BV70: 0.888165 | BW70: 0.888165 | BX70: 0.888165 | BY70: 0.888165 | BZ70: 0.888165 | CA70: 0.888165 | CB70: 0.888165 | CC70: 0.888165 | CD70: 0.888165 | CE70: 0.888165 | CF70: NA | CG70: NA | CH70: NA | CI70: NA | CJ70: NA | CK70: NA | CL70: NA | CM70: NA | CN70: NA | CO70: NA | CP70: NA | CQ70: NA | CR70: NA | CS70: NA | CT70: NA | CU70: NA | CV70: NA | CW70: NA | CX70: NA | CY70: NA | CZ70: NA | DA70: NA | DB70: NA | DC70: NA | DD70: NA | DE70: NA | DF70: NA | DG70: NA | DH70: NA | DI70: NA | DJ70: NA | DK70: NA | DL70: NA | DM70: NA | DN70: NA | DO70: NA | DP70: NA | DQ70: NA | DR70: NA | DS70: NA | DT70: NA | DU70: NA | DV70: NA | DW70: NA | DX70: NA | DY70: NA | DZ70: NA | EA70: NA | EB70: NA | EC70: NA | ED70: NA | EE70: NA | EF70: NA | EG70: NA | EH70: NA | EI70: NA | EJ70: NA | EK70: NA | EL70: NA | EM70: NA | EN70: NA | EO70: NA | EP70: NA | EQ70: NA | ER70: NA | ES70: NA | ET70: NA | EU70: NA | EV70: NA | EW70: NA | EX70: NA | EY70: NA | EZ70: NA | FA70: NA | FB70: NA | FC70: NA | FD70: NA | FE70: NA | FF70: NA | FG70: NA | FH70: NA | FI70: NA | FJ70: NA | FK70: NA | FL70: NA | FM70: NA | FN70: NA | FO70: NA | FP70: NA | FQ70: NA | FR70: NA | FS70: NA | FT70: NA | FU70: NA | FV70: NA | FW70: NA | FX70: NA | FY70: NA | FZ70: NA | GA70: NA | GB70: NA | GC70: NA | GD70: NA | GE70: NA | GF70: NA | GG70: NA | GH70: NA | GI70: NA | GJ70: 1523.267495 | GK70: 1764.445928 | GL70: 1358.761958 | GM70: 1523.267495 | GN70: 1384.962493 | GO70: 1385.136486 | GP70: 1384.549243 | GQ70: 1388.503536 | GR70: 1392.12294 | GS70: 1395.77628 | GT70: 1399.299058 | GU70: 1402.856028 | GV70: 1406.328921 | GW70: 1409.926884 | GX70: 1413.525694 | GY70: 1415.941963 | GZ70: 1418.359078 | HA70: 1420.697681 | HB70: 1420.968288 | HC70: 1421.239742 | HD70: 1421.534887 | HE70: 1421.824383 | HF70: 1422.034277 | HG70: 1422.259153 | HH70: 1422.481523 | HI70: 1422.701389 | HJ70: 1422.893977 | HK70: NA | HL70: NA | HM70: NA | HN70: NA | HO70: NA | HP70: NA | HQ70: NA | HR70: NA | HS70: NA | HT70: NA | HU70: NA | HV70: NA | HW70: NA | HX70: NA | HY70: NA | HZ70: NA | IA70: NA | IB70: NA | IC70: NA | ID70: NA | IE70: NA | IF70: NA | IG70: NA | IH70: NA | II70: NA | IJ70: NA | IK70: NA | IL70: NA | IM70: NA | IN70: NA | IO70: NA | IP70: NA | IQ70: NA | IR70: NA | IS70: NA | IT70: NA | IU70: NA | IV70: NA | IW70: NA | IX70: NA | IY70: NA | IZ70: NA | JA70: NA | JB70: NA | JC70: NA | JD70: NA | JE70: NA | JF70: NA | JG70: NA | JH70: NA | JI70: NA | JJ70: NA | JK70: NA | JL70: NA
A71: 4.E. Settlements | B71: WEM | C71: -28.09192441 | D71: -585.057241 | E71: -574.6508399 | F71: -28.09192441 | G71: -621.0349622 | H71: -614.84247 | I71: -613.679261 | J71: -611.0415514 | K71: -610.3056201 | L71: -609.5743704 | M71: -608.9116944 | N71: -608.2472577 | O71: -608.1834886 | P71: -605.421886 | Q71: -602.6833706 | R71: -600.3961167 | S71: -598.1074088 | T71: -671.322885 | U71: -674.260884 | V71: -677.1954233 | W71: -680.1213551 | X71: -683.0433804 | Y71: -686.4468057 | Z71: -689.3769001 | AA71: -692.3007554 | AB71: -695.2183944 | AC71: -698.1389148 | AD71: 0.151617 | AE71: 0.140603 | AF71: 0.14611 | AG71: 0.151617 | AH71: 0.1270962153 | AI71: 0.1311644503 | AJ71: 0.1318311442 | AK71: 0.132494138 | AL71: 0.1331686458 | AM71: 0.1338469545 | AN71: 0.1345277563 | AO71: 0.1352150792 | AP71: 0.1359054438 | AQ71: 0.1379279261 | AR71: 0.1399482352 | AS71: 0.1419679645 | AT71: 0.1439871251 | AU71: 0.141857322 | AV71: 0.1397269573 | AW71: 0.1375960417 | AX71: 0.1354660635 | AY71: 0.1333355409 | AZ71: 0.131204484 | BA71: 0.1290743403 | BB71: 0.1269450933 | BC71: 0.1248167271 | BD71: 0.1226878263 | BE71: NO | BF71: NO | BG71: NO | BH71: NO | BI71: 0.1048510942 | BJ71: 0.1066140433 | BK71: 0.1147052504 | BL71: 0.1227859434 | BM71: 0.1308995046 | BN71: 0.1390239401 | BO71: 0.1471555209 | BP71: 0.155305733 | BQ71: 0.1634646547 | BR71: 0.1692315577 | BS71: 0.1749922645 | BT71: 0.1807513177 | BU71: 0.1865087495 | BV71: 0.1916386288 | BW71: 0.1967669068 | BX71: 0.2018936137 | BY71: 0.2070229938 | BZ71: 0.2121508216 | CA71: 0.2172771259 | CB71: 0.2224060339 | CC71: 0.227537499 | CD71: 0.2326714753 | CE71: 0.2378039275 | CF71: NA | CG71: NA | CH71: NA | CI71: NA | CJ71: NA | CK71: NA | CL71: NA | CM71: NA | CN71: NA | CO71: NA | CP71: NA | CQ71: NA | CR71: NA | CS71: NA | CT71: NA | CU71: NA | CV71: NA | CW71: NA | CX71: NA | CY71: NA | CZ71: NA | DA71: NA | DB71: NA | DC71: NA | DD71: NA | DE71: NA | DF71: NA | DG71: NA | DH71: NA | DI71: NA | DJ71: NA | DK71: NA | DL71: NA | DM71: NA | DN71: NA | DO71: NA | DP71: NA | DQ71: NA | DR71: NA | DS71: NA | DT71: NA | DU71: NA | DV71: NA | DW71: NA | DX71: NA | DY71: NA | DZ71: NA | EA71: NA | EB71: NA | EC71: NA | ED71: NA | EE71: NA | EF71: NA | EG71: NA | EH71: NA | EI71: NA | EJ71: NA | EK71: NA | EL71: NA | EM71: NA | EN71: NA | EO71: NA | EP71: NA | EQ71: NA | ER71: NA | ES71: NA | ET71: NA | EU71: NA | EV71: NA | EW71: NA | EX71: NA | EY71: NA | EZ71: NA | FA71: NA | FB71: NA | FC71: NA | FD71: NA | FE71: NA | FF71: NA | FG71: NA | FH71: NA | FI71: NA | FJ71: NA | FK71: NA | FL71: NA | FM71: NA | FN71: NA | FO71: NA | FP71: NA | FQ71: NA | FR71: NA | FS71: NA | FT71: NA | FU71: NA | FV71: NA | FW71: NA | FX71: NA | FY71: NA | FZ71: NA | GA71: NA | GB71: NA | GC71: NA | GD71: NA | GE71: NA | GF71: NA | GG71: NA | GH71: NA | GI71: NA | GJ71: =C71+AD71*298 -> 17.08994159 | GK71: =D71+AE71*298 -> -543.157547 | GL71: -531.1100599 | GM71: 17.08994159 | GN71: -580.5390126 | GO71: -573.0901127 | GP71: -571.5259488 | GQ71: -568.4886497 | GR71: -567.348876 | GS71: -566.2123794 | GT71: -565.143535 | GU71: -564.0705208 | GV71: -563.59705 | GW71: -560.0885751 | GX71: -556.6039899 | GY71: -553.5708803 | GZ71: -550.5365268 | HA71: -624.2584373 | HB71: -627.703078 | HC71: -631.1444626 | HD71: -634.5768933 | HE71: -638.0056186 | HF71: -641.9159413 | HG71: -645.3525958 | HH71: -648.7826801 | HI71: =AB71+BC71*298+CD71*25 -> -652.2062229 | HJ71: =AC71+BD71*298+CE71*25 -> -655.6328443 | HK71: NA | HL71: NA | HM71: NA | HN71: NA | HO71: NA | HP71: NA | HQ71: NA | HR71: NA | HS71: NA | HT71: NA | HU71: NA | HV71: NA | HW71: NA | HX71: NA | HY71: NA | HZ71: NA | IA71: NA | IB71: NA | IC71: NA | ID71: NA | IE71: NA | IF71: NA | IG71: NA | IH71: NA | II71: NA | IJ71: NA | IK71: NA | IL71: NA | IM71: NA | IN71: NA | IO71: NA | IP71: NA | IQ71: NA | IR71: NA | IS71: NA | IT71: NA | IU71: NA | IV71: NA | IW71: NA | IX71: NA | IY71: NA | IZ71: NA | JA71: NA | JB71: NA | JC71: NA | JD71: NA | JE71: NA | JF71: NA | JG71: NA | JH71: NA | JI71: NA | JJ71: NA | JK71: NA | JL71: NA
A72: 4.F. Other Land | B72: WEM | C72: NO | D72: NO | E72: NO | F72: NO | G72: NO | H72: NO | I72: NO | J72: NO | K72: NO | L72: NO | M72: NO | N72: NO | O72: NO | P72: NO | Q72: NO | R72: NO | S72: NO | T72: NO | U72: NO | V72: NO | W72: NO | X72: NO | Y72: NO | Z72: NO | AA72: NO | AB72: NO | AC72: NO | AD72: NO | AE72: NO | AF72: NO | AG72: NO | AH72: NO | AI72: NO | AJ72: NO | AK72: NO | AL72: NO | AM72: NO | AN72: NO | AO72: NO | AP72: NO | AQ72: NO | AR72: NO | AS72: NO | AT72: NO | AU72: NO | AV72: NO | AW72: NO | AX72: NO | AY72: NO | AZ72: NO | BA72: NO | BB72: NO | BC72: NO | BD72: NO | BE72: NO | BF72: NO | BG72: NO | BH72: NO | BI72: NO | BJ72: NO | BK72: NO | BL72: NO | BM72: NO | BN72: NO | BO72: NO | BP72: NO | BQ72: NO | BR72: NO | BS72: NO | BT72: NO | BU72: NO | BV72: NO | BW72: NO | BX72: NO | BY72: NO | BZ72: NO | CA72: NO | CB72: NO | CC72: NO | CD72: NO | CE72: NO | CF72: NO | CG72: NO | CH72: NO | CI72: NO | CJ72: NO | CK72: NO | CL72: NO | CM72: NO | CN72: NO | CO72: NO | CP72: NO | CQ72: NO | CR72: NO | CS72: NO | CT72: NO | CU72: NO | CV72: NO | CW72: NO | CX72: NO | CY72: NO | CZ72: NO | DA72: NO | DB72: NO | DC72: NO | DD72: NO | DE72: NO | DF72: NO | DG72: NO | DH72: NO | DI72: NO | DJ72: NO | DK72: NO | DL72: NO | DM72: NO | DN72: NO | DO72: NO | DP72: NO | DQ72: NO | DR72: NO | DS72: NO | DT72: NO | DU72: NO | DV72: NO | DW72: NO | DX72: NO | DY72: NO | DZ72: NO | EA72: NO | EB72: NO | EC72: NO | ED72: NO | EE72: NO | EF72: NO | EG72: NO | EH72: NO | EI72: NO | EJ72: NO | EK72: NO | EL72: NO | EM72: NO | EN72: NO | EO72: NO | EP72: NO | EQ72: NO | ER72: NO | ES72: NO | ET72: NO | EU72: NO | EV72: NO | EW72: NO | EX72: NO | EY72: NO | EZ72: NO | FA72: NO | FB72: NO | FC72: NO | FD72: NO | FE72: NO | FF72: NO | FG72: NO | FH72: NO | FI72: NO | FJ72: NO | FK72: NO | FL72: NO | FM72: NO | FN72: NO | FO72: NO | FP72: NO | FQ72: NO | FR72: NO | FS72: NO | FT72: NO | FU72: NO | FV72: NO | FW72: NO | FX72: NO | FY72: NO | FZ72: NO | GA72: NO | GB72: NO | GC72: NO | GD72: NO | GE72: NO | GF72: NO | GG72: NO | GH72: NO | GI72: NO | GJ72: NO | GK72: NO | GL72: NO | GM72: NO | GN72: NO | GO72: NO | GP72: NO | GQ72: NO | GR72: NO | GS72: NO | GT72: NO | GU72: NO | GV72: NO | GW72: NO | GX72: NO | GY72: NO | GZ72: NO | HA72: NO | HB72: NO | HC72: NO | HD72: NO | HE72: NO | HF72: NO | HG72: NO | HH72: NO | HI72: NO | HJ72: NO | HK72: NO | HL72: NO | HM72: NO | HN72: NO | HO72: NO | HP72: NO | HQ72: NO | HR72: NO | HS72: NO | HT72: NO | HU72: NO | HV72: NO | HW72: NO | HX72: NO | HY72: NO | HZ72: NO | IA72: NO | IB72: NO | IC72: NO | ID72: NO | IE72: NO | IF72: NO | IG72: NO | IH72: NO | II72: NO | IJ72: NO | IK72: NO | IL72: NO | IM72: NO | IN72: NO | IO72: NO | IP72: NO | IQ72: NO | IR72: NO | IS72: NO | IT72: NO | IU72: NO | IV72: NO | IW72: NO | IX72: NO | IY72: NO | IZ72: NO | JA72: NO | JB72: NO | JC72: NO | JD72: NO | JE72: NO | JF72: NO | JG72: NO | JH72: NO | JI72: NO | JJ72: NO | JK72: NO | JL72: NO
A73: 4.G. Harvested wood products | B73: WEM | C73: -2235.889361 | D73: -1842.023027 | E73: -2143.964394 | F73: -2235.889361 | G73: -1788.794584 | H73: -1763.829719 | I73: -1748.192973 | J73: -1732.732581 | K73: -1652.19653 | L73: -1623.644373 | M73: -1593.069595 | N73: -1561.360875 | O73: -1526.407987 | P73: -1487.50251 | Q73: -1456.876138 | R73: -1425.796345 | S73: -1394.569978 | T73: -1369.0688 | U73: -1338.454615 | V73: -1309.489578 | W73: -1280.845136 | X73: -1252.673641 | Y73: -1225.097035 | Z73: -1198.223584 | AA73: -1172.051992 | AB73: -1146.394442 | AC73: -1121.291058 | AD73: NA | AE73: NA | AF73: NA | AG73: NA | AH73: NA | AI73: NA | AJ73: NA | AK73: NA | AL73: NA | AM73: NA | AN73: NA | AO73: NA | AP73: NA | AQ73: NA | AR73: NA | AS73: NA | AT73: NA | AU73: NA | AV73: NA | AW73: NA | AX73: NA | AY73: NA | AZ73: NA | BA73: NA | BB73: NA | BC73: NA | BD73: NA | BE73: NA | BF73: NA | BG73: NA | BH73: NA | BI73: NA | BJ73: NA | BK73: NA | BL73: NA | BM73: NA | BN73: NA | BO73: NA | BP73: NA | BQ73: NA | BR73: NA | BS73: NA | BT73: NA | BU73: NA | BV73: NA | BW73: NA | BX73: NA | BY73: NA | BZ73: NA | CA73: NA | CB73: NA | CC73: NA | CD73: NA | CE73: NA | CF73: NA | CG73: NA | CH73: NA | CI73: NA | CJ73: NA | CK73: NA | CL73: NA | CM73: NA | CN73: NA | CO73: NA | CP73: NA | CQ73: NA | CR73: NA | CS73: NA | CT73: NA | CU73: NA | CV73: NA | CW73: NA | CX73: NA | CY73: NA | CZ73: NA | DA73: NA | DB73: NA | DC73: NA | DD73: NA | DE73: NA | DF73: NA | DG73: NA | DH73: NA | DI73: NA | DJ73: NA | DK73: NA | DL73: NA | DM73: NA | DN73: NA | DO73: NA | DP73: NA | DQ73: NA | DR73: NA | DS73: NA | DT73: NA | DU73: NA | DV73: NA | DW73: NA | DX73: NA | DY73: NA | DZ73: NA | EA73: NA | EB73: NA | EC73: NA | ED73: NA | EE73: NA | EF73: NA | EG73: NA | EH73: NA | EI73: NA | EJ73: NA | EK73: NA | EL73: NA | EM73: NA | EN73: NA | EO73: NA | EP73: NA | EQ73: NA | ER73: NA | ES73: NA | ET73: NA | EU73: NA | EV73: NA | EW73: NA | EX73: NA | EY73: NA | EZ73: NA | FA73: NA | FB73: NA | FC73: NA | FD73: NA | FE73: NA | FF73: NA | FG73: NA | FH73: NA | FI73: NA | FJ73: NA | FK73: NA | FL73: NA | FM73: NA | FN73: NA | FO73: NA | FP73: NA | FQ73: NA | FR73: NA | FS73: NA | FT73: NA | FU73: NA | FV73: NA | FW73: NA | FX73: NA | FY73: NA | FZ73: NA | GA73: NA | GB73: NA | GC73: NA | GD73: NA | GE73: NA | GF73: NA | GG73: NA | GH73: NA | GI73: NA | GJ73: =C73 -> -2235.889361 | GK73: =D73 -> -1842.023027 | GL73: -2143.964394 | GM73: -2235.889361 | GN73: -1788.794584 | GO73: -1763.829719 | GP73: -1748.192973 | GQ73: -1732.732581 | GR73: -1652.19653 | GS73: -1623.644373 | GT73: -1593.069595 | GU73: -1561.360875 | GV73: -1526.407987 | GW73: -1487.50251 | GX73: -1456.876138 | GY73: -1425.796345 | GZ73: -1394.569978 | HA73: -1369.0688 | HB73: -1338.454615 | HC73: -1309.489578 | HD73: -1280.845136 | HE73: -1252.673641 | HF73: -1225.097035 | HG73: -1198.223584 | HH73: -1172.051992 | HI73: -1146.394442 | HJ73: -1121.291058 | HK73: NA | HL73: NA | HM73: NA | HN73: NA | HO73: NA | HP73: NA | HQ73: NA | HR73: NA | HS73: NA | HT73: NA | HU73: NA | HV73: NA | HW73: NA | HX73: NA | HY73: NA | HZ73: NA | IA73: NA | IB73: NA | IC73: NA | ID73: NA | IE73: NA | IF73: NA | IG73: NA | IH73: NA | II73: NA | IJ73: NA | IK73: NA | IL73: NA | IM73: NA | IN73: NA | IO73: NA | IP73: NA | IQ73: NA | IR73: NA | IS73: NA | IT73: NA | IU73: NA | IV73: NA | IW73: NA | IX73: NA | IY73: NA | IZ73: NA | JA73: NA | JB73: NA | JC73: NA | JD73: NA | JE73: NA | JF73: NA | JG73: NA | JH73: NA | JI73: NA | JJ73: NA | JK73: NA | JL73: NA
A74: 4.H. Other | B74: WEM | C74: NA | D74: NA | E74: NA | F74: NA | G74: NO | H74: NO | I74: NO | J74: NO | K74: NO | L74: NO | M74: NO | N74: NO | O74: NO | P74: NO | Q74: NO | R74: NO | S74: NO | T74: NO | U74: NO | V74: NO | W74: NO | X74: NO | Y74: NO | Z74: NO | AA74: NO | AB74: NO | AC74: NO | AD74: NO | AE74: NO | AF74: NO | AG74: NO | AH74: NO | AI74: NO | AJ74: NO | AK74: NO | AL74: NO | AM74: NO | AN74: NO | AO74: NO | AP74: NO | AQ74: NO | AR74: NO | AS74: NO | AT74: NO | AU74: NO | AV74: NO | AW74: NO | AX74: NO | AY74: NO | AZ74: NO | BA74: NO | BB74: NO | BC74: NO | BD74: NO | BE74: NO | BF74: NO | BG74: NO | BH74: NO | BI74: NO | BJ74: NO | BK74: NO | BL74: NO | BM74: NO | BN74: NO | BO74: NO | BP74: NO | BQ74: NO | BR74: NO | BS74: NO | BT74: NO | BU74: NO | BV74: NO | BW74: NO | BX74: NO | BY74: NO | BZ74: NO | CA74: NO | CB74: NO | CC74: NO | CD74: NO | CE74: NO | CF74: NO | CG74: NO | CH74: NO | CI74: NO | CJ74: NO | CK74: NO | CL74: NO | CM74: NO | CN74: NO | CO74: NO | CP74: NO | CQ74: NO | CR74: NO | CS74: NO | CT74: NO | CU74: NO | CV74: NO | CW74: NO | CX74: NO | CY74: NO | CZ74: NO | DA74: NO | DB74: NO | DC74: NO | DD74: NO | DE74: NO | DF74: NO | DG74: NO | DH74: NO | DI74: NO | DJ74: NO | DK74: NO | DL74: NO | DM74: NO | DN74: NO | DO74: NO | DP74: NO | DQ74: NO | DR74: NO | DS74: NO | DT74: NO | DU74: NO | DV74: NO | DW74: NO | DX74: NO | DY74: NO | DZ74: NO | EA74: NO | EB74: NO | EC74: NO | ED74: NO | EE74: NO | EF74: NO | EG74: NO | EH74: NO | EI74: NO | EJ74: NO | EK74: NO | EL74: NO | EM74: NO | EN74: NO | EO74: NO | EP74: NO | EQ74: NO | ER74: NO | ES74: NO | ET74: NO | EU74: NO | EV74: NO | EW74: NO | EX74: NO | EY74: NO | EZ74: NO | FA74: NO | FB74: NO | FC74: NO | FD74: NO | FE74: NO | FF74: NO | FG74: NO | FH74: NO | FI74: NO | FJ74: NO | FK74: NO | FL74: NO | FM74: NO | FN74: NO | FO74: NO | FP74: NO | FQ74: NO | FR74: NO | FS74: NO | FT74: NO | FU74: NO | FV74: NO | FW74: NO | FX74: NO | FY74: NO | FZ74: NO | GA74: NO | GB74: NO | GC74: NO | GD74: NO | GE74: NO | GF74: NO | GG74: NO | GH74: NO | GI74: NO | GJ74: NO | GK74: NO | GL74: NO | GM74: NO | GN74: NO | GO74: NO | GP74: NO | GQ74: NO | GR74: NO | GS74: NO | GT74: NO | GU74: NO | GV74: NO | GW74: NO | GX74: NO | GY74: NO | GZ74: NO | HA74: NO | HB74: NO | HC74: NO | HD74: NO | HE74: NO | HF74: NO | HG74: NO | HH74: NO | HI74: NO | HJ74: NO | HK74: NO | HL74: NO | HM74: NO | HN74: NO | HO74: NO | HP74: NO | HQ74: NO | HR74: NO | HS74: NO | HT74: NO | HU74: NO | HV74: NO | HW74: NO | HX74: NO | HY74: NO | HZ74: NO | IA74: NO | IB74: NO | IC74: NO | ID74: NO | IE74: NO | IF74: NO | IG74: NO | IH74: NO | II74: NO | IJ74: NO | IK74: NO | IL74: NO | IM74: NO | IN74: NO | IO74: NO | IP74: NO | IQ74: NO | IR74: NO | IS74: NO | IT74: NO | IU74: NO | IV74: NO | IW74: NO | IX74: NO | IY74: NO | IZ74: NO | JA74: NO | JB74: NO | JC74: NO | JD74: NO | JE74: NO | JF74: NO | JG74: NO | JH74: NO | JI74: NO | JJ74: NO | JK74: NO | JL74: NO
A75: 5. Waste | B75: WEM | C75: 0.286055 | D75: 0.17950064 | E75: 0.173125 | F75: 0.286055 | G75: =G78 -> 0.28605456 | H75: 0.28605456 | I75: 0.28605456 | J75: =J78 -> 0.28605456 | K75: =K78 -> 0.28605456 | L75: 0.28605456 | M75: 0.28605456 | N75: 0.28605456 | O75: =O78 -> 0.28605456 | P75: =P78 -> 0.28605456 | Q75: 0.28605456 | R75: 0.28605456 | S75: 0.28605456 | T75: =T78 -> 0.28605456 | U75: =U78 -> 0.28605456 | V75: 0.28605456 | W75: 0.28605456 | X75: 0.28605456 | Y75: =Y78 -> 0.28605456 | Z75: =Z78 -> 0.28605456 | AA75: 0.28605456 | AB75: 0.28605456 | AC75: 0.28605456 | AD75: 0.175430797 | AE75: 0.1724530098 | AF75: 0.1858282513 | AG75: 0.175430797 | AH75: =AH78+AH77+AH79 -> 0.1752574827 | AI75: 0.1730097502 | AJ75: =AJ77+AJ78+AJ79 -> 0.1947259123 | AK75: =AK77+AK78+AK79 -> 0.1923546526 | AL75: =AL77+AL78+AL79 -> 0.1899042055 | AM75: 0.1874148174 | AN75: 0.1849274474 | AO75: =AO77+AO78+AO79 -> 0.1824329956 | AP75: =AP77+AP78+AP79 -> 0.1799727751 | AQ75: =AQ77+AQ78+AQ79 -> 0.1775708855 | AR75: 0.1752053095 | AS75: 0.1729013899 | AT75: =AT77+AT78+AT79 -> 0.170690292 | AU75: =AU77+AU78+AU79 -> 0.1687243666 | AV75: =AV77+AV78+AV79 -> 0.1671883693 | AW75: 0.1657647638 | AX75: 0.1644439211 | AY75: =AY77+AY78+AY79 -> 0.1632177476 | AZ75: =AZ77+AZ78+AZ79 -> 0.1620793743 | BA75: =BA77+BA78+BA79 -> 0.1610229228 | BB75: 0.1600433267 | BC75: 0.1591361929 | BD75: =BD77+BD78+BD79 -> 0.1582976915 | BE75: 20.50577155 | BF75: 20.40814283 | BG75: 21.81000345 | BH75: 20.50577155 | BI75: =BI76+BI77+BI79 -> 20.90623574 | BJ75: 19.73313834 | BK75: =BK76+BK77+BK79 -> 19.11367679 | BL75: =BL76+BL77+BL79 -> 18.02932572 | BM75: =BM76+BM77+BM79 -> 17.01523875 | BN75: 16.06196757 | BO75: 15.16063252 | BP75: =BP76+BP77+BP79 -> 14.30795106 | BQ75: =BQ76+BQ77+BQ79 -> 13.49879943 | BR75: =BR76+BR77+BR79 -> 12.77191354 | BS75: 12.11875506 | BT75: 11.53108764 | BU75: =BU76+BU77+BU79 -> 11.00199529 | BV75: =BV76+BV77+BV79 -> 10.52874206 | BW75: =BW76+BW77+BW79 -> 10.10883207 | BX75: 9.729737784 | BY75: 9.386831307 | BZ75: =BZ76+BZ77+BZ79 -> 9.076072966 | CA75: =CA76+CA77+CA79 -> 8.79492745 | CB75: =CB76+CB77+CB79 -> 8.539293281 | CC75: 8.306443278 | CD75: 8.093974117 | CE75: =CE76+CE77+CE79 -> 7.89976346 | CF75: NA,NO | CG75: NA,NO | CH75: NA,NO | CI75: NA,NO | CJ75: NA,NO | CK75: NA,NO | CL75: NA,NO | CM75: NA,NO | CN75: NA,NO | CO75: NA,NO | CP75: NA,NO | CQ75: NA,NO | CR75: NA,NO | CS75: NA,NO | CT75: NA,NO | CU75: NA,NO | CV75: NA,NO | CW75: NA,NO | CX75: NA,NO | CY75: NA,NO | CZ75: NA,NO | DA75: NA,NO | DB75: NA,NO | DC75: NA,NO | DD75: NA,NO | DE75: NA,NO | DF75: NA,NO | DG75: NA,NO | DH75: NA,NO | DI75: NA,NO | DJ75: NA,NO | DK75: NA,NO | DL75: NA,NO | DM75: NA,NO | DN75: NA,NO | DO75: NA,NO | DP75: NA,NO | DQ75: NA,NO | DR75: NA,NO | DS75: NA,NO | DT75: NA,NO | DU75: NA,NO | DV75: NA,NO | DW75: NA,NO | DX75: NA,NO | DY75: NA,NO | DZ75: NA,NO | EA75: NA,NO | EB75: NA,NO | EC75: NA,NO | ED75: NA,NO | EE75: NA,NO | EF75: NA,NO | EG75: NA,NO | EH75: NA,NO | EI75: NA,NO | EJ75: NA,NO | EK75: NA,NO | EL75: NA,NO | EM75: NA,NO | EN75: NA,NO | EO75: NA,NO | EP75: NA,NO | EQ75: NA,NO | ER75: NA,NO | ES75: NA,NO | ET75: NA,NO | EU75: NA,NO | EV75: NA,NO | EW75: NA,NO | EX75: NA,NO | EY75: NA,NO | EZ75: NA,NO | FA75: NA,NO | FB75: NA,NO | FC75: NA,NO | FD75: NA,NO | FE75: NA,NO | FF75: NA,NO | FG75: NA,NO | FH75: NA,NO | FI75: NA,NO | FJ75: NA,NO | FK75: NA,NO | FL75: NA,NO | FM75: NA,NO | FN75: NA,NO | FO75: NA,NO | FP75: NA,NO | FQ75: NA,NO | FR75: NA,NO | FS75: NA,NO | FT75: NA,NO | FU75: NA,NO | FV75: NA,NO | FW75: NA,NO | FX75: NA,NO | FY75: NA,NO | FZ75: NA,NO | GA75: NA,NO | GB75: NA,NO | GC75: NA,NO | GD75: NA,NO | GE75: NA,NO | GF75: NA,NO | GG75: NA,NO | GH75: NA,NO | GI75: NA,NO | GJ75: =GJ76+GJ77+GJ78+GJ79 -> 565.2087214 | GK75: 561.7740682 | GL75: 600.8000302 | GM75: 565.2087214 | GN75: =GN76+GN77+GN78+GN79 -> 575.168678 | GO75: =GO76+GO77+GO78+GO79 -> 545.1714187 | GP75: =GP76+GP77+GP78+GP79 -> 536.1562961 | GQ75: 508.340884 | GR75: 482.2584766 | GS75: 457.6848594 | GT75: 434.410247 | GU75: 412.3498637 | GV75: 391.3879273 | GW75: 372.5000169 | GX75: 355.4661132 | GY75: 340.0878597 | GZ75: 326.2016439 | HA75: 313.7844673 | HB75: 302.8289903 | HC75: 292.9273988 | HD75: 283.9611257 | HE75: 275.8267675 | HF75: 268.4588944 | HG75: 261.7532176 | HH75: 255.6400479 | HI75: 250.057993 | HJ75: 244.9528531 | HK75: NO | HL75: NO | HM75: NO | HN75: NO | HO75: NO | HP75: NO | HQ75: NO | HR75: NO | HS75: NO | HT75: NO | HU75: NO | HV75: NO | HW75: NO | HX75: NO | HY75: NO | HZ75: NO | IA75: NO | IB75: NO | IC75: NO | ID75: NO | IE75: NO | IF75: NO | IG75: NO | IH75: NO | II75: NO | IJ75: NO | IK75: NO | IL75: =GJ75 -> 565.2087214 | IM75: =GK75 -> 561.7740682 | IN75: 600.8000302 | IO75: 565.2087214 | IP75: 575.168678 | IQ75: 545.1714187 | IR75: 536.1562961 | IS75: 508.340884 | IT75: 482.2584766 | IU75: 457.6848594 | IV75: 434.410247 | IW75: 412.3498637 | IX75: 391.3879273 | IY75: 372.5000169 | IZ75: 355.4661132 | JA75: 340.0878597 | JB75: 326.2016439 | JC75: 313.7844673 | JD75: 302.8289903 | JE75: 292.9273988 | JF75: 283.9611257 | JG75: 275.8267675 | JH75: 268.4588944 | JI75: 261.7532176 | JJ75: 255.6400479 | JK75: 250.057993 | JL75: 244.9528531
A76: 5.A. Solid Waste Disposal | B76: WEM | C76: NA | D76: NA | E76: NA | F76: NA | G76: NA | H76: NA | I76: NA | J76: NA | K76: NA | L76: NA | M76: NA | N76: NA | O76: NA | P76: NA | Q76: NA | R76: NA | S76: NA | T76: NA | U76: NA | V76: NA | W76: NA | X76: NA | Y76: NA | Z76: NA | AA76: NA | AB76: NA | AC76: NA | AD76: NA | AE76: NA | AF76: NA | AG76: NA | AH76: NA | AI76: NA | AJ76: NA | AK76: NA | AL76: NA | AM76: NA | AN76: NA | AO76: NA | AP76: NA | AQ76: NA | AR76: NA | AS76: NA | AT76: NA | AU76: NA | AV76: NA | AW76: NA | AX76: NA | AY76: NA | AZ76: NA | BA76: NA | BB76: NA | BC76: NA | BD76: NA | BE76: 16.13519904 | BF76: 15.29961052 | BG76: 16.41945777 | BH76: 16.13519904 | BI76: 15.30974717 | BJ76: 14.19461431 | BK76: 13.23579686 | BL76: 12.21283125 | BM76: 11.26267224 | BN76: 10.37600077 | BO76: 9.544793332 | BP76: 8.762128255 | BQ76: 8.02202248 | BR76: 7.364813735 | BS76: 6.780285692 | BT76: 6.259621657 | BU76: 5.795196665 | BV76: 5.380402173 | BW76: 5.009498071 | BX76: 4.677487586 | BY76: 4.380011428 | BZ76: 4.113258064 | CA76: 3.873887576 | CB76: 3.658966939 | CC76: 3.465914912 | CD76: 3.292455048 | CE76: 3.136575546 | CF76: NA | CG76: NA | CH76: NA | CI76: NA | CJ76: NA | CK76: NA | CL76: NA | CM76: NA | CN76: NA | CO76: NA | CP76: NA | CQ76: NA | CR76: NA | CS76: NA | CT76: NA | CU76: NA | CV76: NA | CW76: NA | CX76: NA | CY76: NA | CZ76: NA | DA76: NA | DB76: NA | DC76: NA | DD76: NA | DE76: NA | DF76: NA | DG76: NA | DH76: NA | DI76: NA | DJ76: NA | DK76: NA | DL76: NA | DM76: NA | DN76: NA | DO76: NA | DP76: NA | DQ76: NA | DR76: NA | DS76: NA | DT76: NA | DU76: NA | DV76: NA | DW76: NA | DX76: NA | DY76: NA | DZ76: NA | EA76: NA | EB76: NA | EC76: NA | ED76: NA | EE76: NA | EF76: NA | EG76: NA | EH76: NA | EI76: NA | EJ76: NA | EK76: NA | EL76: NA | EM76: NA | EN76: NA | EO76: NA | EP76: NA | EQ76: NA | ER76: NA | ES76: NA | ET76: NA | EU76: NA | EV76: NA | EW76: NA | EX76: NA | EY76: NA | EZ76: NA | FA76: NA | FB76: NA | FC76: NA | FD76: NA | FE76: NA | FF76: NA | FG76: NA | FH76: NA | FI76: NA | FJ76: NA | FK76: NA | FL76: NA | FM76: NA | FN76: NA | FO76: NA | FP76: NA | FQ76: NA | FR76: NA | FS76: NA | FT76: NA | FU76: NA | FV76: NA | FW76: NA | FX76: NA | FY76: NA | FZ76: NA | GA76: NA | GB76: NA | GC76: NA | GD76: NA | GE76: NA | GF76: NA | GG76: NA | GH76: NA | GI76: NA | GJ76: =BE76*25 -> 403.379976 | GK76: 382.4902629 | GL76: 410.4864443 | GM76: 403.379976 | GN76: =BI76*25 -> 382.7436793 | GO76: 354.8653577 | GP76: =BK76*25 -> 330.8949216 | GQ76: =BL76*25 -> 305.3207813 | GR76: =BM76*25 -> 281.5668059 | GS76: =BN76*25 -> 259.4000192 | GT76: =BO76*25 -> 238.6198333 | GU76: =BP76*25 -> 219.0532064 | GV76: =BQ76*25 -> 200.550562 | GW76: =BR76*25 -> 184.1203434 | GX76: =BS76*25 -> 169.5071423 | GY76: =BT76*25 -> 156.4905414 | GZ76: =BU76*25 -> 144.8799166 | HA76: =BV76*25 -> 134.5100543 | HB76: =BW76*25 -> 125.2374518 | HC76: =BX76*25 -> 116.9371897 | HD76: =BY76*25 -> 109.5002857 | HE76: =BZ76*25 -> 102.8314516 | HF76: =CA76*25 -> 96.8471894 | HG76: =CB76*25 -> 91.47417348 | HH76: =CC76*25 -> 86.64787281 | HI76: =CD76*25 -> 82.31137619 | HJ76: 78.41438865 | HK76: NO | HL76: NO | HM76: NO | HN76: NO | HO76: NO | HP76: NO | HQ76: NO | HR76: NO | HS76: NO | HT76: NO | HU76: NO | HV76: NO | HW76: NO | HX76: NO | HY76: NO | HZ76: NO | IA76: NO | IB76: NO | IC76: NO | ID76: NO | IE76: NO | IF76: NO | IG76: NO | IH76: NO | II76: NO | IJ76: NO | IK76: NO | IL76: =GJ76 -> 403.379976 | IM76: 382.4902629 | IN76: 410.4864443 | IO76: 403.379976 | IP76: 382.7436793 | IQ76: 354.8653577 | IR76: 330.8949216 | IS76: 305.3207813 | IT76: 281.5668059 | IU76: 259.4000192 | IV76: 238.6198333 | IW76: 219.0532064 | IX76: 200.550562 | IY76: 184.1203434 | IZ76: 169.5071423 | JA76: 156.4905414 | JB76: 144.8799166 | JC76: 134.5100543 | JD76: 125.2374518 | JE76: 116.9371897 | JF76: 109.5002857 | JG76: 102.8314516 | JH76: 96.8471894 | JI76: 91.47417348 | JJ76: 86.64787281 | JK76: 82.31137619 | JL76: 78.41438865
A77: 5.B. Biological treatment of solid waste | B77: WEM | C77: NA | D77: NA | E77: NA | F77: NA | G77: NA | H77: NA | I77: NA | J77: NA | K77: NA | L77: NA | M77: NA | N77: NA | O77: NA | P77: NA | Q77: NA | R77: NA | S77: NA | T77: NA | U77: NA | V77: NA | W77: NA | X77: NA | Y77: NA | Z77: NA | AA77: NA | AB77: NA | AC77: NA | AD77: 0.068150923 | AE77: 0.06199368 | AF77: 0.07805376 | AG77: 0.068150923 | AH77: 0.06548097194 | AI77: 0.06500596048 | AJ77: 0.08851761506 | AK77: 0.08800929022 | AL77: 0.08748006117 | AM77: 0.08693670243 | AN77: 0.08638368732 | AO77: 0.08583058619 | AP77: 0.0852843671 | AQ77: 0.08474728822 | AR77: 0.084220855 | AS77: 0.08371156237 | AT77: 0.08322738919 | AU77: 0.08280487649 | AV77: 0.0824910141 | AW77: 0.08220475319 | AX77: 0.08194353523 | AY77: 0.08170519298 | AZ77: 0.08148787136 | BA77: 0.08128996819 | BB77: 0.08111008883 | BC77: 0.08094701106 | BD77: 0.08079965728 | BE77: 1.135848722 | BF77: 1.033228 | BG77: 1.300896 | BH77: 1.135848722 | BI77: 1.091349532 | BJ77: 1.083432675 | BK77: 1.475293584 | BL77: 1.466821504 | BM77: 1.458001019 | BN77: 1.44894504 | BO77: 1.439728122 | BP77: 1.43050977 | BQ77: 1.421406118 | BR77: 1.412454804 | BS77: 1.403680917 | BT77: 1.395192706 | BU77: 1.387123153 | BV77: 1.380081275 | BW77: 1.374850235 | BX77: 1.37007922 | BY77: 1.365725587 | BZ77: 1.361753216 | CA77: 1.358131189 | CB77: 1.354832803 | CC77: 1.351834814 | CD77: 1.349116851 | CE77: 1.346660955 | CF77: NA | CG77: NA | CH77: NA | CI77: NA | CJ77: NA | CK77: NA | CL77: NA | CM77: NA | CN77: NA | CO77: NA | CP77: NA | CQ77: NA | CR77: NA | CS77: NA | CT77: NA | CU77: NA | CV77: NA | CW77: NA | CX77: NA | CY77: NA | CZ77: NA | DA77: NA | DB77: NA | DC77: NA | DD77: NA | DE77: NA | DF77: NA | DG77: NA | DH77: NA | DI77: NA | DJ77: NA | DK77: NA | DL77: NA | DM77: NA | DN77: NA | DO77: NA | DP77: NA | DQ77: NA | DR77: NA | DS77: NA | DT77: NA | DU77: NA | DV77: NA | DW77: NA | DX77: NA | DY77: NA | DZ77: NA | EA77: NA | EB77: NA | EC77: NA | ED77: NA | EE77: NA | EF77: NA | EG77: NA | EH77: NA | EI77: NA | EJ77: NA | EK77: NA | EL77: NA | EM77: NA | EN77: NA | EO77: NA | EP77: NA | EQ77: NA | ER77: NA | ES77: NA | ET77: NA | EU77: NA | EV77: NA | EW77: NA | EX77: NA | EY77: NA | EZ77: NA | FA77: NA | FB77: NA | FC77: NA | FD77: NA | FE77: NA | FF77: NA | FG77: NA | FH77: NA | FI77: NA | FJ77: NA | FK77: NA | FL77: NA | FM77: NA | FN77: NA | FO77: NA | FP77: NA | FQ77: NA | FR77: NA | FS77: NA | FT77: NA | FU77: NA | FV77: NA | FW77: NA | FX77: NA | FY77: NA | FZ77: NA | GA77: NA | GB77: NA | GC77: NA | GD77: NA | GE77: NA | GF77: NA | GG77: NA | GH77: NA | GI77: NA | GJ77: =AD77*298+BE77*25 -> 48.7051931 | GK77: 44.30481664 | GL77: 55.78242048 | GM77: 48.7051931 | GN77: =AH77*298+BI77*25 -> 46.79706794 | GO77: 46.45759309 | GP77: 63.2605889 | GQ77: 62.89730608 | GR77: 62.51908372 | GS77: 62.13076334 | GT77: 61.73554187 | GU77: 61.34025893 | GV77: 60.94989435 | GW77: 60.56606198 | GX77: 60.18983771 | GY77: 59.82586324 | GZ77: 59.47984081 | HA77: 59.17788506 | HB77: 58.95357808 | HC77: 58.74899695 | HD77: 58.56231318 | HE77: 58.39197791 | HF77: 58.2366654 | HG77: 58.0952306 | HH77: 57.96667682 | HI77: 57.85013057 | HJ77: 57.74482174 | HK77: NO | HL77: NO | HM77: NO | HN77: NO | HO77: NO | HP77: NO | HQ77: NO | HR77: NO | HS77: NO | HT77: NO | HU77: NO | HV77: NO | HW77: NO | HX77: NO | HY77: NO | HZ77: NO | IA77: NO | IB77: NO | IC77: NO | ID77: NO | IE77: NO | IF77: NO | IG77: NO | IH77: NO | II77: NO | IJ77: NO | IK77: NO | IL77: 48.7051931 | IM77: 44.30481664 | IN77: 55.78242048 | IO77: 48.7051931 | IP77: 46.79706794 | IQ77: 46.45759309 | IR77: 63.2605889 | IS77: 62.89730608 | IT77: 62.51908372 | IU77: 62.13076334 | IV77: 61.73554187 | IW77: 61.34025893 | IX77: 60.94989435 | IY77: 60.56606198 | IZ77: 60.18983771 | JA77: 59.82586324 | JB77: 59.47984081 | JC77: 59.17788506 | JD77: 58.95357808 | JE77: 58.74899695 | JF77: 58.56231318 | JG77: 58.39197791 | JH77: 58.2366654 | JI77: 58.0952306 | JJ77: 57.96667682 | JK77: 57.85013057 | JL77: 57.74482174
A78: 5.C. Incineration and open burning of waste | B78: WEM | C78: 0.286055 | D78: 0.17950064 | E78: 0.173125 | F78: 0.286055 | G78: 0.28605456 | H78: 0.28605456 | I78: 0.28605456 | J78: 0.28605456 | K78: 0.28605456 | L78: 0.28605456 | M78: 0.28605456 | N78: 0.28605456 | O78: 0.28605456 | P78: 0.28605456 | Q78: 0.28605456 | R78: 0.28605456 | S78: 0.28605456 | T78: 0.28605456 | U78: 0.28605456 | V78: 0.28605456 | W78: 0.28605456 | X78: 0.28605456 | Y78: 0.28605456 | Z78: 0.28605456 | AA78: 0.28605456 | AB78: 0.28605456 | AC78: 0.28605456 | AD78: 2.0656e-05 | AE78: 2.03978e-05 | AF78: 1.96733e-05 | AG78: 2.0656e-05 | AH78: 2.06559e-05 | AI78: 2.06559e-05 | AJ78: 2.06559e-05 | AK78: 2.06559e-05 | AL78: 2.06559e-05 | AM78: 2.06559e-05 | AN78: 2.06559e-05 | AO78: 2.06559e-05 | AP78: 2.06559e-05 | AQ78: 2.06559e-05 | AR78: 2.06559e-05 | AS78: 2.06559e-05 | AT78: 2.06559e-05 | AU78: 2.06559e-05 | AV78: 2.06559e-05 | AW78: 2.06559e-05 | AX78: 2.06559e-05 | AY78: 2.06559e-05 | AZ78: 2.06559e-05 | BA78: 2.06559e-05 | BB78: 2.06559e-05 | BC78: 2.06559e-05 | BD78: 2.06559e-05 | BE78: NA | BF78: NA | BG78: NA | BH78: NA | BI78: NA | BJ78: NA | BK78: NA | BL78: NA | BM78: NA | BN78: NA | BO78: NA | BP78: NA | BQ78: NA | BR78: NA | BS78: NA | BT78: NA | BU78: NA | BV78: NA | BW78: NA | BX78: NA | BY78: NA | BZ78: NA | CA78: NA | CB78: NA | CC78: NA | CD78: NA | CE78: NA | CF78: NA | CG78: NA | CH78: NA | CI78: NA | CJ78: NA | CK78: NA | CL78: NA | CM78: NA | CN78: NA | CO78: NA | CP78: NA | CQ78: NA | CR78: NA | CS78: NA | CT78: NA | CU78: NA | CV78: NA | CW78: NA | CX78: NA | CY78: NA | CZ78: NA | DA78: NA | DB78: NA | DC78: NA | DD78: NA | DE78: NA | DF78: NA | DG78: NA | DH78: NA | DI78: NA | DJ78: NA | DK78: NA | DL78: NA | DM78: NA | DN78: NA | DO78: NA | DP78: NA | DQ78: NA | DR78: NA | DS78: NA | DT78: NA | DU78: NA | DV78: NA | DW78: NA | DX78: NA | DY78: NA | DZ78: NA | EA78: NA | EB78: NA | EC78: NA | ED78: NA | EE78: NA | EF78: NA | EG78: NA | EH78: NA | EI78: NA | EJ78: NA | EK78: NA | EL78: NA | EM78: NA | EN78: NA | EO78: NA | EP78: NA | EQ78: NA | ER78: NA | ES78: NA | ET78: NA | EU78: NA | EV78: NA | EW78: NA | EX78: NA | EY78: NA | EZ78: NA | FA78: NA | FB78: NA | FC78: NA | FD78: NA | FE78: NA | FF78: NA | FG78: NA | FH78: NA | FI78: NA | FJ78: NA | FK78: NA | FL78: NA | FM78: NA | FN78: NA | FO78: NA | FP78: NA | FQ78: NA | FR78: NA | FS78: NA | FT78: NA | FU78: NA | FV78: NA | FW78: NA | FX78: NA | FY78: NA | FZ78: NA | GA78: NA | GB78: NA | GC78: NA | GD78: NA | GE78: NA | GF78: NA | GG78: NA | GH78: NA | GI78: NA | GJ78: =C78+AD78*298 -> 0.292210488 | GK78: 0.1855791844 | GL78: 0.1789876434 | GM78: 0.292210488 | GN78: =G78+AH78*298 -> 0.2922100182 | GO78: 0.2922100182 | GP78: 0.2922100182 | GQ78: 0.2922100182 | GR78: 0.2922100182 | GS78: 0.2922100182 | GT78: 0.2922100182 | GU78: 0.2922100182 | GV78: 0.2922100182 | GW78: 0.2922100182 | GX78: 0.2922100182 | GY78: 0.2922100182 | GZ78: 0.2922100182 | HA78: 0.2922100182 | HB78: 0.2922100182 | HC78: 0.2922100182 | HD78: 0.2922100182 | HE78: 0.2922100182 | HF78: 0.2922100182 | HG78: 0.2922100182 | HH78: 0.2922100182 | HI78: 0.2922100182 | HJ78: 0.2922100182 | HK78: NO | HL78: NO | HM78: NO | HN78: NO | HO78: NO | HP78: NO | HQ78: NO | HR78: NO | HS78: NO | HT78: NO | HU78: NO | HV78: NO | HW78: NO | HX78: NO | HY78: NO | HZ78: NO | IA78: NO | IB78: NO | IC78: NO | ID78: NO | IE78: NO | IF78: NO | IG78: NO | IH78: NO | II78: NO | IJ78: NO | IK78: NO | IL78: 0.292210488 | IM78: 0.1855791844 | IN78: 0.1789876434 | IO78: 0.292210488 | IP78: 0.2922100182 | IQ78: 0.2922100182 | IR78: 0.2922100182 | IS78: 0.2922100182 | IT78: 0.2922100182 | IU78: 0.2922100182 | IV78: 0.2922100182 | IW78: 0.2922100182 | IX78: 0.2922100182 | IY78: 0.2922100182 | IZ78: 0.2922100182 | JA78: 0.2922100182 | JB78: 0.2922100182 | JC78: 0.2922100182 | JD78: 0.2922100182 | JE78: 0.2922100182 | JF78: 0.2922100182 | JG78: 0.2922100182 | JH78: 0.2922100182 | JI78: 0.2922100182 | JJ78: 0.2922100182 | JK78: 0.2922100182 | JL78: 0.2922100182
A79: 5.D. Wastewater treatment and discharge | B79: WEM | C79: NA | D79: NA | E79: NA | F79: NA | G79: NA | H79: NA | I79: NA | J79: NA | K79: NA | L79: NA | M79: NA | N79: NA | O79: NA | P79: NA | Q79: NA | R79: NA | S79: NA | T79: NA | U79: NA | V79: NA | W79: NA | X79: NA | Y79: NA | Z79: NA | AA79: NA | AB79: NA | AC79: NA | AD79: 0.107259218 | AE79: 0.110438932 | AF79: 0.107754818 | AG79: 0.107259218 | AH79: 0.1097558548 | AI79: 0.1079831338 | AJ79: 0.1061876413 | AK79: 0.1043247065 | AL79: 0.1024034884 | AM79: 0.1004574591 | AN79: 0.09852310421 | AO79: 0.09658175355 | AP79: 0.09466775213 | AQ79: 0.09280294135 | AR79: 0.09096379856 | AS79: 0.08916917161 | AT79: 0.08744224689 | AU79: 0.08589883422 | AV79: 0.08467669932 | AW79: 0.08353935472 | AX79: 0.08247972992 | AY79: 0.08149189874 | AZ79: 0.08057084707 | BA79: 0.07971229873 | BB79: 0.07891258202 | BC79: 0.07816852599 | BD79: 0.07747737833 | BE79: 3.234723795 | BF79: 4.07530431 | BG79: 4.089649679 | BH79: 3.234723795 | BI79: 4.505139036 | BJ79: 4.455091359 | BK79: 4.402586341 | BL79: 4.349672966 | BM79: 4.294565496 | BN79: 4.237021763 | BO79: 4.176111069 | BP79: 4.115313033 | BQ79: 4.055370831 | BR79: 3.994645001 | BS79: 3.934788447 | BT79: 3.876273276 | BU79: 3.819675477 | BV79: 3.768258613 | BW79: 3.724483761 | BX79: 3.682170978 | BY79: 3.641094292 | BZ79: 3.601061686 | CA79: 3.562908684 | CB79: 3.525493538 | CC79: 3.488693552 | CD79: 3.452402218 | CE79: 3.416526959 | CF79: NA | CG79: NA | CH79: NA | CI79: NA | CJ79: NA | CK79: NA | CL79: NA | CM79: NA | CN79: NA | CO79: NA | CP79: NA | CQ79: NA | CR79: NA | CS79: NA | CT79: NA | CU79: NA | CV79: NA | CW79: NA | CX79: NA | CY79: NA | CZ79: NA | DA79: NA | DB79: NA | DC79: NA | DD79: NA | DE79: NA | DF79: NA | DG79: NA | DH79: NA | DI79: NA | DJ79: NA | DK79: NA | DL79: NA | DM79: NA | DN79: NA | DO79: NA | DP79: NA | DQ79: NA | DR79: NA | DS79: NA | DT79: NA | DU79: NA | DV79: NA | DW79: NA | DX79: NA | DY79: NA | DZ79: NA | EA79: NA | EB79: NA | EC79: NA | ED79: NA | EE79: NA | EF79: NA | EG79: NA | EH79: NA | EI79: NA | EJ79: NA | EK79: NA | EL79: NA | EM79: NA | EN79: NA | EO79: NA | EP79: NA | EQ79: NA | ER79: NA | ES79: NA | ET79: NA | EU79: NA | EV79: NA | EW79: NA | EX79: NA | EY79: NA | EZ79: NA | FA79: NA | FB79: NA | FC79: NA | FD79: NA | FE79: NA | FF79: NA | FG79: NA | FH79: NA | FI79: NA | FJ79: NA | FK79: NA | FL79: NA | FM79: NA | FN79: NA | FO79: NA | FP79: NA | FQ79: NA | FR79: NA | FS79: NA | FT79: NA | FU79: NA | FV79: NA | FW79: NA | FX79: NA | FY79: NA | FZ79: NA | GA79: NA | GB79: NA | GC79: NA | GD79: NA | GE79: NA | GF79: NA | GG79: NA | GH79: NA | GI79: NA | GJ79: =AD79*298+BE79*25 -> 112.8313418 | GK79: 134.7934095 | GL79: 134.3521777 | GM79: 112.8313418 | GN79: =AH79*298+BI79*25 -> 145.3357206 | GO79: 143.5562578 | GP79: 141.7085756 | GQ79: 139.8305867 | GR79: 137.8803769 | GS79: 135.8618669 | GT79: 133.7626618 | GU79: 131.6641884 | GV79: 129.5952609 | GW79: 127.5214015 | GX79: 125.4769232 | GY79: 123.479245 | GZ79: 121.5496765 | HA79: 119.8043179 | HB79: 118.3457504 | HC79: 116.9490022 | HD79: 115.6063168 | HE79: 114.311128 | HF79: 113.0828295 | HG79: 111.8916035 | HH79: 110.7332882 | HI79: 109.6042762 | HJ79: 108.5014327 | HK79: NO | HL79: NO | HM79: NO | HN79: NO | HO79: NO | HP79: NO | HQ79: NO | HR79: NO | HS79: NO | HT79: NO | HU79: NO | HV79: NO | HW79: NO | HX79: NO | HY79: NO | HZ79: NO | IA79: NO | IB79: NO | IC79: NO | ID79: NO | IE79: NO | IF79: NO | IG79: NO | IH79: NO | II79: NO | IJ79: NO | IK79: NO | IL79: 112.8313418 | IM79: 134.7934095 | IN79: 134.3521777 | IO79: 112.8313418 | IP79: 145.3357206 | IQ79: 143.5562578 | IR79: 141.7085756 | IS79: 139.8305867 | IT79: 137.8803769 | IU79: 135.8618669 | IV79: 133.7626618 | IW79: 131.6641884 | IX79: 129.5952609 | IY79: 127.5214015 | IZ79: 125.4769232 | JA79: 123.479245 | JB79: 121.5496765 | JC79: 119.8043179 | JD79: 118.3457504 | JE79: 116.9490022 | JF79: 115.6063168 | JG79: 114.311128 | JH79: 113.0828295 | JI79: 111.8916035 | JJ79: 110.7332882 | JK79: 109.6042762 | JL79: 108.5014327
A80: 5.E. Other (please specify) | B80: WEM | C80: NO | D80: NO | E80: NO | F80: NO | G80: NO | H80: NO | I80: NO | J80: NO | K80: NO | L80: NO | M80: NO | N80: NO | O80: NO | P80: NO | Q80: NO | R80: NO | S80: NO | T80: NO | U80: NO | V80: NO | W80: NO | X80: NO | Y80: NO | Z80: NO | AA80: NO | AB80: NO | AC80: NO | AD80: NO | AE80: NO | AF80: NO | AG80: NO | AH80: NO | AI80: NO | AJ80: NO | AK80: NO | AL80: NO | AM80: NO | AN80: NO | AO80: NO | AP80: NO | AQ80: NO | AR80: NO | AS80: NO | AT80: NO | AU80: NO | AV80: NO | AW80: NO | AX80: NO | AY80: NO | AZ80: NO | BA80: NO | BB80: NO | BC80: NO | BD80: NO | BE80: NO | BF80: NO | BG80: NO | BH80: NO | BI80: NO | BJ80: NO | BK80: NO | BL80: NO | BM80: NO | BN80: NO | BO80: NO | BP80: NO | BQ80: NO | BR80: NO | BS80: NO | BT80: NO | BU80: NO | BV80: NO | BW80: NO | BX80: NO | BY80: NO | BZ80: NO | CA80: NO | CB80: NO | CC80: NO | CD80: NO | CE80: NO | CF80: NO | CG80: NO | CH80: NO | CI80: NO | CJ80: NO | CK80: NO | CL80: NO | CM80: NO | CN80: NO | CO80: NO | CP80: NO | CQ80: NO | CR80: NO | CS80: NO | CT80: NO | CU80: NO | CV80: NO | CW80: NO | CX80: NO | CY80: NO | CZ80: NO | DA80: NO | DB80: NO | DC80: NO | DD80: NO | DE80: NO | DF80: NO | DG80: NO | DH80: NO | DI80: NO | DJ80: NO | DK80: NO | DL80: NO | DM80: NO | DN80: NO | DO80: NO | DP80: NO | DQ80: NO | DR80: NO | DS80: NO | DT80: NO | DU80: NO | DV80: NO | DW80: NO | DX80: NO | DY80: NO | DZ80: NO | EA80: NO | EB80: NO | EC80: NO | ED80: NO | EE80: NO | EF80: NO | EG80: NO | EH80: NO | EI80: NO | EJ80: NO | EK80: NO | EL80: NO | EM80: NO | EN80: NO | EO80: NO | EP80: NO | EQ80: NO | ER80: NO | ES80: NO | ET80: NO | EU80: NO | EV80: NO | EW80: NO | EX80: NO | EY80: NO | EZ80: NO | FA80: NO | FB80: NO | FC80: NO | FD80: NO | FE80: NO | FF80: NO | FG80: NO | FH80: NO | FI80: NO | FJ80: NO | FK80: NO | FL80: NO | FM80: NO | FN80: NO | FO80: NO | FP80: NO | FQ80: NO | FR80: NO | FS80: NO | FT80: NO | FU80: NO | FV80: NO | FW80: NO | FX80: NO | FY80: NO | FZ80: NO | GA80: NO | GB80: NO | GC80: NO | GD80: NO | GE80: NO | GF80: NO | GG80: NO | GH80: NO | GI80: NO | GJ80: NO | GK80: NO | GL80: NO | GM80: NO | GN80: NO | GO80: NO | GP80: NO | GQ80: NO | GR80: NO | GS80: NO | GT80: NO | GU80: NO | GV80: NO | GW80: NO | GX80: NO | GY80: NO | GZ80: NO | HA80: NO | HB80: NO | HC80: NO | HD80: NO | HE80: NO | HF80: NO | HG80: NO | HH80: NO | HI80: NO | HJ80: NO | HK80: NO | HL80: NO | HM80: NO | HN80: NO | HO80: NO | HP80: NO | HQ80: NO | HR80: NO | HS80: NO | HT80: NO | HU80: NO | HV80: NO | HW80: NO | HX80: NO | HY80: NO | HZ80: NO | IA80: NO | IB80: NO | IC80: NO | ID80: NO | IE80: NO | IF80: NO | IG80: NO | IH80: NO | II80: NO | IJ80: NO | IK80: NO | IL80: NO | IM80: NO | IN80: NO | IO80: NO | IP80: NO | IQ80: NO | IR80: NO | IS80: NO | IT80: NO | IU80: NO | IV80: NO | IW80: NO | IX80: NO | IY80: NO | IZ80: NO | JA80: NO | JB80: NO | JC80: NO | JD80: NO | JE80: NO | JF80: NO | JG80: NO | JH80: NO | JI80: NO | JJ80: NO | JK80: NO | JL80: NO
A81: Memo items | B81: WEM | C81: =C82+C85+C89 -> 8220.639927 | D81: =D82+D85+D89 -> 7604.812305 | E81: 7966.665872 | F81: =F82+F85+F89 -> 8220.639927 | G81: =G82+G85+G89 -> 7989.29198 | H81: =H82+H85+H89 -> 7757.944033 | I81: 7526.596087 | J81: =J82+J85+J89 -> 7454.938441 | K81: =K82+K85+K89 -> 7383.280794 | L81: =L82+L85+L89 -> 7311.623148 | M81: =M82+M85+M89 -> 7239.965502 | N81: =N82+N85+N89 -> 7168.307856 | O81: =O82+O85+O89 -> 7162.65108 | P81: =P82+P85+P89 -> 7156.994304 | Q81: =Q82+Q85+Q89 -> 7151.337529 | R81: =R82+R85+R89 -> 7145.680753 | S81: =S82+S85+S89 -> 7140.023977 | T81: =T82+T85+T89 -> 7066.459028 | U81: =U82+U85+U89 -> 6992.894079 | V81: =V82+V85+V89 -> 6919.32913 | W81: =W82+W85+W89 -> 6845.764182 | X81: =X82+X85+X89 -> 6772.199233 | Y81: =Y82+Y85+Y89 -> 6878.54199 | Z81: =Z82+Z85+Z89 -> 6984.884748 | AA81: =AA82+AA85+AA89 -> 7091.227506 | AB81: =AB82+AB85+AB89 -> 7197.570264 | AC81: =AC82+AC85+AC89 -> 7303.913022 | AD81: =AD82+AD89 -> 0.2142852157 | AE81: 0.1918747415 | AF81: 0.2487049632 | AG81: 0.2142852157 | AH81: 0.213652751 | AI81: 0.2130202864 | AJ81: 0.2123878217 | AK81: 0.2130152945 | AL81: 0.2136427674 | AM81: 0.2142702402 | AN81: 0.214897713 | AO81: 0.2155251859 | AP81: 0.2157043183 | AQ81: 0.2158834507 | AR81: 0.2160625831 | AS81: 0.2162417156 | AT81: 0.216420848 | AU81: 0.2164222977 | AV81: 0.2164237473 | AW81: 0.216425197 | AX81: 0.2164266466 | AY81: 0.2164280963 | AZ81: 0.216147858 | BA81: 0.2158676197 | BB81: 0.2155873813 | BC81: 0.215307143 | BD81: 0.2150269047 | BE81: 0.05869708767 | BF81: 0.05726555852 | BG81: 0.06816815308 | BH81: 0.05869708767 | BI81: 0.06307257729 | BJ81: 0.06744806691 | BK81: 0.07182355654 | BL81: 0.0720785048 | BM81: 0.07233345306 | BN81: 0.07258840132 | BO81: 0.07284334958 | BP81: 0.07309829784 | BQ81: 0.0732025703 | BR81: 0.07330684276 | BS81: 0.07341111522 | BT81: 0.07351538767 | BU81: 0.07361966013 | BV81: 0.07366431563 | BW81: 0.07370897113 | BX81: 0.07375362663 | BY81: 0.07379828213 | BZ81: 0.07384293763 | CA81: 0.07379180706 | CB81: 0.07374067649 | CC81: 0.07368954593 | CD81: 0.07363841536 | CE81: 0.07358728479 | CF81: NA,NO,IE | CG81: NA,NO,IE | CH81: NA,NO,IE | CI81: NA,NO,IE | CJ81: NA,NO,IE | CK81: NA,NO,IE | CL81: NA,NO,IE | CM81: NA,NO,IE | CN81: NA,NO,IE | CO81: NA,NO,IE | CP81: NA,NO,IE | CQ81: NA,NO,IE | CR81: NA,NO,IE | CS81: NA,NO,IE | CT81: NA,NO,IE | CU81: NA,NO,IE | CV81: NA,NO,IE | CW81: NA,NO,IE | CX81: NA,NO,IE | CY81: NA,NO,IE | CZ81: NA,NO,IE | DA81: NA,NO,IE | DB81: NA,NO,IE | DC81: NA,NO,IE | DD81: NA,NO,IE | DE81: NA,NO,IE | DF81: NA,NO,IE | DG81: NA,NO,IE | DH81: NA,NO,IE | DI81: NA,NO,IE | DJ81: NA,NO,IE | DK81: NA,NO,IE | DL81: NA,NO,IE | DM81: NA,NO,IE | DN81: NA,NO,IE | DO81: NA,NO,IE | DP81: NA,NO,IE | DQ81: NA,NO,IE | DR81: NA,NO,IE | DS81: NA,NO,IE | DT81: NA,NO,IE | DU81: NA,NO,IE | DV81: NA,NO,IE | DW81: NA,NO,IE | DX81: NA,NO,IE | DY81: NA,NO,IE | DZ81: NA,NO,IE | EA81: NA,NO,IE | EB81: NA,NO,IE | EC81: NA,NO,IE | ED81: NA,NO,IE | EE81: NA,NO,IE | EF81: NA,NO,IE | EG81: NA,NO,IE | EH81: NA,NO,IE | EI81: NA,NO,IE | EJ81: NA,NO,IE | EK81: NA,NO,IE | EL81: NA,NO,IE | EM81: NA,NO,IE | EN81: NA,NO,IE | EO81: NA,NO,IE | EP81: NA,NO,IE | EQ81: NA,NO,IE | ER81: NA,NO,IE | ES81: NA,NO,IE | ET81: NA,NO,IE | EU81: NA,NO,IE | EV81: NA,NO,IE | EW81: NA,NO,IE | EX81: NA,NO,IE | EY81: NA,NO,IE | EZ81: NA,NO,IE | FA81: NA,NO,IE | FB81: NA,NO,IE | FC81: NA,NO,IE | FD81: NA,NO,IE | FE81: NA,NO,IE | FF81: NA,NO,IE | FG81: NA,NO,IE | FH81: NA,NO,IE | FI81: NA,NO,IE | FJ81: NA,NO,IE | FK81: NA,NO,IE | FL81: NA,NO,IE | FM81: NA,NO,IE | FN81: NA,NO,IE | FO81: NA,NO,IE | FP81: NA,NO,IE | FQ81: NA,NO,IE | FR81: NA,NO,IE | FS81: NA,NO,IE | FT81: NA,NO,IE | FU81: NA,NO,IE | FV81: NA,NO,IE | FW81: NA,NO,IE | FX81: NA,NO,IE | FY81: NA,NO,IE | FZ81: NA,NO,IE | GA81: NA,NO,IE | GB81: NA,NO,IE | GC81: NA,NO,IE | GD81: NA,NO,IE | GE81: NA,NO,IE | GF81: NA,NO,IE | GG81: NA,NO,IE | GH81: NA,NO,IE | GI81: NA,NO,IE | GJ81: =GJ82+GJ85+GJ89 -> 8285.964348 | GK81: =GK82+GK85+GK89 -> 7663.422617 | GL81: 8042.484155 | GM81: 8285.964348 | GN81: 8054.537314 | GO81: 7823.11028 | GP81: 7591.683246 | GQ81: 7520.218961 | GR81: 7448.754675 | GS81: 7377.29039 | GT81: 7305.826104 | GU81: 7234.361819 | GV81: 7228.761031 | GW81: 7223.160244 | GX81: 7217.559456 | GY81: 7211.958669 | GZ81: 7206.357882 | HA81: 7132.794481 | HB81: 7059.23108 | HC81: 6985.66768 | HD81: 6912.104279 | HE81: 6838.540879 | HF81: 6944.798847 | HG81: 7051.056816 | HH81: 7157.314785 | HI81: 7263.572753 | HJ81: 7369.830722 | HK81: =HK89 -> 378.59 | HL81: =HL89 -> 345.271 | HM81: 348.737 | HN81: 378.59 | HO81: 390.2064329 | HP81: 401.8228657 | HQ81: 413.4392986 | HR81: 416.1522522 | HS81: 418.8652057 | HT81: 421.5781593 | HU81: 424.2911129 | HV81: 427.0040665 | HW81: 428.8781395 | HX81: 430.7522125 | HY81: 432.6262855 | HZ81: 434.5003585 | IA81: 436.3744315 | IB81: 437.9180823 | IC81: 439.4617331 | ID81: 441.005384 | IE81: 442.5490348 | IF81: 444.0926856 | IG81: 445.0699882 | IH81: 446.0472907 | II81: 447.0245932 | IJ81: 448.0018957 | IK81: 448.9791983 | IL81: NA,NO,IE | IM81: NA,NO,IE | IN81: NA,NO,IE | IO81: NA,NO,IE | IP81: NA,NO,IE | IQ81: NA,NO,IE | IR81: NA,NO,IE | IS81: NA,NO,IE | IT81: NA,NO,IE | IU81: NA,NO,IE | IV81: NA,NO,IE | IW81: NA,NO,IE | IX81: NA,NO,IE | IY81: NA,NO,IE | IZ81: NA,NO,IE | JA81: NA,NO,IE | JB81: NA,NO,IE | JC81: NA,NO,IE | JD81: NA,NO,IE | JE81: NA,NO,IE | JF81: NA,NO,IE | JG81: NA,NO,IE | JH81: NA,NO,IE | JI81: NA,NO,IE | JJ81: NA,NO,IE | JK81: NA,NO,IE | JL81: NA,NO,IE
A82: M.International bunkers | B82: WEM | C82: 1253.662156 | D82: 1138.399536 | E82: 1375.076718 | F82: 1253.662156 | G82: 1262.188705 | H82: 1270.715254 | I82: 1279.241803 | J82: 1284.04136 | K82: 1288.840916 | L82: 1293.640472 | M82: 1298.440029 | N82: 1303.239585 | O82: 1305.361993 | P82: 1307.484401 | Q82: 1309.60681 | R82: 1311.729218 | S82: 1313.851626 | T82: 1314.914291 | U82: 1315.976956 | V82: 1317.03962 | W82: 1318.102285 | X82: 1319.16495 | Y82: 1318.518759 | Z82: 1317.872567 | AA82: 1317.226376 | AB82: 1316.580184 | AC82: 1315.933993 | AD82: 0.1994331856 | AE82: 0.1801537383 | AF82: 0.235648859 | AG82: 0.1994331856 | AH82: 0.1983212904 | AI82: 0.1972093952 | AJ82: 0.1960975 | AK82: 0.19661808 | AL82: 0.19713866 | AM82: 0.19765924 | AN82: 0.19817982 | AO82: 0.1987004 | AP82: 0.1988057 | AQ82: 0.198911 | AR82: 0.1990163 | AS82: 0.1991216 | AT82: 0.1992269 | AU82: 0.19916752 | AV82: 0.19910814 | AW82: 0.19904876 | AX82: 0.19898938 | AY82: 0.19893 | AZ82: 0.19861126 | BA82: 0.19829252 | BB82: 0.19797378 | BC82: 0.19765504 | BD82: 0.1973363 | BE82: 0.05385612 | BF82: 0.05283096 | BG82: 0.06374682 | BH82: 0.05385612 | BI82: 0.05640034667 | BJ82: 0.05894457333 | BK82: 0.0614888 | BL82: 0.06167592 | BM82: 0.06186304 | BN82: 0.06205016 | BO82: 0.06223728 | BP82: 0.0624244 | BQ82: 0.06248184 | BR82: 0.06253928 | BS82: 0.06259672 | BT82: 0.06265416 | BU82: 0.0627116 | BV82: 0.06271766 | BW82: 0.06272372 | BX82: 0.06272978 | BY82: 0.06273584 | BZ82: 0.0627419 | CA82: 0.06266634 | CB82: 0.06259078 | CC82: 0.06251522 | CD82: 0.06243966 | CE82: 0.0623641 | CF82: NA | CG82: NA | CH82: NA | CI82: NA | CJ82: NA | CK82: NA | CL82: NA | CM82: NA | CN82: NA | CO82: NA | CP82: NA | CQ82: NA | CR82: NA | CS82: NA | CT82: NA | CU82: NA | CV82: NA | CW82: NA | CX82: NA | CY82: NA | CZ82: NA | DA82: NA | DB82: NA | DC82: NA | DD82: NA | DE82: NA | DF82: NA | DG82: NA | DH82: NA | DI82: NA | DJ82: NA | DK82: NA | DL82: NA | DM82: NA | DN82: NA | DO82: NA | DP82: NA | DQ82: NA | DR82: NA | DS82: NA | DT82: NA | DU82: NA | DV82: NA | DW82: NA | DX82: NA | DY82: NA | DZ82: NA | EA82: NA | EB82: NA | EC82: NA | ED82: NA | EE82: NA | EF82: NA | EG82: NA | EH82: NA | EI82: NA | EJ82: NA | EK82: NA | EL82: NA | EM82: NA | EN82: NA | EO82: NA | EP82: NA | EQ82: NA | ER82: NA | ES82: NA | ET82: NA | EU82: NA | EV82: NA | EW82: NA | EX82: NA | EY82: NA | EZ82: NA | FA82: NA | FB82: NA | FC82: NA | FD82: NA | FE82: NA | FF82: NA | FG82: NA | FH82: NA | FI82: NA | FJ82: NA | FK82: NA | FL82: NA | FM82: NA | FN82: NA | FO82: NA | FP82: NA | FQ82: NA | FR82: NA | FS82: NA | FT82: NA | FU82: NA | FV82: NA | FW82: NA | FX82: NA | FY82: NA | FZ82: NA | GA82: NA | GB82: NA | GC82: NA | GD82: NA | GE82: NA | GF82: NA | GG82: NA | GH82: NA | GI82: NA | GJ82: 1314.439648 | GK82: 1193.406124 | GL82: 1446.893749 | GM82: 1314.439648 | GN82: 1322.698458 | GO82: 1330.957268 | GP82: 1339.216078 | GQ82: 1344.175446 | GR82: 1349.134813 | GS82: 1354.09418 | GT82: 1359.053547 | GU82: 1364.012914 | GV82: 1366.168138 | GW82: 1368.323361 | GX82: 1370.478585 | GY82: 1372.633809 | GZ82: 1374.789032 | HA82: 1375.834153 | HB82: 1376.879274 | HC82: 1377.924395 | HD82: 1378.969516 | HE82: 1380.014638 | HF82: 1379.271573 | HG82: 1378.528508 | HH82: 1377.785443 | HI82: 1377.042378 | HJ82: 1376.299313 | HK82: NA | HL82: NA | HM82: NA | HN82: NA | HO82: NA | HP82: NA | HQ82: NA | HR82: NA | HS82: NA | HT82: NA | HU82: NA | HV82: NA | HW82: NA | HX82: NA | HY82: NA | HZ82: NA | IA82: NA | IB82: NA | IC82: NA | ID82: NA | IE82: NA | IF82: NA | IG82: NA | IH82: NA | II82: NA | IJ82: NA | IK82: NA | IL82: NA | IM82: NA | IN82: NA | IO82: NA | IP82: NA | IQ82: NA | IR82: NA | IS82: NA | IT82: NA | IU82: NA | IV82: NA | IW82: NA | IX82: NA | IY82: NA | IZ82: NA | JA82: NA | JB82: NA | JC82: NA | JD82: NA | JE82: NA | JF82: NA | JG82: NA | JH82: NA | JI82: NA | JJ82: NA | JK82: NA | JL82: NA
A83: M.IB.Aviation | B83: WEM | C83: 425.7035058 | D83: 326.700036 | E83: 371.7283181 | F83: 425.7035058 | G83: 430.7010938 | H83: 435.6986819 | I83: 440.6962699 | J83: 443.5880814 | K83: 446.4798929 | L83: 449.3717045 | M83: 452.263516 | N83: 455.1553275 | O83: 457.1529532 | P83: 459.1505789 | Q83: 461.1482047 | R83: 463.1458304 | S83: 465.1434561 | T83: 466.7888758 | U83: 468.4342955 | V83: 470.0797152 | W83: 471.7251349 | X83: 473.3705546 | Y83: 474.4122881 | Z83: 475.4540216 | AA83: 476.4957552 | AB83: 477.5374887 | AC83: 478.5792222 | AD83: 0.01583118558 | AE83: 0.01249373828 | AF83: 0.01391685899 | AG83: 0.01583118558 | AH83: 0.01634222372 | AI83: 0.01685326186 | AJ83: 0.0173643 | AK83: 0.01747824 | AL83: 0.01759218 | AM83: 0.01770612 | AN83: 0.01782006 | AO83: 0.017934 | AP83: 0.0180127 | AQ83: 0.0180914 | AR83: 0.0181701 | AS83: 0.0182488 | AT83: 0.0183275 | AU83: 0.01839234 | AV83: 0.01845718 | AW83: 0.01852202 | AX83: 0.01858686 | AY83: 0.0186517 | AZ83: 0.01869274 | BA83: 0.01873378 | BB83: 0.01877482 | BC83: 0.01881586 | BD83: 0.0188569 | BE83: 0.00516012 | BF83: 0.00472696 | BG83: 0.00471282 | BH83: 0.00516012 | BI83: 0.007112113333 | BJ83: 0.009064106667 | BK83: 0.0110161 | BL83: 0.0110884 | BM83: 0.0111607 | BN83: 0.011233 | BO83: 0.0113053 | BP83: 0.0113776 | BQ83: 0.01142752 | BR83: 0.01147744 | BS83: 0.01152736 | BT83: 0.01157728 | BU83: 0.0116272 | BV83: 0.01166834 | BW83: 0.01170948 | BX83: 0.01175062 | BY83: 0.01179176 | BZ83: 0.0118329 | CA83: 0.01185894 | CB83: 0.01188498 | CC83: 0.01191102 | CD83: 0.01193706 | CE83: 0.0119631 | CF83: NA | CG83: NA | CH83: NA | CI83: NA | CJ83: NA | CK83: NA | CL83: NA | CM83: NA | CN83: NA | CO83: NA | CP83: NA | CQ83: NA | CR83: NA | CS83: NA | CT83: NA | CU83: NA | CV83: NA | CW83: NA | CX83: NA | CY83: NA | CZ83: NA | DA83: NA | DB83: NA | DC83: NA | DD83: NA | DE83: NA | DF83: NA | DG83: NA | DH83: NA | DI83: NA | DJ83: NA | DK83: NA | DL83: NA | DM83: NA | DN83: NA | DO83: NA | DP83: NA | DQ83: NA | DR83: NA | DS83: NA | DT83: NA | DU83: NA | DV83: NA | DW83: NA | DX83: NA | DY83: NA | DZ83: NA | EA83: NA | EB83: NA | EC83: NA | ED83: NA | EE83: NA | EF83: NA | EG83: NA | EH83: NA | EI83: NA | EJ83: NA | EK83: NA | EL83: NA | EM83: NA | EN83: NA | EO83: NA | EP83: NA | EQ83: NA | ER83: NA | ES83: NA | ET83: NA | EU83: NA | EV83: NA | EW83: NA | EX83: NA | EY83: NA | EZ83: NA | FA83: NA | FB83: NA | FC83: NA | FD83: NA | FE83: NA | FF83: NA | FG83: NA | FH83: NA | FI83: NA | FJ83: NA | FK83: NA | FL83: NA | FM83: NA | FN83: NA | FO83: NA | FP83: NA | FQ83: NA | FR83: NA | FS83: NA | FT83: NA | FU83: NA | FV83: NA | FW83: NA | FX83: NA | FY83: NA | FZ83: NA | GA83: NA | GB83: NA | GC83: NA | GD83: NA | GE83: NA | GF83: NA | GG83: NA | GH83: NA | GI83: NA | GJ83: 430.5502021 | GK83: 330.541344 | GL83: 375.9933625 | GM83: 430.5502021 | GN83: 435.7488793 | GO83: 440.9475566 | GP83: 446.1462338 | GQ83: 449.0738069 | GR83: 452.0013801 | GS83: 454.9289532 | GT83: 457.8565264 | GU83: 460.7840995 | GV83: 462.8064258 | GW83: 464.8287521 | GX83: 466.8510785 | GY83: 468.8734048 | GZ83: 470.8957311 | HA83: 472.5615016 | HB83: 474.2272721 | HC83: 475.8930427 | HD83: 477.5588132 | HE83: 479.2245837 | HF83: 480.2791981 | HG83: 481.3338126 | HH83: 482.388427 | HI83: 483.4430415 | HJ83: 484.4976559 | HK83: NA | HL83: NA | HM83: NA | HN83: NA | HO83: NA | HP83: NA | HQ83: NA | HR83: NA | HS83: NA | HT83: NA | HU83: NA | HV83: NA | HW83: NA | HX83: NA | HY83: NA | HZ83: NA | IA83: NA | IB83: NA | IC83: NA | ID83: NA | IE83: NA | IF83: NA | IG83: NA | IH83: NA | II83: NA | IJ83: NA | IK83: NA | IL83: NA | IM83: NA | IN83: NA | IO83: NA | IP83: NA | IQ83: NA | IR83: NA | IS83: NA | IT83: NA | IU83: NA | IV83: NA | IW83: NA | IX83: NA | IY83: NA | IZ83: NA | JA83: NA | JB83: NA | JC83: NA | JD83: NA | JE83: NA | JF83: NA | JG83: NA | JH83: NA | JI83: NA | JJ83: NA | JK83: NA | JL83: NA
A84: M.IB.Navigation | B84: WEM | C84: 827.95865 | D84: 811.6995 | E84: 1003.3484 | F84: 827.95865 | G84: 831.4876112 | H84: 835.0165723 | I84: 838.5455335 | J84: 840.4532783 | K84: 842.3610231 | L84: 844.268768 | M84: 846.1765128 | N84: 848.0842576 | O84: 848.20904 | P84: 848.3338225 | Q84: 848.4586049 | R84: 848.5833874 | S84: 848.7081698 | T84: 848.1254149 | U84: 847.5426601 | V84: 846.9599052 | W84: 846.3771504 | X84: 845.7943955 | Y84: 844.1064705 | Z84: 842.4185455 | AA84: 840.7306205 | AB84: 839.0426955 | AC84: 837.3547705 | AD84: 0.183602 | AE84: 0.16766 | AF84: 0.221732 | AG84: 0.183602 | AH84: 0.1819790667 | AI84: 0.1803561333 | AJ84: 0.1787332 | AK84: 0.17913984 | AL84: 0.17954648 | AM84: 0.17995312 | AN84: 0.18035976 | AO84: 0.1807664 | AP84: 0.180793 | AQ84: 0.1808196 | AR84: 0.1808462 | AS84: 0.1808728 | AT84: 0.1808994 | AU84: 0.18077518 | AV84: 0.18065096 | AW84: 0.18052674 | AX84: 0.18040252 | AY84: 0.1802783 | AZ84: 0.17991852 | BA84: 0.17955874 | BB84: 0.17919896 | BC84: 0.17883918 | BD84: 0.1784794 | BE84: 0.048696 | BF84: 0.048104 | BG84: 0.059034 | BH84: 0.048696 | BI84: 0.04928823333 | BJ84: 0.04988046667 | BK84: 0.0504727 | BL84: 0.05058752 | BM84: 0.05070234 | BN84: 0.05081716 | BO84: 0.05093198 | BP84: 0.0510468 | BQ84: 0.05105432 | BR84: 0.05106184 | BS84: 0.05106936 | BT84: 0.05107688 | BU84: 0.0510844 | BV84: 0.05104932 | BW84: 0.05101424 | BX84: 0.05097916 | BY84: 0.05094408 | BZ84: 0.050909 | CA84: 0.0508074 | CB84: 0.0507058 | CC84: 0.0506042 | CD84: 0.0505026 | CE84: 0.050401 | CF84: NA | CG84: NA | CH84: NA | CI84: NA | CJ84: NA | CK84: NA | CL84: NA | CM84: NA | CN84: NA | CO84: NA | CP84: NA | CQ84: NA | CR84: NA | CS84: NA | CT84: NA | CU84: NA | CV84: NA | CW84: NA | CX84: NA | CY84: NA | CZ84: NA | DA84: NA | DB84: NA | DC84: NA | DD84: NA | DE84: NA | DF84: NA | DG84: NA | DH84: NA | DI84: NA | DJ84: NA | DK84: NA | DL84: NA | DM84: NA | DN84: NA | DO84: NA | DP84: NA | DQ84: NA | DR84: NA | DS84: NA | DT84: NA | DU84: NA | DV84: NA | DW84: NA | DX84: NA | DY84: NA | DZ84: NA | EA84: NA | EB84: NA | EC84: NA | ED84: NA | EE84: NA | EF84: NA | EG84: NA | EH84: NA | EI84: NA | EJ84: NA | EK84: NA | EL84: NA | EM84: NA | EN84: NA | EO84: NA | EP84: NA | EQ84: NA | ER84: NA | ES84: NA | ET84: NA | EU84: NA | EV84: NA | EW84: NA | EX84: NA | EY84: NA | EZ84: NA | FA84: NA | FB84: NA | FC84: NA | FD84: NA | FE84: NA | FF84: NA | FG84: NA | FH84: NA | FI84: NA | FJ84: NA | FK84: NA | FL84: NA | FM84: NA | FN84: NA | FO84: NA | FP84: NA | FQ84: NA | FR84: NA | FS84: NA | FT84: NA | FU84: NA | FV84: NA | FW84: NA | FX84: NA | FY84: NA | FZ84: NA | GA84: NA | GB84: NA | GC84: NA | GD84: NA | GE84: NA | GF84: NA | GG84: NA | GH84: NA | GI84: NA | GJ84: 883.889446 | GK84: 862.86478 | GL84: 1070.900386 | GM84: 883.889446 | GN84: 886.9495789 | GO84: 890.0097117 | GP84: 893.0698446 | GQ84: 895.1016386 | GR84: 897.1334327 | GS84: 899.1652267 | GT84: 901.1970208 | GU84: 903.2288148 | GV84: 903.361712 | GW84: 903.4946093 | GX84: 903.6275065 | GY84: 903.7604038 | GZ84: 903.893301 | HA84: 903.2726516 | HB84: 902.6520022 | HC84: 902.0313527 | HD84: 901.4107033 | HE84: 900.7900539 | HF84: 898.9923745 | HG84: 897.194695 | HH84: 895.3970156 | HI84: 893.5993361 | HJ84: 891.8016567 | HK84: NA | HL84: NA | HM84: NA | HN84: NA | HO84: NA | HP84: NA | HQ84: NA | HR84: NA | HS84: NA | HT84: NA | HU84: NA | HV84: NA | HW84: NA | HX84: NA | HY84: NA | HZ84: NA | IA84: NA | IB84: NA | IC84: NA | ID84: NA | IE84: NA | IF84: NA | IG84: NA | IH84: NA | II84: NA | IJ84: NA | IK84: NA | IL84: NA | IM84: NA | IN84: NA | IO84: NA | IP84: NA | IQ84: NA | IR84: NA | IS84: NA | IT84: NA | IU84: NA | IV84: NA | IW84: NA | IX84: NA | IY84: NA | IZ84: NA | JA84: NA | JB84: NA | JC84: NA | JD84: NA | JE84: NA | JF84: NA | JG84: NA | JH84: NA | JI84: NA | JJ84: NA | JK84: NA | JL84: NA
A85: M.CO2 emissions from biomass | B85: WEM | C85: 6588.387771 | D85: 6121.141769 | E85: 6242.852154 | F85: 6588.387771 | G85: 6336.896842 | H85: 6085.405913 | I85: 5833.914985 | J85: 5754.744829 | K85: 5675.574673 | L85: 5596.404516 | M85: 5517.23436 | N85: 5438.064204 | O85: 5428.410947 | P85: 5418.757691 | Q85: 5409.104434 | R85: 5399.451177 | S85: 5389.79792 | T85: 5313.626655 | U85: 5237.455391 | V85: 5161.284126 | W85: 5085.112861 | X85: 5008.941597 | Y85: 5114.953244 | Z85: 5220.964891 | AA85: 5326.976537 | AB85: 5432.988184 | AC85: 5538.999831 | AD85: NA | AE85: NA | AF85: NA | AG85: NA | AH85: NA | AI85: NA | AJ85: NA | AK85: NA | AL85: NA | AM85: NA | AN85: NA | AO85: NA | AP85: NA | AQ85: NA | AR85: NA | AS85: NA | AT85: NA | AU85: NA | AV85: NA | AW85: NA | AX85: NA | AY85: NA | AZ85: NA | BA85: NA | BB85: NA | BC85: NA | BD85: NA | BE85: NA | BF85: NA | BG85: NA | BH85: NA | BI85: NA | BJ85: NA | BK85: NA | BL85: NA | BM85: NA | BN85: NA | BO85: NA | BP85: NA | BQ85: NA | BR85: NA | BS85: NA | BT85: NA | BU85: NA | BV85: NA | BW85: NA | BX85: NA | BY85: NA | BZ85: NA | CA85: NA | CB85: NA | CC85: NA | CD85: NA | CE85: NA | CF85: NA | CG85: NA | CH85: NA | CI85: NA | CJ85: NA | CK85: NA | CL85: NA | CM85: NA | CN85: NA | CO85: NA | CP85: NA | CQ85: NA | CR85: NA | CS85: NA | CT85: NA | CU85: NA | CV85: NA | CW85: NA | CX85: NA | CY85: NA | CZ85: NA | DA85: NA | DB85: NA | DC85: NA | DD85: NA | DE85: NA | DF85: NA | DG85: NA | DH85: NA | DI85: NA | DJ85: NA | DK85: NA | DL85: NA | DM85: NA | DN85: NA | DO85: NA | DP85: NA | DQ85: NA | DR85: NA | DS85: NA | DT85: NA | DU85: NA | DV85: NA | DW85: NA | DX85: NA | DY85: NA | DZ85: NA | EA85: NA | EB85: NA | EC85: NA | ED85: NA | EE85: NA | EF85: NA | EG85: NA | EH85: NA | EI85: NA | EJ85: NA | EK85: NA | EL85: NA | EM85: NA | EN85: NA | EO85: NA | EP85: NA | EQ85: NA | ER85: NA | ES85: NA | ET85: NA | EU85: NA | EV85: NA | EW85: NA | EX85: NA | EY85: NA | EZ85: NA | FA85: NA | FB85: NA | FC85: NA | FD85: NA | FE85: NA | FF85: NA | FG85: NA | FH85: NA | FI85: NA | FJ85: NA | FK85: NA | FL85: NA | FM85: NA | FN85: NA | FO85: NA | FP85: NA | FQ85: NA | FR85: NA | FS85: NA | FT85: NA | FU85: NA | FV85: NA | FW85: NA | FX85: NA | FY85: NA | FZ85: NA | GA85: NA | GB85: NA | GC85: NA | GD85: NA | GE85: NA | GF85: NA | GG85: NA | GH85: NA | GI85: NA | GJ85: 6588.387771 | GK85: 6121.141769 | GL85: 6242.852154 | GM85: 6588.387771 | GN85: 6336.896842 | GO85: 6085.405913 | GP85: 5833.914985 | GQ85: 5754.744829 | GR85: 5675.574673 | GS85: 5596.404516 | GT85: 5517.23436 | GU85: 5438.064204 | GV85: 5428.410947 | GW85: 5418.757691 | GX85: 5409.104434 | GY85: 5399.451177 | GZ85: 5389.79792 | HA85: 5313.626655 | HB85: 5237.455391 | HC85: 5161.284126 | HD85: 5085.112861 | HE85: 5008.941597 | HF85: 5114.953244 | HG85: 5220.964891 | HH85: 5326.976537 | HI85: 5432.988184 | HJ85: 5538.999831 | HK85: NA | HL85: NA | HM85: NA | HN85: NA | HO85: NA | HP85: NA | HQ85: NA | HR85: NA | HS85: NA | HT85: NA | HU85: NA | HV85: NA | HW85: NA | HX85: NA | HY85: NA | HZ85: NA | IA85: NA | IB85: NA | IC85: NA | ID85: NA | IE85: NA | IF85: NA | IG85: NA | IH85: NA | II85: NA | IJ85: NA | IK85: NA | IL85: NA | IM85: NA | IN85: NA | IO85: NA | IP85: NA | IQ85: NA | IR85: NA | IS85: NA | IT85: NA | IU85: NA | IV85: NA | IW85: NA | IX85: NA | IY85: NA | IZ85: NA | JA85: NA | JB85: NA | JC85: NA | JD85: NA | JE85: NA | JF85: NA | JG85: NA | JH85: NA | JI85: NA | JJ85: NA | JK85: NA | JL85: NA
A86: M.CO2 captured | B86: WEM | C86: NO | D86: NO | E86: NO | F86: NO | G86: NO | H86: NO | I86: NO | J86: NO | K86: NO | L86: NO | M86: NO | N86: NO | O86: NO | P86: NO | Q86: NO | R86: NO | S86: NO | T86: NO | U86: NO | V86: NO | W86: NO | X86: NO | Y86: NO | Z86: NO | AA86: NO | AB86: NO | AC86: NO | AD86: NO | AE86: NO | AF86: NO | AG86: NO | AH86: NO | AI86: NO | AJ86: NO | AK86: NO | AL86: NO | AM86: NO | AN86: NO | AO86: NO | AP86: NO | AQ86: NO | AR86: NO | AS86: NO | AT86: NO | AU86: NO | AV86: NO | AW86: NO | AX86: NO | AY86: NO | AZ86: NO | BA86: NO | BB86: NO | BC86: NO | BD86: NO | BE86: NO | BF86: NO | BG86: NO | BH86: NO | BI86: NO | BJ86: NO | BK86: NO | BL86: NO | BM86: NO | BN86: NO | BO86: NO | BP86: NO | BQ86: NO | BR86: NO | BS86: NO | BT86: NO | BU86: NO | BV86: NO | BW86: NO | BX86: NO | BY86: NO | BZ86: NO | CA86: NO | CB86: NO | CC86: NO | CD86: NO | CE86: NO | CF86: NO | CG86: NO | CH86: NO | CI86: NO | CJ86: NO | CK86: NO | CL86: NO | CM86: NO | CN86: NO | CO86: NO | CP86: NO | CQ86: NO | CR86: NO | CS86: NO | CT86: NO | CU86: NO | CV86: NO | CW86: NO | CX86: NO | CY86: NO | CZ86: NO | DA86: NO | DB86: NO | DC86: NO | DD86: NO | DE86: NO | DF86: NO | DG86: NO | DH86: NO | DI86: NO | DJ86: NO | DK86: NO | DL86: NO | DM86: NO | DN86: NO | DO86: NO | DP86: NO | DQ86: NO | DR86: NO | DS86: NO | DT86: NO | DU86: NO | DV86: NO | DW86: NO | DX86: NO | DY86: NO | DZ86: NO | EA86: NO | EB86: NO | EC86: NO | ED86: NO | EE86: NO | EF86: NO | EG86: NO | EH86: NO | EI86: NO | EJ86: NO | EK86: NO | EL86: NO | EM86: NO | EN86: NO | EO86: NO | EP86: NO | EQ86: NO | ER86: NO | ES86: NO | ET86: NO | EU86: NO | EV86: NO | EW86: NO | EX86: NO | EY86: NO | EZ86: NO | FA86: NO | FB86: NO | FC86: NO | FD86: NO | FE86: NO | FF86: NO | FG86: NO | FH86: NO | FI86: NO | FJ86: NO | FK86: NO | FL86: NO | FM86: NO | FN86: NO | FO86: NO | FP86: NO | FQ86: NO | FR86: NO | FS86: NO | FT86: NO | FU86: NO | FV86: NO | FW86: NO | FX86: NO | FY86: NO | FZ86: NO | GA86: NO | GB86: NO | GC86: NO | GD86: NO | GE86: NO | GF86: NO | GG86: NO | GH86: NO | GI86: NO | GJ86: NO | GK86: NO | GL86: NO | GM86: NO | GN86: NO | GO86: NO | GP86: NO | GQ86: NO | GR86: NO | GS86: NO | GT86: NO | GU86: NO | GV86: NO | GW86: NO | GX86: NO | GY86: NO | GZ86: NO | HA86: NO | HB86: NO | HC86: NO | HD86: NO | HE86: NO | HF86: NO | HG86: NO | HH86: NO | HI86: NO | HJ86: NO | HK86: NO | HL86: NO | HM86: NO | HN86: NO | HO86: NO | HP86: NO | HQ86: NO | HR86: NO | HS86: NO | HT86: NO | HU86: NO | HV86: NO | HW86: NO | HX86: NO | HY86: NO | HZ86: NO | IA86: NO | IB86: NO | IC86: NO | ID86: NO | IE86: NO | IF86: NO | IG86: NO | IH86: NO | II86: NO | IJ86: NO | IK86: NO | IL86: NO | IM86: NO | IN86: NO | IO86: NO | IP86: NO | IQ86: NO | IR86: NO | IS86: NO | IT86: NO | IU86: NO | IV86: NO | IW86: NO | IX86: NO | IY86: NO | IZ86: NO | JA86: NO | JB86: NO | JC86: NO | JD86: NO | JE86: NO | JF86: NO | JG86: NO | JH86: NO | JI86: NO | JJ86: NO | JK86: NO | JL86: NO
A87: M.Long-term storage of C in waste disposal sites | B87: WEM | C87: NA | D87: NA | E87: NA | F87: NA | G87: NA | H87: NA | I87: NA | J87: NA | K87: NA | L87: NA | M87: NA | N87: NA | O87: NA | P87: NA | Q87: NA | R87: NA | S87: NA | T87: NA | U87: NA | V87: NA | W87: NA | X87: NA | Y87: NA | Z87: NA | AA87: NA | AB87: NA | AC87: NA | AD87: NA | AE87: NA | AF87: NA | AG87: NA | AH87: NA | AI87: NA | AJ87: NA | AK87: NA | AL87: NA | AM87: NA | AN87: NA | AO87: NA | AP87: NA | AQ87: NA | AR87: NA | AS87: NA | AT87: NA | AU87: NA | AV87: NA | AW87: NA | AX87: NA | AY87: NA | AZ87: NA | BA87: NA | BB87: NA | BC87: NA | BD87: NA | BE87: NA | BF87: NA | BG87: NA | BH87: NA | BI87: NA | BJ87: NA | BK87: NA | BL87: NA | BM87: NA | BN87: NA | BO87: NA | BP87: NA | BQ87: NA | BR87: NA | BS87: NA | BT87: NA | BU87: NA | BV87: NA | BW87: NA | BX87: NA | BY87: NA | BZ87: NA | CA87: NA | CB87: NA | CC87: NA | CD87: NA | CE87: NA | CF87: NA | CG87: NA | CH87: NA | CI87: NA | CJ87: NA | CK87: NA | CL87: NA | CM87: NA | CN87: NA | CO87: NA | CP87: NA | CQ87: NA | CR87: NA | CS87: NA | CT87: NA | CU87: NA | CV87: NA | CW87: NA | CX87: NA | CY87: NA | CZ87: NA | DA87: NA | DB87: NA | DC87: NA | DD87: NA | DE87: NA | DF87: NA | DG87: NA | DH87: NA | DI87: NA | DJ87: NA | DK87: NA | DL87: NA | DM87: NA | DN87: NA | DO87: NA | DP87: NA | DQ87: NA | DR87: NA | DS87: NA | DT87: NA | DU87: NA | DV87: NA | DW87: NA | DX87: NA | DY87: NA | DZ87: NA | EA87: NA | EB87: NA | EC87: NA | ED87: NA | EE87: NA | EF87: NA | EG87: NA | EH87: NA | EI87: NA | EJ87: NA | EK87: NA | EL87: NA | EM87: NA | EN87: NA | EO87: NA | EP87: NA | EQ87: NA | ER87: NA | ES87: NA | ET87: NA | EU87: NA | EV87: NA | EW87: NA | EX87: NA | EY87: NA | EZ87: NA | FA87: NA | FB87: NA | FC87: NA | FD87: NA | FE87: NA | FF87: NA | FG87: NA | FH87: NA | FI87: NA | FJ87: NA | FK87: NA | FL87: NA | FM87: NA | FN87: NA | FO87: NA | FP87: NA | FQ87: NA | FR87: NA | FS87: NA | FT87: NA | FU87: NA | FV87: NA | FW87: NA | FX87: NA | FY87: NA | FZ87: NA | GA87: NA | GB87: NA | GC87: NA | GD87: NA | GE87: NA | GF87: NA | GG87: NA | GH87: NA | GI87: NA | GJ87: NA | GK87: NA | GL87: NA | GM87: NA | GN87: NA | GO87: NA | GP87: NA | GQ87: NA | GR87: NA | GS87: NA | GT87: NA | GU87: NA | GV87: NA | GW87: NA | GX87: NA | GY87: NA | GZ87: NA | HA87: NA | HB87: NA | HC87: NA | HD87: NA | HE87: NA | HF87: NA | HG87: NA | HH87: NA | HI87: NA | HJ87: NA | HK87: NA | HL87: NA | HM87: NA | HN87: NA | HO87: NA | HP87: NA | HQ87: NA | HR87: NA | HS87: NA | HT87: NA | HU87: NA | HV87: NA | HW87: NA | HX87: NA | HY87: NA | HZ87: NA | IA87: NA | IB87: NA | IC87: NA | ID87: NA | IE87: NA | IF87: NA | IG87: NA | IH87: NA | II87: NA | IJ87: NA | IK87: NA | IL87: NA | IM87: NA | IN87: NA | IO87: NA | IP87: NA | IQ87: NA | IR87: NA | IS87: NA | IT87: NA | IU87: NA | IV87: NA | IW87: NA | IX87: NA | IY87: NA | IZ87: NA | JA87: NA | JB87: NA | JC87: NA | JD87: NA | JE87: NA | JF87: NA | JG87: NA | JH87: NA | JI87: NA | JJ87: NA | JK87: NA | JL87: NA
A88: M.Indirect N2O | B88: WEM | C88: NA,NO,IE | D88: NA,NO,IE | E88: NA,NO,IE | F88: NA,NO,IE | G88: NA,NO,IE | H88: NA,NO,IE | I88: NA,NO,IE | J88: NA,NO,IE | K88: NA,NO,IE | L88: NA,NO,IE | M88: NA,NO,IE | N88: NA,NO,IE | O88: NA,NO,IE | P88: NA,NO,IE | Q88: NA,NO,IE | R88: NA,NO,IE | S88: NA,NO,IE | T88: NA,NO,IE | U88: NA,NO,IE | V88: NA,NO,IE | W88: NA,NO,IE | X88: NA,NO,IE | Y88: NA,NO,IE | Z88: NA,NO,IE | AA88: NA,NO,IE | AB88: NA,NO,IE | AC88: NA,NO,IE | AD88: NA,NO,IE | AE88: NA,NO,IE | AF88: NA,NO,IE | AG88: NA,NO,IE | AH88: NA,NO,IE | AI88: NA,NO,IE | AJ88: NA,NO,IE | AK88: NA,NO,IE | AL88: NA,NO,IE | AM88: NA,NO,IE | AN88: NA,NO,IE | AO88: NA,NO,IE | AP88: NA,NO,IE | AQ88: NA,NO,IE | AR88: NA,NO,IE | AS88: NA,NO,IE | AT88: NA,NO,IE | AU88: NA,NO,IE | AV88: NA,NO,IE | AW88: NA,NO,IE | AX88: NA,NO,IE | AY88: NA,NO,IE | AZ88: NA,NO,IE | BA88: NA,NO,IE | BB88: NA,NO,IE | BC88: NA,NO,IE | BD88: NA,NO,IE | BE88: NA,NO,IE | BF88: NA,NO,IE | BG88: NA,NO,IE | BH88: NA,NO,IE | BI88: NA,NO,IE | BJ88: NA,NO,IE | BK88: NA,NO,IE | BL88: NA,NO,IE | BM88: NA,NO,IE | BN88: NA,NO,IE | BO88: NA,NO,IE | BP88: NA,NO,IE | BQ88: NA,NO,IE | BR88: NA,NO,IE | BS88: NA,NO,IE | BT88: NA,NO,IE | BU88: NA,NO,IE | BV88: NA,NO,IE | BW88: NA,NO,IE | BX88: NA,NO,IE | BY88: NA,NO,IE | BZ88: NA,NO,IE | CA88: NA,NO,IE | CB88: NA,NO,IE | CC88: NA,NO,IE | CD88: NA,NO,IE | CE88: NA,NO,IE | CF88: NA,NO,IE | CG88: NA,NO,IE | CH88: NA,NO,IE | CI88: NA,NO,IE | CJ88: NA,NO,IE | CK88: NA,NO,IE | CL88: NA,NO,IE | CM88: NA,NO,IE | CN88: NA,NO,IE | CO88: NA,NO,IE | CP88: NA,NO,IE | CQ88: NA,NO,IE | CR88: NA,NO,IE | CS88: NA,NO,IE | CT88: NA,NO,IE | CU88: NA,NO,IE | CV88: NA,NO,IE | CW88: NA,NO,IE | CX88: NA,NO,IE | CY88: NA,NO,IE | CZ88: NA,NO,IE | DA88: NA,NO,IE | DB88: NA,NO,IE | DC88: NA,NO,IE | DD88: NA,NO,IE | DE88: NA,NO,IE | DF88: NA,NO,IE | DG88: NA,NO,IE | DH88: NA,NO,IE | DI88: NA,NO,IE | DJ88: NA,NO,IE | DK88: NA,NO,IE | DL88: NA,NO,IE | DM88: NA,NO,IE | DN88: NA,NO,IE | DO88: NA,NO,IE | DP88: NA,NO,IE | DQ88: NA,NO,IE | DR88: NA,NO,IE | DS88: NA,NO,IE | DT88: NA,NO,IE | DU88: NA,NO,IE | DV88: NA,NO,IE | DW88: NA,NO,IE | DX88: NA,NO,IE | DY88: NA,NO,IE | DZ88: NA,NO,IE | EA88: NA,NO,IE | EB88: NA,NO,IE | EC88: NA,NO,IE | ED88: NA,NO,IE | EE88: NA,NO,IE | EF88: NA,NO,IE | EG88: NA,NO,IE | EH88: NA,NO,IE | EI88: NA,NO,IE | EJ88: NA,NO,IE | EK88: NA,NO,IE | EL88: NA,NO,IE | EM88: NA,NO,IE | EN88: NA,NO,IE | EO88: NA,NO,IE | EP88: NA,NO,IE | EQ88: NA,NO,IE | ER88: NA,NO,IE | ES88: NA,NO,IE | ET88: NA,NO,IE | EU88: NA,NO,IE | EV88: NA,NO,IE | EW88: NA,NO,IE | EX88: NA,NO,IE | EY88: NA,NO,IE | EZ88: NA,NO,IE | FA88: NA,NO,IE | FB88: NA,NO,IE | FC88: NA,NO,IE | FD88: NA,NO,IE | FE88: NA,NO,IE | FF88: NA,NO,IE | FG88: NA,NO,IE | FH88: NA,NO,IE | FI88: NA,NO,IE | FJ88: NA,NO,IE | FK88: NA,NO,IE | FL88: NA,NO,IE | FM88: NA,NO,IE | FN88: NA,NO,IE | FO88: NA,NO,IE | FP88: NA,NO,IE | FQ88: NA,NO,IE | FR88: NA,NO,IE | FS88: NA,NO,IE | FT88: NA,NO,IE | FU88: NA,NO,IE | FV88: NA,NO,IE | FW88: NA,NO,IE | FX88: NA,NO,IE | FY88: NA,NO,IE | FZ88: NA,NO,IE | GA88: NA,NO,IE | GB88: NA,NO,IE | GC88: NA,NO,IE | GD88: NA,NO,IE | GE88: NA,NO,IE | GF88: NA,NO,IE | GG88: NA,NO,IE | GH88: NA,NO,IE | GI88: NA,NO,IE | GJ88: NA,NO,IE | GK88: NA,NO,IE | GL88: NA,NO,IE | GM88: NA,NO,IE | GN88: NA,NO,IE | GO88: NA,NO,IE | GP88: NA,NO,IE | GQ88: NA,NO,IE | GR88: NA,NO,IE | GS88: NA,NO,IE | GT88: NA,NO,IE | GU88: NA,NO,IE | GV88: NA,NO,IE | GW88: NA,NO,IE | GX88: NA,NO,IE | GY88: NA,NO,IE | GZ88: NA,NO,IE | HA88: NA,NO,IE | HB88: NA,NO,IE | HC88: NA,NO,IE | HD88: NA,NO,IE | HE88: NA,NO,IE | HF88: NA,NO,IE | HG88: NA,NO,IE | HH88: NA,NO,IE | HI88: NA,NO,IE | HJ88: NA,NO,IE | HK88: NA,NO,IE | HL88: NA,NO,IE | HM88: NA,NO,IE | HN88: NA,NO,IE | HO88: NA,NO,IE | HP88: NA,NO,IE | HQ88: NA,NO,IE | HR88: NA,NO,IE | HS88: NA,NO,IE | HT88: NA,NO,IE | HU88: NA,NO,IE | HV88: NA,NO,IE | HW88: NA,NO,IE | HX88: NA,NO,IE | HY88: NA,NO,IE | HZ88: NA,NO,IE | IA88: NA,NO,IE | IB88: NA,NO,IE | IC88: NA,NO,IE | ID88: NA,NO,IE | IE88: NA,NO,IE | IF88: NA,NO,IE | IG88: NA,NO,IE | IH88: NA,NO,IE | II88: NA,NO,IE | IJ88: NA,NO,IE | IK88: NA,NO,IE | IL88: NA,NO,IE | IM88: NA,NO,IE | IN88: NA,NO,IE | IO88: NA,NO,IE | IP88: NA,NO,IE | IQ88: NA,NO,IE | IR88: NA,NO,IE | IS88: NA,NO,IE | IT88: NA,NO,IE | IU88: NA,NO,IE | IV88: NA,NO,IE | IW88: NA,NO,IE | IX88: NA,NO,IE | IY88: NA,NO,IE | IZ88: NA,NO,IE | JA88: NA,NO,IE | JB88: NA,NO,IE | JC88: NA,NO,IE | JD88: NA,NO,IE | JE88: NA,NO,IE | JF88: NA,NO,IE | JG88: NA,NO,IE | JH88: NA,NO,IE | JI88: NA,NO,IE | JJ88: NA,NO,IE | JK88: NA,NO,IE | JL88: NA,NO,IE
A89: M.International aviation in the EU ETS | B89: WEM | C89: 378.59 | D89: 345.271 | E89: 348.737 | F89: 378.59 | G89: 390.2064329 | H89: 401.8228657 | I89: 413.4392986 | J89: 416.1522522 | K89: 418.8652057 | L89: 421.5781593 | M89: 424.2911129 | N89: 427.0040665 | O89: 428.8781395 | P89: 430.7522125 | Q89: 432.6262855 | R89: 434.5003585 | S89: 436.3744315 | T89: 437.9180823 | U89: 439.4617331 | V89: 441.005384 | W89: 442.5490348 | X89: 444.0926856 | Y89: 445.0699882 | Z89: 446.0472907 | AA89: 447.0245932 | AB89: 448.0018957 | AC89: 448.9791983 | AD89: 0.01485203009 | AE89: 0.01172100321 | AF89: 0.01305610419 | AG89: 0.01485203009 | AH89: 0.01533146063 | AI89: 0.01581089117 | AJ89: 0.01629032171 | AK89: 0.01639721454 | AL89: 0.01650410738 | AM89: 0.01661100021 | AN89: 0.01671789305 | AO89: 0.01682478588 | AP89: 0.0168986183 | AQ89: 0.01697245073 | AR89: 0.01704628315 | AS89: 0.01712011557 | AT89: 0.01719394799 | AU89: 0.01725477765 | AV89: 0.01731560731 | AW89: 0.01737643697 | AX89: 0.01743726663 | AY89: 0.01749809629 | AZ89: 0.01753659797 | BA89: 0.01757509966 | BB89: 0.01761360134 | BC89: 0.01765210303 | BD89: 0.01769060471 | BE89: 0.004840967666 | BF89: 0.004434598521 | BG89: 0.004421333077 | BH89: 0.004840967666 | BI89: 0.006672230624 | BJ89: 0.008503493581 | BK89: 0.01033475654 | BL89: 0.0104025848 | BM89: 0.01047041306 | BN89: 0.01053824132 | BO89: 0.01060606958 | BP89: 0.01067389784 | BQ89: 0.0107207303 | BR89: 0.01076756276 | BS89: 0.01081439522 | BT89: 0.01086122767 | BU89: 0.01090806013 | BV89: 0.01094665563 | BW89: 0.01098525113 | BX89: 0.01102384663 | BY89: 0.01106244213 | BZ89: 0.01110103763 | CA89: 0.01112546706 | CB89: 0.01114989649 | CC89: 0.01117432593 | CD89: 0.01119875536 | CE89: 0.01122318479 | CF89: NA | CG89: NA | CH89: NA | CI89: NA | CJ89: NA | CK89: NA | CL89: NA | CM89: NA | CN89: NA | CO89: NA | CP89: NA | CQ89: NA | CR89: NA | CS89: NA | CT89: NA | CU89: NA | CV89: NA | CW89: NA | CX89: NA | CY89: NA | CZ89: NA | DA89: NA | DB89: NA | DC89: NA | DD89: NA | DE89: NA | DF89: NA | DG89: NA | DH89: NA | DI89: NA | DJ89: NA | DK89: NA | DL89: NA | DM89: NA | DN89: NA | DO89: NA | DP89: NA | DQ89: NA | DR89: NA | DS89: NA | DT89: NA | DU89: NA | DV89: NA | DW89: NA | DX89: NA | DY89: NA | DZ89: NA | EA89: NA | EB89: NA | EC89: NA | ED89: NA | EE89: NA | EF89: NA | EG89: NA | EH89: NA | EI89: NA | EJ89: NA | EK89: NA | EL89: NA | EM89: NA | EN89: NA | EO89: NA | EP89: NA | EQ89: NA | ER89: NA | ES89: NA | ET89: NA | EU89: NA | EV89: NA | EW89: NA | EX89: NA | EY89: NA | EZ89: NA | FA89: NA | FB89: NA | FC89: NA | FD89: NA | FE89: NA | FF89: NA | FG89: NA | FH89: NA | FI89: NA | FJ89: NA | FK89: NA | FL89: NA | FM89: NA | FN89: NA | FO89: NA | FP89: NA | FQ89: NA | FR89: NA | FS89: NA | FT89: NA | FU89: NA | FV89: NA | FW89: NA | FX89: NA | FY89: NA | FZ89: NA | GA89: NA | GB89: NA | GC89: NA | GD89: NA | GE89: NA | GF89: NA | GG89: NA | GH89: NA | GI89: NA | GJ89: 383.1369292 | GK89: 348.8747239 | GL89: 352.7382524 | GM89: 383.1369292 | GN89: 394.9420139 | GO89: 406.7470986 | GP89: 418.5521833 | GQ89: 421.2986867 | GR89: 424.0451901 | GS89: 426.7916934 | GT89: 429.5381968 | GU89: 432.2847001 | GV89: 434.181946 | GW89: 436.0791919 | GX89: 437.9764377 | GY89: 439.8736836 | GZ89: 441.7709295 | HA89: 443.3336724 | HB89: 444.8964154 | HC89: 446.4591584 | HD89: 448.0219013 | HE89: 449.5846443 | HF89: 450.574031 | HG89: 451.5634178 | HH89: 452.5528046 | HI89: 453.5421913 | HJ89: 454.5315781 | HK89: 378.59 | HL89: 345.271 | HM89: 348.737 | HN89: 378.59 | HO89: 390.2064329 | HP89: 401.8228657 | HQ89: 413.4392986 | HR89: 416.1522522 | HS89: 418.8652057 | HT89: 421.5781593 | HU89: 424.2911129 | HV89: 427.0040665 | HW89: 428.8781395 | HX89: 430.7522125 | HY89: 432.6262855 | HZ89: 434.5003585 | IA89: 436.3744315 | IB89: 437.9180823 | IC89: 439.4617331 | ID89: 441.005384 | IE89: 442.5490348 | IF89: 444.0926856 | IG89: 445.0699882 | IH89: 446.0472907 | II89: 447.0245932 | IJ89: 448.0018957 | IK89: 448.9791983 | IL89: NA | IM89: NA | IN89: NA | IO89: NA | IP89: NA | IQ89: NA | IR89: NA | IS89: NA | IT89: NA | IU89: NA | IV89: NA | IW89: NA | IX89: NA | IY89: NA | IZ89: NA | JA89: NA | JB89: NA | JC89: NA | JD89: NA | JE89: NA | JF89: NA | JG89: NA | JH89: NA | JI89: NA | JJ89: NA | JK89: NA | JL89: NA
A91: Total excluding LULUCF | B91: WOM
A92: Total including LULUCF | B92: WOM
A93: 1. Energy | B93: WOM
A94: 1.A. Fuel combustion | B94: WOM
A95: 1.A.1. Energy industries | B95: WOM
A96: 1.A.1.a. Public electricity and heat production | B96: WOM
A97: 1.A.1.b. Petroleum refining | B97: WOM
A98: 1.A.1.c. Manufacture of solid fuels and other energy industries | B98: WOM
A99: 1.A.2. Manufacturing industries and construction | B99: WOM
A100: 1.A.3. Transport | B100: WOM
A101: 1.A.3.a. Domestic aviation | B101: WOM
A102: 1.A.3.b. Road transportation | B102: WOM
A103: 1.A.3.c. Railways | B103: WOM
A104: 1.A.3.d. Domestic navigation | B104: WOM
A105: 1.A.3.e. Other transportation | B105: WOM
A106: 1.A.4. Other sectors | B106: WOM
A107: 1.A.4.a. Commercial/Institutional | B107: WOM
A108: 1.A.4.b. Residential | B108: WOM
A109: 1.A.4.c. Agriculture/Forestry/Fishing | B109: WOM
A110: 1.A.5. Other | B110: WOM
A111: 1.B. Fugitive emissions from fuels | B111: WOM
A112: 1.B.1. Solid fuels | B112: WOM
A113: 1.B.2. Oil and natural gas and other emissions from energy production | B113: WOM
A114: 1.C. CO2 transport and storage | B114: WOM
A115: 2. Industrial processes | B115: WOM
A116: 2.A. Mineral Industry | B116: WOM
A117: 2.A. of which cement production | B117: WOM
A118: 2.A. of which other non cement production | B118: WOM
A119: 2.B. Chemical industry | B119: WOM
A120: 2.C. Metal industry | B120: WOM
A121: 2.C. of which Iron and steel production | B121: WOM
A122: 2.C. of which other non Iron and steel production | B122: WOM
A123: 2.D. Non-energy products from fuels and solvent use | B123: WOM
A124: 2.E. Electronics industry | B124: WOM
A125: 2.F. Product uses as substitutes for ODS(2) | B125: WOM
A126: 2.G. Other product manufacture and use | B126: WOM
A127: 2.H. Other (please specify) | B127: WOM
A128: 3. Agriculture | B128: WOM
A129: 3.A. Enteric fermentation | B129: WOM
A130: 3.B. Manure management | B130: WOM
A131: 3.C. Rice cultivation | B131: WOM
A132: 3.D. Agricultural soils | B132: WOM
A133: 3.E. Prescribed burning of savannahs | B133: WOM
A134: 3.F. Field burning of agricultural residues | B134: WOM
A135: 3.G. Liming | B135: WOM
A136: 3.H. Urea application | B136: WOM
A137: 3.I. Other carbon-containing fertilizers | B137: WOM
A138: 3.J. Other (please specify) | B138: WOM
A139: 4. Land Use, Land-Use Change and Forestry | B139: WOM
A140: 4.A. Forest land | B140: WOM
A141: 4.B. Cropland | B141: WOM
A142: 4.C. Grassland | B142: WOM
A143: 4.D. Wetlands | B143: WOM
A144: 4.E. Settlements | B144: WOM
A145: 4.F. Other Land | B145: WOM
A146: 4.G. Harvested wood products | B146: WOM
A147: 4.H. Other | B147: WOM
A148: 5. Waste | B148: WOM
A149: 5.A. Solid Waste Disposal | B149: WOM
A150: 5.B. Biological treatment of solid waste | B150: WOM
A151: 5.C. Incineration and open burning of waste | B151: WOM
A152: 5.D. Wastewater treatment and discharge | B152: WOM
A153: 5.E. Other (please specify) | B153: WOM
A154: Memo items | B154: WOM
A155: M.International bunkers | B155: WOM
A156: M.IB.Aviation | B156: WOM
A157: M.IB.Navigation | B157: WOM
A158: M.CO2 emissions from biomass | B158: WOM
A159: M.CO2 captured | B159: WOM
A160: M.Long-term storage of C in waste disposal sites | B160: WOM
A161: M.Indirect N2O | B161: WOM
A162: M.International aviation in the EU ETS | B162: WOM
